Workbook

Sheet Formula (hidden)
A1: LISTS | F1: DATA FOR DASHBOARD GRAPHICS
A2: Pipeline | B2: 0 | C2: Approved | D2: Andrew Fleming | E2: Basic Need | F2: Total Projects / Phases | G2: Basic Need | H2: PSBP | I2: Modernisation | J2: NWoW | K2: Corporate | L2: Asset Utilisation | M2: SSR | N2: GET | O2: ESFA Managed | P2: Other | Q2: totals
A3: Feasibility | B3: 1 | C3: KCP17 | D3: Angela Heselgrave | E3: PSBP | F3: 0 | G3: =COUNTIFS('Project Information'!#REF!,G$2,'Project Information'!#REF!,$F3) ->  | H3: =COUNTIFS('Project Information'!#REF!,H$2,'Project Information'!#REF!,$F3) ->  | I3: =COUNTIFS('Project Information'!#REF!,I$2,'Project Information'!#REF!,$F3) ->  | J3: =COUNTIFS('Project Information'!#REF!,J$2,'Project Information'!#REF!,$F3) ->  | K3: =COUNTIFS('Project Information'!#REF!,K$2,'Project Information'!#REF!,$F3) ->  | L3: =COUNTIFS('Project Information'!#REF!,L$2,'Project Information'!#REF!,$F3) ->  | M3: =COUNTIFS('Project Information'!#REF!,M$2,'Project Information'!#REF!,$F3) ->  | N3: =COUNTIFS('Project Information'!#REF!,N$2,'Project Information'!#REF!,$F3) ->  | O3: =COUNTIFS('Project Information'!#REF!,O$2,'Project Information'!#REF!,$F3) ->  | P3: =COUNTIFS('Project Information'!#REF!,P$2,'Project Information'!#REF!,$F3) ->  | Q3: =SUM(G3:P3) -> 
A4: Detailed Design | B4: 2 | C4: KCP18 | D4: Ben Sherreard | E4: Modernisation | F4: 1 | G4: =COUNTIFS('Project Information'!#REF!,G$2,'Project Information'!#REF!,$F4) ->  | H4: =COUNTIFS('Project Information'!#REF!,H$2,'Project Information'!#REF!,$F4) ->  | I4: =COUNTIFS('Project Information'!#REF!,I$2,'Project Information'!#REF!,$F4) ->  | J4: =COUNTIFS('Project Information'!#REF!,J$2,'Project Information'!#REF!,$F4) ->  | K4: =COUNTIFS('Project Information'!#REF!,K$2,'Project Information'!#REF!,$F4) ->  | L4: =COUNTIFS('Project Information'!#REF!,L$2,'Project Information'!#REF!,$F4) ->  | M4: =COUNTIFS('Project Information'!#REF!,M$2,'Project Information'!#REF!,$F4) ->  | N4: =COUNTIFS('Project Information'!#REF!,N$2,'Project Information'!#REF!,$F4) ->  | O4: =COUNTIFS('Project Information'!#REF!,O$2,'Project Information'!#REF!,$F4) ->  | P4: =COUNTIFS('Project Information'!#REF!,P$2,'Project Information'!#REF!,$F4) ->  | Q4: =SUM(G4:P4) -> 
A5: Construction | B5: 3 | C5: Blank 1 | D5: Brian Hirst | E5: Corporate | F5: 2 | G5: =COUNTIFS('Project Information'!#REF!,G$2,'Project Information'!#REF!,$F5) ->  | H5: =COUNTIFS('Project Information'!#REF!,H$2,'Project Information'!#REF!,$F5) ->  | I5: =COUNTIFS('Project Information'!#REF!,I$2,'Project Information'!#REF!,$F5) ->  | J5: =COUNTIFS('Project Information'!#REF!,J$2,'Project Information'!#REF!,$F5) ->  | K5: =COUNTIFS('Project Information'!#REF!,K$2,'Project Information'!#REF!,$F5) ->  | L5: =COUNTIFS('Project Information'!#REF!,L$2,'Project Information'!#REF!,$F5) ->  | M5: =COUNTIFS('Project Information'!#REF!,M$2,'Project Information'!#REF!,$F5) ->  | N5: =COUNTIFS('Project Information'!#REF!,N$2,'Project Information'!#REF!,$F5) ->  | O5: =COUNTIFS('Project Information'!#REF!,O$2,'Project Information'!#REF!,$F5) ->  | P5: =COUNTIFS('Project Information'!#REF!,P$2,'Project Information'!#REF!,$F5) -> 
A6: Defects | B6: 3-4 | C6: Blank 2 | D6: David Harris | E6: NWoW | F6: 3 | G6: =COUNTIFS('Project Information'!#REF!,G$2,'Project Information'!#REF!,$F6) ->  | H6: =COUNTIFS('Project Information'!#REF!,H$2,'Project Information'!#REF!,$F6) ->  | I6: =COUNTIFS('Project Information'!#REF!,I$2,'Project Information'!#REF!,$F6) ->  | J6: =COUNTIFS('Project Information'!#REF!,J$2,'Project Information'!#REF!,$F6) ->  | K6: =COUNTIFS('Project Information'!#REF!,K$2,'Project Information'!#REF!,$F6) ->  | L6: =COUNTIFS('Project Information'!#REF!,L$2,'Project Information'!#REF!,$F6) ->  | M6: =COUNTIFS('Project Information'!#REF!,M$2,'Project Information'!#REF!,$F6) ->  | N6: =COUNTIFS('Project Information'!#REF!,N$2,'Project Information'!#REF!,$F6) ->  | O6: =COUNTIFS('Project Information'!#REF!,O$2,'Project Information'!#REF!,$F6) ->  | P6: =COUNTIFS('Project Information'!#REF!,P$2,'Project Information'!#REF!,$F6) -> 
B7: 4 | C7: Blank 3 | D7: David Mounter | E7: GET | F7: 3-4 | G7: =COUNTIFS('Project Information'!#REF!,G$2,'Project Information'!#REF!,$F7) ->  | H7: =COUNTIFS('Project Information'!#REF!,H$2,'Project Information'!#REF!,$F7) ->  | I7: =COUNTIFS('Project Information'!#REF!,I$2,'Project Information'!#REF!,$F7) ->  | J7: =COUNTIFS('Project Information'!#REF!,J$2,'Project Information'!#REF!,$F7) ->  | K7: =COUNTIFS('Project Information'!#REF!,K$2,'Project Information'!#REF!,$F7) ->  | L7: =COUNTIFS('Project Information'!#REF!,L$2,'Project Information'!#REF!,$F7) ->  | M7: =COUNTIFS('Project Information'!#REF!,M$2,'Project Information'!#REF!,$F7) ->  | N7: =COUNTIFS('Project Information'!#REF!,N$2,'Project Information'!#REF!,$F7) ->  | O7: =COUNTIFS('Project Information'!#REF!,O$2,'Project Information'!#REF!,$F7) ->  | P7: =COUNTIFS('Project Information'!#REF!,P$2,'Project Information'!#REF!,$F7) -> 
B8: 5 | D8: Dominic Cresswell | E8: SSR | F8: 4 | G8: =COUNTIFS('Project Information'!#REF!,G$2,'Project Information'!#REF!,$F8) ->  | H8: =COUNTIFS('Project Information'!#REF!,H$2,'Project Information'!#REF!,$F8) ->  | I8: =COUNTIFS('Project Information'!#REF!,I$2,'Project Information'!#REF!,$F8) ->  | J8: =COUNTIFS('Project Information'!#REF!,J$2,'Project Information'!#REF!,$F8) ->  | K8: =COUNTIFS('Project Information'!#REF!,K$2,'Project Information'!#REF!,$F8) ->  | L8: =COUNTIFS('Project Information'!#REF!,L$2,'Project Information'!#REF!,$F8) ->  | M8: =COUNTIFS('Project Information'!#REF!,M$2,'Project Information'!#REF!,$F8) ->  | N8: =COUNTIFS('Project Information'!#REF!,N$2,'Project Information'!#REF!,$F8) ->  | O8: =COUNTIFS('Project Information'!#REF!,O$2,'Project Information'!#REF!,$F8) ->  | P8: =COUNTIFS('Project Information'!#REF!,P$2,'Project Information'!#REF!,$F8) -> 
B9: 6 | D9: Emily Stapley | E9: ESFA Managed | F9: 5 | G9: =COUNTIFS('Project Information'!#REF!,G$2,'Project Information'!#REF!,$F9) ->  | H9: =COUNTIFS('Project Information'!#REF!,H$2,'Project Information'!#REF!,$F9) ->  | I9: =COUNTIFS('Project Information'!#REF!,I$2,'Project Information'!#REF!,$F9) ->  | J9: =COUNTIFS('Project Information'!#REF!,J$2,'Project Information'!#REF!,$F9) ->  | K9: =COUNTIFS('Project Information'!#REF!,K$2,'Project Information'!#REF!,$F9) ->  | L9: =COUNTIFS('Project Information'!#REF!,L$2,'Project Information'!#REF!,$F9) ->  | M9: =COUNTIFS('Project Information'!#REF!,M$2,'Project Information'!#REF!,$F9) ->  | N9: =COUNTIFS('Project Information'!#REF!,N$2,'Project Information'!#REF!,$F9) ->  | O9: =COUNTIFS('Project Information'!#REF!,O$2,'Project Information'!#REF!,$F9) ->  | P9: =COUNTIFS('Project Information'!#REF!,P$2,'Project Information'!#REF!,$F9) -> 
B10: 7 | D10: Esther Larner | E10: Asset Utilisation | F10: 6 | G10: =COUNTIFS('Project Information'!#REF!,G$2,'Project Information'!#REF!,$F10) ->  | H10: =COUNTIFS('Project Information'!#REF!,H$2,'Project Information'!#REF!,$F10) ->  | I10: =COUNTIFS('Project Information'!#REF!,I$2,'Project Information'!#REF!,$F10) ->  | J10: =COUNTIFS('Project Information'!#REF!,J$2,'Project Information'!#REF!,$F10) ->  | K10: =COUNTIFS('Project Information'!#REF!,K$2,'Project Information'!#REF!,$F10) ->  | L10: =COUNTIFS('Project Information'!#REF!,L$2,'Project Information'!#REF!,$F10) ->  | M10: =COUNTIFS('Project Information'!#REF!,M$2,'Project Information'!#REF!,$F10) ->  | N10: =COUNTIFS('Project Information'!#REF!,N$2,'Project Information'!#REF!,$F10) ->  | O10: =COUNTIFS('Project Information'!#REF!,O$2,'Project Information'!#REF!,$F10) ->  | P10: =COUNTIFS('Project Information'!#REF!,P$2,'Project Information'!#REF!,$F10) -> 
B11: Managed By Others | D11: James Drew | E11: Other | F11: 7 | G11: =COUNTIFS('Project Information'!#REF!,G$2,'Project Information'!#REF!,$F11) ->  | H11: =COUNTIFS('Project Information'!#REF!,H$2,'Project Information'!#REF!,$F11) ->  | I11: =COUNTIFS('Project Information'!#REF!,I$2,'Project Information'!#REF!,$F11) ->  | J11: =COUNTIFS('Project Information'!#REF!,J$2,'Project Information'!#REF!,$F11) ->  | K11: =COUNTIFS('Project Information'!#REF!,K$2,'Project Information'!#REF!,$F11) ->  | L11: =COUNTIFS('Project Information'!#REF!,L$2,'Project Information'!#REF!,$F11) ->  | M11: =COUNTIFS('Project Information'!#REF!,M$2,'Project Information'!#REF!,$F11) ->  | N11: =COUNTIFS('Project Information'!#REF!,N$2,'Project Information'!#REF!,$F11) ->  | O11: =COUNTIFS('Project Information'!#REF!,O$2,'Project Information'!#REF!,$F11) ->  | P11: =COUNTIFS('Project Information'!#REF!,P$2,'Project Information'!#REF!,$F11) -> 
B12: On Hold | D12: Janet Streek | F12: Managed By Others | G12: =COUNTIFS('Project Information'!#REF!,G$2,'Project Information'!#REF!,$F12) ->  | H12: =COUNTIFS('Project Information'!#REF!,H$2,'Project Information'!#REF!,$F12) ->  | I12: =COUNTIFS('Project Information'!#REF!,I$2,'Project Information'!#REF!,$F12) ->  | J12: =COUNTIFS('Project Information'!#REF!,J$2,'Project Information'!#REF!,$F12) ->  | K12: =COUNTIFS('Project Information'!#REF!,K$2,'Project Information'!#REF!,$F12) ->  | L12: =COUNTIFS('Project Information'!#REF!,L$2,'Project Information'!#REF!,$F12) ->  | M12: =COUNTIFS('Project Information'!#REF!,M$2,'Project Information'!#REF!,$F12) ->  | N12: =COUNTIFS('Project Information'!#REF!,N$2,'Project Information'!#REF!,$F12) ->  | O12: =COUNTIFS('Project Information'!#REF!,O$2,'Project Information'!#REF!,$F12) ->  | P12: =COUNTIFS('Project Information'!#REF!,P$2,'Project Information'!#REF!,$F12) -> 
D13: Joanna Ashby | G13: =SUM(G3:G12) ->  | H13: =SUM(H3:H12) ->  | Q13: =SUM(Q3:Q12) -> 
D14: Joanne Taylor | F14: On Hold | G14: =COUNTIFS('Project Information'!#REF!,G$2,'Project Information'!#REF!,$F14) ->  | H14: =COUNTIFS('Project Information'!#REF!,H$2,'Project Information'!#REF!,$F14) ->  | I14: =COUNTIFS('Project Information'!#REF!,I$2,'Project Information'!#REF!,$F14) ->  | J14: =COUNTIFS('Project Information'!#REF!,J$2,'Project Information'!#REF!,$F14) ->  | K14: =COUNTIFS('Project Information'!#REF!,K$2,'Project Information'!#REF!,$F14) ->  | L14: =COUNTIFS('Project Information'!#REF!,L$2,'Project Information'!#REF!,$F14) ->  | M14: =COUNTIFS('Project Information'!#REF!,M$2,'Project Information'!#REF!,$F14) ->  | N14: =COUNTIFS('Project Information'!#REF!,N$2,'Project Information'!#REF!,$F14) ->  | O14: =COUNTIFS('Project Information'!#REF!,O$2,'Project Information'!#REF!,$F14) ->  | P14: =COUNTIFS('Project Information'!#REF!,P$2,'Project Information'!#REF!,$F14) -> 
D15: John Brocklehurst | Q15: =Q13+Q14 -> 
D16: Natasha Petley
D17: Paula Malpeli | F17: Live Projects | G17: Number | I17: RIBA Stage | J17: Total | L17: Gateways | M17: Total
D18: Banji Adegunju | F18: Pre-Contract | G18: =SUM(Formula!J18:J23) ->  | I18: 0 | J18: =COUNTIF('Project Information'!#REF!,I18) ->  | L18: Due | M18: =COUNTIF('Project Information'!#REF!,TRUE) -> 
D19: Rachel Line | F19: Post Contract | G19: =Formula!J24 ->  | I19: 1 | J19: =COUNTIF('Project Information'!#REF!,I19) ->  | L19: Complete | M19: =COUNTIF('Project Information'!#REF!,"Y") -> 
D20: Sue Meads | F20: Complete | G20: =SUM(Formula!J25:J26) ->  | H20: =SUM(G18:G20) ->  | I20: 2 | J20: =COUNTIF('Project Information'!#REF!,I20) ->  | O20: DATA TAKEN FROM RESOURCE DEMAND WORKSHEET
D21: Erica Pavlis | I21: 3 | J21: =COUNTIF('Project Information'!#REF!,I21) -> 
D22: Chris Wrench | F22: RAG Status | G22: Total | I22: 3-4 | J22: =COUNTIF('Project Information'!#REF!,I22) ->  | L22: PM capacity | M22: Permanent | N22: Bench | O22: Flex | P22: Demand
D23: Aidan Webb | F23: Red | G23: =COUNTIF('Project Information'!#REF!,"R") ->  | I23: 4 | J23: =COUNTIF('Project Information'!#REF!,I23) ->  | L23: 2018-11-01 | M23: ='Resource Demand'!G$45 -> 1146.5 | N23: ='Resource Demand'!G$46 -> 331.2 | O23: ='Resource Demand'!G$47 -> 331.2 | P23: ='Resource Demand'!G$59 -> 0
D24: Olabisi Ogunbambi | F24: Amber | G24: =COUNTIF('Project Information'!#REF!,"A") ->  | I24: 5 | J24: =COUNTIF('Project Information'!#REF!,I24) ->  | L24: 2018-12-01 | M24: 917.2 | N24: 264.96 | O24: 264.96 | P24: ='Resource Demand'!H$59 -> 0
D25: TBC | F25: Green | G25: =COUNTIF('Project Information'!#REF!,"G") ->  | I25: 6 | J25: =COUNTIF('Project Information'!#REF!,I25) ->  | L25: 2019-01-01 | M25: ='Resource Demand'!I$45 -> 1146.5 | N25: ='Resource Demand'!I$46 -> 331.2 | O25: ='Resource Demand'!I$47 -> 331.2 | P25: ='Resource Demand'!I$59 -> 0
D26: N/A | F26: On Hold | G26: =COUNTIF('Project Information'!#REF!,"H") ->  | I26: 7 | J26: =COUNTIF('Project Information'!#REF!,I26) ->  | K26: =SUM(J18:J26) ->  | L26: 2019-02-01 | M26: ='Resource Demand'!J$45 -> 1146.5 | N26: ='Resource Demand'!J$46 -> 331.2 | O26: ='Resource Demand'!J$47 -> 331.2 | P26: ='Resource Demand'!J$59 -> 0
F27: Managed By Others | G27: =COUNTIF('Project Information'!#REF!,"SM") ->  | I27: Managed By Others | J27: =COUNTIF('Project Information'!#REF!,I27) -> 
G28: =SUM(G23:G27) ->  | I28: On Hold | J28: =COUNTIF('Project Information'!#REF!,I28) -> 
J29: =SUM(J18:J28) -> 
F30: Area | G30: Total | H30: GIFA
F31: North | G31: =COUNTIF('Project Information'!B:B,F31) -> 25 | H31: =SUMIFS('Project Information'!#REF!,'Project Information'!#REF!,"Basic Need",'Project Information'!B4:B79,"North") -> 
F32: East | G32: =COUNTIF('Project Information'!B:B,F32) -> 17 | H32: =SUMIFS('Project Information'!#REF!,'Project Information'!#REF!,"Basic Need",'Project Information'!B4:B79,"East") ->  | I32: GAPS IN DATA
F33: South | G33: =COUNTIF('Project Information'!B:B,F33) -> 13 | H33: =SUMIFS('Project Information'!#REF!,'Project Information'!#REF!,"Basic Need",'Project Information'!B4:B79,"South") -> 
F34: West | G34: =COUNTIF('Project Information'!B:B,F34) -> 24 | H34: =SUMIFS('Project Information'!#REF!,'Project Information'!#REF!,"Basic Need",'Project Information'!B4:B79,"West") -> 
G35: =SUM(G31:G34) -> 79
F37: Programme Status | G37: 18/19 | H37: 19/20 | I37: 20/21 | J37: 21/22 | K37: 22/23 | L37: 23/24
F38: On Time | G38: =COUNTIFS('Project Information'!#REF!,G$37,'Project Information'!#REF!,0) ->  | H38: =COUNTIFS('Project Information'!#REF!,H$37,'Project Information'!#REF!,0) ->  | I38: =COUNTIFS('Project Information'!#REF!,I$37,'Project Information'!#REF!,0) ->  | J38: =COUNTIFS('Project Information'!#REF!,J$37,'Project Information'!#REF!,0) ->  | K38: =COUNTIFS('Project Information'!#REF!,K$37,'Project Information'!#REF!,0) ->  | L38: =COUNTIFS('Project Information'!#REF!,L$37,'Project Information'!#REF!,0) -> 
D39: GATEWAYS | F39: Late | G39: =COUNTIFS('Project Information'!#REF!,G$37,'Project Information'!#REF!,1) ->  | H39: =COUNTIFS('Project Information'!#REF!,H$37,'Project Information'!#REF!,1) ->  | I39: =COUNTIFS('Project Information'!#REF!,I$37,'Project Information'!#REF!,1) ->  | J39: =COUNTIFS('Project Information'!#REF!,J$37,'Project Information'!#REF!,1) ->  | K39: =COUNTIFS('Project Information'!#REF!,K$37,'Project Information'!#REF!,1) ->  | L39: =COUNTIFS('Project Information'!#REF!,L$37,'Project Information'!#REF!,1) -> 
D40: 0 | F40: On Hold | G40: =COUNTIFS('Project Information'!#REF!,G$37,'Project Information'!#REF!,"hold") ->  | H40: =COUNTIFS('Project Information'!#REF!,H$37,'Project Information'!#REF!,"hold") ->  | I40: =COUNTIFS('Project Information'!#REF!,I$37,'Project Information'!#REF!,"hold") ->  | J40: =COUNTIFS('Project Information'!#REF!,J$37,'Project Information'!#REF!,"hold") ->  | K40: =COUNTIFS('Project Information'!#REF!,K$37,'Project Information'!#REF!,"hold") ->  | L40: =COUNTIFS('Project Information'!#REF!,L$37,'Project Information'!#REF!,"hold") -> 
D41: 1 | F41: Complete | G41: =G42-SUM(G38:G40) ->  | H41: =H42-SUM(H38:H40) -> 
D42: 2 | F42: totals | G42: =COUNTIFS('Project Information'!#REF!,G$37) ->  | H42: =COUNTIFS('Project Information'!#REF!,H$37) ->  | I42: =COUNTIFS('Project Information'!#REF!,I$37) ->  | J42: =COUNTIFS('Project Information'!#REF!,J$37) ->  | K42: =COUNTIFS('Project Information'!#REF!,K$37) ->  | L42: =COUNTIFS('Project Information'!#REF!,L$37) ->  | M42: =SUM(G38:L42) ->  | N42: projects / phases
D43: 3
D44: 4
D45: 5/6 | F45: Average Cost/m2 GIFA | G45: £/m2 Ave | H45: £/m2 Sum | I45: £/m2 Count | J45: Average Cost/Pupil Place | K45: £/pupil Ave | L45: £/pupil Sum | M45: £/pupil Count | N45: Financial Status | O45: Spent to Date | P45: Planned | Q45: Agreed | R45: Revised
D46: 7 | E46: Basic Need (tranche 1) | F46: Completed | G46: =H46/I46 ->  | H46: =SUMIFS('Project Information'!#REF!,'Project Information'!#REF!,"Basic Need",'Project Information'!#REF!,"Approved",'Project Information'!#REF!,"Y")-SUM(H47:H49) ->  | I46: =COUNTIFS('Project Information'!#REF!,"Basic Need",'Project Information'!#REF!,"Approved",'Project Information'!#REF!,"Y")-SUM(I47:I49) ->  | J46: Completed | K46: =L46/M46 ->  | L46: =SUMIFS('Project Information'!#REF!,'Project Information'!#REF!,"Basic Need",'Project Information'!#REF!,"Approved",'Project Information'!#REF!,"Y")-SUM(L47:L49) ->  | M46: =COUNTIFS('Project Information'!#REF!,"Basic Need",'Project Information'!#REF!,"Approved",'Project Information'!#REF!,"Y")-SUM(M47:M49) ->  | N46: Completed | O46: =SUMIFS('Project Information'!#REF!,'Project Information'!#REF!,"Basic Need",'Project Information'!#REF!,"Approved")-SUM(O47:O49) ->  | P46: =SUMIFS('Project Information'!#REF!,'Project Information'!#REF!,"Basic Need",'Project Information'!#REF!,"Approved")-SUM(P47:P49) ->  | Q46: =SUMIFS('Project Information'!#REF!,'Project Information'!#REF!,"Basic Need",'Project Information'!#REF!,"Approved")-SUM(Q47:Q49) ->  | R46: =SUMIFS('Project Information'!$E:$E,'Project Information'!#REF!,"Basic Need",'Project Information'!#REF!,"Approved")-SUM(R47:R49) -> 
E47: Basic Need (tranche 1) | F47: On Time | G47: =H47/I47 ->  | H47: =SUMIFS('Project Information'!#REF!,'Project Information'!#REF!,"Basic Need",'Project Information'!#REF!,"Approved",'Project Information'!#REF!,0,'Project Information'!#REF!,"Y") ->  | I47: =COUNTIFS('Project Information'!#REF!,"Basic Need",'Project Information'!#REF!,"Approved",'Project Information'!#REF!,0,'Project Information'!#REF!,"Y") ->  | J47: On Time | K47: =L47/M47 ->  | L47: =SUMIFS('Project Information'!#REF!,'Project Information'!#REF!,"Basic Need",'Project Information'!#REF!,"Approved",'Project Information'!#REF!,0,'Project Information'!#REF!,"Y") ->  | M47: =COUNTIFS('Project Information'!#REF!,"Basic Need",'Project Information'!#REF!,"Approved",'Project Information'!#REF!,0,'Project Information'!#REF!,"Y") ->  | N47: On Time | O47: =SUMIFS('Project Information'!#REF!,'Project Information'!#REF!,"Basic Need",'Project Information'!#REF!,"Approved",'Project Information'!#REF!,0) ->  | P47: =SUMIFS('Project Information'!#REF!,'Project Information'!#REF!,"Basic Need",'Project Information'!#REF!,"Approved",'Project Information'!#REF!,0) ->  | Q47: =SUMIFS('Project Information'!#REF!,'Project Information'!#REF!,"Basic Need",'Project Information'!#REF!,"Approved",'Project Information'!#REF!,0) ->  | R47: =SUMIFS('Project Information'!$E:$E,'Project Information'!#REF!,"Basic Need",'Project Information'!#REF!,"Approved",'Project Information'!#REF!,0) -> 
E48: Basic Need (tranche 1) | F48: Late | H48: =SUMIFS('Project Information'!#REF!,'Project Information'!#REF!,"Basic Need",'Project Information'!#REF!,"Approved",'Project Information'!#REF!,1,'Project Information'!#REF!,"Y") ->  | I48: =COUNTIFS('Project Information'!#REF!,"Basic Need",'Project Information'!#REF!,"Approved",'Project Information'!#REF!,1,'Project Information'!#REF!,"Y") ->  | J48: Late | L48: =SUMIFS('Project Information'!#REF!,'Project Information'!#REF!,"Basic Need",'Project Information'!#REF!,"Approved",'Project Information'!#REF!,1,'Project Information'!#REF!,"Y") ->  | M48: =COUNTIFS('Project Information'!#REF!,"Basic Need",'Project Information'!#REF!,"Approved",'Project Information'!#REF!,1,'Project Information'!#REF!,"Y") ->  | N48: Late | O48: =SUMIFS('Project Information'!#REF!,'Project Information'!#REF!,"Basic Need",'Project Information'!#REF!,"Approved",'Project Information'!#REF!,1) ->  | P48: =SUMIFS('Project Information'!#REF!,'Project Information'!#REF!,"Basic Need",'Project Information'!#REF!,"Approved",'Project Information'!#REF!,1) ->  | Q48: =SUMIFS('Project Information'!#REF!,'Project Information'!#REF!,"Basic Need",'Project Information'!#REF!,"Approved",'Project Information'!#REF!,1) ->  | R48: =SUMIFS('Project Information'!$E:$E,'Project Information'!#REF!,"Basic Need",'Project Information'!#REF!,"Approved",'Project Information'!#REF!,1) -> 
E49: Basic Need (tranche 1) | F49: Hold | H49: =SUMIFS('Project Information'!#REF!,'Project Information'!#REF!,"Basic Need",'Project Information'!#REF!,"Approved",'Project Information'!#REF!,"Hold",'Project Information'!#REF!,"Y") ->  | I49: =COUNTIFS('Project Information'!#REF!,"Basic Need",'Project Information'!#REF!,"Approved",'Project Information'!#REF!,"hold",'Project Information'!#REF!,"Y") ->  | J49: Hold | L49: =SUMIFS('Project Information'!#REF!,'Project Information'!#REF!,"Basic Need",'Project Information'!#REF!,"Approved",'Project Information'!#REF!,"Hold",'Project Information'!#REF!,"Y") ->  | M49: =COUNTIFS('Project Information'!#REF!,"Basic Need",'Project Information'!#REF!,"Approved",'Project Information'!#REF!,"hold",'Project Information'!#REF!,"Y") ->  | N49: Hold | O49: =SUMIFS('Project Information'!#REF!,'Project Information'!#REF!,"Basic Need",'Project Information'!#REF!,"Approved",'Project Information'!#REF!,"hold") ->  | P49: =SUMIFS('Project Information'!#REF!,'Project Information'!#REF!,"Basic Need",'Project Information'!#REF!,"Approved",'Project Information'!#REF!,"hold") ->  | Q49: =SUMIFS('Project Information'!#REF!,'Project Information'!#REF!,"Basic Need",'Project Information'!#REF!,"Approved",'Project Information'!#REF!,"hold") ->  | R49: =SUMIFS('Project Information'!$E:$E,'Project Information'!#REF!,"Basic Need",'Project Information'!#REF!,"Approved",'Project Information'!#REF!,"hold") -> 
F50: Average Cost/m2 GIFA | G50: £/m2 Ave | H50: £/m2 Sum | I50: £/m2 Count | J50: Average Cost/Pupil Place | K50: £/pupil Ave | L50: £/pupil Sum | M50: £/pupil Count | N50: Financial Status | O50: Spent to Date | P50: Planned | Q50: Agreed | R50: Revised
E51: Basic Need (tranche 2) | F51: Completed | H51: =SUMIFS('Project Information'!#REF!,'Project Information'!#REF!,"Basic Need",'Project Information'!#REF!,"Unapproved",'Project Information'!#REF!,"Y")-SUM(H52:H54) ->  | I51: =COUNTIFS('Project Information'!#REF!,"Basic Need",'Project Information'!#REF!,"Unapproved",'Project Information'!#REF!,"Y")-SUM(I52:I54) ->  | J51: Completed | L51: =SUMIFS('Project Information'!#REF!,'Project Information'!#REF!,"Basic Need",'Project Information'!#REF!,"Unapproved",'Project Information'!#REF!,"Y")-SUM(L52:L54) ->  | M51: =COUNTIFS('Project Information'!#REF!,"Basic Need",'Project Information'!#REF!,"Unapproved",'Project Information'!#REF!,"Y")-SUM(M52:M54) ->  | N51: Completed | O51: =SUMIFS('Project Information'!#REF!,'Project Information'!#REF!,"Basic Need",'Project Information'!#REF!,"Unapproved")-SUM(O52:O54) ->  | P51: =SUMIFS('Project Information'!#REF!,'Project Information'!#REF!,"Basic Need",'Project Information'!#REF!,"Unapproved")-SUM(P52:P54) ->  | Q51: =SUMIFS('Project Information'!#REF!,'Project Information'!#REF!,"Basic Need",'Project Information'!#REF!,"Unapproved")-SUM(Q52:Q54) ->  | R51: =SUMIFS('Project Information'!$E:$E,'Project Information'!#REF!,"Basic Need",'Project Information'!#REF!,"Unapproved")-SUM(R52:R54) -> 
E52: Basic Need (tranche 2) | F52: On Time | H52: =SUMIFS('Project Information'!#REF!,'Project Information'!#REF!,"Basic Need",'Project Information'!#REF!,"Unapproved",'Project Information'!#REF!,0,'Project Information'!#REF!,"Y") ->  | I52: =COUNTIFS('Project Information'!#REF!,"Basic Need",'Project Information'!#REF!,"Unapproved",'Project Information'!#REF!,0,'Project Information'!#REF!,"Y") ->  | J52: On Time | L52: =SUMIFS('Project Information'!#REF!,'Project Information'!#REF!,"Basic Need",'Project Information'!#REF!,"Unapproved",'Project Information'!#REF!,0,'Project Information'!#REF!,"Y") ->  | M52: =COUNTIFS('Project Information'!#REF!,"Basic Need",'Project Information'!#REF!,"Unapproved",'Project Information'!#REF!,0,'Project Information'!#REF!,"Y") ->  | N52: On Time | O52: =SUMIFS('Project Information'!#REF!,'Project Information'!#REF!,"Basic Need",'Project Information'!#REF!,"Unapproved",'Project Information'!#REF!,0) ->  | P52: =SUMIFS('Project Information'!#REF!,'Project Information'!#REF!,"Basic Need",'Project Information'!#REF!,"Unapproved",'Project Information'!#REF!,0) ->  | Q52: =SUMIFS('Project Information'!#REF!,'Project Information'!#REF!,"Basic Need",'Project Information'!#REF!,"Unapproved",'Project Information'!#REF!,0) ->  | R52: =SUMIFS('Project Information'!$E:$E,'Project Information'!#REF!,"Basic Need",'Project Information'!#REF!,"Unapproved",'Project Information'!#REF!,0) -> 
E53: Basic Need (tranche 2) | F53: Late | H53: =SUMIFS('Project Information'!#REF!,'Project Information'!#REF!,"Basic Need",'Project Information'!#REF!,"Unapproved",'Project Information'!#REF!,1,'Project Information'!#REF!,"Y") ->  | I53: =COUNTIFS('Project Information'!#REF!,"Basic Need",'Project Information'!#REF!,"Unapproved",'Project Information'!#REF!,1,'Project Information'!#REF!,"Y") ->  | J53: Late | L53: =SUMIFS('Project Information'!#REF!,'Project Information'!#REF!,"Basic Need",'Project Information'!#REF!,"Unapproved",'Project Information'!#REF!,1,'Project Information'!#REF!,"Y") ->  | M53: =COUNTIFS('Project Information'!#REF!,"Basic Need",'Project Information'!#REF!,"Unapproved",'Project Information'!#REF!,1,'Project Information'!#REF!,"Y") ->  | N53: Late | O53: =SUMIFS('Project Information'!#REF!,'Project Information'!#REF!,"Basic Need",'Project Information'!#REF!,"Unapproved",'Project Information'!#REF!,1) ->  | P53: =SUMIFS('Project Information'!#REF!,'Project Information'!#REF!,"Basic Need",'Project Information'!#REF!,"Unapproved",'Project Information'!#REF!,1) ->  | Q53: =SUMIFS('Project Information'!#REF!,'Project Information'!#REF!,"Basic Need",'Project Information'!#REF!,"Unapproved",'Project Information'!#REF!,1) ->  | R53: =SUMIFS('Project Information'!$E:$E,'Project Information'!#REF!,"Basic Need",'Project Information'!#REF!,"Unapproved",'Project Information'!#REF!,1) -> 
E54: Basic Need (tranche 2) | F54: Hold | H54: =SUMIFS('Project Information'!#REF!,'Project Information'!#REF!,"Basic Need",'Project Information'!#REF!,"Unapproved",'Project Information'!#REF!,"Hold",'Project Information'!#REF!,"Y") ->  | I54: =COUNTIFS('Project Information'!#REF!,"Basic Need",'Project Information'!#REF!,"Unapproved",'Project Information'!#REF!,"hold",'Project Information'!#REF!,"Y") ->  | J54: Hold | L54: =SUMIFS('Project Information'!#REF!,'Project Information'!#REF!,"Basic Need",'Project Information'!#REF!,"Unapproved",'Project Information'!#REF!,"Hold",'Project Information'!#REF!,"Y") ->  | M54: =COUNTIFS('Project Information'!#REF!,"Basic Need",'Project Information'!#REF!,"Unapproved",'Project Information'!#REF!,"hold",'Project Information'!#REF!,"Y") ->  | N54: Hold | O54: =SUMIFS('Project Information'!#REF!,'Project Information'!#REF!,"Basic Need",'Project Information'!#REF!,"Unapproved",'Project Information'!#REF!,"hold") ->  | P54: =SUMIFS('Project Information'!#REF!,'Project Information'!#REF!,"Basic Need",'Project Information'!#REF!,"Unapproved",'Project Information'!#REF!,"hold") ->  | Q54: =SUMIFS('Project Information'!#REF!,'Project Information'!#REF!,"Basic Need",'Project Information'!#REF!,"Unapproved",'Project Information'!#REF!,"hold") ->  | R54: =SUMIFS('Project Information'!$E:$E,'Project Information'!#REF!,"Basic Need",'Project Information'!#REF!,"Unapproved",'Project Information'!#REF!,"hold") -> 
F55: Average Cost/m2 GIFA | G55: £/m2 Ave | H55: £/m2 Sum | I55: £/m2 Count | J55: Average Cost/Pupil Place | K55: £/pupil Ave | L55: £/pupil Sum | M55: £/pupil Count | N55: Financial Status | O55: Spent to Date | P55: Planned | Q55: Agreed | R55: Revised
E56: Remainder | F56: Completed | H56: =H60-H46-H51 ->  | J56: Completed | L56: =L60-L46-L51 ->  | N56: Completed | O56: =O60-O46-O51 -> 
E57: Remainder | F57: On Time | J57: On Time | N57: On Time
E58: Remainder | F58: Late | J58: Late | N58: Late | O58: =O62-O48-O53 -> 
E59: Remainder | F59: Hold | J59: Hold | N59: Hold | O59: =O63-O49-O54 -> 
E60: totals | F60: Completed | H60: =SUMIFS('Project Information'!#REF!,'Project Information'!#REF!,"Y")-SUM(H61:H63) ->  | I60: =COUNTIF('Project Information'!#REF!,"Y")-SUM(I61:I63) ->  | J60: Completed | L60: =SUMIFS('Project Information'!#REF!,'Project Information'!#REF!,"Y")-SUM(L61:L63) ->  | M60: =COUNTIF('Project Information'!#REF!,"Y")-SUM(M61:M63) ->  | N60: Completed | O60: ='Project Information'!#REF!-SUM(O61:O63) ->  | P60: ='Project Information'!#REF!-SUM(P61:P63) ->  | Q60: ='Project Information'!#REF!-SUM(Q61:Q63) ->  | R60: ='Project Information'!E2-SUM(R61:R63) -> 
E61: totals | F61: On Time | H61: =SUMIFS('Project Information'!#REF!,'Project Information'!#REF!,0,'Project Information'!#REF!,"Y") ->  | I61: =COUNTIFS('Project Information'!#REF!,0,'Project Information'!#REF!,"Y") ->  | J61: On Time | L61: =SUMIFS('Project Information'!#REF!,'Project Information'!#REF!,0,'Project Information'!#REF!,"Y") ->  | M61: =COUNTIFS('Project Information'!#REF!,0,'Project Information'!#REF!,"Y") ->  | N61: On Time | O61: =SUMIFS('Project Information'!#REF!,'Project Information'!#REF!,0) ->  | P61: =SUMIFS('Project Information'!#REF!,'Project Information'!#REF!,0) ->  | Q61: =SUMIFS('Project Information'!#REF!,'Project Information'!#REF!,0) ->  | R61: =SUMIFS('Project Information'!$E:$E,'Project Information'!#REF!,0) -> 
E62: totals | F62: Late | H62: =SUMIFS('Project Information'!#REF!,'Project Information'!#REF!,1,'Project Information'!#REF!,"Y") ->  | I62: =COUNTIFS('Project Information'!#REF!,1,'Project Information'!#REF!,"Y") ->  | J62: Late | L62: =SUMIFS('Project Information'!#REF!,'Project Information'!#REF!,1,'Project Information'!#REF!,"Y") ->  | M62: =COUNTIFS('Project Information'!#REF!,1,'Project Information'!#REF!,"Y") ->  | N62: Late | O62: =SUMIFS('Project Information'!#REF!,'Project Information'!#REF!,1) ->  | P62: =SUMIFS('Project Information'!#REF!,'Project Information'!#REF!,1) ->  | Q62: =SUMIFS('Project Information'!#REF!,'Project Information'!#REF!,1) ->  | R62: =SUMIFS('Project Information'!$E:$E,'Project Information'!#REF!,1) -> 
E63: totals | F63: Hold | H63: =SUMIFS('Project Information'!#REF!,'Project Information'!#REF!,"hold",'Project Information'!#REF!,"Y") ->  | I63: =COUNTIFS('Project Information'!#REF!,"hold",'Project Information'!#REF!,"Y") ->  | J63: Hold | L63: =SUMIFS('Project Information'!#REF!,'Project Information'!#REF!,"hold",'Project Information'!#REF!,"Y") ->  | M63: =COUNTIFS('Project Information'!#REF!,"hold",'Project Information'!#REF!,"Y") ->  | N63: Hold | O63: =SUMIFS('Project Information'!#REF!,'Project Information'!#REF!,"hold") ->  | P63: =SUMIFS('Project Information'!#REF!,'Project Information'!#REF!,"hold") ->  | Q63: =SUMIFS('Project Information'!#REF!,'Project Information'!#REF!,"hold") ->  | R63: =SUMIFS('Project Information'!$E:$E,'Project Information'!#REF!,"hold") -> 
O64: =SUM(O46:O59) ->  | P64: =SUM(P46:P59) -> 
F65: Anticipated Expenditure allocated to current stage
F67: Programme (data retrieval, table info below) | G67: 0 | H67: 1 | I67: 2 | J67: 3 | K67: 3-4 | L67: 4 | M67: 5 | N67: 6 | O67: 7 | P67: Managed By Others
F68: Basic Need, Approved | G68: =SUMIFS('Project Information'!#REF!,'Project Information'!#REF!,"Basic Need",'Project Information'!#REF!,"Approved",'Project Information'!#REF!,G$67) ->  | H68: =SUMIFS('Project Information'!#REF!,'Project Information'!#REF!,"Basic Need",'Project Information'!#REF!,"Approved",'Project Information'!#REF!,H$67) ->  | I68: =SUMIFS('Project Information'!#REF!,'Project Information'!#REF!,"Basic Need",'Project Information'!#REF!,"Approved",'Project Information'!#REF!,I$67) ->  | J68: =SUMIFS('Project Information'!#REF!,'Project Information'!#REF!,"Basic Need",'Project Information'!#REF!,"Approved",'Project Information'!#REF!,J$67) ->  | K68: =SUMIFS('Project Information'!#REF!,'Project Information'!#REF!,"Basic Need",'Project Information'!#REF!,"Approved",'Project Information'!#REF!,K$67) ->  | L68: =SUMIFS('Project Information'!#REF!,'Project Information'!#REF!,"Basic Need",'Project Information'!#REF!,"Approved",'Project Information'!#REF!,L$67) ->  | M68: =SUMIFS('Project Information'!#REF!,'Project Information'!#REF!,"Basic Need",'Project Information'!#REF!,"Approved",'Project Information'!#REF!,M$67) ->  | N68: =SUMIFS('Project Information'!#REF!,'Project Information'!#REF!,"Basic Need",'Project Information'!#REF!,"Approved",'Project Information'!#REF!,N$67) ->  | O68: =SUMIFS('Project Information'!#REF!,'Project Information'!#REF!,"Basic Need",'Project Information'!#REF!,"Approved",'Project Information'!#REF!,O$67) ->  | P68: =SUMIFS('Project Information'!#REF!,'Project Information'!#REF!,"Basic Need",'Project Information'!#REF!,"Approved",'Project Information'!#REF!,P$67) -> 
F69: Basic Need, Unapproved | G69: =SUMIFS('Project Information'!#REF!,'Project Information'!#REF!,"Basic Need",'Project Information'!#REF!,"Unapproved",'Project Information'!#REF!,G$67) ->  | H69: =SUMIFS('Project Information'!#REF!,'Project Information'!#REF!,"Basic Need",'Project Information'!#REF!,"Unapproved",'Project Information'!#REF!,H$67) ->  | I69: =SUMIFS('Project Information'!#REF!,'Project Information'!#REF!,"Basic Need",'Project Information'!#REF!,"Unapproved",'Project Information'!#REF!,I$67) ->  | J69: =SUMIFS('Project Information'!#REF!,'Project Information'!#REF!,"Basic Need",'Project Information'!#REF!,"Unapproved",'Project Information'!#REF!,J$67) ->  | K69: =SUMIFS('Project Information'!#REF!,'Project Information'!#REF!,"Basic Need",'Project Information'!#REF!,"Unapproved",'Project Information'!#REF!,K$67) ->  | L69: =SUMIFS('Project Information'!#REF!,'Project Information'!#REF!,"Basic Need",'Project Information'!#REF!,"Unapproved",'Project Information'!#REF!,L$67) ->  | M69: =SUMIFS('Project Information'!#REF!,'Project Information'!#REF!,"Basic Need",'Project Information'!#REF!,"Unapproved",'Project Information'!#REF!,M$67) ->  | N69: =SUMIFS('Project Information'!#REF!,'Project Information'!#REF!,"Basic Need",'Project Information'!#REF!,"Unapproved",'Project Information'!#REF!,N$67) ->  | O69: =SUMIFS('Project Information'!#REF!,'Project Information'!#REF!,"Basic Need",'Project Information'!#REF!,"Unapproved",'Project Information'!#REF!,O$67) ->  | P69: =SUMIFS('Project Information'!#REF!,'Project Information'!#REF!,"Basic Need",'Project Information'!#REF!,"Unapproved",'Project Information'!#REF!,P$67) -> 
F70: PSBP | G70: =SUMIFS('Project Information'!#REF!,'Project Information'!#REF!,$F70,'Project Information'!#REF!,G$67) ->  | H70: =SUMIFS('Project Information'!#REF!,'Project Information'!#REF!,$F70,'Project Information'!#REF!,H$67) ->  | I70: =SUMIFS('Project Information'!#REF!,'Project Information'!#REF!,$F70,'Project Information'!#REF!,I$67) ->  | J70: =SUMIFS('Project Information'!#REF!,'Project Information'!#REF!,$F70,'Project Information'!#REF!,J$67) ->  | K70: =SUMIFS('Project Information'!#REF!,'Project Information'!#REF!,$F70,'Project Information'!#REF!,K$67) ->  | L70: =SUMIFS('Project Information'!#REF!,'Project Information'!#REF!,$F70,'Project Information'!#REF!,L$67) ->  | M70: =SUMIFS('Project Information'!#REF!,'Project Information'!#REF!,$F70,'Project Information'!#REF!,M$67) ->  | N70: =SUMIFS('Project Information'!#REF!,'Project Information'!#REF!,$F70,'Project Information'!#REF!,N$67) ->  | O70: =SUMIFS('Project Information'!#REF!,'Project Information'!#REF!,$F70,'Project Information'!#REF!,O$67) ->  | P70: =SUMIFS('Project Information'!#REF!,'Project Information'!#REF!,$F70,'Project Information'!#REF!,P$67) -> 
F71: Modernisation | G71: =SUMIFS('Project Information'!#REF!,'Project Information'!#REF!,$F71,'Project Information'!#REF!,G$67) ->  | H71: =SUMIFS('Project Information'!#REF!,'Project Information'!#REF!,$F71,'Project Information'!#REF!,H$67) ->  | I71: =SUMIFS('Project Information'!#REF!,'Project Information'!#REF!,$F71,'Project Information'!#REF!,I$67) ->  | J71: =SUMIFS('Project Information'!#REF!,'Project Information'!#REF!,$F71,'Project Information'!#REF!,J$67) ->  | K71: =SUMIFS('Project Information'!#REF!,'Project Information'!#REF!,$F71,'Project Information'!#REF!,K$67) ->  | L71: =SUMIFS('Project Information'!#REF!,'Project Information'!#REF!,$F71,'Project Information'!#REF!,L$67) ->  | M71: =SUMIFS('Project Information'!#REF!,'Project Information'!#REF!,$F71,'Project Information'!#REF!,M$67) ->  | N71: =SUMIFS('Project Information'!#REF!,'Project Information'!#REF!,$F71,'Project Information'!#REF!,N$67) ->  | O71: =SUMIFS('Project Information'!#REF!,'Project Information'!#REF!,$F71,'Project Information'!#REF!,O$67) ->  | P71: =SUMIFS('Project Information'!#REF!,'Project Information'!#REF!,$F71,'Project Information'!#REF!,P$67) -> 
F72: NWoW | G72: =SUMIFS('Project Information'!#REF!,'Project Information'!#REF!,$F72,'Project Information'!#REF!,G$67) ->  | H72: =SUMIFS('Project Information'!#REF!,'Project Information'!#REF!,$F72,'Project Information'!#REF!,H$67) ->  | I72: =SUMIFS('Project Information'!#REF!,'Project Information'!#REF!,$F72,'Project Information'!#REF!,I$67) ->  | J72: =SUMIFS('Project Information'!#REF!,'Project Information'!#REF!,$F72,'Project Information'!#REF!,J$67) ->  | K72: =SUMIFS('Project Information'!#REF!,'Project Information'!#REF!,$F72,'Project Information'!#REF!,K$67) ->  | L72: =SUMIFS('Project Information'!#REF!,'Project Information'!#REF!,$F72,'Project Information'!#REF!,L$67) ->  | M72: =SUMIFS('Project Information'!#REF!,'Project Information'!#REF!,$F72,'Project Information'!#REF!,M$67) ->  | N72: =SUMIFS('Project Information'!#REF!,'Project Information'!#REF!,$F72,'Project Information'!#REF!,N$67) ->  | O72: =SUMIFS('Project Information'!#REF!,'Project Information'!#REF!,$F72,'Project Information'!#REF!,O$67) ->  | P72: =SUMIFS('Project Information'!#REF!,'Project Information'!#REF!,$F72,'Project Information'!#REF!,P$67) -> 
F73: Corporate | G73: =SUMIFS('Project Information'!#REF!,'Project Information'!#REF!,$F73,'Project Information'!#REF!,G$67) ->  | H73: =SUMIFS('Project Information'!#REF!,'Project Information'!#REF!,$F73,'Project Information'!#REF!,H$67) ->  | I73: =SUMIFS('Project Information'!#REF!,'Project Information'!#REF!,$F73,'Project Information'!#REF!,I$67) ->  | J73: =SUMIFS('Project Information'!#REF!,'Project Information'!#REF!,$F73,'Project Information'!#REF!,J$67) ->  | K73: =SUMIFS('Project Information'!#REF!,'Project Information'!#REF!,$F73,'Project Information'!#REF!,K$67) ->  | L73: =SUMIFS('Project Information'!#REF!,'Project Information'!#REF!,$F73,'Project Information'!#REF!,L$67) ->  | M73: =SUMIFS('Project Information'!#REF!,'Project Information'!#REF!,$F73,'Project Information'!#REF!,M$67) ->  | N73: =SUMIFS('Project Information'!#REF!,'Project Information'!#REF!,$F73,'Project Information'!#REF!,N$67) ->  | O73: =SUMIFS('Project Information'!#REF!,'Project Information'!#REF!,$F73,'Project Information'!#REF!,O$67) ->  | P73: =SUMIFS('Project Information'!#REF!,'Project Information'!#REF!,$F73,'Project Information'!#REF!,P$67) -> 
F74: SSR | G74: =SUMIFS('Project Information'!#REF!,'Project Information'!#REF!,$F74,'Project Information'!#REF!,G$67) ->  | H74: =SUMIFS('Project Information'!#REF!,'Project Information'!#REF!,$F74,'Project Information'!#REF!,H$67) ->  | I74: =SUMIFS('Project Information'!#REF!,'Project Information'!#REF!,$F74,'Project Information'!#REF!,I$67) ->  | J74: =SUMIFS('Project Information'!#REF!,'Project Information'!#REF!,$F74,'Project Information'!#REF!,J$67) ->  | K74: =SUMIFS('Project Information'!#REF!,'Project Information'!#REF!,$F74,'Project Information'!#REF!,K$67) ->  | L74: =SUMIFS('Project Information'!#REF!,'Project Information'!#REF!,$F74,'Project Information'!#REF!,L$67) ->  | M74: =SUMIFS('Project Information'!#REF!,'Project Information'!#REF!,$F74,'Project Information'!#REF!,M$67) ->  | N74: =SUMIFS('Project Information'!#REF!,'Project Information'!#REF!,$F74,'Project Information'!#REF!,N$67) ->  | O74: =SUMIFS('Project Information'!#REF!,'Project Information'!#REF!,$F74,'Project Information'!#REF!,O$67) ->  | P74: =SUMIFS('Project Information'!#REF!,'Project Information'!#REF!,$F74,'Project Information'!#REF!,P$67) -> 
F75: GET | G75: =SUMIFS('Project Information'!#REF!,'Project Information'!#REF!,$F75,'Project Information'!#REF!,G$67) ->  | H75: =SUMIFS('Project Information'!#REF!,'Project Information'!#REF!,$F75,'Project Information'!#REF!,H$67) ->  | I75: =SUMIFS('Project Information'!#REF!,'Project Information'!#REF!,$F75,'Project Information'!#REF!,I$67) ->  | J75: =SUMIFS('Project Information'!#REF!,'Project Information'!#REF!,$F75,'Project Information'!#REF!,J$67) ->  | K75: =SUMIFS('Project Information'!#REF!,'Project Information'!#REF!,$F75,'Project Information'!#REF!,K$67) ->  | L75: =SUMIFS('Project Information'!#REF!,'Project Information'!#REF!,$F75,'Project Information'!#REF!,L$67) ->  | M75: =SUMIFS('Project Information'!#REF!,'Project Information'!#REF!,$F75,'Project Information'!#REF!,M$67) ->  | N75: =SUMIFS('Project Information'!#REF!,'Project Information'!#REF!,$F75,'Project Information'!#REF!,N$67) ->  | O75: =SUMIFS('Project Information'!#REF!,'Project Information'!#REF!,$F75,'Project Information'!#REF!,O$67) ->  | P75: =SUMIFS('Project Information'!#REF!,'Project Information'!#REF!,$F75,'Project Information'!#REF!,P$67) -> 
F76: ESFA Managed | G76: =SUMIFS('Project Information'!#REF!,'Project Information'!#REF!,$F76,'Project Information'!#REF!,G$67) ->  | H76: =SUMIFS('Project Information'!#REF!,'Project Information'!#REF!,$F76,'Project Information'!#REF!,H$67) ->  | I76: =SUMIFS('Project Information'!#REF!,'Project Information'!#REF!,$F76,'Project Information'!#REF!,I$67) ->  | J76: =SUMIFS('Project Information'!#REF!,'Project Information'!#REF!,$F76,'Project Information'!#REF!,J$67) ->  | K76: =SUMIFS('Project Information'!#REF!,'Project Information'!#REF!,$F76,'Project Information'!#REF!,K$67) ->  | L76: =SUMIFS('Project Information'!#REF!,'Project Information'!#REF!,$F76,'Project Information'!#REF!,L$67) ->  | M76: =SUMIFS('Project Information'!#REF!,'Project Information'!#REF!,$F76,'Project Information'!#REF!,M$67) ->  | N76: =SUMIFS('Project Information'!#REF!,'Project Information'!#REF!,$F76,'Project Information'!#REF!,N$67) ->  | O76: =SUMIFS('Project Information'!#REF!,'Project Information'!#REF!,$F76,'Project Information'!#REF!,O$67) ->  | P76: =SUMIFS('Project Information'!#REF!,'Project Information'!#REF!,$F76,'Project Information'!#REF!,P$67) -> 
F77: Other | G77: =SUMIFS('Project Information'!#REF!,'Project Information'!#REF!,$F77,'Project Information'!#REF!,G$67) ->  | H77: =SUMIFS('Project Information'!#REF!,'Project Information'!#REF!,$F77,'Project Information'!#REF!,H$67) ->  | I77: =SUMIFS('Project Information'!#REF!,'Project Information'!#REF!,$F77,'Project Information'!#REF!,I$67) ->  | J77: =SUMIFS('Project Information'!#REF!,'Project Information'!#REF!,$F77,'Project Information'!#REF!,J$67) ->  | K77: =SUMIFS('Project Information'!#REF!,'Project Information'!#REF!,$F77,'Project Information'!#REF!,K$67) ->  | L77: =SUMIFS('Project Information'!#REF!,'Project Information'!#REF!,$F77,'Project Information'!#REF!,L$67) ->  | M77: =SUMIFS('Project Information'!#REF!,'Project Information'!#REF!,$F77,'Project Information'!#REF!,M$67) ->  | N77: =SUMIFS('Project Information'!#REF!,'Project Information'!#REF!,$F77,'Project Information'!#REF!,N$67) ->  | O77: =SUMIFS('Project Information'!#REF!,'Project Information'!#REF!,$F77,'Project Information'!#REF!,O$67) ->  | P77: =SUMIFS('Project Information'!#REF!,'Project Information'!#REF!,$F77,'Project Information'!#REF!,P$67) -> 
F78: Programme | G78: 0 to 4 | H78: 5 | I78: 6&7 | J78: MbO | K78: Residual | L78: Budget
F79: Basic Need, Approved | G79: =SUM(G68:L68) ->  | H79: =M68 ->  | I79: =SUM(N68:O68) ->  | J79: =P68 ->  | K79: =L79-SUM(G79:J79) ->  | L79: =SUMIFS('Project Information'!#REF!,'Project Information'!#REF!,"Basic Need",'Project Information'!#REF!,"Approved") ->  | M79: =K79/(L79) -> 
F80: Basic Need, Unapproved | G80: =SUM(G69:L69) ->  | H80: =M69 ->  | I80: =SUM(N69:O69) ->  | J80: =P69 ->  | K80: =L80-SUM(G80:J80) ->  | L80: =SUMIFS('Project Information'!#REF!,'Project Information'!#REF!,"Basic Need",'Project Information'!#REF!,"Unapproved") ->  | M80: =K80/(L80) -> 
F81: Programme | G81: 0 to 4 | H81: 5 | I81: 6&7 | J81: MbO | K81: Residual | L81: Budget
F82: PSBP | G82: =SUM(G70:L70) ->  | H82: =M70 ->  | I82: =SUM(N70:O70) ->  | J82: =P70 ->  | K82: =L82-SUM(G82:J82) ->  | L82: =SUMIFS('Project Information'!#REF!,'Project Information'!#REF!,$F82) ->  | M82: =K82/(L82) -> 
F83: Modernisation | L83: =SUMIFS('Project Information'!#REF!,'Project Information'!#REF!,$F83) -> 
F84: NWoW | L84: =SUMIFS('Project Information'!#REF!,'Project Information'!#REF!,$F84) -> 
F85: Corporate | L85: =SUMIFS('Project Information'!#REF!,'Project Information'!#REF!,$F85) -> 
F86: SSR | L86: =SUMIFS('Project Information'!#REF!,'Project Information'!#REF!,$F86) -> 
F87: GET | L87: =SUMIFS('Project Information'!#REF!,'Project Information'!#REF!,$F87) -> 
F88: ESFA Managed | L88: =SUMIFS('Project Information'!#REF!,'Project Information'!#REF!,$F88) -> 
F89: Other | L89: =SUMIFS('Project Information'!#REF!,'Project Information'!#REF!,$F89) -> 

Sheet Project Information
A1: APPENDIX 2 - Basic Need Programme
A3: SCHOOL NAME | B3: AREA | C3: DESCRIPTION OF WORKS | D3: RoD or Budget (if no RoD) | E3: FORECAST COST | F3: RoD vs FORECAST VARIANCE | G3: VARIANCE %
A4: Dartford Girls Grammar | B4: North | C4: 2 classroom extension | D4: 625000 | E4: 598000 | F4: =D4-E4 -> 27000 | G4: =(0-F4)/D4 -> -0.0432
A5: St George's PS (Gravesham) | B5: North | C5: New 1FE with 2FE Infrastructure | D5: 7100000 | E5: 6571498.71 | F5: 528501.29 | G5: -0.07443680141
A6: St Johns Catholic PS | B6: North | C6: Three phase 1FE expansion | D6: 2800000 | E6: 5000000 | F6: -2200000 | G6: 0.7857142857
A7: Wilmington Academy | B7: North | C7: 2FE - multiple phases expansion. | D7: 7200000 | E7: 9200000 | F7: -2000000 | G7: 0.2777777778
A8: Wilmington Grammar | B8: North | C8: 1FE - multiple phase expansion plus additonal School CIF Funded Sports Hall | D8: 2800000 | E8: 5600000 | F8: -2800000 | G8: 1
A9: Mayfield Grammar | B9: North | C9: 1FE - multiple phase expansion | D9: 5200000 | E9: 5195750 | F9: 4250 | G9: -0.0008173076923
A10: Brent PS | B10: North | C10: 1FE - multiple phase expansion | D10: 4600000 | E10: 4323325.69 | F10: 276674.31 | G10: -0.06014658913
A11: Seal CoE PS | B11: North | C11: 1FE expansion with ancillory facilities plus replacement of exisitng mobile accommodation and car park upgrade to Seal Parish Council | D11: 2980000 | E11: 4700000 | F11: -1720000 | G11: 0.5771812081
A12: Northfleet School for Girls | B12: North | C12: 1FE expansion | D12: 4000000 | E12: 3991812.38 | F12: 8187.62 | G12: -0.002046905
A13: Craylands School | B13: North | C13: 1FE - multiple phase expansion split between KCC and PFI delivery | D13: 2650000 | E13: 3200000 | F13: -550000 | G13: 0.2075471698
A14: Trinity Free School | B14: North | C14: 2FE - multiple phases expansion | D14: 8000000 | E14: 9000000 | F14: -1000000 | G14: 0.125
A15: Chilmington Green PS | B15: South | C15: New 2FE Primary School | D15: 7200000 | E15: 8400000 | F15: -1200000 | G15: 0.1666666667
A16: Preston PS | B16: South | C16: 1 classroom extension with associated WC's. | D16: 310000 | E16: 261362.9 | F16: 48637.1 | G16: -0.156893871
A17: Whitfield Aspen School | B17: South | C17: 2FE New Mainstream and SEN school | D17: 7990000 | E17: 7447500 | F17: 542500 | G17: -0.06789737171
A18: Palmarsh PS | B18: South | C18: 1FE expansion. Note, forecast cost is for part accommodation | D18: 2200000 | E18: 1267008 | F18: 932992 | G18: -0.4240872727
A19: Meadowfield School | B19: East | C19: 1 FE expansion | D19: 4792000 | E19: 4610000 | F19: 182000 | G19: -0.03797996661
A20: Hampton PS | B20: East | C20: New classroom and corridor extension | D20: 300000 | E20: 243470.07 | F20: 56529.93 | G20: -0.1884331
A21: St George's CoE Foundation PS | B21: East | C21: 1FE expansion | D21: 2600000 | E21: 2499829.17 | F21: 100170.83 | G21: -0.03852724231
A22: Regis Manor PS | B22: East | C22: 1FE expansion | D22: 3300000 | E22: 2881910 | F22: 418090 | G22: -0.1266939394
A23: Sittingbourne CC | B23: East | C23: 2FE expansion | D23: 6000000 | E23: 6542597.68 | F23: -542597.68 | G23: 0.09043294667
A24: Maplesden Noakes Secondary Bulge | B24: West | C24: 1FE bulge expansion. | D24: 650000 | E24: 628178.02 | F24: 21821.98 | G24: -0.03357227692
A25: Langley Park PS | B25: West | C25: 1 FE expansion | D25: 2600000 | E25: 2577621.74 | F25: 22378.26 | G25: -0.008607023077
A26: Park Way PS | B26: West | C26: 2 teaching space expansion | D26: 400000 | E26: 286737 | F26: 113263 | G26: -0.2831575
A27: Harrietsham PS | B27: West | C27: 1FE expansion | D27: 3000000 | E27: 3600000 | F27: -600000 | G27: 0.2
A28: St Peters Tunbridge Wells PS (Hawkenbury) | B28: West | C28: New 1FE School | D28: 6900000 | E28: 7900000 | F28: -1000000 | G28: 0.1449275362
A29: Northfleet Tech College (PFI) | B29: North | C29: 1FE expansion required for Sept 2021. | D29: 4500000 | E29: 4320167 | F29: 179833 | G29: -0.03996288889
A30: St John's Secondary School (PFI) | B30: North | C30: Two classrooms | D30: 400000 | E30: 100000 | F30: 300000 | G30: -0.75
A31: St John's Secondary School (PFI) | B31: North | C31: Phase 2 - 1FE expansion | D31: 5600000 | E31: 5600000 | F31: 0 | G31: 0
A32: Thamesview School (PFI) | B32: North | C32: Phase 1 - Two classrooms | D32: 50000 | E32: 20151 | F32: 29849 | G32: -0.59698
A33: Thamesview School (PFI) | B33: North | C33: Phase 2 - 2FE expansion | D33: 5950000 | E33: 3853370 | F33: 2096630 | G33: -0.3523747899
A34: Ursuline College | B34: East | C34: 1FE expansion | D34: 3000000 | E34: 2994393 | F34: 5607 | G34: -0.001869
A35: Judd School | B35: West | C35: New SRP | D35: 0 | E35: 400000 | F35: -400000 | G35: 4
A36: Judd School | B36: West | C36: 1FE expansion | D36: 1500000 | E36: 1558076 | F36: =D36-E36 -> -58076 | G36: =(0-F36)/D36 -> 0.03871733333
A37: Bennett Memorial School | B37: West | C37: 2FE Expansion | D37: 6500000 | E37: 7500000 | F37: -1000000 | G37: 0.1538461538
A38: Headcorn PS | B38: West | C38: 1FE expansion | D38: 2700000 | E38: 2924328 | F38: -224328 | G38: 0.08308444444
A39: The Wyvern School | B39: South | C39: 1FE Expansion | D39: 4700000 | E39: 3164396 | F39: 1535604 | G39: -0.3267242553
A40: Spires | B40: East | C40: 1FE expansion | D40: 3500000 | E40: 3573632 | F40: -73632 | G40: 0.02103771429
A41: West Borough PS | B41: West | C41: New Staff Room | D41: 195000 | E41: 204105 | F41: -9105 | G41: 0.04669230769
A42: Weald PS | B42: North | C42: Small classroom extension | D42: 481313 | E42: 505458 | F42: -24145 | G42: 0.05016486154
A43: Joy Lane Primary School Phase 2 | B43: East | C43: 1FE expansion | D43: 3500000 | E43: 3647217.6 | F43: -147217.6 | G43: 0.04206217143
A44: Coxheath Primary School | B44: West | C44: Two classrooms | D44: 600000 | E44: 578455 | F44: 21545 | G44: -0.03590833333
A45: Wentworth PS | B45: North | C45: 1FE expansion | D45: 2600000 | E45: 2346000 | F45: 254000 | G45: -0.09769230769
A46: Finberry PS | B46: South | C46: New Primary School. | D46: 6000000 | E46: 6267443.65 | F46: -267443.65 | G46: 0.04457394167
A47: Birchington PS | B47: East | C47: New two storey teaching block. | D47: 2750000 | E47: 2438962.92 | F47: 311037.08 | G47: -0.1131043927
A48: South Borough PS | B48: West | C48: Two storey building with six classrooms. | D48: 2600000 | E48: 2169009.86 | F48: 430990.14 | G48: -0.1657654385
A49: Oakley PS (Nursery) | B49: West | C49: New SEN nursery provision. | D49: 995000 | E49: 962199.18 | F49: 32800.82 | G49: -0.03296564824
A50: Barton Court Free School | B50: East | C50: New 5FE school | D50: 24790856 | E50: 24790856 | F50: 0 | G50: 0
A51: St Andrew's PS | B51: West | C51: New 2FE school | D51: 8561038 | E51: 8561038 | F51: 0 | G51: 0
A52: St George's (Gravesend) | B52: North | C52: 1FE expansion | D52: 2700000 | E52: 2600000 | F52: 100000 | G52: -0.03703703704
A53: Wickhambreaux | B53: East | C53: School managed - additonal taching and admin space | D53: 127952 | E53: 127952 | F53: 0 | G53: 0
A54: Stone Bay School | B54: East | C54: Additonal classroom | D54: 100000 | E54: 30000 | F54: 70000 | G54: -0.7
A55: Maidstone Boys Grammar | B55: West | C55: School managed - additonal taching | D55: 3580000 | E55: 3580000 | F55: 0 | G55: 0
A56: Lawn PS | B56: North | C56: 1FE - only pre-con work | D56: 19663 | E56: 19663 | F56: 0 | G56: 0
A57: Dunton Green PS | B57: North | C57: 1FE - only pre-con work | D57: 81121 | E57: 81121 | F57: 0 | G57: 0
A58: Copperfield Academy | B58: North | C58: 1FE - only pre-con work | D58: 53655 | E58: 53655 | F58: 0 | G58: 0
A59: Deal Parochial PS | B59: South | C59: Bulge class | D59: 15700 | E59: 15700 | F59: 0 | G59: 0
A60: Marden PS | B60: West | C60: Expansion to 2FE | D60: 1400000 | E60: 1440871 | F60: -40871 | G60: 0.02919357143
A61: Lady Joanna Thornhill PS | B61: South | C61: Only pre-con work | D61: 6434 | E61: 6434 | F61: 0 | G61: 0
A62: Sellindge PS | B62: South | C62: 3 classroom new block and car park | D62: 1400000 | E62: 1400000 | F62: 0 | G62: 0
A63: Westlands Secondary School | B63: East | C63: 1FE Expansion | D63: 3250000 | E63: 3250000 | F63: 0 | G63: 0
A64: Royal Harbour School / Laleham Gap | B64: East | C64: Relocation of STLS to Laleham Gap | D64: 800000 | E64: 825598.59 | F64: -25598.59 | G64: 0.0319982375
A65: St Gregory's Secondary School | B65: West | C65: 1FE expansion including new sports hall | D65: 6600000 | E65: 7400000 | F65: -800000 | G65: 0.1212121212
A66: Tunbridge Wells Boys School | B66: West | C66: 1FE expansion including new sports hall and replacement of 4 old mobiles classrooms. | D66: 7700000 | E66: 8352403 | F66: -652403 | G66: 0.08472766234
A67: Skinners School Expansion | B67: West | C67: 0.3FE Expansion (school managed) | D67: 3000000 | E67: 3000000 | F67: 0 | G67: 0
A68: Ebbsfleet Green PS | B68: North | C68: New 1FE with 2FE Infrastructure | D68: 6000000 | E68: 6000000 | F68: =D68-E68 -> 0 | G68: 0
A69: Finberry PS | B69: South | C69: 1FE Expansion | D69: 2800000 | E69: 2850000 | F69: -50000 | G69: 0.01785714286
A70: St Nicholas PS | B70: South | C70: 30YR7 places | D70: 100000 | E70: 100000 | F70: 0 | G70: 0
A71: Towers (North) School | B71: South | C71: 0.5FE Expansion | D71: 350000 | E71: 350000 | F71: 0 | G71: 0
A72: Sunnybank PS | B72: East | C72: 0.5FE Expansion plus relocation of Infant block onto the Junior site | D72: 3000000 | E72: 3000000 | F72: 0 | G72: 0
A73: Former RSD | B73: East | C73: 6FE New School. Exlcudes land purchase as separate RoD | D73: 20000000 | E73: 18000000 | F73: 2000000 | G73: -0.1
A74: Hermitage Lane PS | B74: West | C74: 2FE new school | D74: 7000000 | E74: 7000000 | F74: 0 | G74: 0
A75: Swanley and Hextable PS | B75: North | C75: 1FE Expansion | D75: 2750000 | E75: 2750000 | F75: 0 | G75: 0
A76: St Gregory's PS | B76: East | C76: 0.5FE Expansion | D76: 1500000 | E76: 1500000 | F76: 0 | G76: 0
A77: Skinners Kent Academy | B77: West | C77: 6FE Expansion | D77: 20000000 | E77: 20000000 | F77: 0 | G77: 0
A78: Tonbridge and Malling Area | B78: West | C78: 3FE of expansions of existing schools | D78: 9750000 | E78: 9750000 | F78: 0 | G78: 0
A79: Tonbridge and Malling Area | B79: West | C79: 2FE of expansion of existing schools | D79: 6500000 | E79: 0 | F79: 6500000 | G79: -1
A80: Deal Special School | B80: South | C80: Special School within existing KCC owned building | D80: 1500000 | E80: 1500000 | F80: 0 | G80: 0
A81: Southborough | B81: West | C81: Bulge Class | D81: 300000 | E81: 272139 | F81: 27861 | G81: -0.09287
A82: Rivermill | B82: North | C82: New 2FE Primary (Free School) - KCC Contribution from Dev Cons | D82: 1900000 | E82: 1900000 | F82: 0 | G82: 0

Sheet Gateway Tracker (hidden)
A3: Gateways Tracker
A4: Project | B4: PM | C4: Gateway | D4: Deadline | E4: Submitted to KCC | F4: Meeting Arranged | G4: Comments Received | H4: Additional Information Submitted | I4: Approval Received | J4: Query Responses
A5: St George's (Gravesham) | B5: Jo Taylor | C5: 4 | D5: 2018-08-02 | E5: 2018-08-02 | F5: 2018-08-07 | H5: Minor queries outstanding | J5: Query responses submitted in August 2018
A6: Herne Bay Library | B6: Sue Meads | C6: 1 | D6: 2018-08-02 | E6: 2018-08-02 | F6: 2018-08-07 | I6: 2018-09-18
A7: Benenden Primary | B7: Jo Taylor | C7: 4 | D7: 2018-08-02 | E7: 2018-08-09 | F7: 2018-09-04 | H7: Baseline form required | J7: Baseline submitted 08/11/2018
A8: Coroners | B8: Andrew Fleming | C8: 2 | D8: 2018-08-02 | E8: 2018-07-31 | F8: 2018-08-07 | H8: Project stopped | I8: On Hold
A9: Hawkenbury | B9: Emily Stapley | C9: 2 | D9: 2018-09-07 | E9: 2018-09-07 | F9: 2018-09-11 | H9: Outstanding queries | J9: Agreed to wrap up in Gateway 4
A10: Spires - Modular Unit | B10: Brian Hirst | C10: 3 | D10: 2018-09-07 | E10: 2018-09-07 | F10: 2018-09-11 | H10: Below the threshold for Gateway (<£1m)
A11: Wilmington Academy, Wilmington Grammar, Mayfield | B11: Esther Larner | C11: PRE GATEWAY-DISCUSSION | D11: 2018-10-26 | E11: N/A | F11: 2018-11-01 | G11: N/A | H11: Not yet submitted | I11: N/A
A12: Seal | B12: Emily Stapley | C12: 4 | D12: 2018-10-26 | E12: 2018-10-19 | F12: 2018-10-26 | I12: 2018-11-16
A13: Northfleet School for Girls | B13: Erica Pavlis /Ben Sherrard | C13: 2 | D13: 2018-10-26 | E13: 2018-10-19 | F13: 2018-10-25 | G13: 2018-11-06 | H13: Outstanding queries | J13: Query reponses submitted
A14: St Peter’s Hawkenbury | B14: Emily Stapley | C14: 3 | D14: 2018-10-26 | E14: 2018-10-22 | F14: 2018-10-26 | G14: 2018-11-06 | H14: Outstanding queries | J14: Agreed to wrap up in Gateway 4
A15: St Andrews Free School | B15: Emily Stapley | C15: 1 | D15: 2018-11-02 | E15: 2018-10-22 | F15: 2018-10-26 | I15: 2018-10-26
A16: Dover Discovery Centre | B16: Andrew Fleming | C16: 1 | D16: 2018-11-02 | E16: 2018-10-25 | F16: 2018-10-26 | I16: 2018-11-06
A17: Dartford Girls Grammar School | B17: Ben Sherrard | C17: 4 | D17: 2018-11-02 | H17: Under 1m
A18: Barton Court Free School | B18: Chris Wrench | C18: 1 | D18: 2018-11-02 | E18: 2018-10-16 | F18: 2018-10-16
A19: Portal House | B19: Sue Meads | C19: 5&6 | D19: 2018-11-09 | E19: 2018-10-31 | F19: 2018-11-06
A20: Whitfield Aspen School | B20: Sue Meads | C20: 4 | D20: 2018-11-09 | E20: 2018-10-31 | F20: 2018-11-06 | I20: 2018-11-26
A21: Preston Primary School | B21: Natasha Petley | C21: 5&6 | D21: 2018-11-23 | H21: Under 1m
A22: Hampton | B22: David Mounter | C22: 5&6 | D22: 2018-11-30 | E22: 2018-12-06 | H22: Under 1m
A23: Southbrorough Hub | B23: Andrew Fleming | C23: 3 | D23: 2018-11-30 | E23: 2018-12-06 | F23: 2019-01-04 | I23: 2019-01-04
A24: Ebbsfleet Green | B24: Joanna Johnson | C24: 0 | D24: 2018-11-30 | E24: 2018-11-26 | F24: 2018-11-29 | I24: 2018-11-29
A25: Finberry PS | B25: Joanna Johnson | C25: 3 | D25: 2018-11-30 | E25: 2018-11-26 | F25: 2018-11-29 | I25: 2018-11-29
A26: RSD | B26: Ben Sherrard | C26: 1 | D26: 2018-12-07 | E26: 2018-11-29 | F26: 2018-11-29 | I26: 2018-12-20
A27: Bennett Memorial | B27: Janet Streek | C27: 3 | D27: 2018-12-07 | H27: Queries at QA
A28: Mayfield | B28: Esther Larner | C28: 4 | D28: 2018-12-07 | E28: 2018-12-07 | F28: 2018-12-07 | I28: 2018-12-07
A29: SKA | B29: Ben Sherrard | C29: 0 | D29: 2018-12-07 | E29: 2018-11-29 | F29: 2018-11-29 | I29: 2018-11-29
A30: St Greg's | B30: Paula Malpeli | C30: 3 | D30: 2018-12-07 | E30: 2019-01-15 | F30: 2019-01-16 | H30: Queries at QA
A31: TWGSB | B31: Paula Malpeli | C31: 3 | D31: 2018-12-07 | E31: 2019-01-15 | F31: 2019-01-16 | H31: Queries at QA
A32: Park Way | B32: James Drew | C32: 3 | D32: 2018-12-14
A33: Temple Hill | B33: Jo Taylor | C33: 5&6 | D33: 2018-12-14 | E33: 2018-12-20 | F33: 2018-12-21
A34: Judd | B34: Erica Pavlis | C34: 3 | D34: 2018-12-21 | H34: Queries at QA
A35: Tunbridge Wells Cultural Hub | B35: Aidan Webb | C35: 4 | D35: 2018-12-21 | E35: 2018-12-20 | F35: 2018-12-21 | H35: Outstanding queries require response
A36: Turner Contemporary | B36: Aidan Webb | C36: 2 | D36: 2018-12-21
A37: Meadowfield | B37: Brian Hirst | C37: 4 | D37: 2019-01-04 | E37: 2018-10-25 | F37: 2018-11-06 | G37: 2018-11-06 | H37: Outstanding queries | I37: 2018-12-19
A38: Hawkenbury | B38: Emily Stapley | C38: 4 | D38: 2019-01-04 | H38: Queries at QA
A39: Ursuline | B39: Sue Meads | C39: 4 | D39: 2019-01-11
A40: Mayfield Science Block | B40: Esther Larner | C40: 3 | D40: 2019-01-11 | F40: 2019-01-11 | I40: 2019-01-11
A41: Faversham Library | B41: David Harris | C41: 5&6 | D41: 2019-01-18
A42: Archbishops | B42: David Harris | C42: 5&6 | D42: 2019-01-18
A43: Dartford Clinic | B43: David Harris | C43: 5&6 | D43: 2019-01-18
A44: Barton Court Free School | B44: Chris Wrench | C44: 2 | D44: 2019-01-18
A45: Pilgrims Way PS | B45: Jo Johnson | C45: 0 & 1 | D45: 2019-01-18
A46: West Hill PS | B46: Jo Johnson | C46: 0 & 1 | D46: 2019-01-18
A47: St John’s Secondary (PFI) | B47: David Mounter | C47: 1 | D47: 2019-01-18
A48: Thamesview (PFI) | B48: David Mounter | C48: 1 | D48: 2019-01-18
A49: Swadelands | B49: Erica Pavlis | C49: 4 | D49: 2019-01-25
A50: Craylands | B50: Natasha Petley | C50: 5&6 | D50: 2019-01-25
A51: Sittingbourne CC | B51: Paula Malpeli | C51: 5&6 | D51: 2019-01-25
A52: Edenbridge | B52: Jo Taylor | C52: 5&6 | D52: 2019-01-25
A53: Herne Bay Library | B53: Sue Meads | C53: 3 | D53: 2019-01-29
A54: Chilmington | B54: Emily Stapley | C54: 3 | D54: 2019-01-31
A55: Dover Discovery Centre | B55: Andrew Fleming | C55: 1 | D55: 2019-02-01
A56: Wilmington Academy | B56: Esther Larner | C56: 4 | D56: 2019-02-21
A57: Wilmington Grammar | B57: Esther Larner | C57: 4 | D57: 2019-02-21
A58: Trinity | B58: Esther Larner | C58: 4 | D58: 2019-02-21
A59: Harrietsham | B59: David Mounter | C59: 4 | D59: 2019-02-21
A60: Darenth | B60: David Harris | F60: Yes | G60: 2018-11-06 | I60: On Hold
D63: Status | E63: Planned reviews | F63: 16
E64: Signed off | F64: 14
E65: On hold/cancelled | F65: 0
E66: Minor outstanding queries | F66: 4
E67: Outstanding queries | F67: 0
E68: QA Queries | F68: 5
E69: Below threshold | F69: 10
F70: =SUM(F64:F69) -> 33

Sheet BN Approved Budget Tracker (hidden)
A1: APPROVED SPEND TO DATE TRACKER
A3: =83575000 -> 83575000 | B3: Remaining Budget 18/19 Onwards
A4: =D109 ->  | B4: Forecast 18/19 Onwards
A5: =A4-A3 ->  | B5: Forecast Overspend
A8: School | B8: Revised Forecast as at December 2018 | C8: Spend to Date up to end of 17/18 | D8: 18/19 Budget Allowed
A9: Trinity | C9: 119000 | D9: =B9-C9 -> -119000
A10: Laleham Gap | C10: 55000 | D10: =B10-C10 -> -55000
A11: Bennett | C11: 16000 | D11: -16000
A12: RSD | C12: 25000 | D12: -25000
A13: St George's PS (Gravesham) | B13: ='Project Information'!E5 -> 6571498.71 | C13: 573563 | D13: =B13-C13 -> 5997935.71
A14: St Johns Catholic PS | B14: ='Project Information'!E6 -> 5000000 | C14: 995775 | D14: =B14-C14 -> 4004225
A15: St Johns Catholic PS | D15: 0
A16: St Johns Catholic PS | D16: 0
A17: Wilmington Academy | B17: ='Project Information'!E7 -> 9200000 | C17: 1667335 | D17: 7532665
A18: Wilmington Academy | D18: 0
A19: Wilmington Academy | D19: 0
A20: Wilmington Academy | D20: 0
A21: Wilmington Academy | D21: 0
A22: Wilmington Academy | D22: 0
A23: Wilmington Grammar | B23: ='Project Information'!E8 -> 5600000 | C23: 581707 | D23: 5018293
A24: Wilmington Grammar | D24: 0
A25: Wilmington Grammar | D25: 0
A26: Wilmington Grammar | D26: 0
A27: Mayfield Grammar | B27: ='Project Information'!E9 -> 5195750 | C27: 408312 | D27: 4787438
A28: Mayfield Grammar | D28: 0
A29: Mayfield Grammar | D29: 0
A30: Mayfield Grammar | D30: 0
A31: Mayfield Grammar | D31: 0
A32: Mayfield Grammar | D32: 0
A33: Brent PS | B33: ='Project Information'!E10 -> 4323325.69 | C33: 3072733 | D33: 1250592.69
A34: Edenbridge PS | B34: ='Project Information'!#REF! ->  | C34: 949038
A35: Seal CoE PS | B35: ='Project Information'!E11 -> 4700000 | C35: 512581 | D35: 4187419
A36: Temple Hill PS | B36: ='Project Information'!#REF! ->  | C36: 1965480
A37: Northfleet School for Girls | B37: ='Project Information'!E12 -> 3991812.38 | C37: 283721 | D37: 3708091.38
A38: Craylands School | B38: ='Project Information'!E13 -> 3200000 | C38: 1661773 | D38: 1538227
A39: Craylands School | D39: 0
A40: Craylands School | D40: 0
A41: Preston PS | B41: ='Project Information'!E16 -> 261362.9 | C41: 25549 | D41: 235813.9
A42: Whitfield Aspen School | B42: ='Project Information'!E17 -> 7447500 | D42: 7447500
A43: Palmarsh PS | B43: ='Project Information'!E18 -> 1267008 | C43: 279466 | D43: 987542
A44: Meadowfield School | B44: ='Project Information'!E19 -> 4610000 | C44: 179584 | D44: 4430416
A45: Hampton PS | B45: ='Project Information'!E20 -> 243470.07 | C45: 8515 | D45: 234955.07
A46: Bysing Wood PS | B46: ='Project Information'!#REF! ->  | C46: 3339242
A47: St George's CoE Foundation PS | B47: ='Project Information'!E21 -> 2499829.17 | C47: 137656 | D47: 2362173.17
A48: Regis Manor PS | B48: ='Project Information'!E22 -> 2881910 | C48: 151052 | D48: 2730858
A49: Sittingbourne CC | B49: ='Project Information'!E23 -> 6542597.68 | C49: 3652305 | D49: 2890292.68
A50: Maplesden Noakes Secondary Bulge | B50: ='Project Information'!E24 -> 628178.02 | C50: 0 | D50: 628178.02
A51: Langley Park PS | B51: ='Project Information'!E25 -> 2577621.74 | C51: 1223127 | D51: 1354494.74
A52: Park Way PS | B52: ='Project Information'!E26 -> 286737 | C52: 6250 | D52: 280487
A53: Harrietsham PS | B53: ='Project Information'!E27 -> 3600000 | C53: 160083 | D53: 3439917
A54: St Peters Tunbridge Wells PS (Hawkenbury) | B54: ='Project Information'!E28 -> 7900000 | C54: 219733 | D54: 7680267
A55: Headcorn PS | B55: ='Project Information'!E38 -> 2924328 | C55: 2920145 | D55: 4183
A56: The Wyvern School | B56: ='Project Information'!E39 -> 3164396 | C56: 3164396 | D56: 0
A57: Spires | B57: 3973632 | C57: 3468989 | D57: 504643
A58: Spires
A59: Spires
A60: Spires
A61: West Borough PS | B61: ='Project Information'!E41 -> 204105 | C61: 179003 | D61: 25102
A62: Weald PS | B62: ='Project Information'!E42 -> 505458 | C62: 463274 | D62: 42184
A63: Joy Lane Primary School Phase 2 | B63: ='Project Information'!E43 -> 3647217.6 | C63: 3528323 | D63: 118894.6
A64: Coxheath Primary School | B64: ='Project Information'!E44 -> 578455 | C64: 555641 | D64: 22814
A65: Wouldham PS | B65: ='Project Information'!#REF! ->  | C65: 8894636
A66: Wentworth PS | B66: ='Project Information'!E45 -> 2346000 | C66: 2210615 | D66: 135385
A67: Finberry PS | B67: ='Project Information'!E46 -> 6267443.65 | C67: 6257884 | D67: 9559.65
A68: Birchington PS | B68: ='Project Information'!E47 -> 2438962.92 | C68: 2438567 | D68: 395.92
A69: South Borough PS | B69: ='Project Information'!E48 -> 2169009.86 | C69: 2092422 | D69: 76587.86
A70: Oakley PS (Nursery) | B70: ='Project Information'!E49 -> 962199.18 | C70: 938642 | D70: 23557.18
A71: Wickhambreaux | B71: ='Project Information'!E53 -> 127952 | C71: 27952 | D71: 100000
A72: Stone Bay School | B72: ='Project Information'!E54 -> 30000 | C72: 30000 | D72: 0
A73: Maidstone Boys Grammar | B73: ='Project Information'!E55 -> 3580000 | C73: 2000000 | D73: 1580000
A74: Lawn PS | B74: ='Project Information'!E56 -> 19663 | C74: 19663 | D74: 0
A75: Dunton Green PS | B75: ='Project Information'!E57 -> 81121 | C75: 81121 | D75: 0
A76: Copperfield Academy | B76: ='Project Information'!E58 -> 53655 | C76: 28655 | D76: 25000
A77: Deal Parochial PS | B77: ='Project Information'!E59 -> 15700 | D77: =B77-C77 -> 15700
A78: Marden PS | B78: ='Project Information'!E60 -> 1440871 | C78: 79513 | D78: =B78-C78 -> 1361358
A79: Lady Joanna Thornhill PS | B79: ='Project Information'!E61 -> 6434 | C79: 6434 | D79: 0
A80: Sellindge PS | B80: ='Project Information'!E62 -> 1400000 | D80: 1400000
A81: Martello Primary (East Folkestone) | B81: ='Project Information'!#REF! ->  | C81: 5014272
A82: Brockhill Park Performing Arts College | B82: ='Project Information'!#REF! ->  | C82: 819891
A83: Bromstone Primary School, Broadstairs | B83: ='Project Information'!#REF! ->  | C83: 2288438
A84: Churchill C of E (Voluntary Controlled) Primary School | B84: ='Project Information'!#REF! ->  | C84: 253106
A85: Former Ashford South Primary Sch | B85: ='Project Information'!#REF! -> 
A86: Hextable Primary School | B86: ='Project Information'!#REF! ->  | C86: 3092904
A87: Langley Park | B87: ='Project Information'!#REF! ->  | C87: 7030051
A88: Lansdowne Primary School | B88: ='Project Information'!#REF! ->  | C88: 588
A89: Maidstone St John's CEPS | B89: ='Project Information'!#REF! ->  | C89: 2763577
A90: Minster in Sheppey Primary School | B90: ='Project Information'!#REF! ->  | C90: 955332
A91: Queenborough School and Nursery | B91: ='Project Information'!#REF! ->  | C91: 58224
A92: Repton Manor Primary School | B92: ='Project Information'!#REF! ->  | C92: 171417
A93: Rose Street Primary School | B93: ='Project Information'!#REF! ->  | C93: 3017596
A94: Singlewell Primary | B94: ='Project Information'!#REF! ->  | C94: 3151065
A95: Slade Primary School | B95: ='Project Information'!#REF! ->  | C95: 2043435
A96: South Borough | B96: ='Project Information'!#REF! ->  | C96: 206447
A97: St George's Foundation Primary School, Broadstairs | B97: ='Project Information'!#REF! ->  | C97: 6254080
A98: The Judd School | B98: ='Project Information'!#REF! ->  | C98: 2607006
A99: Thistle Hill School | B99: ='Project Information'!#REF! ->  | C99: 6956062
A100: Valley Invicta Primary School at Leybourne Chase | B100: ='Project Information'!#REF! -> 
A101: Weald Community Primary School | B101: ='Project Information'!#REF! ->  | C101: 124809
A102: West Minster Primary School | B102: ='Project Information'!#REF! ->  | C102: 3144564
A103: Westcourt Primary School | B103: ='Project Information'!#REF! ->  | C103: 470192
A104: Westcourt Primary School Phase 2 | B104: ='Project Information'!#REF! ->  | C104: 0
A105: White Cliffs Primary College for the Arts | B105: ='Project Information'!#REF! ->  | C105: 3432482
A106: Whitfield and Aspen School | B106: ='Project Information'!#REF! ->  | C106: 937274
A107: Whitstable Junior School | B107: ='Project Information'!#REF! ->  | C107: 2500
A108: Warden House Primary | B108: ='Project Information'!#REF! ->  | C108: 99176
D109: =SUM(D9:D108) -> 

Sheet Remainder mirror (hidden)
B1: Reporting Period | C1: 2 | D1: 3 | E1: 4 | F1: 5 | G1: 6 | H1: 7 | I1: 8 | J1: 9 | K1: 10 | L1: 11 | M1: 12 | N1: 13 | O1: 14 | P1: 15 | Q1: 16 | R1: 17 | S1: 18 | T1: 19 | U1: 20 | V1: 21 | W1: 22 | X1: 23 | Y1: 24 | Z1: 25 | AA1: 26 | AB1: 27 | AC1: 28 | AD1: 29 | AE1: 30 | AF1: 31 | AG1: 32 | AH1: 33 | AI1: 34 | AJ1: 35 | AK1: 36 | AL1: 37 | AM1: 38 | AN1: 39 | AO1: 40 | AP1: 41 | AQ1: 42 | AR1: 43 | AS1: 44 | AT1: 45 | AU1: 46 | AV1: 47 | AW1: 48 | AX1: 49 | AY1: 50 | AZ1: 51 | BA1: 52 | BB1: 53 | BC1: 54 | BD1: 55 | BE1: 56 | BF1: 57 | BG1: 58 | BH1: 59 | BI1: 60 | BJ1: 61 | BK1: 62 | BL1: 63 | BM1: 64 | BN1: 65 | BO1: 66 | BP1: 67 | BQ1: 68 | BR1: 69 | BS1: 70 | BT1: 71 | BU1: 72 | BV1: 73 | BW1: 74 | BX1: 75 | BY1: 76 | BZ1: 77 | CA1: 78 | CB1: 79 | CC1: 80 | CD1: 81 | CE1: 82 | CF1: 83 | CG1: 84 | CH1: 85 | CI1: 86
B2: =REPORT_START ->  | C2: to | D2: =REPORT_FINISH -> APPENDIX 2 - Basic Need Programme | N2: n On Time n Late n PC n EOD n Hold | BZ2: FORECAST SPEND
B3: =TODAYS_DATE ->  | C3: PROJECT INFORMATION | N3: CURRENT RAG | Q3: PROJECT RAG | S3: PROGRAMME INFORMATION (if no planned dates, leave blank) | AY3: n On Time n Late n PC n EOD n Hold | BC3: COST INFORMATION | BF3: 2018 Benchmarking Exercise
T4: END OF RIBA STAGE 0 | W4: END OF RIBA STAGE 1 | Z4: END OF RIBA STAGE 2 | AC4: END OF RIBA STAGE 3 | AF4: END OF RIBA STAGE 4 | AI4: END OF RIBA STAGE 5 | AL4: PLANNING APPROVAL | AO4: START ON SITE DATE | AR4: AGREED COMPLETION DATE | AU4: EOD | AY4: Overall Programme Position | BF4: =SUM(BF7:BF39) ->  | BG4: =SUM(BG7:BG39) ->  | BH4: =SUM(BH7:BH39) ->  | BI4: =SUM(BI7:BI39) ->  | BW4: =SUM(BW7:BW39) ->  | BY4: =SUM(BY7:BY39) ->  | BZ4: =SUM(BZ7:BZ39) ->  | CA4: =CC4-BZ4 ->  | CC4: =SUM(CC7:CC39) ->  | CD4: CHANGE CONTROL | CF4: GATEWAY PERFORMANCE
A6: orig order | B6: Discrete Description | C6: PROGRAMME | D6: PROJECT | E6: AREA | F6: PROJECT MANAGER | G6: APPROVED/ UNAPPROVED | H6: PROCUREMENT ROUTE | I6: DESCRIPTION OF WORKS | J6: STATUS LEVEL | K6: STATUS | L6: OTHER GEN 2 INPUT | M6: CROSS DISCIPLINE ISSUES | N6: SCOPE | O6: BUDGET | P6: TIME | Q6: LAST MONTH | R6: CURRENT MONTH | S6: RIBA STAGE | T6: Planned | U6: Revised | V6: Actual | W6: Planned | X6: Revised | Y6: Actual | Z6: Planned | AA6: Revised | AB6: Actual | AC6: Planned | AD6: Revised | AE6: Actual | AF6: Planned | AG6: Revised | AH6: Actual | AI6: Planned | AJ6: Revised | AK6: Actual | AL6: Planned | AM6: Revised | AN6: Actual | AO6: Planned | AP6: Revised | AQ6: Actual | AR6: Planned | AS6: Revised | AT6: Actual | AU6: EOD | AV6: Academic Year Required | AW6: Next Gateway | AX6: Gateway Deadline | AY6: On time = 0 Late = 1 | AZ6: PC achieved = 2 | BA6: EOD achieved = 3 | BB6: RAG STATUS | BC6: APPROX GIFA | BD6: APPROX COST PER M² | BE6: APPROX COST PER PUPIL | BF6: No of Pupils (school) | BG6: No of Pupils (nursery) | BH6: No of Pupils (other) | BI6: TOTAL No EXTRA PLACES | BJ6: Construction Values | BK6: Fees (INTERNAL) | BL6: Fees (EXTERNAL) | BM6: Highways | BN6: Abnormals | BO6: External Works | BP6: Land Costs | BQ6: Contingencies | BR6: Other Costs | BS6: Total | BT6: ROD | BU6: KCC CONTRIBUTION | BV6: CONTRIBUTION BY OTHERS | BW6: BASELINE BUDGET | BX6: CONTRACT SUM | BY6: SPEND TO DATE | BZ6: PLANNED | CA6: VARIANCE GBP | CB6: VARIANCE %age | CC6: REVISED | CD6: DELEGATED AUTHORITY GBP | CE6: CHANGE NOTICE REQD? | CF6: GATEWAY DUE THIS PERIOD? | CG6: GATEWAY ACHIEVED (Y/N) | CH6: APPROX COST PER M² > zero | CI6: APPROX COST PER PUPIL > zero
A7: 4 | B7: Portal House | C7: =VLOOKUP($B7,MASTER_DATABASE,2,0) ->  | D7: =VLOOKUP($B7,MASTER_DATABASE,3,0) ->  | E7: =VLOOKUP($B7,MASTER_DATABASE,4,0) ->  | F7: =VLOOKUP($B7,MASTER_DATABASE,5,0) ->  | G7: =VLOOKUP($B7,MASTER_DATABASE,6,0) ->  | H7: =VLOOKUP($B7,MASTER_DATABASE,7,0) ->  | I7: =VLOOKUP($B7,MASTER_DATABASE,8,0) ->  | J7: =VLOOKUP($B7,MASTER_DATABASE,9,0) ->  | K7: =VLOOKUP($B7,MASTER_DATABASE,10,0) ->  | L7: =VLOOKUP($B7,MASTER_DATABASE,11,0) ->  | M7: =VLOOKUP($B7,MASTER_DATABASE,12,0) ->  | N7: =VLOOKUP($B7,MASTER_DATABASE,13,0) ->  | O7: =VLOOKUP($B7,MASTER_DATABASE,14,0) ->  | P7: =VLOOKUP($B7,MASTER_DATABASE,15,0) ->  | Q7: =VLOOKUP($B7,MASTER_DATABASE,16,0) ->  | R7: =VLOOKUP($B7,MASTER_DATABASE,17,0) ->  | S7: =VLOOKUP($B7,MASTER_DATABASE,18,0) ->  | T7: =VLOOKUP($B7,MASTER_DATABASE,19,0) ->  | U7: =VLOOKUP($B7,MASTER_DATABASE,20,0) ->  | V7: =VLOOKUP($B7,MASTER_DATABASE,21,0) ->  | W7: =VLOOKUP($B7,MASTER_DATABASE,22,0) ->  | X7: =VLOOKUP($B7,MASTER_DATABASE,23,0) ->  | Y7: =VLOOKUP($B7,MASTER_DATABASE,24,0) ->  | Z7: =VLOOKUP($B7,MASTER_DATABASE,25,0) ->  | AA7: =VLOOKUP($B7,MASTER_DATABASE,26,0) ->  | AB7: =VLOOKUP($B7,MASTER_DATABASE,27,0) ->  | AC7: =VLOOKUP($B7,MASTER_DATABASE,28,0) ->  | AD7: =VLOOKUP($B7,MASTER_DATABASE,29,0) ->  | AE7: =VLOOKUP($B7,MASTER_DATABASE,30,0) ->  | AF7: =VLOOKUP($B7,MASTER_DATABASE,31,0) ->  | AG7: =VLOOKUP($B7,MASTER_DATABASE,32,0) ->  | AH7: =VLOOKUP($B7,MASTER_DATABASE,33,0) ->  | AI7: =VLOOKUP($B7,MASTER_DATABASE,34,0) ->  | AJ7: =VLOOKUP($B7,MASTER_DATABASE,35,0) ->  | AK7: =VLOOKUP($B7,MASTER_DATABASE,36,0) ->  | AL7: =VLOOKUP($B7,MASTER_DATABASE,37,0) ->  | AM7: =VLOOKUP($B7,MASTER_DATABASE,38,0) ->  | AN7: =VLOOKUP($B7,MASTER_DATABASE,39,0) ->  | AO7: =VLOOKUP($B7,MASTER_DATABASE,40,0) ->  | AP7: =VLOOKUP($B7,MASTER_DATABASE,41,0) ->  | AQ7: =VLOOKUP($B7,MASTER_DATABASE,42,0) ->  | AR7: =VLOOKUP($B7,MASTER_DATABASE,43,0) ->  | AS7: =VLOOKUP($B7,MASTER_DATABASE,44,0) ->  | AT7: =VLOOKUP($B7,MASTER_DATABASE,45,0) ->  | AU7: =VLOOKUP($B7,MASTER_DATABASE,46,0) ->  | AV7: =VLOOKUP($B7,MASTER_DATABASE,47,0) ->  | AW7: =VLOOKUP($B7,MASTER_DATABASE,48,0) ->  | AX7: =VLOOKUP($B7,MASTER_DATABASE,49,0) ->  | AY7: =VLOOKUP($B7,MASTER_DATABASE,50,0) ->  | AZ7: =VLOOKUP($B7,MASTER_DATABASE,51,0) ->  | BA7: =VLOOKUP($B7,MASTER_DATABASE,52,0) ->  | BB7: =VLOOKUP($B7,MASTER_DATABASE,53,0) ->  | BC7: =VLOOKUP($B7,MASTER_DATABASE,54,0) ->  | BD7: =VLOOKUP($B7,MASTER_DATABASE,55,0) ->  | BE7: =VLOOKUP($B7,MASTER_DATABASE,56,0) ->  | BF7: =VLOOKUP($B7,MASTER_DATABASE,57,0) ->  | BG7: =VLOOKUP($B7,MASTER_DATABASE,58,0) ->  | BH7: =VLOOKUP($B7,MASTER_DATABASE,59,0) ->  | BI7: =VLOOKUP($B7,MASTER_DATABASE,60,0) ->  | BJ7: =VLOOKUP($B7,MASTER_DATABASE,61,0) ->  | BK7: =VLOOKUP($B7,MASTER_DATABASE,62,0) ->  | BL7: =VLOOKUP($B7,MASTER_DATABASE,63,0) ->  | BM7: =VLOOKUP($B7,MASTER_DATABASE,64,0) ->  | BN7: =VLOOKUP($B7,MASTER_DATABASE,65,0) ->  | BO7: =VLOOKUP($B7,MASTER_DATABASE,66,0) ->  | BP7: =VLOOKUP($B7,MASTER_DATABASE,67,0) ->  | BQ7: =VLOOKUP($B7,MASTER_DATABASE,68,0) ->  | BR7: =VLOOKUP($B7,MASTER_DATABASE,69,0) ->  | BS7: =VLOOKUP($B7,MASTER_DATABASE,70,0) ->  | BT7: =VLOOKUP($B7,MASTER_DATABASE,71,0) ->  | BU7: =VLOOKUP($B7,MASTER_DATABASE,72,0) ->  | BV7: =VLOOKUP($B7,MASTER_DATABASE,73,0) ->  | BW7: =VLOOKUP($B7,MASTER_DATABASE,74,0) ->  | BX7: =VLOOKUP($B7,MASTER_DATABASE,75,0) ->  | BY7: =VLOOKUP($B7,MASTER_DATABASE,76,0) ->  | BZ7: =VLOOKUP($B7,MASTER_DATABASE,77,0) ->  | CA7: =VLOOKUP($B7,MASTER_DATABASE,78,0) ->  | CB7: =VLOOKUP($B7,MASTER_DATABASE,79,0) ->  | CC7: =VLOOKUP($B7,MASTER_DATABASE,80,0) ->  | CD7: =VLOOKUP($B7,MASTER_DATABASE,81,0) ->  | CE7: =VLOOKUP($B7,MASTER_DATABASE,82,0) ->  | CF7: =VLOOKUP($B7,MASTER_DATABASE,83,0) ->  | CG7: =VLOOKUP($B7,MASTER_DATABASE,84,0) ->  | CH7: =VLOOKUP($B7,MASTER_DATABASE,85,0) ->  | CI7: =VLOOKUP($B7,MASTER_DATABASE,86,0) -> 
A8: 39 | B8: Herne Bay Library
A9: 52 | B9: Benenden PS
A10: 53 | B10: Platt PS
A11: 66 | B11: Swadelands/The Lenham School
A12: 71 | B12: The Archbishops School
A13: 72 | B13: Darenth Community Primary School
A14: 73 | B14: Faversham Library
A15: 74 | B15: Dartford Sexual Health Clinic
A16: 75 | B16: Pent Valley - Sharman Block
A17: 76 | B17: Invicta Car Park
A18: 77 | B18: Kent History and Library Centre
A19: 78 | B19: St Peter's House
A20: 81 | B20: North Farm WTS
A21: 82 | B21: Ryarsh PS
A22: 84 | B22: Avenue of Remembrance
A23: 88 | B23: Ridgeview School
A24: 94 | B24: Southborough Hub
A25: 95 | B25: Dover Discovery Centre
A26: 96 | B26: Queen's House Folkestone to Cheriton House
A27: 97 | B27: Coroners Phase 2
A28: 98 | B28: Barton Court Free School | C28: East | D28: New 5FE school | E28: 24790856 | F28: 24790856
A29: 99 | B29: St Andrew's PS | C29: West | D29: New 2FE school | E29: 8561038 | F29: 8561038
A30: 100 | B30: Dover Girls Grammar
A31: 146 | B31: The Limes / Westcourt Interim
A32: 159 | B32: Pent Valley - Demolition
A33: 160 | B33: New Ash Green Primary
A34: 161 | B34: Simon Langdon Boys
A35: 162 | B35: Simon Langdon Girls
A36: 163 | B36: Meadowfield School, Dining Room
B37: Turner Contemporary
B38: Tunbridge Wells Cultural Hub
B39: insert above this line
CD41: # | CE41: # | CF41: # | CG41: # | CH41: # | CI41: #
BV42: Unapproved Contingency | BW42: Agreed Budget vs Original Budget | BX42: =#REF!-#REF! ->  | BY42: Budget Contingency
BW43: Forecast Spend vs Agreed Budget | BX43: =#REF!-#REF! ->  | BY43: Programme Contingency
BW44: Forecast Spend vs Original Budget | BX44: =#REF!-#REF! ->  | BY44: CP Contingency
BX53: Underspend | BY53: =#REF!-#REF! -> 
BX54: Programme Contingency | BY54: =#REF!-#REF! -> 
BX55: Total Contingency | BY55: =SUM(BY53:BY54) -> 

Sheet master mirror (hidden)
B1: Reporting Period | C1: 2 | D1: 3 | E1: 4 | F1: 5 | G1: 6 | H1: 7 | I1: 8 | J1: 9 | K1: 10 | L1: 11 | M1: 12 | N1: 13 | O1: 14 | P1: 15 | Q1: 16 | R1: 17 | S1: 18 | T1: 19 | U1: 20 | V1: 21 | W1: 22 | X1: 23 | Y1: 24 | Z1: 25 | AA1: 26 | AB1: 27 | AC1: 28 | AD1: 29 | AE1: 30 | AF1: 31 | AG1: 32 | AH1: 33 | AI1: 34 | AJ1: 35 | AK1: 36 | AL1: 37 | AM1: 38 | AN1: 39 | AO1: 40 | AP1: 41 | AQ1: 42 | AR1: 43 | AS1: 44 | AT1: 45 | AU1: 46 | AV1: 47 | AW1: 48 | AX1: 49 | AY1: 50 | AZ1: 51 | BA1: 52 | BB1: 53 | BC1: 54 | BD1: 55 | BE1: 56 | BF1: 57 | BG1: 58 | BH1: 59 | BI1: 60 | BJ1: 61 | BK1: 62 | BL1: 63 | BM1: 64 | BN1: 65 | BO1: 66 | BP1: 67 | BQ1: 68 | BR1: 69 | BS1: 70 | BT1: 71 | BU1: 72 | BV1: 73 | BW1: 74 | BX1: 75 | BY1: 76 | BZ1: 77 | CA1: 78 | CB1: 79 | CC1: 80 | CD1: 81 | CE1: 82 | CF1: 83 | CG1: 84 | CH1: 85 | CI1: 86
B2: =REPORT_START ->  | C2: to | D2: =REPORT_FINISH -> APPENDIX 2 - Basic Need Programme | N2: n On Time n Late n PC n EOD n Hold | BZ2: FORECAST SPEND
B3: =TODAYS_DATE ->  | C3: PROJECT INFORMATION | N3: CURRENT RAG | Q3: PROJECT RAG | S3: PROGRAMME INFORMATION (if no planned dates, leave blank) | AY3: n On Time n Late n PC n EOD n Hold | BC3: COST INFORMATION | BF3: 2018 Benchmarking Exercise
T4: END OF RIBA STAGE 0 | W4: END OF RIBA STAGE 1 | Z4: END OF RIBA STAGE 2 | AC4: END OF RIBA STAGE 3 | AF4: END OF RIBA STAGE 4 | AI4: END OF RIBA STAGE 5 | AL4: PLANNING APPROVAL | AO4: START ON SITE DATE | AR4: AGREED COMPLETION DATE | AU4: EOD | AY4: Overall Programme Position | BF4: =SUM(BF7:BF173) ->  | BG4: =SUM(BG7:BG173) ->  | BH4: =SUM(BH7:BH173) ->  | BI4: =SUM(BI7:BI173) ->  | BW4: =SUM(BW7:BW173) ->  | BY4: =SUM(BY7:BY173) ->  | BZ4: =SUM(BZ7:BZ173) ->  | CA4: =CC4-BZ4 ->  | CC4: =SUM(CC7:CC173) ->  | CD4: CHANGE CONTROL | CF4: GATEWAY PERFORMANCE
A6: orig order | B6: Discrete Description | C6: PROGRAMME | D6: PROJECT | E6: AREA | F6: PROJECT MANAGER | G6: APPROVED/ UNAPPROVED | H6: PROCUREMENT ROUTE | I6: DESCRIPTION OF WORKS | J6: STATUS LEVEL | K6: STATUS | L6: OTHER GEN 2 INPUT | M6: CROSS DISCIPLINE ISSUES | N6: SCOPE | O6: BUDGET | P6: TIME | Q6: LAST MONTH | R6: CURRENT MONTH | S6: RIBA STAGE | T6: Planned | U6: Revised | V6: Actual | W6: Planned | X6: Revised | Y6: Actual | Z6: Planned | AA6: Revised | AB6: Actual | AC6: Planned | AD6: Revised | AE6: Actual | AF6: Planned | AG6: Revised | AH6: Actual | AI6: Planned | AJ6: Revised | AK6: Actual | AL6: Planned | AM6: Revised | AN6: Actual | AO6: Planned | AP6: Revised | AQ6: Actual | AR6: Planned | AS6: Revised | AT6: Actual | AU6: EOD | AV6: Academic Year Required | AW6: Next Gateway | AX6: Gateway Deadline | AY6: On time = 0 Late = 1 | AZ6: PC achieved = 2 | BA6: EOD achieved = 3 | BB6: RAG STATUS | BC6: APPROX GIFA | BD6: APPROX COST PER M² | BE6: APPROX COST PER PUPIL | BF6: No of Pupils (school) | BG6: No of Pupils (nursery) | BH6: No of Pupils (other) | BI6: TOTAL No EXTRA PLACES | BJ6: Construction Values | BK6: Fees (INTERNAL) | BL6: Fees (EXTERNAL) | BM6: Highways | BN6: Abnormals | BO6: External Works | BP6: Land Costs | BQ6: Contingencies | BR6: Other Costs | BS6: Total | BT6: ROD | BU6: KCC CONTRIBUTION | BV6: CONTRIBUTION BY OTHERS | BW6: AGREED BUDGET | BX6: CONTRACT SUM | BY6: SPEND TO DATE | BZ6: PLANNED | CA6: VARIANCE GBP | CB6: VARIANCE %age | CC6: REVISED | CD6: DELEGATED AUTHORITY GBP | CE6: CHANGE NOTICE REQD? | CF6: GATEWAY DUE THIS PERIOD? | CG6: GATEWAY ACHIEVED (Y/N) | CH6: APPROX COST PER M² > zero | CI6: APPROX COST PER PUPIL > zero
A7: 1 | B7: Dartford Girls Grammar | C7: =VLOOKUP($B7,MASTER_DATABASE,2,0) -> North | D7: =VLOOKUP($B7,MASTER_DATABASE,3,0) -> 2 classroom extension | E7: =VLOOKUP($B7,MASTER_DATABASE,4,0) -> 625000 | F7: =VLOOKUP($B7,MASTER_DATABASE,5,0) -> 598000 | G7: =VLOOKUP($B7,MASTER_DATABASE,6,0) ->  | H7: =VLOOKUP($B7,MASTER_DATABASE,7,0) ->  | I7: =VLOOKUP($B7,MASTER_DATABASE,8,0) ->  | J7: =VLOOKUP($B7,MASTER_DATABASE,9,0) ->  | K7: =VLOOKUP($B7,MASTER_DATABASE,10,0) ->  | L7: =VLOOKUP($B7,MASTER_DATABASE,11,0) ->  | M7: =VLOOKUP($B7,MASTER_DATABASE,12,0) ->  | N7: =VLOOKUP($B7,MASTER_DATABASE,13,0) ->  | O7: =VLOOKUP($B7,MASTER_DATABASE,14,0) ->  | P7: =VLOOKUP($B7,MASTER_DATABASE,15,0) ->  | Q7: =VLOOKUP($B7,MASTER_DATABASE,16,0) ->  | R7: =VLOOKUP($B7,MASTER_DATABASE,17,0) ->  | S7: =VLOOKUP($B7,MASTER_DATABASE,18,0) ->  | T7: =VLOOKUP($B7,MASTER_DATABASE,19,0) ->  | U7: =VLOOKUP($B7,MASTER_DATABASE,20,0) ->  | V7: =VLOOKUP($B7,MASTER_DATABASE,21,0) ->  | W7: =VLOOKUP($B7,MASTER_DATABASE,22,0) ->  | X7: =VLOOKUP($B7,MASTER_DATABASE,23,0) ->  | Y7: =VLOOKUP($B7,MASTER_DATABASE,24,0) ->  | Z7: =VLOOKUP($B7,MASTER_DATABASE,25,0) ->  | AA7: =VLOOKUP($B7,MASTER_DATABASE,26,0) ->  | AB7: =VLOOKUP($B7,MASTER_DATABASE,27,0) ->  | AC7: =VLOOKUP($B7,MASTER_DATABASE,28,0) ->  | AD7: =VLOOKUP($B7,MASTER_DATABASE,29,0) ->  | AE7: =VLOOKUP($B7,MASTER_DATABASE,30,0) ->  | AF7: =VLOOKUP($B7,MASTER_DATABASE,31,0) ->  | AG7: =VLOOKUP($B7,MASTER_DATABASE,32,0) ->  | AH7: =VLOOKUP($B7,MASTER_DATABASE,33,0) ->  | AI7: =VLOOKUP($B7,MASTER_DATABASE,34,0) ->  | AJ7: =VLOOKUP($B7,MASTER_DATABASE,35,0) ->  | AK7: =VLOOKUP($B7,MASTER_DATABASE,36,0) ->  | AL7: =VLOOKUP($B7,MASTER_DATABASE,37,0) ->  | AM7: =VLOOKUP($B7,MASTER_DATABASE,38,0) ->  | AN7: =VLOOKUP($B7,MASTER_DATABASE,39,0) ->  | AO7: =VLOOKUP($B7,MASTER_DATABASE,40,0) ->  | AP7: =VLOOKUP($B7,MASTER_DATABASE,41,0) ->  | AQ7: =VLOOKUP($B7,MASTER_DATABASE,42,0) ->  | AR7: =VLOOKUP($B7,MASTER_DATABASE,43,0) ->  | AS7: =VLOOKUP($B7,MASTER_DATABASE,44,0) ->  | AT7: =VLOOKUP($B7,MASTER_DATABASE,45,0) ->  | AU7: =VLOOKUP($B7,MASTER_DATABASE,46,0) ->  | AV7: =VLOOKUP($B7,MASTER_DATABASE,47,0) ->  | AW7: =VLOOKUP($B7,MASTER_DATABASE,48,0) ->  | AX7: =VLOOKUP($B7,MASTER_DATABASE,49,0) ->  | AY7: =VLOOKUP($B7,MASTER_DATABASE,50,0) ->  | AZ7: =VLOOKUP($B7,MASTER_DATABASE,51,0) ->  | BA7: =VLOOKUP($B7,MASTER_DATABASE,52,0) ->  | BB7: =VLOOKUP($B7,MASTER_DATABASE,53,0) ->  | BC7: =VLOOKUP($B7,MASTER_DATABASE,54,0) ->  | BD7: =VLOOKUP($B7,MASTER_DATABASE,55,0) ->  | BE7: =VLOOKUP($B7,MASTER_DATABASE,56,0) ->  | BF7: =VLOOKUP($B7,MASTER_DATABASE,57,0) ->  | BG7: =VLOOKUP($B7,MASTER_DATABASE,58,0) ->  | BH7: =VLOOKUP($B7,MASTER_DATABASE,59,0) ->  | BI7: =VLOOKUP($B7,MASTER_DATABASE,60,0) ->  | BJ7: =VLOOKUP($B7,MASTER_DATABASE,61,0) ->  | BK7: =VLOOKUP($B7,MASTER_DATABASE,62,0) ->  | BL7: =VLOOKUP($B7,MASTER_DATABASE,63,0) ->  | BM7: =VLOOKUP($B7,MASTER_DATABASE,64,0) ->  | BN7: =VLOOKUP($B7,MASTER_DATABASE,65,0) ->  | BO7: =VLOOKUP($B7,MASTER_DATABASE,66,0) ->  | BP7: =VLOOKUP($B7,MASTER_DATABASE,67,0) ->  | BQ7: =VLOOKUP($B7,MASTER_DATABASE,68,0) ->  | BR7: =VLOOKUP($B7,MASTER_DATABASE,69,0) ->  | BS7: =VLOOKUP($B7,MASTER_DATABASE,70,0) ->  | BT7: =VLOOKUP($B7,MASTER_DATABASE,71,0) ->  | BU7: =VLOOKUP($B7,MASTER_DATABASE,72,0) ->  | BV7: =VLOOKUP($B7,MASTER_DATABASE,73,0) ->  | BW7: =VLOOKUP($B7,MASTER_DATABASE,74,0) ->  | BX7: =VLOOKUP($B7,MASTER_DATABASE,75,0) ->  | BY7: =VLOOKUP($B7,MASTER_DATABASE,76,0) ->  | BZ7: =VLOOKUP($B7,MASTER_DATABASE,77,0) ->  | CA7: =VLOOKUP($B7,MASTER_DATABASE,78,0) ->  | CB7: =VLOOKUP($B7,MASTER_DATABASE,79,0) ->  | CC7: =VLOOKUP($B7,MASTER_DATABASE,80,0) ->  | CD7: =VLOOKUP($B7,MASTER_DATABASE,81,0) ->  | CE7: =VLOOKUP($B7,MASTER_DATABASE,82,0) ->  | CF7: =VLOOKUP($B7,MASTER_DATABASE,83,0) ->  | CG7: =VLOOKUP($B7,MASTER_DATABASE,84,0) ->  | CH7: =VLOOKUP($B7,MASTER_DATABASE,85,0) ->  | CI7: =VLOOKUP($B7,MASTER_DATABASE,86,0) -> 
A8: 2 | B8: St George's PS (Gravesham) | C8: North | D8: New 1FE with 2FE Infrastructure | E8: 7100000 | F8: 6571498.71
A9: 3 | B9: St Johns Catholic PS, Phase 1
A10: 4 | B10: Portal House
A11: 5 | B11: St Johns Catholic PS, Phase 2
A12: 6 | B12: St Johns Catholic PS, Phase 3
A13: 7 | B13: Wilmington Academy, Phase 1
A14: 8 | B14: Wilmington Academy, Phase 2
A15: 9 | B15: Wilmington Academy, Phase 3
A16: 10 | B16: Wilmington Academy, Phase 4
A17: 11 | B17: Wilmington Academy, Phase 5
A18: 12 | B18: Wilmington Academy, Phase 6
A19: 13 | B19: Wilmington Grammar, Phase 1
A20: 14 | B20: Wilmington Grammar, Phase 2
A21: 15 | B21: Wilmington Grammar, Phase 3
A22: 16 | B22: Wilmington Grammar, Phase 4
A23: 17 | B23: Mayfield Grammar, Phase 1
A24: 18 | B24: Mayfield Grammar, Phase 2
A25: 19 | B25: Mayfield Grammar, Phase 3
A26: 20 | B26: Mayfield Grammar, Phase 4
A27: 21 | B27: Mayfield Grammar, Phase 5
A28: 22 | B28: Mayfield Grammar, Phase 6
A29: 23 | B29: Brent PS | C29: North | D29: 1FE - multiple phase expansion | E29: 4600000 | F29: 4323325.69
A30: 24 | B30: Edenbridge PS
A31: 25 | B31: Seal CoE PS | C31: North | D31: 1FE expansion with ancillory facilities plus replacement of exisitng mobile accommodation and car park upgrade to Seal Parish Council | E31: 2980000 | F31: 4700000
A32: 26 | B32: Temple Hill PS
A33: 27 | B33: Northfleet School for Girls | C33: North | D33: 1FE expansion | E33: 4000000 | F33: 3991812.38
A34: 28 | B34: Craylands School, Phase 3
A35: 29 | B35: Craylands School, Phase 5
A36: 30 | B36: Craylands School, Phsae 6
A37: 31 | B37: Trinity Free School, Phase 1
A38: 32 | B38: Trinity Free School, Phase 2
A39: 33 | B39: Trinity Free School, Phase 3 | C39: =VLOOKUP($B39,MASTER_DATABASE,2,0) ->  | D39: =VLOOKUP($B39,MASTER_DATABASE,3,0) ->  | E39: =VLOOKUP($B39,MASTER_DATABASE,4,0) ->  | F39: =VLOOKUP($B39,MASTER_DATABASE,5,0) ->  | G39: =VLOOKUP($B39,MASTER_DATABASE,6,0) ->  | H39: =VLOOKUP($B39,MASTER_DATABASE,7,0) ->  | I39: =VLOOKUP($B39,MASTER_DATABASE,8,0) ->  | J39: =VLOOKUP($B39,MASTER_DATABASE,9,0) ->  | K39: =VLOOKUP($B39,MASTER_DATABASE,10,0) ->  | L39: =VLOOKUP($B39,MASTER_DATABASE,11,0) ->  | M39: =VLOOKUP($B39,MASTER_DATABASE,12,0) ->  | N39: =VLOOKUP($B39,MASTER_DATABASE,13,0) ->  | O39: =VLOOKUP($B39,MASTER_DATABASE,14,0) ->  | P39: =VLOOKUP($B39,MASTER_DATABASE,15,0) ->  | Q39: =VLOOKUP($B39,MASTER_DATABASE,16,0) ->  | R39: =VLOOKUP($B39,MASTER_DATABASE,17,0) ->  | S39: =VLOOKUP($B39,MASTER_DATABASE,18,0) ->  | T39: =VLOOKUP($B39,MASTER_DATABASE,19,0) ->  | U39: =VLOOKUP($B39,MASTER_DATABASE,20,0) ->  | V39: =VLOOKUP($B39,MASTER_DATABASE,21,0) ->  | W39: =VLOOKUP($B39,MASTER_DATABASE,22,0) ->  | X39: =VLOOKUP($B39,MASTER_DATABASE,23,0) ->  | Y39: =VLOOKUP($B39,MASTER_DATABASE,24,0) ->  | Z39: =VLOOKUP($B39,MASTER_DATABASE,25,0) ->  | AA39: =VLOOKUP($B39,MASTER_DATABASE,26,0) ->  | AB39: =VLOOKUP($B39,MASTER_DATABASE,27,0) ->  | AC39: =VLOOKUP($B39,MASTER_DATABASE,28,0) ->  | AD39: =VLOOKUP($B39,MASTER_DATABASE,29,0) ->  | AE39: =VLOOKUP($B39,MASTER_DATABASE,30,0) ->  | AF39: =VLOOKUP($B39,MASTER_DATABASE,31,0) ->  | AG39: =VLOOKUP($B39,MASTER_DATABASE,32,0) ->  | AH39: =VLOOKUP($B39,MASTER_DATABASE,33,0) ->  | AI39: =VLOOKUP($B39,MASTER_DATABASE,34,0) ->  | AJ39: =VLOOKUP($B39,MASTER_DATABASE,35,0) ->  | AK39: =VLOOKUP($B39,MASTER_DATABASE,36,0) ->  | AL39: =VLOOKUP($B39,MASTER_DATABASE,37,0) ->  | AM39: =VLOOKUP($B39,MASTER_DATABASE,38,0) ->  | AN39: =VLOOKUP($B39,MASTER_DATABASE,39,0) ->  | AO39: =VLOOKUP($B39,MASTER_DATABASE,40,0) ->  | AP39: =VLOOKUP($B39,MASTER_DATABASE,41,0) ->  | AQ39: =VLOOKUP($B39,MASTER_DATABASE,42,0) ->  | AR39: =VLOOKUP($B39,MASTER_DATABASE,43,0) ->  | AS39: =VLOOKUP($B39,MASTER_DATABASE,44,0) ->  | AT39: =VLOOKUP($B39,MASTER_DATABASE,45,0) ->  | AU39: =VLOOKUP($B39,MASTER_DATABASE,46,0) ->  | AV39: =VLOOKUP($B39,MASTER_DATABASE,47,0) ->  | AW39: =VLOOKUP($B39,MASTER_DATABASE,48,0) ->  | AX39: =VLOOKUP($B39,MASTER_DATABASE,49,0) ->  | AY39: =VLOOKUP($B39,MASTER_DATABASE,50,0) ->  | AZ39: =VLOOKUP($B39,MASTER_DATABASE,51,0) ->  | BA39: =VLOOKUP($B39,MASTER_DATABASE,52,0) ->  | BB39: =VLOOKUP($B39,MASTER_DATABASE,53,0) ->  | BC39: =VLOOKUP($B39,MASTER_DATABASE,54,0) ->  | BD39: =VLOOKUP($B39,MASTER_DATABASE,55,0) ->  | BE39: =VLOOKUP($B39,MASTER_DATABASE,56,0) ->  | BF39: =VLOOKUP($B39,MASTER_DATABASE,57,0) ->  | BG39: =VLOOKUP($B39,MASTER_DATABASE,58,0) ->  | BH39: =VLOOKUP($B39,MASTER_DATABASE,59,0) ->  | BI39: =VLOOKUP($B39,MASTER_DATABASE,60,0) ->  | BJ39: =VLOOKUP($B39,MASTER_DATABASE,61,0) ->  | BK39: =VLOOKUP($B39,MASTER_DATABASE,62,0) ->  | BL39: =VLOOKUP($B39,MASTER_DATABASE,63,0) ->  | BM39: =VLOOKUP($B39,MASTER_DATABASE,64,0) ->  | BN39: =VLOOKUP($B39,MASTER_DATABASE,65,0) ->  | BO39: =VLOOKUP($B39,MASTER_DATABASE,66,0) ->  | BP39: =VLOOKUP($B39,MASTER_DATABASE,67,0) ->  | BQ39: =VLOOKUP($B39,MASTER_DATABASE,68,0) ->  | BR39: =VLOOKUP($B39,MASTER_DATABASE,69,0) ->  | BS39: =VLOOKUP($B39,MASTER_DATABASE,70,0) ->  | BT39: =VLOOKUP($B39,MASTER_DATABASE,71,0) ->  | BU39: =VLOOKUP($B39,MASTER_DATABASE,72,0) ->  | BV39: =VLOOKUP($B39,MASTER_DATABASE,73,0) ->  | BW39: =VLOOKUP($B39,MASTER_DATABASE,74,0) ->  | BX39: =VLOOKUP($B39,MASTER_DATABASE,75,0) ->  | BY39: =VLOOKUP($B39,MASTER_DATABASE,76,0) ->  | BZ39: =VLOOKUP($B39,MASTER_DATABASE,77,0) ->  | CA39: =VLOOKUP($B39,MASTER_DATABASE,78,0) ->  | CB39: =VLOOKUP($B39,MASTER_DATABASE,79,0) ->  | CC39: =VLOOKUP($B39,MASTER_DATABASE,80,0) ->  | CD39: =VLOOKUP($B39,MASTER_DATABASE,81,0) ->  | CE39: =VLOOKUP($B39,MASTER_DATABASE,82,0) ->  | CF39: =VLOOKUP($B39,MASTER_DATABASE,83,0) ->  | CG39: =VLOOKUP($B39,MASTER_DATABASE,84,0) ->  | CH39: =VLOOKUP($B39,MASTER_DATABASE,85,0) ->  | CI39: =VLOOKUP($B39,MASTER_DATABASE,86,0) -> 
A40: 34 | B40: Trinity Free School, Phase 4
A41: 35 | B41: Trinity Free School, Phase 5
A42: 36 | B42: Chilmington Green PS | C42: South | D42: New 2FE Primary School | E42: 7200000 | F42: 8400000
A43: 37 | B43: Preston PS | C43: South | D43: 1 classroom extension with associated WC's. | E43: 310000 | F43: 261362.9
A44: 38 | B44: Whitfield Aspen School | C44: South | D44: 2FE New Mainstream and SEN school | E44: 7990000 | F44: 7447500
A45: 39 | B45: Herne Bay Library
A46: 40 | B46: Palmarsh PS | C46: South | D46: 1FE expansion. Note, forecast cost is for part accommodation | E46: 2200000 | F46: 1267008
A47: 41 | B47: Meadowfield School | C47: East | D47: 1 FE expansion | E47: 4792000 | F47: 4610000
A48: 42 | B48: Hampton PS | C48: East | D48: New classroom and corridor extension | E48: 300000 | F48: 243470.07
A49: 43 | B49: Bysing Wood PS
A50: 44 | B50: St George's CoE Foundation PS | C50: East | D50: 1FE expansion | E50: 2600000 | F50: 2499829.17
A51: 45 | B51: Regis Manor PS | C51: East | D51: 1FE expansion | E51: 3300000 | F51: 2881910
A52: 46 | B52: Sittingbourne CC | C52: East | D52: 2FE expansion | E52: 6000000 | F52: 6542597.68
A53: 47 | B53: Maplesden Noakes Secondary Expansion, bulge
A54: 48 | B54: Langley Park PS | C54: West | D54: 1 FE expansion | E54: 2600000 | F54: 2577621.74
A55: 49 | B55: Park Way PS | C55: West | D55: 2 teaching space expansion | E55: 400000 | F55: 286737
A56: 50 | B56: Harrietsham PS | C56: West | D56: 1FE expansion | E56: 3000000 | F56: 3600000
A57: 51 | B57: St Peters Tunbridge Wells PS (Hawkenbury) | C57: West | D57: New 1FE School | E57: 6900000 | F57: 7900000
A58: 52 | B58: Benenden PS
A59: 53 | B59: Platt PS
A60: 54 | B60: Northfleet Tech College (PFI) | C60: North | D60: 1FE expansion required for Sept 2021. | E60: 4500000 | F60: 4320167
A61: 55 | B61: St John's Secondary School (PFI), Phase 1
A62: 56 | B62: St John's Secondary School (PFI), Phase 2
A63: 57 | B63: Thamesview School (PFI), Phase 1
A64: 58 | B64: Thamesview School (PFI), Phase 2
A65: 59 | B65: Ursuline College, Phase 1
A66: 60 | B66: Ursuline College, Phase 2
A67: 61 | B67: Judd School, RS classroom
A68: 62 | B68: Judd School, remodelling
A69: 63 | B69: Bennett Memorial School | C69: West | D69: 2FE Expansion | E69: 6500000 | F69: 7500000
A70: 64 | B70: Headcorn PS | C70: West | D70: 1FE expansion | E70: 2700000 | F70: 2924328
A71: 65 | B71: The Wyvern School | C71: =VLOOKUP($B71,MASTER_DATABASE,2,0) -> South | D71: =VLOOKUP($B71,MASTER_DATABASE,3,0) -> 1FE Expansion | E71: =VLOOKUP($B71,MASTER_DATABASE,4,0) -> 4700000 | F71: =VLOOKUP($B71,MASTER_DATABASE,5,0) -> 3164396 | G71: =VLOOKUP($B71,MASTER_DATABASE,6,0) ->  | H71: =VLOOKUP($B71,MASTER_DATABASE,7,0) ->  | I71: =VLOOKUP($B71,MASTER_DATABASE,8,0) ->  | J71: =VLOOKUP($B71,MASTER_DATABASE,9,0) ->  | K71: =VLOOKUP($B71,MASTER_DATABASE,10,0) ->  | L71: =VLOOKUP($B71,MASTER_DATABASE,11,0) ->  | M71: =VLOOKUP($B71,MASTER_DATABASE,12,0) ->  | N71: =VLOOKUP($B71,MASTER_DATABASE,13,0) ->  | O71: =VLOOKUP($B71,MASTER_DATABASE,14,0) ->  | P71: =VLOOKUP($B71,MASTER_DATABASE,15,0) ->  | Q71: =VLOOKUP($B71,MASTER_DATABASE,16,0) ->  | R71: =VLOOKUP($B71,MASTER_DATABASE,17,0) ->  | S71: =VLOOKUP($B71,MASTER_DATABASE,18,0) ->  | T71: =VLOOKUP($B71,MASTER_DATABASE,19,0) ->  | U71: =VLOOKUP($B71,MASTER_DATABASE,20,0) ->  | V71: =VLOOKUP($B71,MASTER_DATABASE,21,0) ->  | W71: =VLOOKUP($B71,MASTER_DATABASE,22,0) ->  | X71: =VLOOKUP($B71,MASTER_DATABASE,23,0) ->  | Y71: =VLOOKUP($B71,MASTER_DATABASE,24,0) ->  | Z71: =VLOOKUP($B71,MASTER_DATABASE,25,0) ->  | AA71: =VLOOKUP($B71,MASTER_DATABASE,26,0) ->  | AB71: =VLOOKUP($B71,MASTER_DATABASE,27,0) ->  | AC71: =VLOOKUP($B71,MASTER_DATABASE,28,0) ->  | AD71: =VLOOKUP($B71,MASTER_DATABASE,29,0) ->  | AE71: =VLOOKUP($B71,MASTER_DATABASE,30,0) ->  | AF71: =VLOOKUP($B71,MASTER_DATABASE,31,0) ->  | AG71: =VLOOKUP($B71,MASTER_DATABASE,32,0) ->  | AH71: =VLOOKUP($B71,MASTER_DATABASE,33,0) ->  | AI71: =VLOOKUP($B71,MASTER_DATABASE,34,0) ->  | AJ71: =VLOOKUP($B71,MASTER_DATABASE,35,0) ->  | AK71: =VLOOKUP($B71,MASTER_DATABASE,36,0) ->  | AL71: =VLOOKUP($B71,MASTER_DATABASE,37,0) ->  | AM71: =VLOOKUP($B71,MASTER_DATABASE,38,0) ->  | AN71: =VLOOKUP($B71,MASTER_DATABASE,39,0) ->  | AO71: =VLOOKUP($B71,MASTER_DATABASE,40,0) ->  | AP71: =VLOOKUP($B71,MASTER_DATABASE,41,0) ->  | AQ71: =VLOOKUP($B71,MASTER_DATABASE,42,0) ->  | AR71: =VLOOKUP($B71,MASTER_DATABASE,43,0) ->  | AS71: =VLOOKUP($B71,MASTER_DATABASE,44,0) ->  | AT71: =VLOOKUP($B71,MASTER_DATABASE,45,0) ->  | AU71: =VLOOKUP($B71,MASTER_DATABASE,46,0) ->  | AV71: =VLOOKUP($B71,MASTER_DATABASE,47,0) ->  | AW71: =VLOOKUP($B71,MASTER_DATABASE,48,0) ->  | AX71: =VLOOKUP($B71,MASTER_DATABASE,49,0) ->  | AY71: =VLOOKUP($B71,MASTER_DATABASE,50,0) ->  | AZ71: =VLOOKUP($B71,MASTER_DATABASE,51,0) ->  | BA71: =VLOOKUP($B71,MASTER_DATABASE,52,0) ->  | BB71: =VLOOKUP($B71,MASTER_DATABASE,53,0) ->  | BC71: =VLOOKUP($B71,MASTER_DATABASE,54,0) ->  | BD71: =VLOOKUP($B71,MASTER_DATABASE,55,0) ->  | BE71: =VLOOKUP($B71,MASTER_DATABASE,56,0) ->  | BF71: =VLOOKUP($B71,MASTER_DATABASE,57,0) ->  | BG71: =VLOOKUP($B71,MASTER_DATABASE,58,0) ->  | BH71: =VLOOKUP($B71,MASTER_DATABASE,59,0) ->  | BI71: =VLOOKUP($B71,MASTER_DATABASE,60,0) ->  | BJ71: =VLOOKUP($B71,MASTER_DATABASE,61,0) ->  | BK71: =VLOOKUP($B71,MASTER_DATABASE,62,0) ->  | BL71: =VLOOKUP($B71,MASTER_DATABASE,63,0) ->  | BM71: =VLOOKUP($B71,MASTER_DATABASE,64,0) ->  | BN71: =VLOOKUP($B71,MASTER_DATABASE,65,0) ->  | BO71: =VLOOKUP($B71,MASTER_DATABASE,66,0) ->  | BP71: =VLOOKUP($B71,MASTER_DATABASE,67,0) ->  | BQ71: =VLOOKUP($B71,MASTER_DATABASE,68,0) ->  | BR71: =VLOOKUP($B71,MASTER_DATABASE,69,0) ->  | BS71: =VLOOKUP($B71,MASTER_DATABASE,70,0) ->  | BT71: =VLOOKUP($B71,MASTER_DATABASE,71,0) ->  | BU71: =VLOOKUP($B71,MASTER_DATABASE,72,0) ->  | BV71: =VLOOKUP($B71,MASTER_DATABASE,73,0) ->  | BW71: =VLOOKUP($B71,MASTER_DATABASE,74,0) ->  | BX71: =VLOOKUP($B71,MASTER_DATABASE,75,0) ->  | BY71: =VLOOKUP($B71,MASTER_DATABASE,76,0) ->  | BZ71: =VLOOKUP($B71,MASTER_DATABASE,77,0) ->  | CA71: =VLOOKUP($B71,MASTER_DATABASE,78,0) ->  | CB71: =VLOOKUP($B71,MASTER_DATABASE,79,0) ->  | CC71: =VLOOKUP($B71,MASTER_DATABASE,80,0) ->  | CD71: =VLOOKUP($B71,MASTER_DATABASE,81,0) ->  | CE71: =VLOOKUP($B71,MASTER_DATABASE,82,0) ->  | CF71: =VLOOKUP($B71,MASTER_DATABASE,83,0) ->  | CG71: =VLOOKUP($B71,MASTER_DATABASE,84,0) ->  | CH71: =VLOOKUP($B71,MASTER_DATABASE,85,0) ->  | CI71: =VLOOKUP($B71,MASTER_DATABASE,86,0) -> 
A72: 66 | B72: Swadelands/The Lenham School
A73: 67 | B73: Spires, Phase 1
A74: 68 | B74: Spires, Phase 2
A75: 69 | B75: Spires, Phase 3
A76: 70 | B76: Spires, Phase 4
A77: 71 | B77: The Archbishops School
A78: 72 | B78: Darenth Community Primary School
A79: 73 | B79: Faversham Library
A80: 74 | B80: Dartford Sexual Health Clinic
A81: 75 | B81: Pent Valley - Sharman Block
A82: 76 | B82: Invicta Car Park
A83: 77 | B83: Kent History and Library Centre
A84: 78 | B84: St Peter's House
A85: 79 | B85: West Borough PS | C85: West | D85: New Staff Room | E85: 195000 | F85: 204105
A86: 80 | B86: Weald PS | C86: North | D86: Small classroom extension | E86: 481313 | F86: 505458
A87: 81 | B87: North Farm WTS
A88: 82 | B88: Ryarsh PS
A89: 83 | B89: Joy Lane Primary School Phase 2 | C89: East | D89: 1FE expansion | E89: 3500000 | F89: 3647217.6
A90: 84 | B90: Avenue of Remembrance
A91: 85 | B91: Coxheath Primary School | C91: West | D91: Two classrooms | E91: 600000 | F91: 578455
A92: 86 | B92: Wouldham PS
A93: 87 | B93: Wentworth PS | C93: North | D93: 1FE expansion | E93: 2600000 | F93: 2346000
A94: 88 | B94: Ridgeview School
A95: 89 | B95: Weald of Kent Grammar
A96: 90 | B96: Finberry PS, New PS
A97: 91 | B97: Birchington PS | C97: East | D97: New two storey teaching block. | E97: 2750000 | F97: 2438962.92
A98: 92 | B98: South Borough PS | C98: West | D98: Two storey building with six classrooms. | E98: 2600000 | F98: 2169009.86
A99: 93 | B99: Oakley PS (Nursery) | C99: West | D99: New SEN nursery provision. | E99: 995000 | F99: 962199.18
A100: 94 | B100: Southborough Hub
A101: 95 | B101: Dover Discovery Centre
A102: 96 | B102: Queen's House Folkestone to Cheriton House
A103: 97 | B103: Coroners Phase 2 | C103: =VLOOKUP($B103,MASTER_DATABASE,2,0) ->  | D103: =VLOOKUP($B103,MASTER_DATABASE,3,0) ->  | E103: =VLOOKUP($B103,MASTER_DATABASE,4,0) ->  | F103: =VLOOKUP($B103,MASTER_DATABASE,5,0) ->  | G103: =VLOOKUP($B103,MASTER_DATABASE,6,0) ->  | H103: =VLOOKUP($B103,MASTER_DATABASE,7,0) ->  | I103: =VLOOKUP($B103,MASTER_DATABASE,8,0) ->  | J103: =VLOOKUP($B103,MASTER_DATABASE,9,0) ->  | K103: =VLOOKUP($B103,MASTER_DATABASE,10,0) ->  | L103: =VLOOKUP($B103,MASTER_DATABASE,11,0) ->  | M103: =VLOOKUP($B103,MASTER_DATABASE,12,0) ->  | N103: =VLOOKUP($B103,MASTER_DATABASE,13,0) ->  | O103: =VLOOKUP($B103,MASTER_DATABASE,14,0) ->  | P103: =VLOOKUP($B103,MASTER_DATABASE,15,0) ->  | Q103: =VLOOKUP($B103,MASTER_DATABASE,16,0) ->  | R103: =VLOOKUP($B103,MASTER_DATABASE,17,0) ->  | S103: =VLOOKUP($B103,MASTER_DATABASE,18,0) ->  | T103: =VLOOKUP($B103,MASTER_DATABASE,19,0) ->  | U103: =VLOOKUP($B103,MASTER_DATABASE,20,0) ->  | V103: =VLOOKUP($B103,MASTER_DATABASE,21,0) ->  | W103: =VLOOKUP($B103,MASTER_DATABASE,22,0) ->  | X103: =VLOOKUP($B103,MASTER_DATABASE,23,0) ->  | Y103: =VLOOKUP($B103,MASTER_DATABASE,24,0) ->  | Z103: =VLOOKUP($B103,MASTER_DATABASE,25,0) ->  | AA103: =VLOOKUP($B103,MASTER_DATABASE,26,0) ->  | AB103: =VLOOKUP($B103,MASTER_DATABASE,27,0) ->  | AC103: =VLOOKUP($B103,MASTER_DATABASE,28,0) ->  | AD103: =VLOOKUP($B103,MASTER_DATABASE,29,0) ->  | AE103: =VLOOKUP($B103,MASTER_DATABASE,30,0) ->  | AF103: =VLOOKUP($B103,MASTER_DATABASE,31,0) ->  | AG103: =VLOOKUP($B103,MASTER_DATABASE,32,0) ->  | AH103: =VLOOKUP($B103,MASTER_DATABASE,33,0) ->  | AI103: =VLOOKUP($B103,MASTER_DATABASE,34,0) ->  | AJ103: =VLOOKUP($B103,MASTER_DATABASE,35,0) ->  | AK103: =VLOOKUP($B103,MASTER_DATABASE,36,0) ->  | AL103: =VLOOKUP($B103,MASTER_DATABASE,37,0) ->  | AM103: =VLOOKUP($B103,MASTER_DATABASE,38,0) ->  | AN103: =VLOOKUP($B103,MASTER_DATABASE,39,0) ->  | AO103: =VLOOKUP($B103,MASTER_DATABASE,40,0) ->  | AP103: =VLOOKUP($B103,MASTER_DATABASE,41,0) ->  | AQ103: =VLOOKUP($B103,MASTER_DATABASE,42,0) ->  | AR103: =VLOOKUP($B103,MASTER_DATABASE,43,0) ->  | AS103: =VLOOKUP($B103,MASTER_DATABASE,44,0) ->  | AT103: =VLOOKUP($B103,MASTER_DATABASE,45,0) ->  | AU103: =VLOOKUP($B103,MASTER_DATABASE,46,0) ->  | AV103: =VLOOKUP($B103,MASTER_DATABASE,47,0) ->  | AW103: =VLOOKUP($B103,MASTER_DATABASE,48,0) ->  | AX103: =VLOOKUP($B103,MASTER_DATABASE,49,0) ->  | AY103: =VLOOKUP($B103,MASTER_DATABASE,50,0) ->  | AZ103: =VLOOKUP($B103,MASTER_DATABASE,51,0) ->  | BA103: =VLOOKUP($B103,MASTER_DATABASE,52,0) ->  | BB103: =VLOOKUP($B103,MASTER_DATABASE,53,0) ->  | BC103: =VLOOKUP($B103,MASTER_DATABASE,54,0) ->  | BD103: =VLOOKUP($B103,MASTER_DATABASE,55,0) ->  | BE103: =VLOOKUP($B103,MASTER_DATABASE,56,0) ->  | BF103: =VLOOKUP($B103,MASTER_DATABASE,57,0) ->  | BG103: =VLOOKUP($B103,MASTER_DATABASE,58,0) ->  | BH103: =VLOOKUP($B103,MASTER_DATABASE,59,0) ->  | BI103: =VLOOKUP($B103,MASTER_DATABASE,60,0) ->  | BJ103: =VLOOKUP($B103,MASTER_DATABASE,61,0) ->  | BK103: =VLOOKUP($B103,MASTER_DATABASE,62,0) ->  | BL103: =VLOOKUP($B103,MASTER_DATABASE,63,0) ->  | BM103: =VLOOKUP($B103,MASTER_DATABASE,64,0) ->  | BN103: =VLOOKUP($B103,MASTER_DATABASE,65,0) ->  | BO103: =VLOOKUP($B103,MASTER_DATABASE,66,0) ->  | BP103: =VLOOKUP($B103,MASTER_DATABASE,67,0) ->  | BQ103: =VLOOKUP($B103,MASTER_DATABASE,68,0) ->  | BR103: =VLOOKUP($B103,MASTER_DATABASE,69,0) ->  | BS103: =VLOOKUP($B103,MASTER_DATABASE,70,0) ->  | BT103: =VLOOKUP($B103,MASTER_DATABASE,71,0) ->  | BU103: =VLOOKUP($B103,MASTER_DATABASE,72,0) ->  | BV103: =VLOOKUP($B103,MASTER_DATABASE,73,0) ->  | BW103: =VLOOKUP($B103,MASTER_DATABASE,74,0) ->  | BX103: =VLOOKUP($B103,MASTER_DATABASE,75,0) ->  | BY103: =VLOOKUP($B103,MASTER_DATABASE,76,0) ->  | BZ103: =VLOOKUP($B103,MASTER_DATABASE,77,0) ->  | CA103: =VLOOKUP($B103,MASTER_DATABASE,78,0) ->  | CB103: =VLOOKUP($B103,MASTER_DATABASE,79,0) ->  | CC103: =VLOOKUP($B103,MASTER_DATABASE,80,0) ->  | CD103: =VLOOKUP($B103,MASTER_DATABASE,81,0) ->  | CE103: =VLOOKUP($B103,MASTER_DATABASE,82,0) ->  | CF103: =VLOOKUP($B103,MASTER_DATABASE,83,0) ->  | CG103: =VLOOKUP($B103,MASTER_DATABASE,84,0) ->  | CH103: =VLOOKUP($B103,MASTER_DATABASE,85,0) ->  | CI103: =VLOOKUP($B103,MASTER_DATABASE,86,0) -> 
A104: 98 | B104: Barton Court Free School | C104: East | D104: New 5FE school | E104: 24790856 | F104: 24790856
A105: 99 | B105: St Andrew's PS | C105: West | D105: New 2FE school | E105: 8561038 | F105: 8561038
A106: 100 | B106: Dover Girls Grammar
A107: 101 | B107: St George's (Gravesend) | C107: North | D107: 1FE expansion | E107: 2700000 | F107: 2600000
A108: 102 | B108: Wickhambreaux | C108: East | D108: School managed - additonal taching and admin space | E108: 127952 | F108: 127952
A109: 103 | B109: Stone Bay School | C109: East | D109: Additonal classroom | E109: 100000 | F109: 30000
A110: 104 | B110: Maidstone Boys Grammar | C110: West | D110: School managed - additonal taching | E110: 3580000 | F110: 3580000
A111: 105 | B111: Lawn PS | C111: North | D111: 1FE - only pre-con work | E111: 19663 | F111: 19663
A112: 106 | B112: Dunton Green PS | C112: North | D112: 1FE - only pre-con work | E112: 81121 | F112: 81121
A113: 107 | B113: Copperfield Academy | C113: North | D113: 1FE - only pre-con work | E113: 53655 | F113: 53655
A114: 108 | B114: Deal Parochial PS | C114: South | D114: Bulge class | E114: 15700 | F114: 15700
A115: 109 | B115: Marden PS | C115: West | D115: Expansion to 2FE | E115: 1400000 | F115: 1440871
A116: 110 | B116: Lady Joanna Thornhill PS | C116: South | D116: Only pre-con work | E116: 6434 | F116: 6434
A117: 111 | B117: Sellindge PS | C117: South | D117: 3 classroom new block and car park | E117: 1400000 | F117: 1400000
A118: 112 | B118: Martello Primary
A119: 113 | B119: Brockhill Park
A120: 114 | B120: Bromstone Primary
A121: 115 | B121: Churchill C
A122: 116 | B122: Former Ashford
A123: 117 | B123: Hextable Primary
A124: 118 | B124: Langley Park
A125: 119 | B125: Lansdowne Primary
A126: 120 | B126: Maidstone St
A127: 121 | B127: Minster in
A128: 122 | B128: Queenborough School
A129: 123 | B129: Repton Manor
A130: 124 | B130: Rose Street
A131: 125 | B131: Singlewell Primary
A132: 126 | B132: Slade Primary
A133: 127 | B133: South Borough
A134: 128 | B134: St George's
A135: 129 | B135: The Judd | C135: =VLOOKUP($B135,MASTER_DATABASE,2,0) ->  | D135: =VLOOKUP($B135,MASTER_DATABASE,3,0) ->  | E135: =VLOOKUP($B135,MASTER_DATABASE,4,0) ->  | F135: =VLOOKUP($B135,MASTER_DATABASE,5,0) ->  | G135: =VLOOKUP($B135,MASTER_DATABASE,6,0) ->  | H135: =VLOOKUP($B135,MASTER_DATABASE,7,0) ->  | I135: =VLOOKUP($B135,MASTER_DATABASE,8,0) ->  | J135: =VLOOKUP($B135,MASTER_DATABASE,9,0) ->  | K135: =VLOOKUP($B135,MASTER_DATABASE,10,0) ->  | L135: =VLOOKUP($B135,MASTER_DATABASE,11,0) ->  | M135: =VLOOKUP($B135,MASTER_DATABASE,12,0) ->  | N135: =VLOOKUP($B135,MASTER_DATABASE,13,0) ->  | O135: =VLOOKUP($B135,MASTER_DATABASE,14,0) ->  | P135: =VLOOKUP($B135,MASTER_DATABASE,15,0) ->  | Q135: =VLOOKUP($B135,MASTER_DATABASE,16,0) ->  | R135: =VLOOKUP($B135,MASTER_DATABASE,17,0) ->  | S135: =VLOOKUP($B135,MASTER_DATABASE,18,0) ->  | T135: =VLOOKUP($B135,MASTER_DATABASE,19,0) ->  | U135: =VLOOKUP($B135,MASTER_DATABASE,20,0) ->  | V135: =VLOOKUP($B135,MASTER_DATABASE,21,0) ->  | W135: =VLOOKUP($B135,MASTER_DATABASE,22,0) ->  | X135: =VLOOKUP($B135,MASTER_DATABASE,23,0) ->  | Y135: =VLOOKUP($B135,MASTER_DATABASE,24,0) ->  | Z135: =VLOOKUP($B135,MASTER_DATABASE,25,0) ->  | AA135: =VLOOKUP($B135,MASTER_DATABASE,26,0) ->  | AB135: =VLOOKUP($B135,MASTER_DATABASE,27,0) ->  | AC135: =VLOOKUP($B135,MASTER_DATABASE,28,0) ->  | AD135: =VLOOKUP($B135,MASTER_DATABASE,29,0) ->  | AE135: =VLOOKUP($B135,MASTER_DATABASE,30,0) ->  | AF135: =VLOOKUP($B135,MASTER_DATABASE,31,0) ->  | AG135: =VLOOKUP($B135,MASTER_DATABASE,32,0) ->  | AH135: =VLOOKUP($B135,MASTER_DATABASE,33,0) ->  | AI135: =VLOOKUP($B135,MASTER_DATABASE,34,0) ->  | AJ135: =VLOOKUP($B135,MASTER_DATABASE,35,0) ->  | AK135: =VLOOKUP($B135,MASTER_DATABASE,36,0) ->  | AL135: =VLOOKUP($B135,MASTER_DATABASE,37,0) ->  | AM135: =VLOOKUP($B135,MASTER_DATABASE,38,0) ->  | AN135: =VLOOKUP($B135,MASTER_DATABASE,39,0) ->  | AO135: =VLOOKUP($B135,MASTER_DATABASE,40,0) ->  | AP135: =VLOOKUP($B135,MASTER_DATABASE,41,0) ->  | AQ135: =VLOOKUP($B135,MASTER_DATABASE,42,0) ->  | AR135: =VLOOKUP($B135,MASTER_DATABASE,43,0) ->  | AS135: =VLOOKUP($B135,MASTER_DATABASE,44,0) ->  | AT135: =VLOOKUP($B135,MASTER_DATABASE,45,0) ->  | AU135: =VLOOKUP($B135,MASTER_DATABASE,46,0) ->  | AV135: =VLOOKUP($B135,MASTER_DATABASE,47,0) ->  | AW135: =VLOOKUP($B135,MASTER_DATABASE,48,0) ->  | AX135: =VLOOKUP($B135,MASTER_DATABASE,49,0) ->  | AY135: =VLOOKUP($B135,MASTER_DATABASE,50,0) ->  | AZ135: =VLOOKUP($B135,MASTER_DATABASE,51,0) ->  | BA135: =VLOOKUP($B135,MASTER_DATABASE,52,0) ->  | BB135: =VLOOKUP($B135,MASTER_DATABASE,53,0) ->  | BC135: =VLOOKUP($B135,MASTER_DATABASE,54,0) ->  | BD135: =VLOOKUP($B135,MASTER_DATABASE,55,0) ->  | BE135: =VLOOKUP($B135,MASTER_DATABASE,56,0) ->  | BF135: =VLOOKUP($B135,MASTER_DATABASE,57,0) ->  | BG135: =VLOOKUP($B135,MASTER_DATABASE,58,0) ->  | BH135: =VLOOKUP($B135,MASTER_DATABASE,59,0) ->  | BI135: =VLOOKUP($B135,MASTER_DATABASE,60,0) ->  | BJ135: =VLOOKUP($B135,MASTER_DATABASE,61,0) ->  | BK135: =VLOOKUP($B135,MASTER_DATABASE,62,0) ->  | BL135: =VLOOKUP($B135,MASTER_DATABASE,63,0) ->  | BM135: =VLOOKUP($B135,MASTER_DATABASE,64,0) ->  | BN135: =VLOOKUP($B135,MASTER_DATABASE,65,0) ->  | BO135: =VLOOKUP($B135,MASTER_DATABASE,66,0) ->  | BP135: =VLOOKUP($B135,MASTER_DATABASE,67,0) ->  | BQ135: =VLOOKUP($B135,MASTER_DATABASE,68,0) ->  | BR135: =VLOOKUP($B135,MASTER_DATABASE,69,0) ->  | BS135: =VLOOKUP($B135,MASTER_DATABASE,70,0) ->  | BT135: =VLOOKUP($B135,MASTER_DATABASE,71,0) ->  | BU135: =VLOOKUP($B135,MASTER_DATABASE,72,0) ->  | BV135: =VLOOKUP($B135,MASTER_DATABASE,73,0) ->  | BW135: =VLOOKUP($B135,MASTER_DATABASE,74,0) ->  | BX135: =VLOOKUP($B135,MASTER_DATABASE,75,0) ->  | BY135: =VLOOKUP($B135,MASTER_DATABASE,76,0) ->  | BZ135: =VLOOKUP($B135,MASTER_DATABASE,77,0) ->  | CA135: =VLOOKUP($B135,MASTER_DATABASE,78,0) ->  | CB135: =VLOOKUP($B135,MASTER_DATABASE,79,0) ->  | CC135: =VLOOKUP($B135,MASTER_DATABASE,80,0) ->  | CD135: =VLOOKUP($B135,MASTER_DATABASE,81,0) ->  | CE135: =VLOOKUP($B135,MASTER_DATABASE,82,0) ->  | CF135: =VLOOKUP($B135,MASTER_DATABASE,83,0) ->  | CG135: =VLOOKUP($B135,MASTER_DATABASE,84,0) ->  | CH135: =VLOOKUP($B135,MASTER_DATABASE,85,0) ->  | CI135: =VLOOKUP($B135,MASTER_DATABASE,86,0) -> 
A136: 130 | B136: Thistle Hill
A137: 131 | B137: Valley Invicta
A138: 132 | B138: Weald Community
A139: 133 | B139: West Minster
A140: 134 | B140: Westcourt Primary
A141: 135 | B141: Westcourt Primary
A142: 136 | B142: White Cliffs
A143: 137 | B143: Whitfield and
A144: 138 | B144: Whitstable Junior
A145: 139 | B145: Warden House
A146: 140 | B146: Westlands Secondary School | C146: East | D146: 1FE Expansion | E146: 3250000 | F146: 3250000
A147: 141 | B147: Royal Harbour School / Laleham Gap | C147: East | D147: Relocation of STLS to Laleham Gap | E147: 800000 | F147: 825598.59
A148: 142 | B148: St Gregory's Secondary School | C148: West | D148: 1FE expansion including new sports hall | E148: 6600000 | F148: 7400000
A149: 143 | B149: Tunbridge Wells Boys School | C149: West | D149: 1FE expansion including new sports hall and replacement of 4 old mobiles classrooms. | E149: 7700000 | F149: 8352403
A150: 144 | B150: Skinners School Expansion | C150: West | D150: 0.3FE Expansion (school managed) | E150: 3000000 | F150: 3000000
A151: 145 | B151: Ebbsfleet Green PS | C151: North | D151: New 1FE with 2FE Infrastructure | E151: 6000000 | F151: 6000000
A152: 146 | B152: The Limes / Westcourt Interim
A153: 147 | B153: Finberry PS, 1FE
A154: 148 | B154: St Nicholas PS | C154: South | D154: 30YR7 places | E154: 100000 | F154: 100000
A155: 149 | B155: Towers (North) School | C155: South | D155: 0.5FE Expansion | E155: 350000 | F155: 350000
A156: 150 | B156: Sunnybank PS | C156: East | D156: 0.5FE Expansion plus relocation of Infant block onto the Junior site | E156: 3000000 | F156: 3000000
A157: 151 | B157: Former RSD | C157: East | D157: 6FE New School. Exlcudes land purchase as separate RoD | E157: 20000000 | F157: 18000000
A158: 152 | B158: Hermitage Lane PS | C158: West | D158: 2FE new school | E158: 7000000 | F158: 7000000
A159: 153 | B159: Swanley and Hextable PS | C159: North | D159: 1FE Expansion | E159: 2750000 | F159: 2750000
A160: 154 | B160: St Gregory's PS | C160: East | D160: 0.5FE Expansion | E160: 1500000 | F160: 1500000
A161: 155 | B161: Quinton Road Secondary School
A162: 156 | B162: Skinners Kent Academy | C162: West | D162: 6FE Expansion | E162: 20000000 | F162: 20000000
A163: 157 | B163: Tonbridge and Malling Area, 3FE
A164: 158 | B164: Tonbridge and Malling Area, 2FE
A165: 159 | B165: Pent Valley - Demolition
A166: 160 | B166: New Ash Green Primary
A167: 161 | B167: Simon Langdon Boys
A168: 162 | B168: Simon Langdon Girls
A169: 163 | B169: Meadowfield School, Dining Room
A170: 164 | B170: Deal Special
A171: 165 | B171: Sheppey Special
A172: 166 | B172: Maplesden Noakes Expansion
B173: insert above this line
CD175: # | CE175: # | CF175: # | CG175: # | CH175: # | CI175: #
BV176: Unapproved Contingency | BW176: Agreed Budget vs Original Budget | BX176: =#REF!-#REF! ->  | BY176: Budget Contingency
BW177: Forecast Spend vs Agreed Budget | BX177: =#REF!-#REF! ->  | BY177: Programme Contingency
BW178: Forecast Spend vs Original Budget | BX178: =#REF!-#REF! ->  | BY178: CP Contingency
BX187: Underspend | BY187: =#REF!-#REF! -> 
BX188: Programme Contingency | BY188: =#REF!-#REF! -> 
BX189: Total Contingency | BY189: =SUM(BY187:BY188) -> 

Sheet PM Comments (hidden)
F2: PM to update as necessary
A4: Discrete Description | B4: Project | C4: PM | D4: Current Description of Works | E4: Curent Status | F4: Updated Description of Works | G4: Updated Status
A5: Dartford Girls Grammar | B5: Dartford Girls Grammar | C5: Angela Heselgrave | D5: 2 classroom extension for December 2018 | E5: Tender evalutaion underway. Delivery for December 2018. Stage 4 Gateway due end of October - with Ben.
A6: St George's PS (Gravesham) | B6: St George's PS (Gravesham) | C6: Joanne Taylor | D6: Erection of new 2FE primary school with new access road from Westcott Avenue, with drop-off/pick-up facility and 3G pitch. | E6: Awaiting contract award between KCC and Kier.
A7: St Johns Catholic PS, Phase 1 | B7: St Johns Catholic PS | C7: David Mounter | D7: Phase 1 - year 1 infill classroom, reception year classroom and studio year 1 infill classroom, reception year classroom and studio. | E7: Practical completion 6 July 2018. Snagging underway and awaiting Programme for snagging - could be 2 or 3 weeks of work. All classrooms handed over. PC section 2 of the phase completed on 16/8/18. Snagging outstanding for both sections
A8: Portal House | B8: Portal House | C8: Sue Meads | D8: Demolish part of existing. Strip out and remodel original (1892) building. New build teaching accommodation block. New build sports hall, changing and vocational classroom. | E8: School in occupation of Phase 1 building. Construction continues on Phase 2. Potential damage to Curfew Cottage being investigated - site inspection taking place. Surveyor of Curfew Cottage believes that natural damage to the building has been exaserbated by large lorries driving past property as part of construction. Chasing report from Surveyor - due week beginning 20/8.
A9: St Johns Catholic PS, Phase 2 | B9: St Johns Catholic PS | C9: David Mounter | D9: Phase 2 - expanding existing school from 3FE to 4FE, with ancilliary facilities. Phase 2 - externals - MUGA & playground, car parking additions and alterations. | E9: Phase 2 - Playground and MUGA. Contract signed and sealed. ROD to be amended in November 2018
A10: St Johns Catholic PS, Phase 3 | B10: St Johns Catholic PS | C10: David Mounter | D10: Phase 3 - staff room extension, two-storey link building (4 classrooms), small hall, part single storey and two-storey extension (3 classrooms). | E10: Contract signed and sealed. ROD to be amended in November 2018. Site welfare set up, link corrdor demolished
A11: Wilmington Academy, Phase 1 | B11: Wilmington Academy | C11: Esther Larner | D11: 2FE - multiple phases expansion. New build block, plus 4 phases of internal remodelling to keep adjacencies within Secondary provision. Includes temporary 3 classroom ICT suites, plus double stack for Sept 2018. | E11: 0
A12: Wilmington Academy, Phase 2 | B12: Wilmington Academy | C12: Esther Larner | D12: Phase 2 - Internal refurb for Sept 17. | E12: Complete and out of defects
A13: Wilmington Academy, Phase 3 | B13: Wilmington Academy | C13: Esther Larner | D13: Phase 3 - Internal refurb for Sept 18. | E13: School managed phase.
A14: Wilmington Academy, Phase 4 | B14: Wilmington Academy | C14: Esther Larner | D14: Phase 4 - main build. | E14: Planning approval from committee July 2018 and now referred to SoS given Green Belt approval required. Green Belt approval is a low probability risk with a high impact. This is expected mid August 2018. Lakehouse have won the tender and PCSA required for Stage 4 design. Early Works contract for Ground Works also required to minimise impact on programme which has been impacted by planning delay. At the moment working on contingency for September 2019.
A15: Wilmington Academy, Phase 5 | B15: Wilmington Academy | C15: Esther Larner | D15: Phase 5 - additional modulars. | E15: Planning approved at July 11th committee for retention and double stack mobiles. Delayed as knock on from issues with planning for previous phases. Order placed with Portakabin for delivery over summer holiday - Rental agreement for mobiles. Double stack Portakbin completed on time, but works had to be completed by local contractor as Portakabin failed to resource for internal site out. Being offset to Portakabin invoice.
A16: Wilmington Academy, Phase 6 | B16: Wilmington Academy | C16: Esther Larner | D16: Phase 6 - internal remodelling. | E16: Required for September 2019 - works to be undertaken in summer holiday 2019 to remodel the final science rooms.
A17: Wilmington Grammar, Phase 1 | B17: Wilmington Grammar | C17: Esther Larner | D17: 1FE - Multiple phases expansion. New build block including CIF funded Sports Hall. All linked to Wilmington Academy. Current agreement is to locate a Coach Park on the School site to remove coaches from Common Lane that serve the Boys Grammar. Both Grammar schools are within MAT. | E17: Plus £1.5m CIF funding for Sports Hall. New BN block combines CIF building. PStage 4 PCSA with Lakehouse being approved. All issues on programme and budget stem from planning led by local/member objections. Extensive highways and bus parking across Wilmington. Additional costs to be included in WGSG budget not WA. This leaves an forecast overspend of £1.690k. Need a RoD to cover whole amount with acknowledgement that school reimburse us the £1.5m. Ian Watts agreeing this at Committee in Nov 18
A18: Wilmington Grammar, Phase 2 | B18: Wilmington Grammar | C18: Esther Larner | D18: Phase 2 - temporaries for summer 2017 | E18: Complete and out of defects
A19: Wilmington Grammar, Phase 3 | B19: Wilmington Grammar | C19: Esther Larner | D19: Phase 3 - new build classrooms under Basic Need + CIF funded sports hall, changing room and ancillory spaces and rooftop muga. | E19: Require additional CIF funding agreement. Require development agreement to be put in place. Planning approved in July 2018. Confirmation that CIF funding coming back to Kent. Will need additional mobiles for Sept 19.
A20: Wilmington Grammar, Phase 4 | B20: Wilmington Grammar | C20: Esther Larner | D20: Phase 4 - Highways works - new bus park and ancillory S278 Highways works. | E20: Approval at July 2018 Planning Committee. Phase to be completed once new build phase 3 is complete. Funding increase to be resolved at Nov Education Committee with Ian Watts.
A21: Mayfield Grammar, Phase 1 | B21: Mayfield Grammar | C21: Esther Larner | D21: 2FE Mulitple phases expansion + PSBP block replacement. New build block, plus small discrete extensions to various areas of the school. Some internal remodelling for adjacencies. PSBP2 being included with superblock. | E21: Phase 2 (dining and kitchen extension) start on site 2nd July to deliver the expansion. Cost over runs due to exceptional costs from Modular contractors. Approved Contractors now pricing. PSBP approval still ongoing.
A22: Mayfield Grammar, Phase 2 | B22: Mayfield Grammar | C22: Esther Larner | D22: Phase 2 - kitchen. | E22: Start on site 3rd july 2018. Completion scheduled for 31st December 2018. Risk is diversion of buried gas supply to kitchen - SGN slow getting design agreed. Planning for substation approved August. 8. UKPN have received money and we awaiting word from them on next steps.
A23: Mayfield Grammar, Phase 3 | B23: Mayfield Grammar | C23: Esther Larner | D23: Phase 3 - Isaac Newton. | E23: SMBF procurement failed as project too small for Large modular contractors. Approval received to retender to alternative modular suppliers to gain cost advantage although this is impacting on the programme. Tendering on going due back in mid October.
A24: Mayfield Grammar, Phase 4 | B24: Mayfield Grammar | C24: Esther Larner | D24: Phase 4 - science block. | E24: Planning is delaying the process. Planning officer requested redesign of external materials which is taking time for Baileys to redeisgn cladding and resubmit. Timescales for traditional wont work with time on site not acceptable to school. Using Approved Contractors to price deisgn work to see if works can be worked out of sequnece to reduce time on site.
A25: Mayfield Grammar, Phase 5 | B25: Mayfield Grammar | C25: Esther Larner | D25: Phase 5 - BN expansion - 10 classrooms+ activity hall and offices. | E25: Currently at Stage 2 given focus required on earlier stages. Impact on programme may mean requirement for temporary units in September 2019. Going to do Gateway 2 sign off with Andrew.
A26: Mayfield Grammar, Phase 6 | B26: Mayfield Grammar | C26: Esther Larner | D26: Phase 6 - PSBP2. Relocation from existing accommodation on site. | E26: Stage 2. Awaiting ESFA Approval on design before going in to planning.
A27: Brent PS | B27: Brent PS | C27: Janet Streek | D27: Phase 1: Internal refurbishment works and installation of temporary classrooms (mobiles). External works included installation of MUGA, additional parking bays, and parent drop off bay. Phase 2: Linked extension to existing Victorian building to provide classrooms, hall, WCs and associated external play areas/landscaping. | E27: Practical completion was 27th June. Snagging completed. School to moved in over summer holiday. Mobiles to be removed . Finance meeting 24th October final account.
A28: Edenbridge PS | B28: Edenbridge PS | C28: Joanne Taylor | D28: Single storey 3 classroom new build with ancicillary spaces and new car park provision . | E28: School put in emergency measures and academised during process. Extension required to accommodate Academy needs and scope changed in April at request of AEO. New car park needs to be constructed as we can no longer lease the adjacent land. Need input from UKPN upgrade.
A29: Seal CoE PS | B29: Seal CoE PS | C29: TBC | D29: Expand existing school from 1FE to 2FE with ancilliary facilities. | E29: Planning approved 11th July 2018. Tender process underway and extended at request of contractors. Planning has impacted programme and as such costs have increased due to need for interim measures.
A30: Temple Hill PS | B30: Temple Hill PS | C30: Joanne Taylor | D30: 8 classrooms, SEN room, group room, staff workbase room, office toilets and car parking. | E30: Archaeological works required due to iron age spear found. Impact on budget of £300k. AEO going for budget approval. School 1FE expansion required for August on modular build. Archaeology and bulge year have taken over budget.
A31: Northfleet School for Girls | B31: Northfleet School for Girls | C31: Erica Pavlis | D31: 1FE expansion. | E31: Working up Planning Application for submission subject to instruction. Originally scheduled for 2FE but likely to be 1FE now - hence budget variance. ROD for £4m in July 2018. RIBA Stage 3 is very tight as required for Sept 19. Stage 2 cost plan shows £4.1m but VE being undertaken in Stage 3 and designers instricted to allow £500k contingency. Stage 2 Gateway due to confirm appointment of Baileys for Phase 3.
A32: Craylands School, Phase 3 | B32: Craylands School | C32: Natasha Petley | D32: Phase 3 - Kitchen extension with associated works to the existing hall and kitchen. AGREEING FINAL ACCOUNT | E32: Phase 3 works completed but agreeing final account. Delays caused by planning delay and foundation issues. Contractor redoing part of the works. Final account agreed and awaiting submission from PFI.
A33: Craylands School, Phase 5 | B33: Craylands School | C33: Natasha Petley | D33: Phase 5 - Standalone block incorporating 8no. classroom extension with associated WC's and store with a plant room and new MUGA pitch. | E33: Phase 5 roof works delayed slightly but pulled back some time. Contractor working well with us to pull back time. Practical completion of ground floor complete and final PC due 28 Sept. Getting details for server connection as KCC have agreed we can use hard connection to existing server.
A34: Craylands School, Phsae 6 | B34: Craylands School | C34: Joanna Ashby | D34: Phase 1 - Internal modifications to the reception years. - COMPLETE Phase 2 - Reception year WC extension incorporating 3no. WC's. - COMPLETE Phase 4 - Installation of a modular unit to the front of the site. COMPLETE Phase 6 - Internal modifications to create a studio Hall and remodelling of the office area. PFI doing work - KCC paying. We are challenging costs. We are getting our own costs based on drawings. | E34: Phase 6 - PFI lenders will not let us proceed with Phase 6 as it is too risky. Need a Deed of Variation or KCC Indemnifying Contractor. Has been escalated to KCC Commisioning. Reduced scope to remove structural modifications. Any elements not anble to complete this summer will not be undertaken until next summer. Budget increase due to works required to allow occupation while main scheme planning approval sought.
A35: Trinity Free School, Phase 1 | B35: Trinity Free School | C35: Esther Larner | D35: 2FE Multiple phases expansion. New build extension to front and back of current school, with internal remodelling to keep adjacencies within Secondary provision. Phase 1 - internal remodelling. | E35: Status 1 - Kier on site in July for Sept 18 Phase 1 delivery. RoD March 2018. Planning permission required and is a risk - currently expected November for Phase 2 Sept 19 delivery. Further delays in planning will require increased need for temporary accommodation which is not currently factored as a cost. Major works to create 14 bus drop off and pick up from the A25 road, to satisfy congested access roads. Phase 1 - all classrooms ready for beginning of term - contingency in place for dining.
A36: Trinity Free School, Phase 2 | B36: Trinity Free School | C36: Esther Larner | D36: Phase 2 - extension to front. | E36: Planning delay due to objections on highways grounds. Meeting with transport consultant and highways to review next steps. Planning is a risk but working with planning, highways teams and members. Consulted police and highways on reducing speed limit outside school. May require redesign as cannot reduce speed limit.
A37: Trinity Free School, Phase 3 | B37: Trinity Free School | C37: Esther Larner | D37: Phase 3 - extension to rear | E37: Planning delay due to Massing of block at rear. Alternative caldding solutions offered ot Planning, awaiting outcome. Meeting with transport consultant and highways to review next steps. Planning is a risk but working with planning and highways teams.
A38: Trinity Free School, Phase 4 | B38: Trinity Free School | C38: Esther Larner | D38: Phase 4 - internal refubs to undertake final re-organisation. | E38: Start on site following Phase 3 to create standard classrooms.
A39: Trinity Free School, Phase 5 | B39: Trinity Free School | C39: Esther Larner | D39: Phase 5 - final internals remodelling of internal classrooms to final adjacencies of subjects and installation of bus park. | E39: Remaining remodelling and completion of highways works.
A40: Chilmington Green PS | B40: Chilmington Green PS | C40: Emily Stapley | D40: New 2FE Primary School for Sept 2020 | E40: Status 1 - Feasibility undertaken and options with costs reported back to AEO. Land transfer issue creating risk - need land transfer by May 2019 otherwise school is not deliverable for September 2020. Temporary works required for 2019 at Jemmett Road site. Currently forecasting £100k overspend but VE being undertaken at every stage and scope being reviewed with AEO. Invicta Law have written to developer rejecting extension of time for handover. Floor plan agreed and working on elevations. Expecting planning submissionin October 2018.
A41: Preston PS | B41: Preston PS | C41: Natasha Petley | D41: 1 classroom extension with associated WC's. | E41: On programme and on budget. Handover 19th September 2018.
A42: Whitfield Aspen School | B42: Whitfield Aspen School | C42: Sue Meads | D42: Masterplan design for 14nr mainstream & 7nr SEN classrooms; Phase 1 (current) to deliver 6nr mainstream & 7nr SEN classrooms plus 3FE shared areas. | E42: Planning approved in March. Section 151 Form submitted on 19/6/18. Contract award has been delayed following Section 151. Start on site September 17th. Forecast completion July 2019. School can absorb 2018 bulge year until works completed. S106 land transfer still pending and Invicta Law are progressing. Land transfer will delay the project by minimum six weeks and push programme completion back to March 2019.
A43: Herne Bay Library | B43: Herne Bay Library | C43: Sue Meads | D43: Refurb of existing building addressing inclusive access issues, remodelling of first floor for new stakeholder. | E43: Stage 1 sign off ready to be submitted to Andrew Chauvin. Client instruction awaited to proceed to Stage 2 and 3 design. Proposing traditional procurement with Gen2 design. TFM are undertaking emergency health and safety measures on site - building survey undertaken by TFM and hammer testing required at front elevation and glass cracked in rear extension. Need confirmation as to whether we progress following Stage 1 sign off.
A44: Palmarsh PS | B44: Palmarsh PS | C44: Sue Meads | D44: Masterplan designed to 2FE mainstream; Phase 1 expansion to 1FE plus 2FE shared areas. Includes some remodel of existing school accommodation. | E44: EA have conceded and therefore the objection has been removed. Planning committee scheduled for September 2018. Two stage tender - stage 1 already awarded to Jenner. School can absorb extra pupils in September 2018 while works undertaken. AEO clear that the school do not need the expansion to cope with 2018/19. Delay in local housing delivery removing immediate pressure for school - as such delivery may be put back by AEO.
A45: Meadowfield School | B45: Meadowfield School | C45: Brian Hirst | D45: Standalone building - sports hall, with associated changing facilities, 6 general classrooms, music and art, with associated external landscaping and a car park extension. Phase 3a to include modular break out learning space and refurb of caretaker area to provide new staff room. Potential dining room expansion required. | E45: Tender evaluation complete and 'Approval to Prepare Contract' drafted. Due to uplift in specification and extended scope (agreeable under BB103) required given nature of the school there is a budget concern - we are currently forecasting at £1.1m over the budget. Dining room expansion feasibility to be complete under Modernisation budget. Will need RoD raised as scheme is over budget due to higher specification given nature of the school. The RoD process will also impact programme. School have contingency in place while build works undertaken.
A46: Hampton PS | B46: Hampton PS | C46: David Mounter | D46: In 2015/16 KCC delivered a single classroom extension at the north of the school to enable the school to take a bulge year. The school now require a Key Stage 2 classroom and corridor extension. | E46: Completed on time and on budget.
A47: Bysing Wood PS | B47: Bysing Wood PS | C47: Joanne Taylor | D47: Expand existing school from 1FE to 2FE with ancilliary facilities. Staff room extension, single storey 8 classroom, studio hall and internal alterations. | E47: Complete. Snagging items regarding children's centre being addressed.
A48: St George's CoE Foundation PS | B48: St George's CoE Foundation PS | C48: Joanna Ashby | D48: Phase 2 - 7 classrooms, LRC, Group Rooms and accessible WC. | E48: Gateway 4 sign off from Andrew Chauvin in July 2018. Contract signed. Works on sites from 3 August and currently on programme. There is an issue with a bund which was build during phase 1. Planning discharge on the bund condition - part taken and part remolded. Works on bund completed.
A49: Regis Manor PS | B49: Regis Manor PS | C49: Brian Hirst | D49: New classroom block, S278 new site access, car park for drop off and pick up/lay by for drop off. | E49: Conversion of library for September 2018 to provide for increased numbers through school appeals process and to mitigate against delay in Programme due to S278 negotiations. Original budget was £3m but due to forecast underpend this has been revised down to £2.580m Revised programme shows completion 30 October 2018. Agreed with school that they will use existing library with some minor adaptation work until building available. Further delays as DG not progressed power upgrade and trenching works. These should have taken place during school holidays but request for variation and proposed costs were delayed. Awaiting quotation from UKPN for additional power required. Additional car parking spaces currently on site have been incorrectly laid out. These works must complete before term begins next week and there is now some doubt this will happen so a contingency arrangement will be required. New pathway also needs to be completed. EoT request received for 8 weeks relating to the signing of temporary S278 Agreement which will be contested. Two variations issued without agreeing costs as DG continue to provide inadequate and unconvincing back up and the costs they have submitted are extremely high. CoW report indicates that the building itself is approximately two weeks behind the revised programme. Meeting arranged with Gen2, Gleeds QS amnd Darwin to discuss concerns with Valuations submited by Darwin Group and programme.
A50: Sittingbourne CC | B50: Sittingbourne CC | C50: Paula Malpeli | D50: 2FE expansion to include three storey block 18 classrooms, two storey block with general activity rooms, staffroom and meeting room, refurbishment of science block and new coach drop off/pick up parking area with eleven coach and taxi spaces and new access off A2. | E50: On programme and on budget. Handed over 2 buildings in August. External works completing for end of August. Handing over to allow school to move in. Galileo Science Buildings (4 science labs) complete for 29 October. Require a Development Agreement with Swale Academy Trust.
A51: Maplesden Noakes Secondary Expansion, bulge | B51: Maplesden Noakes Secondary Bulge | C51: Emily Stapley | D51: 1FE bulge expansion. | E51: Completed within time and under budget
A52: Langley Park PS | B52: Langley Park PS | C52: Joanna Ashby | D52: Phase 2 - 8 classrooms, Staff Room, Nursery (including Baby Change and toilets), Group Rooms and an accessible WC. | E52: Project handover on 22 June 2018 with zero snags. Osbourne are coming back over summer to fix some defects (leaking when it rains, gas installation and monodraft units) with Phase 1. Clerk of Works appointed for the defects work. Final Accopunt process underway. Getting reports from electrician regarding Phase 1 defects. AEO reported issue with car park raised by Governors. Nick Abrahams arranging meeting with Taylor Wimpey.
A53: Park Way PS | B53: Park Way PS | C53: James Drew | D53: Modular building with Afterschool Club, Music/Group Room and toilets. | E53: KCC Approved SMBF route in February 2018. Nil tender despite 3 contractors expressing an interest. This has been discussed with the Framework Manager, contractors and KCC Procurement. Procurement Plan recommending single source has been submitted. There is significant political pressure to deliver a new modular unit on site for September 2018. Likely delivery now by Christmas. Site visit with Lowrey in July to confirm location was suitbale and agree size unit availability. School visited St Boltophs to see refurbed Lowry product and school are on side.
A54: Harrietsham PS | B54: Harrietsham PS | C54: David Mounter | D54: To provide a 1FE extension to the existing school to encompass 6 new classrooms, 1 group room, 1 refurbed reception, re-location of reception and staff admin. Also to include hall & kitchen extension and new car park. Acquisition of land required to accommodate new car park - GET responsible for this. | E54: Library has been transfered to temporary classroom ready for Sept 18. Construction cost plan shows cost of £3.36m. Stage 4 cost plan shows £3.7m which takes us over budget - largely driven by requirement for two way access road. VE to be undertaken with Coombes i.e not attaching extension toi existing, loosing Group Room. Currently need temporary accommodation for Sept 19 which would add £90k minimum to the costs - meeting with education to discuss whether expansion continues or budget increased. Delay in land acquisition and planning casuing delay and cost. Denial of access to land impacting our ability to provide surveys required for planning. Planning will be earliest December 2018. Land aqcuisition long stop date end of March 19 although may happen sooner now that Gladman have waled away from residential plan. May require ROD increase if VE cannot find enough savings. Delay in land acquisition causing cost increase as temporary solutions are sought. Land owner may require access road to be provided before they sell us the land. Formal offer for land has been made. VE required with AEO and design team. PM liaisisng to AEO wc 24/9/18 to discuss VE options
A55: St Peters Tunbridge Wells PS (Hawkenbury) | B55: St Peters Tunbridge Wells PS (Hawkenbury) | C55: Emily Stapley | D55: Provision of new primary school. Relocation onto Hawkebury Farm as part of S106 Agreement with Berkeley Homes. New build to include associated external provision of playing fields, playgrounds, car park and parent drop off facility. | E55: PCSA signed and sealed. ROD of £6.9m however the land levels vary dramatically and so this is recorded as a risk. Currently running behind schedule as a result of PCSA delay Carillion/GT issues. Options for 2019 accommodation reviewed and interim solutiuon being designed. PM has highlighted concerns regarding the budget however reviewing requirement for sprinklers. As such this will be monitored very closely with QS input at each RIBA Gateway. Emily to update Jared on designs. The PM to update Jared and Roger Gough on progress on a monthly basis. Amendements for the S106 to be issueed to Barclays homes by 28th September. Not affecting the project, GT can go on site.
A56: Benenden PS | B56: Benenden PS | C56: Joanna Ashby | D56: Replacement primary school - new 1FE | E56: Contract signed 29 August. Starting stage 4. Clague are being novated over by Kier. Fencing up around site. Enabling works coompleted. On site target October 2018 and cpmpletion is 8 August 19. Preliminary meeting undertaken and Kier instructed they MUST have ground works done before winter. CoW and CDM in place. KCC contribution capped at £1m. Forecast overspend due to land purchase and school loan repayment. Andrew White resolving land transfer with Canterbury Diocese following Board Meeting.
A57: Platt PS | B57: Platt PS | C57: Erica Pavlis | D57: Replacement primary school block/new build - 1FE | E57: Feasibility submitted to ESFA on 08 August 2018. Review of feasibility undertaken and final feasibility case to be submitted by 7 Sept. Four options have been goven to the ESFA. KCC will only part fund option 4 (£1m). Gen 2 have applied for £125k fees allocation. New planning to be submitted by the end of Septmebr 2018. Regular project reviews underway with ESFA. The ESFA are to take the decision on which option(s) to progress.
A58: Northfleet Tech College (PFI) | B58: Northfleet Tech College (PFI) | C58: TBC | D58: 1FE expansion required for Sept 2021. | E58: Status 1 - Feasibility for 1 FE being undertaken. Feasibilities for 1FE being undertaken and due back September 2018. No temporary requirement for 2018. Expansion required for 2021. Ian will be speaking to school in September to discuss moving on.
A59: St John's Secondary School (PFI), Phase 1 | B59: St John's Secondary School (PFI) | C59: TBC | D59: Phase 1 - Double Class modular for Sept 2018 | E59: Status 1 - Modular is in place and fit out underway.
A60: St John's Secondary School (PFI), Phase 2 | B60: St John's Secondary School (PFI) | C60: TBC | D60: Phase 2 - 1FE expansion required for Sept 2020 | E60: Status 1 - Feasibility to be refreshed following consultation with school and due to be completed mid September.
A61: Thamesview School (PFI), Phase 1 | B61: Thamesview School (PFI) | C61: TBC | D61: Phase 1 - Internal alterations to create two classrooms for Sept 2018 | E61: Status 1 - Paint job not good enough quality on first inspection and needs to be redone. Has been resolved and to be signed off by David Harris.
A62: Thamesview School (PFI), Phase 2 | B62: Thamesview School (PFI) | C62: TBC | D62: Phase 2 - 2FE expansion required for Sept 2020 | E62: Status 1 - Feasibility being refreshed following consultation between school and AEO on preferred options. Due for completion in Septmebr 2018.
A63: Ursuline College, Phase 1 | B63: Ursuline College | C63: Sue Meads | D63: Phase 1 - Internal alterations to expand dining room | E63: Status 1 - Listed building control (Grade 2 Listed Building) in preparation and due for submission in September - Stage 4 design expected August 31st. No planning required for Phase 1 refurb. Temporary solution in place for September 18 dining requirement while phase 1 is completed. Provisional January start on site for Phase 1 refurb. 12th July meeting with loss adjuster results in decision to proceed immediately with flood repair work which gives the school back two useable spaces from September and work will link with refurb scope.
A64: Ursuline College, Phase 2 | B64: Ursuline College | C64: Sue Meads | D64: Phase 2 - 2FE expansion required for Sept 2019 | E64: Status 1 - Phase 2 planning is waiting for highways mitigation to be finalised prior to submission. AEO in consultation regarding land provision at King Ethlebert's for shared drop off area - Coastal Academy Trust agree to land use subject to HoT. Costs related to Highways Mitigation (drop off) represent budget risk. Cannot progress Phase 2 designs until we have transport statement referencing the Drop Off. Current cost increase due to extra works related to Listed Building and Foundation designs. Programme Budget set at £4.6m - RoD is £3m. Red risk given need to raise RoD. Will need to be on site early for strip out of existing building.
A65: Judd School, RS classroom | B65: Judd School | C65: Erica Pavlis | D65: 1FE expansion from September 2019: RS Building expansion. Internal remodelling and expansion to provide new RS classroom space. | E65: Status 1 - Planning submission in July 2018. Resident objections regardin footpath pedestrian exit at rear of school. Planning is therefore a risk. Funding agreement from AEO and then tender process to begin in September. EOI has gone out back 24/09/18, stage 1 goes out 1st October . All design information is ready for the tender . Stages 2 expected to go out 5th November returns 30th November . Contract award expected January 2019
A66: Judd School, remodelling | B66: Judd School | C66: Erica Pavlis | D66: 1 FE expansion from September 2019: Internal works to convert dining space into staff area and library space into music room. External demolision of old dining space. External and MUGA. | E66: Status 1 - VE exercise underway with school as cost plan came in £260k over budget. Planning submission due July 2018 but cost reduction exercise currently underway with school to bring project back into agreed budget. Planning submission July 2018.
A67: Bennett Memorial School | B67: Bennett Memorial School | C67: Janet Streek | D67: 2FE Expansion for Sept 2019 | E67: Status 1 - Preparation of planning application. Janet undertaken analysis of project needs and costs. School has all of the rooms they need and they do not need a hall (until 2023 and 20sq m). The revised high level figures now show a funding shortfall of £519,683.31 . AEO confirmed that the School are now willing to make a contribution of £225k. The Governing Board are further considering an additional contribution sum of £81k to allow construction of the Hall within the project works.
A68: Headcorn PS | B68: Headcorn PS | C68: Paula Malpeli | D68: 2 storey teaching block with hall extension, playground and car park works. | E68: DLP. Kier are in Headcorn this week doing defetcs. Paula to brief Jared on Headcorn issue.
A69: The Wyvern School | B69: The Wyvern School | C69: Paula Malpeli | D69: 2 storey 6 classroom building, reception lobby and car park. | E69: DLP.
A70: Swadelands/The Lenham School | B70: Swadelands/The Lenham School | C70: Erica Pavlis | D70: PSBP funded. Replacement Science Block, increasing science provision. | E70: Baxalls appointed under a PCSA to undertake detailed Stage 4 design. Costs underwritten by ESFA. Early works diversion of Gas Main underwritten by ESFA. Gas diversion order has been placed with SGN and timeline to be confirmed. Stage 4 design work progressing but slightly delayed as VE was required on design - section 73 amendment required as ESFA would not pay for hard standing car parking - only grass. As such design team has been focused on the section 73 amendment - not the design. Time is a concern given the state of the existing science building. ESFA funding to be agreed after Stage 4 design. ESFA are already scrutinising cost heavily. Time and budget risks given previous experience with ESFA. Also working through contract issues with Baxalls - 2016 Amendments.
A71: Spires, Phase 1 | B71: Spires | C71: Brian Hirst | D71: Phase 1: Highways works | E71: Phase 1: Planning condition. Gas valve found under footpath which we are using as part of our road widening - works will require a 3 week road closure to lower the valve rather than divert. Arranging meeting with planners and highways to discuss options. Road closure means no access to school - SGN have agreed work can be undertaken during October half term.
A72: Spires, Phase 2 | B72: Spires | C72: Brian Hirst | D72: Phase : Science Block Refurb | E72: Phase 2: Internals due for September 2018 handed over 31 August.
A73: Spires, Phase 3 | B73: Spires | C73: Brian Hirst | D73: Phase 3: New Science Block | E73: Complete
A74: Spires, Phase 4 | B74: Spires | C74: Brian Hirst | D74: Phase 4: Modular Units | E74: Phase 4: Planning application to be submitted in September for temporary. Tender to be run concurrently after Gateway 3. Completion for temporaries scheduled February 2019.
A75: The Archbishops School | B75: The Archbishops School | C75: David Harris | D75: New 6 classroom modular building and demolition of existing 4 classroom pre-fab building. | E75: Providing 6 new classrooms - demoltion of 4 old classrooms once modular unit in place. On site, completion end of November half term. The school has roofing works going on, from 1st October for two weeks, the scaffolding is in the way of demoiltion which is a risk to the project being delay.James Drew to keep Ben and Jo updated incase it is delayed
A76: Darenth Community Primary School | B76: Darenth Community Primary School | C76: David Harris | D76: New modular teaching block to replace existing block and library buildings. | E76: Ashby and Croft have delivered and installed 3 temporary classrooms have been fitted out. Handover completed 24th July 2018. Demolition completed. Approval to draft contract for main permenant modular building has been signed and will be delivered by Module-ar. Procurement on Amendments completed and sent to contractor.
A77: Faversham Library | B77: Faversham Library | C77: David Harris | D77: Internal alteration and refurbishment to provide a new Good Day Programme (Special Needs) Hub Space. | E77: Internal refurb. Started on site 17 September. 6 week programme. In contract with Spencer Francis. The library service have asked Spencer Franics to pack up all their books and to store them, Library will fund this (3K).
A78: Dartford Sexual Health Clinic | B78: Dartford Sexual Health Clinic | C78: David Harris | D78: Fit out of shell unit as Sexual Health Clinic. | E78: All variations have been agreed and near to handover (04/10/2018) Variations driven by client service end user - forcing budget and time up. Client is paying for all variations. Programme running late due to the variations which have now been agreed and new programme with time extension agreed by all parties
A79: Pent Valley - Sharman Block | B79: Pent Valley - Sharman Block | C79: David Harris | D79: Internal alterations and refurbishment of an existing modular building for use as a Pupil Referal Unit. | E79: August completion required. Tender valuation soon and contract award due 19 July. Start on site 30th July, completion 31st October . Variations due to the scope of works have been increase by the end user.
A80: Invicta Car Park | B80: Invicta Car Park | C80: David Harris | D80: Structural repairs and refurbishment of Invicta House Car Park. | E80: Structural repairs and refurb. Tenders returned and contract award proggrammed for 16th July. Start on site 13 August and on site for 8 weeks.
A81: Kent History and Library Centre | B81: Kent History and Library Centre | C81: Janet Streek | D81: Defects | E81: Completed 2012. Reviewing cladding on apartment blocks with the original developer Bouygues UK. Final report due 20th July which will determine any further works. May require some stragetic comms and management. Fire officer attended site on 21/09/2018. Checked everything on site . Report will be sent over October 2018, JS will email KCC and then hold a meeting to take forward recommended actions with all parties.
A82: St Peter's House | B82: St Peter's House | C82: David Harris | D82: Internal alterations and refurbishment. | E82: Complete - DLP.
A83: West Borough PS | B83: West Borough PS | C83: David Harris | D83: Internal alterations and construction of a new staff room. | E83: Complete - DLP.
A84: Weald PS | B84: Weald PS | C84: Natasha Petley | D84: Extending the existing infant block and school house due to existing accommodation being deficient in key areas. | E84: Complete - DLP.
A85: North Farm WTS | B85: North Farm WTS | C85: Natasha Petley | D85: Insurance claim due to the recent fire. | E85: Complete - DLP.
A86: Ryarsh PS | B86: Ryarsh PS | C86: Joanna Ashby | D86: Construction of a new school hall, children's wc's, storage & corridor. Demolition of the existing corridor and internal refurbishment. | E86: . Project within budget but scope reduced in consultation with AEO. Highpoint on site and progressing well.
A87: Joy Lane Primary School Phase 2 | B87: Joy Lane Primary School Phase 2 | C87: Janet Streek | D87: Project involved works to 2 sites (Primary School and the site of the former Ladesfield Care Home). Works included 2 storey extension to provide 6 additional classrooms to the 3FE school, external play areas, staff and parent parking with localised drop off area, demolition of former care home to create new link roadway infrastructure to act as exit route to alleviate traffic congestion on Joy Lane. | E87: Practical completion for school build achieved September 2017. Practical completion for new roadway March 2018. Neighbour complaining about water run into his garden. Andrew Chauvin is leading on the liasion.
A88: Avenue of Remembrance | B88: Avenue of Remembrance | C88: Janet Streek | D88: Major refurbishment project involving demolition to internal walls to create open plan spaces with new toilet provisions, meeting rooms, case conference suites, contact rooms, kitchen facilities on each floor and external play area space for contact use. Works also included the reconfigeration and refurbishment of Sittingbourne Library to create a new location for the Registrars Office. | E88: Practical completion achieved December 2017. Health and Safety issue reported. Social Services client has created 4 separte incidents of threat to staff including throwing furniture at the glass partion at reception. Has been escalated to Clare Jameson on 11 July 2018. The boy has been removed for visiting , end of defects December 2018.
A89: Coxheath Primary School | B89: Coxheath Primary School | C89: Joanna Ashby | D89: Double classroom modular unit, with toilets, lobby and storerooms. | E89: Complete - DLP. This project was originally due to be completed in October 2017, but due to issues with gas (which required SGN works) the date was revised to February 2018. Handover took place on 19th February 2018.
A90: Wouldham PS | B90: Wouldham PS | C90: Joanne Taylor | D90: New 2FE school and external works. | E90: Complete - DLP.
A91: Wentworth PS | B91: Wentworth PS | C91: Joanne Taylor | D91: New two storey teaching block. | E91: Complete - DLP.
A92: Ridgeview School | B92: Ridgeview School | C92: Esther Larner | D92: New build Special School to include the new school building together with landscaping and car parking. Together with a separate staff car park and s278 works to Upper Haysden Lane. | E92: Complete - DLP.
A93: Weald of Kent Grammar | B93: Weald of Kent Grammar | C93: Esther Larner | D93: New Grammar Annexe. | E93: Complete - DLP.
A94: Finberry PS, New PS | B94: Finberry PS | C94: Emily Stapley | D94: New Primary School. | E94: Complete - DLP.
A95: Birchington PS | B95: Birchington PS | C95: Emily Stapley | D95: New two storey teaching block. | E95: Complete - DLP.
A96: South Borough PS | B96: South Borough PS | C96: Emily Stapley | D96: Two storey building with six classrooms. | E96: Complete - DLP.
A97: Oakley PS (Nursery) | B97: Oakley PS (Nursery) | C97: Emily Stapley | D97: New SEN nursery provision. | E97: Complete - out of defects.
A98: Southborough Hub | B98: Southborough Hub | C98: Andrew Fleming | D98: New build community hub. | E98: Land sale completed. PCSA signed and completed July 11th. 40 week Pre-Construction contract but need this to be shortened to pick up time. VE required with contractor. Only got 1.3% contingency in budget. Delay in agreeing PCSA has pushed programme. Awaiting cost plan from Baxalls and then NHS can submit Business Case at end of Stage 4. NHS must submit Busienss Case in February 2019 otherwise NHS do not secure their funding. KCC fund project and claim back from other partners i.e. NHS. Will reuqire delivery agreement between the three Local Authorities (KCC, TWBC and Southcliffe PC). Time is a high risk due to the significant number of sign offs required from various partner organisations - total governance plan being overlayed onto Programme. Awaiting costed redesign. New budget issues by Jonathan White. Development Agreement and NHS Business Case are risks to Programme. The Programme can not be shorten, key miles set out RIBA 3 . All parties need to agree the VE's , we meet the brief and budget.Southborough town council meeting 27th September to be voted, then goes to the project board then to planning. Minor works contract for Baxell for enabling works is required to start on site February 2019. Licences are being chased by Jacqueline as they are behind. Specification is required with the RIBA stage 4 information . Clark of works is required for the works, 50/50 appointment between KCC and Crest. Crosing is required by Highways ,
A99: Dover Discovery Centre | B99: Dover Discovery Centre | C99: Andrew Fleming | D99: Refurbishment - current building in a poor state of repair. | E99: Tender results reviewed. Architects and M&E came in for clarifications meeting 11/9.(Pallings have been recommended) Architect is Principle Designer and BIM Manager. QS and M&E consultant make up core design team. Dover Council approached regarding joining up projects but this would change strategic definition of project. Palling are going to be appointed on stage by stage process. Works order will be given stage by stage but a overall contract (Ace Contract required) will be issued . Want to review the scope to determine the status of Paulton's Social Servcies centre. Programme options and whether Paulton's is in or out.
A100: Queen's House Folkestone to Cheriton House | B100: Queen's House Folkestone to Cheriton House | C100: Andrew Fleming | D100: Refurbishment - to provide new facility for staff currently in Queens House. | E100: Services moved in and site is live. Completion of handover and compliance documentation is underway.
A101: Coroners Phase 2 | B101: Coroners Phase 2 | C101: Andrew Fleming | D101: Refurbishment | E101: Phase 1 complete. Phase 2 agreed at PAG and awaiting final sign off. Stage 2 Gateway Signed off 26 June 2018. Need formal written confirmation that Cantium House can be decanted. Need Gen2 Commission to move beyond RIBA Stage 2. Project Group meeting held 11th July (Mike Overbeke on behalf of Board) and RoD for decant and PAG approval. Traditional route for procurement agreed. Phase 3 on hold until funding stream identified. Scope and Budget on track. Time is an issue due to delays in Stage 2 sign off. RIBA 3 works continuing and Satge 3 Gateway end of October . Instructed not to submit planning. Coroners looking at Oakwood House today 27/09/2018 then a decision will be made.
A102: Barton Court Free School | B102: Barton Court Free School | C102: Chris Wrench | D102: New build 5FE Free School on Former Chaucer site. | E102: Initial approval to proceed from ESFA. Gleads appointed to undertake feasibility and client workshops underway over summer - interim feasibility produced. Project currently on Programme. Budget to be determined following feasility study. Asbestos survey scheduled within programme in September now that survey quotes received. Early engagement with utility suppliers for security on what will be required and any applications needed.
A103: St Andrew's PS | B103: St Andrew's PS | C103: Emily Stapley | D103: New 2FE Primary School on land adjacent to housing development in Paddock Wood. | E103: Letter of support provided by Trust and awaiting confirmation of Local Delivery approval. Principal's meetings underway and target completion agreed for June 2021. HoT to be agreed and signed but require input from Persimmon. Budget to be confirmed following feasibility - ESFA funded. Gleeds to undertake feasibility. Early surveys underway.
A104: Dover Girls Grammar | B104: Dover Girls Grammar | C104: N/A | D104: The demolition of 2 classroom mobiles and the construction of a new block providing 3 science laboratories, a group room, preparation room and ancillary facilities. School managed. Request from David Adams for more funding as Tender exceeded budget figure. | E104: SCHOOL MANAGED
A105: St George's (Gravesend) | B105: St George's (Gravesend) | C105: N/A | D105: 1FE expansion from September 2019 | E105: Status 1 - Feasibility completed. School are combining expansion with successful CIF bid. £2.6m likely to be allocated to the school.
A106: Wickhambreaux | B106: Wickhambreaux | C106: N/A | D106: 0 | E106: SCHOOL MANAGED
A107: Stone Bay School | B107: Stone Bay School | C107: N/A | D107: 0 | E107: SCHOOL MANAGED
A108: Maidstone Boys Grammar | B108: Maidstone Boys Grammar | C108: N/A | D108: 0 | E108: SCHOOL MANAGED
A109: Lawn PS | B109: Lawn PS | C109: N/A | D109: 0 | E109: ON HOLD - delay in housing numbers. All relies on how many pupils are coming out of Northfleet Embankment development.
A110: Dunton Green PS | B110: Dunton Green PS | C110: N/A | D110: 0 | E110: ON HOLD - delay in housing numbers. Have not seen numbers coming through from Sevenoaks.
A111: Copperfield Academy | B111: Copperfield Academy | C111: N/A | D111: 0 | E111: ON HOLD - delay in housing numbers. Likely to stop. Will know more after 22nd August.
A112: Deal Parochial PS | B112: Deal Parochial PS | C112: N/A | D112: 0 | E112: ON HOLD - until 2020 due to delay in housing coming forward.
A113: Marden PS | B113: Marden PS | C113: N/A | D113: 0 | E113: ON HOLD - awaiting confirmation of need from CYPE.
A114: Lady Joanna Thornhill PS | B114: Lady Joanna Thornhill PS | C114: N/A | D114: 0 | E114: ON HOLD - delay in housing numbers.
A115: Sellindge PS | B115: Sellindge PS | C115: James Drew | D115: 3 classroom new block and car park | E115: Delay in housing numbers likely until 2020. Site visit undertaken with Emily, Bailey's and Lee Round - aiming for March 2020 delivery. Bailey's updating costs from initial feasibility. Project Manager in discussion with developer regarding land transfer. ROD is for £850k. David Adams does not want to increase budget, therefore alternative cheaper specific and build solution being reviewed.
A116: Martello Primary | B116: Martello Primary (East Folkestone) | C116: Joanne Taylor | D116: New Primary School for Turner Academy Trust. | E116: Complete - Defects outstanding. Water supply is being provided at 23 degrees. The Utility Company have confirmed that their statutory obligation is to provide water no hotter than 28 degrees so strictly speaking they are fulfilling their obligation. We have advised our Statutory Compliance manager Steve Hamilton and he will undertake a site visit next week to inspect. The playing field is currently unusable. Given the contentious atmosphere around the school from the beginning of the planning process, the decision was taken by all parties involved to limit the lorry movements to and from the site by retaining the spoil. This material was laid on top of the playing field which has caused draining issues. The work to provide land drainage is going to be undertaken by Coombs. There is still some design work to undertake in order to finalise the design. Given the nature of the work to be undertaken and the need to remove soil, the optimum time to undertake the work would be in September and would take about eight weeks. However we need to determine whether that is acceptable to the school.
A117: Brockhill Park | B117: Brockhill Park Performing Arts College
A118: Bromstone Primary | B118: Bromstone Primary School, Broadstairs
A119: Churchill C | B119: Churchill C of E (Voluntary Controlled) Primary School
A120: Former Ashford | B120: Former Ashford South Primary Sch
A121: Hextable Primary | B121: Hextable Primary School
A122: Langley Park | B122: Langley Park
A123: Lansdowne Primary | B123: Lansdowne Primary School
A124: Maidstone St | B124: Maidstone St John's CEPS
A125: Minster in | B125: Minster in Sheppey Primary School
A126: Queenborough School | B126: Queenborough School and Nursery
A127: Repton Manor | B127: Repton Manor Primary School
A128: Rose Street | B128: Rose Street Primary School
A129: Singlewell Primary | B129: Singlewell Primary
A130: Slade Primary | B130: Slade Primary School
A131: South Borough | B131: South Borough
A132: St George's | B132: St George's Foundation Primary School, Broadstairs
A133: The Judd | B133: The Judd School
A134: Thistle Hill | B134: Thistle Hill School
A135: Valley Invicta | B135: Valley Invicta Primary School at Leybourne Chase
A136: Weald Community | B136: Weald Community Primary School
A137: West Minster | B137: West Minster Primary School
A138: Westcourt Primary | B138: Westcourt Primary School
A139: Westcourt Primary | B139: Westcourt Primary School Phase 2
A140: White Cliffs | B140: White Cliffs Primary College for the Arts
A141: Whitfield and | B141: Whitfield and Aspen School
A142: Whitstable Junior | B142: Whitstable Junior School
A143: Warden House | B143: Warden House Primary
A144: Westlands Secondary School | B144: Westlands Secondary School | C144: N/A | D144: 1FE Expansion for Sept 2019 | E144: Status 1 - Curriculum Analysis completed. School have submitted a proposal to undertake project directly.
A145: Royal Harbour School / Laleham Gap | B145: Royal Harbour School / Laleham Gap | C145: James Drew | D145: Relocation of STLS to Laleham Gap | E145: Progressing well. Building will complete by 28/9/18 with highway works to be completed thereafter within November
A146: St Gregory's Secondary School | B146: St Gregory's Secondary School | C146: Paula Malpeli | D146: 1FE expansion - 6FE to 7FE school. New sports hall and a two storey block of classrooms and science labs. | E146: Status 1 - VE exercise has brought down the budget to £6.2m - under budget by £400k. Planning submitted for 2019 expansion. Access rights need to be confirmed over TWBC Leisure Centre land. Programme being confirmed with design team so future RIBA stages are TBC. Main build forecast for February 2020 following the delay for VE costs. Potential option to run tender alongside planning, and given 3+ design provide 6 weeks for Stage 4 design to improve programme. Temporary unit on site for 2018 occupation. Andrew White update on access arrangements.
A147: Tunbridge Wells Boys School | B147: Tunbridge Wells Boys School | C147: Paula Malpeli | D147: 1FE expansion. New sports hall with new single storey block of 13 new (9 GTA, 1 Food Tech and 3 ICT classrooms). Refurb of gym and staff room allows for extra dining room seating and cold servery. | E147: Post VE it appeared that the estimated project cost had reduced to just £80k above budget, and on this basis, with the proviso that further savings were sought during the tender period, the project was given the go-ahead to proceed by AEO. SSEF application potentially the ESFA could fund the whole or part of the project. Planning has been submitted in July for 2019 expansion - access rights need to be confirmed over TWBC Leisure Centre land. Internal works forecast completion for August 2019 for interim solution while main works being completed - forecast February 2020. Delay due to extended Stage 3 Design to VE costs down. Potential option to run tender alongside planning, and given 3+ design provide 6 weeks for Stage 4 design to improve programme.
A148: Skinners School Expansion | B148: Skinners School Expansion | C148: N/A | D148: 0.3FE Expansion (school managed) | E148: Status 1 - Funding agreement in place for School Managed project
A149: Ebbsfleet Green PS | B149: Ebbsfleet Green PS | C149: Joanna Ashby | D149: New 1FE with 2FE Infrastructure | E149: Status 2 - Pre Feasibility. Land getting handed over in August. Needs delivery by 2020. Jo and Ben to attend next meeting. We can get license to get surveys on track. Desktop study to be completed September
A150: The Limes / Westcourt Interim | B150: The Limes | C150: Emily Stapley | D150: Relocate PRU for Dartford and Gravesend into ex care home - The Limes. Ineterim works to provide Key Stage 4 pupils into West Court Skills Centre in Gravesend. Moving CLS from West Court and PRU in. | E150: Main works on hold while KCC review the options for future location. Interim measures undergoing Stage 4 design. Need to be very cautious about how this is discussed in front of designated sponsor until we are clear what is happening to teh service. All comms through Ian Watts.
A151: Finberry PS, 1FE | B151: Finberry PS | C151: Joanna Ashby | D151: 1FE expansion from September 2020 | E151: Status 2 - Planning Approved. School was constructed with 1FE Classes and 2FE Infrastructure. Project to add the extra seven classes to the 2FE infrastructure. Need to appoint Stage 4 design work to be completed by end of 2018 so that if Chilmington Green land transfer is delayed further and pupil places are required elsewhere, this project can be brough forward as it is the same academy trust. David Adams has requested to take to RIBA Stage 4
A152: St Nicholas PS | B152: St Nicholas PS | C152: James Drew | D152: 0.1FE Expansion for September 2020 | E152: Status 2 - Feasibility Complete. Options to be discussed with school and AEO to assess best scenario. Internal refurb or modular solution proposed. Next step is to agree best option and proceed to planning if required - PD may be an option. Can be taken to Stage 4 now so that it is ready to construct when needed.
A153: Towers (North) School | B153: Towers (North) School | C153: Brian Hirst | D153: 30YR7 places for September 2020 | E153: Status 2 - Curriculum Analysis Complete. Can be progressed now if required although awaiting land transfer for Chilmington Green Secondary. Need dependant on Chilmington Green and housing numbers.
A154: Sunnybank PS | B154: Sunnybank PS | C154: Brian Hirst | D154: 0.5FE Expansion but also looking to relocate the Infant site onto the Junior site for Sept 2020 | E154: Status 2 - Feasibility Completed. Reported back to the school and AEO. Preferred option is to combine the infant and junior school on the junior site - including the nursery. Email from AEO on 12/07/18 stating that Keith Abbott has given order to progress detailed feasibility up to planning.
A155: Former RSD | B155: Former RSD | C155: TBC | D155: 6FE New School | E155: Status 1 - Survey work being lined up to assist with land acquisition and design team being softly mobilised to enable swift start. Cost plan being reviewed by Gleeds and report issued to Andrew Chauvin. Alternative ' Newington Proposal' being reviewed
A156: Hermitage Lane PS | B156: Hermitage Lane PS | C156: TBC | D156: New 2FE Primary School | E156: Status 2 - Options Appraisal Completed. Kick off meeting with Developer held on 24/5/18. All depends on the progress of the housing development and the contributions from the developers along the road (Bovis and Croudace). Plan would be to build 1FE Primary with 2FE infrastructure. Feasibility due for Stage 2 in September 2018.
A157: Swanley and Hextable PS | B157: Swanley and Hextable PS | C157: TBC | D157: 1FE Expansion - Allowance to expand an existing school. | E157: Status 3 - CYPE have proposed defferal until at least 2023, due to housing not coming forward as originally planned
A158: St Gregory's PS | B158: St Gregory's PS | C158: Sue Meads | D158: 0.5FE Expansion | E158: Status 3 - CYPE have proposed defferal until at least 2023, due to housing not coming forward as originally planned
A159: Quinton Road Secondary School | B159: Quinton Road Secondary School | C159: Esther Larner | D159: 4FE with 8FE Infrastructure New School | E159: Status 3 - CYPE have proposed defferal until at least 2023, due to housing not coming forward as originally planned
A160: Skinners Kent Academy | B160: Skinners Kent Academy | C160: TBC | D160: 6FE Expansion on Site 3 | E160: STATUS 1 Minor 6FE required for 21/22. KCC have requested this to proceed
A161: Tonbridge and Malling Area, 3FE | B161: Tonbridge and Malling Area | C161: TBC | D161: 3FE of expansions of existing schools | E161: Status 3 - CYPE have proposed defferal until at least 2022, due to housing not coming forward as originally planned
A162: Tonbridge and Malling Area, 2FE | B162: Tonbridge and Malling Area | C162: TBC | D162: 2FE of expansion of existing schools | E162: Status 3 - CYPE have proposed defferal until at least 2022, due to housing not coming forward as originally planned
A163: Pent Valley - Demolition | B163: Pent Valley Demo | C163: Emily Stapley | D163: Potential demolition of three ex-Pent Valley buildings - nursery and children's centre. | E163: Asbestos survey instructed as part of feasibility and report due week beginning 17th September. Full feasibility due to be complete for end of November as we will need to tender for demolition. Tender process to begin end of September. ESFA are only funding one of the three blocks - no funding alloctaed for other two blocks by KCC currently.
A164: New Ash Green Primary | B164: New Ash Green Primary | C164: David Harris | D164: Internal refurb to provide 1 larger classroom and 2 smaller classrooms. Required by September 2018. | E164: On budget and on time/ increase due to purchase of white boards
A165: Simon Langdon Boys | B165: Simon Langdon Boys | C165: TBC | D165: Feasibility reuqired for new classrooms. | E165: Feasibility
A166: Simon Langdon Girls | B166: Simon Langdon Girls | C166: TBC | D166: Feasibility reuqired | E166: Feasibility
A167: Meadowfield School, Dining Room | B167: Meadowfield School | C167: TBC | D167: Feasibility reuqired for dining room extension linked to BN expansion. | E167: Feasibility

Sheet Title Tracker (hidden)
A1: REPORT ON TITLE TRACKER | H1: IDENTIFIED ACTIONS | M1: RESPONSE
A3: Discrete Description | B3: PROGRAMME | C3: PROJECT | D3: AREA | E3: PROJECT MANAGER | F3: DESCRIPTION OF WORKS | G3: Report on Title Received (Y/N) | H3: Acquisition | I3: Disposal of Land | J3: Access Agreements | K3: Wayleaves | L3: Development Agreement | M3: RESPONSIBLE PERSON | N3: On time? | O3: TARGET COMPL | P3: ACTUAL COMPL
A4: Dartford Girls Grammar | B4: =VLOOKUP($A4,MASTER_DATABASE,2,0) -> North | C4: =VLOOKUP($A4,MASTER_DATABASE,3,0) -> 2 classroom extension | D4: =VLOOKUP($A4,MASTER_DATABASE,4,0) -> 625000 | E4: =VLOOKUP($A4,MASTER_DATABASE,5,0) -> 598000 | F4: =VLOOKUP($A4,MASTER_DATABASE,8,0) ->  | N4: =_xlfn.IFS(TODAYS_DATE>P4,"C",P4>O4,"L",P4<=O4,"Y") ->  | O4: 2018-09-30 | P4: =O4 -> 2018-09-30
A5: St George's PS (Gravesham) | B5: North | C5: New 1FE with 2FE Infrastructure | D5: 7100000 | E5: 6571498.71 | N5: =_xlfn.IFS(TODAYS_DATE>P5,"C",P5>O5,"L",P5<=O5,"Y") ->  | O5: 2018-09-30 | P5: =O5 -> 2018-09-30
A6: St Johns Catholic PS, Phase 1 | O6: 2018-09-30 | P6: 2018-09-30
A7: Portal House | O7: 2018-09-30 | P7: 2018-09-30
A8: St Johns Catholic PS, Phase 2 | O8: 2018-09-30 | P8: 2018-09-30
A9: St Johns Catholic PS, Phase 3 | O9: 2018-09-30 | P9: 2018-09-30
A10: Wilmington Academy, Phase 1 | O10: 2018-09-30 | P10: 2018-09-30
A11: Wilmington Academy, Phase 2 | O11: 2018-09-30 | P11: 2018-09-30
A12: Wilmington Academy, Phase 3 | O12: 2018-09-30 | P12: 2018-09-30
A13: Wilmington Academy, Phase 4 | O13: 2018-09-30 | P13: 2018-09-30
A14: Wilmington Academy, Phase 5 | O14: 2018-09-30 | P14: 2018-09-30
A15: Wilmington Academy, Phase 6 | O15: 2018-09-30 | P15: 2018-09-30
A16: Wilmington Grammar, Phase 1 | O16: 2018-09-30 | P16: 2018-09-30
A17: Wilmington Grammar, Phase 2 | O17: 2018-09-30 | P17: 2018-09-30
A18: Wilmington Grammar, Phase 3 | O18: 2018-09-30 | P18: 2018-09-30
A19: Wilmington Grammar, Phase 4 | O19: 2018-09-30 | P19: 2018-09-30
A20: Mayfield Grammar, Phase 1 | O20: 2018-09-30 | P20: 2018-09-30
A21: Mayfield Grammar, Phase 2 | O21: 2018-09-30 | P21: 2018-09-30
A22: Mayfield Grammar, Phase 3 | O22: 2018-09-30 | P22: 2018-09-30
A23: Mayfield Grammar, Phase 4 | O23: 2018-09-30 | P23: 2018-09-30
A24: Mayfield Grammar, Phase 5 | O24: 2018-09-30 | P24: 2018-09-30
A25: Mayfield Grammar, Phase 6 | O25: 2018-09-30 | P25: 2018-09-30
A26: Brent PS | B26: North | C26: 1FE - multiple phase expansion | D26: 4600000 | E26: 4323325.69 | O26: 2018-09-30 | P26: 2018-09-30
A27: Edenbridge PS | O27: 2018-09-30 | P27: 2018-09-30
A28: Seal CoE PS | B28: North | C28: 1FE expansion with ancillory facilities plus replacement of exisitng mobile accommodation and car park upgrade to Seal Parish Council | D28: 2980000 | E28: 4700000 | O28: 2018-09-30 | P28: 2018-09-30
A29: Temple Hill PS | O29: 2018-09-30 | P29: 2018-09-30
A30: Northfleet School for Girls | B30: North | C30: 1FE expansion | D30: 4000000 | E30: 3991812.38 | O30: 2018-09-30 | P30: 2018-09-30
A31: Craylands School, Phase 3 | O31: 2018-09-30 | P31: 2018-09-30
A32: Craylands School, Phase 5 | O32: 2018-09-30 | P32: 2018-09-30
A33: Craylands School, Phsae 6 | O33: 2018-09-30 | P33: 2018-09-30
A34: Trinity Free School, Phase 1 | O34: 2018-09-30 | P34: 2018-09-30
A35: Trinity Free School, Phase 2 | O35: 2018-09-30 | P35: 2018-09-30
A36: Trinity Free School, Phase 3 | B36: =VLOOKUP($A36,MASTER_DATABASE,2,0) ->  | C36: =VLOOKUP($A36,MASTER_DATABASE,3,0) ->  | D36: =VLOOKUP($A36,MASTER_DATABASE,4,0) ->  | E36: =VLOOKUP($A36,MASTER_DATABASE,5,0) ->  | F36: =VLOOKUP($A36,MASTER_DATABASE,8,0) ->  | N36: =_xlfn.IFS(TODAYS_DATE>P36,"C",P36>O36,"L",P36<=O36,"Y") ->  | O36: 2018-09-30 | P36: 2018-09-30
A37: Trinity Free School, Phase 4 | O37: 2018-09-30 | P37: 2018-09-30
A38: Trinity Free School, Phase 5 | O38: 2018-09-30 | P38: 2018-09-30
A39: Chilmington Green PS | B39: South | C39: New 2FE Primary School | D39: 7200000 | E39: 8400000 | O39: 2018-09-30 | P39: 2018-09-30
A40: Preston PS | B40: South | C40: 1 classroom extension with associated WC's. | D40: 310000 | E40: 261362.9 | O40: 2018-09-30 | P40: 2018-09-30
A41: Whitfield Aspen School | B41: South | C41: 2FE New Mainstream and SEN school | D41: 7990000 | E41: 7447500 | O41: 2018-09-30 | P41: 2018-09-30
A42: Herne Bay Library | O42: 2018-09-30 | P42: 2018-09-30
A43: Palmarsh PS | B43: South | C43: 1FE expansion. Note, forecast cost is for part accommodation | D43: 2200000 | E43: 1267008 | O43: 2018-09-30 | P43: 2018-09-30
A44: Meadowfield School | B44: East | C44: 1 FE expansion | D44: 4792000 | E44: 4610000 | O44: 2018-09-30 | P44: 2018-09-30
A45: Hampton PS | B45: East | C45: New classroom and corridor extension | D45: 300000 | E45: 243470.07 | O45: 2018-09-30 | P45: 2018-09-30
A46: Bysing Wood PS | O46: 2018-09-30 | P46: 2018-09-30
A47: St George's CoE Foundation PS | B47: East | C47: 1FE expansion | D47: 2600000 | E47: 2499829.17 | O47: 2018-09-30 | P47: 2018-09-30
A48: Regis Manor PS | B48: East | C48: 1FE expansion | D48: 3300000 | E48: 2881910 | O48: 2018-09-30 | P48: 2018-09-30
A49: Sittingbourne CC | B49: East | C49: 2FE expansion | D49: 6000000 | E49: 6542597.68 | O49: 2018-09-30 | P49: 2018-09-30
A50: Maplesden Noakes Secondary Expansion, bulge | O50: 2018-09-30 | P50: 2018-09-30
A51: Langley Park PS | B51: West | C51: 1 FE expansion | D51: 2600000 | E51: 2577621.74 | O51: 2018-09-30 | P51: 2018-09-30
A52: Park Way PS | B52: West | C52: 2 teaching space expansion | D52: 400000 | E52: 286737 | O52: 2018-09-30 | P52: 2018-09-30
A53: Harrietsham PS | B53: West | C53: 1FE expansion | D53: 3000000 | E53: 3600000 | O53: 2018-09-30 | P53: 2018-09-30
A54: St Peters Tunbridge Wells PS (Hawkenbury) | B54: West | C54: New 1FE School | D54: 6900000 | E54: 7900000 | O54: 2018-09-30 | P54: 2018-09-30
A55: Benenden PS | O55: 2018-09-30 | P55: 2018-09-30
A56: Platt PS | O56: 2018-09-30 | P56: 2018-09-30
A57: Northfleet Tech College (PFI) | B57: North | C57: 1FE expansion required for Sept 2021. | D57: 4500000 | E57: 4320167 | O57: 2018-09-30 | P57: 2018-09-30
A58: St John's Secondary School (PFI), Phase 1 | O58: 2018-09-30 | P58: 2018-09-30
A59: St John's Secondary School (PFI), Phase 2 | O59: 2018-09-30 | P59: 2018-09-30
A60: Thamesview School (PFI), Phase 1 | O60: 2018-09-30 | P60: 2018-09-30
A61: Thamesview School (PFI), Phase 2 | O61: 2018-09-30 | P61: 2018-09-30
A62: Ursuline College, Phase 1 | O62: 2018-09-30 | P62: 2018-09-30
A63: Ursuline College, Phase 2 | O63: 2018-09-30 | P63: 2018-09-30
A64: Judd School, RS classroom | O64: 2018-09-30 | P64: 2018-09-30
A65: Judd School, remodelling | O65: 2018-09-30 | P65: 2018-09-30
A66: Bennett Memorial School | B66: West | C66: 2FE Expansion | D66: 6500000 | E66: 7500000 | O66: 2018-09-30 | P66: 2018-09-30
A67: Headcorn PS | B67: West | C67: 1FE expansion | D67: 2700000 | E67: 2924328 | O67: 2018-09-30 | P67: 2018-09-30
A68: The Wyvern School | B68: =VLOOKUP($A68,MASTER_DATABASE,2,0) -> South | C68: =VLOOKUP($A68,MASTER_DATABASE,3,0) -> 1FE Expansion | D68: =VLOOKUP($A68,MASTER_DATABASE,4,0) -> 4700000 | E68: =VLOOKUP($A68,MASTER_DATABASE,5,0) -> 3164396 | F68: =VLOOKUP($A68,MASTER_DATABASE,8,0) ->  | N68: =_xlfn.IFS(TODAYS_DATE>P68,"C",P68>O68,"L",P68<=O68,"Y") ->  | O68: 2018-09-30 | P68: 2018-09-30
A69: Swadelands/The Lenham School | O69: 2018-09-30 | P69: =O69 -> 2018-09-30
A70: Spires, Phase 1 | O70: 2018-09-30 | P70: 2018-09-30
A71: Spires, Phase 2 | O71: 2018-09-30 | P71: 2018-09-30
A72: Spires, Phase 3 | O72: 2018-09-30 | P72: 2018-09-30
A73: Laleham Gap | O73: 2018-09-30 | P73: 2018-09-30
A74: The Archbishops School | O74: 2018-09-30 | P74: 2018-09-30
A75: Darenth Community Primary School | O75: 2018-09-30 | P75: 2018-09-30
A76: Faversham Library | O76: 2018-09-30 | P76: 2018-09-30
A77: Dartford Sexual Health Clinic | O77: 2018-09-30 | P77: 2018-09-30
A78: Pent Valley - Sharman Block | O78: 2018-09-30 | P78: 2018-09-30
A79: Invicta Car Park | O79: 2018-09-30 | P79: 2018-09-30
A80: Kent History and Library Centre | O80: 2018-09-30 | P80: 2018-09-30
A81: St Peter's House | O81: 2018-09-30 | P81: 2018-09-30
A82: West Borough PS | B82: West | C82: New Staff Room | D82: 195000 | E82: 204105 | O82: 2018-09-30 | P82: 2018-09-30
A83: Weald PS | B83: North | C83: Small classroom extension | D83: 481313 | E83: 505458 | O83: 2018-09-30 | P83: 2018-09-30
A84: North Farm WTS | O84: 2018-09-30 | P84: 2018-09-30
A85: Ryarsh PS | O85: 2018-09-30 | P85: 2018-09-30
A86: Maplesden Noakes Secondary Expansion, 1FE | O86: 2018-09-30 | P86: 2018-09-30
A87: Joy Lane Primary School Phase 2 | B87: East | C87: 1FE expansion | D87: 3500000 | E87: 3647217.6 | O87: 2018-09-30 | P87: 2018-09-30
A88: Avenue of Remembrance | O88: 2018-09-30 | P88: 2018-09-30
A89: Coxheath Primary School | B89: West | C89: Two classrooms | D89: 600000 | E89: 578455 | O89: 2018-09-30 | P89: 2018-09-30
A90: Wouldham PS | O90: 2018-09-30 | P90: 2018-09-30
A91: Wentworth PS | B91: North | C91: 1FE expansion | D91: 2600000 | E91: 2346000 | O91: 2018-09-30 | P91: 2018-09-30
A92: Ridgeview School | O92: 2018-09-30 | P92: 2018-09-30
A93: Weald of Kent Grammar | O93: 2018-09-30 | P93: 2018-09-30
A94: Finberry PS, New PS | O94: 2018-09-30 | P94: 2018-09-30
A95: Birchington PS | B95: East | C95: New two storey teaching block. | D95: 2750000 | E95: 2438962.92 | O95: 2018-09-30 | P95: 2018-09-30
A96: South Borough PS | B96: West | C96: Two storey building with six classrooms. | D96: 2600000 | E96: 2169009.86 | O96: 2018-09-30 | P96: 2018-09-30
A97: Oakley PS (Nursery) | B97: West | C97: New SEN nursery provision. | D97: 995000 | E97: 962199.18 | O97: 2018-09-30 | P97: 2018-09-30
A98: Southborough Hub | O98: 2018-09-30 | P98: 2018-09-30
A99: Dover Discovery Centre | O99: 2018-09-30 | P99: 2018-09-30
A100: Queen's House Folkestone to Cheriton House | B100: =VLOOKUP($A100,MASTER_DATABASE,2,0) ->  | C100: =VLOOKUP($A100,MASTER_DATABASE,3,0) ->  | D100: =VLOOKUP($A100,MASTER_DATABASE,4,0) ->  | E100: =VLOOKUP($A100,MASTER_DATABASE,5,0) ->  | F100: =VLOOKUP($A100,MASTER_DATABASE,8,0) ->  | N100: =_xlfn.IFS(TODAYS_DATE>P100,"C",P100>O100,"L",P100<=O100,"Y") ->  | O100: 2018-09-30 | P100: 2018-09-30
A101: Coroners Phase 2 | O101: 2018-09-30 | P101: 2018-09-30
A102: Barton Court Free School | B102: East | C102: New 5FE school | D102: 24790856 | E102: 24790856 | O102: 2018-09-30 | P102: 2018-09-30
A103: St Andrew's PS | B103: West | C103: New 2FE school | D103: 8561038 | E103: 8561038 | O103: 2018-09-30 | P103: 2018-09-30
A104: Dover Girls Grammar | O104: 2018-09-30 | P104: 2018-09-30
A105: St George's (Gravesend) | B105: North | C105: 1FE expansion | D105: 2700000 | E105: 2600000 | O105: 2018-09-30 | P105: 2018-09-30
A106: Wickhambreaux | B106: East | C106: School managed - additonal taching and admin space | D106: 127952 | E106: 127952 | O106: 2018-09-30 | P106: 2018-09-30
A107: Stone Bay School | B107: East | C107: Additonal classroom | D107: 100000 | E107: 30000 | O107: 2018-09-30 | P107: 2018-09-30
A108: Maidstone Boys Grammar | B108: West | C108: School managed - additonal taching | D108: 3580000 | E108: 3580000 | O108: 2018-09-30 | P108: 2018-09-30
A109: Lawn PS | B109: North | C109: 1FE - only pre-con work | D109: 19663 | E109: 19663 | O109: 2018-09-30 | P109: 2018-09-30
A110: Dunton Green PS | B110: North | C110: 1FE - only pre-con work | D110: 81121 | E110: 81121 | O110: 2018-09-30 | P110: 2018-09-30
A111: Copperfield Academy | B111: North | C111: 1FE - only pre-con work | D111: 53655 | E111: 53655 | O111: 2018-09-30 | P111: 2018-09-30
A112: Deal Parochial PS | B112: South | C112: Bulge class | D112: 15700 | E112: 15700 | O112: 2018-09-30 | P112: 2018-09-30
A113: Marden PS | B113: West | C113: Expansion to 2FE | D113: 1400000 | E113: 1440871 | O113: 2018-09-30 | P113: 2018-09-30
A114: Charing and Challock PS | O114: 2018-09-30 | P114: 2018-09-30
A115: Lady Joanna Thornhill PS | B115: South | C115: Only pre-con work | D115: 6434 | E115: 6434 | O115: 2018-09-30 | P115: 2018-09-30
A116: Sellindge PS | B116: South | C116: 3 classroom new block and car park | D116: 1400000 | E116: 1400000 | O116: 2018-09-30 | P116: 2018-09-30
A117: Briary PS | O117: 2018-09-30 | P117: 2018-09-30
A118: Westlands Secondary School | B118: East | C118: 1FE Expansion | D118: 3250000 | E118: 3250000 | O118: 2018-09-30 | P118: 2018-09-30
A119: Royal Harbour School / Laleham Gap | B119: East | C119: Relocation of STLS to Laleham Gap | D119: 800000 | E119: 825598.59 | O119: 2018-09-30 | P119: 2018-09-30
A120: St Gregory's Secondary School | B120: West | C120: 1FE expansion including new sports hall | D120: 6600000 | E120: 7400000 | O120: 2018-09-30 | P120: 2018-09-30
A121: Tunbridge Wells Boys School | B121: West | C121: 1FE expansion including new sports hall and replacement of 4 old mobiles classrooms. | D121: 7700000 | E121: 8352403 | O121: 2018-09-30 | P121: 2018-09-30
A122: Skinners School Expansion | B122: West | C122: 0.3FE Expansion (school managed) | D122: 3000000 | E122: 3000000 | O122: 2018-09-30 | P122: 2018-09-30
A123: Ebbsfleet Green PS | B123: North | C123: New 1FE with 2FE Infrastructure | D123: 6000000 | E123: 6000000 | O123: 2018-09-30 | P123: 2018-09-30
A124: The Limes / Westcourt Interim | O124: 2018-09-30 | P124: 2018-09-30
A125: Finberry PS, 1FE | O125: 2018-09-30 | P125: 2018-09-30
A126: St Nicholas PS | B126: South | C126: 30YR7 places | D126: 100000 | E126: 100000 | O126: 2018-09-30 | P126: 2018-09-30
A127: Towers (North) School | B127: South | C127: 0.5FE Expansion | D127: 350000 | E127: 350000 | O127: 2018-09-30 | P127: 2018-09-30
A128: Sunnybank PS | B128: East | C128: 0.5FE Expansion plus relocation of Infant block onto the Junior site | D128: 3000000 | E128: 3000000 | O128: 2018-09-30 | P128: 2018-09-30
A129: Former RSD | B129: East | C129: 6FE New School. Exlcudes land purchase as separate RoD | D129: 20000000 | E129: 18000000 | O129: 2018-09-30 | P129: 2018-09-30
A130: Hermitage Lane PS | B130: West | C130: 2FE new school | D130: 7000000 | E130: 7000000 | O130: 2018-09-30 | P130: 2018-09-30
A131: Swanley and Hextable PS | B131: North | C131: 1FE Expansion | D131: 2750000 | E131: 2750000 | O131: 2018-09-30 | P131: 2018-09-30
A132: St Gregory's PS | B132: =VLOOKUP($A132,MASTER_DATABASE,2,0) -> East | C132: =VLOOKUP($A132,MASTER_DATABASE,3,0) -> 0.5FE Expansion | D132: =VLOOKUP($A132,MASTER_DATABASE,4,0) -> 1500000 | E132: =VLOOKUP($A132,MASTER_DATABASE,5,0) -> 1500000 | F132: =VLOOKUP($A132,MASTER_DATABASE,8,0) ->  | N132: =_xlfn.IFS(TODAYS_DATE>P132,"C",P132>O132,"L",P132<=O132,"Y") ->  | O132: 2018-09-30 | P132: 2018-09-30
A133: Quinton Road Secondary School | O133: 2018-09-30 | P133: =O133 -> 2018-09-30
A134: Skinners Kent Academy | B134: West | C134: 6FE Expansion | D134: 20000000 | E134: 20000000 | O134: 2018-09-30 | P134: 2018-09-30
A135: Tonbridge and Malling Area, 3FE | O135: 2018-09-30 | P135: 2018-09-30
A136: Tonbridge and Malling Area, 2FE | O136: 2018-09-30 | P136: 2018-09-30
A137: Martello Primary | O137: 2018-09-30 | P137: 2018-09-30
A138: Northfleet Embankment East | O138: 2018-09-30 | P138: 2018-09-30
A139: Pent Valley - Demolition | O139: 2018-09-30 | P139: 2018-09-30
A140: Singlewell | O140: 2018-09-30 | P140: 2018-09-30
A141: New Ash Green Primary | O141: 2018-09-30 | P141: 2018-09-30
A142: Simon Langdon Boys | O142: 2018-09-30 | P142: 2018-09-30
A143: Simon Langdon Girls | O143: 2018-09-30 | P143: 2018-09-30
A144: Meadowfield School, Dining Room | O144: 2018-09-30 | P144: 2018-09-30

Sheet Qnnaire (hidden)
B2: PROJECT | C2: Type | D2: GIFA | E2: Places | F2: Construction Start | G2: Stage | H2: Budget | I2: £/m2 | J2: Band
B3: Dartford Girls Grammar | C3: =VLOOKUP($B3,MASTER_DATABASE,2,0) -> North | D3: =VLOOKUP($B3,MASTER_DATABASE,31,0) ->  | F3: =VLOOKUP($B3,MASTER_DATABASE,26,0) ->  | G3: =VLOOKUP($B3,MASTER_DATABASE,18,0) ->  | H3: =VLOOKUP($B3,MASTER_DATABASE,36,0) ->  | I3: =H3/D3 ->  | J3: =VLOOKUP($B3,MASTER_DATABASE,54,0) -> 
B4: Trinity Free School, Phase 1 | D4: =H4/I4 ->  | F4: complete | H4: =VLOOKUP($B4,MASTER_DATABASE,36,0) ->  | I4: 2850
B5: Trinity Free School, Phase 2 | D5: =VLOOKUP($B5,MASTER_DATABASE,31,0) ->  | F5: =VLOOKUP($B5,MASTER_DATABASE,26,0) ->  | H5: =D5*I5 ->  | I5: 2850
B6: Trinity Free School, Phase 3 | D6: =VLOOKUP($B6,MASTER_DATABASE,31,0) ->  | H6: =VLOOKUP($B6,MASTER_DATABASE,36,0) ->  | I6: =H6/D6 -> 
B7: Trinity Free School, Phase 4 | D7: =VLOOKUP($B7,MASTER_DATABASE,31,0) -> 
B8: Trinity Free School, Phase 5 | D8: =VLOOKUP($B8,MASTER_DATABASE,31,0) -> 
B9: Chilmington Green PS | C9: South | D9: =H9/I9 ->  | I9: 2850
B10: Northfleet Tech College (PFI) | C10: North | I10: 2765
B11: St John's Secondary School (PFI), Phase 1 | I11: 2530
B12: St John's Secondary School (PFI), Phase 2 | I12: 2850
B13: Thamesview School (PFI), Phase 1 | I13: 2765
B14: Thamesview School (PFI), Phase 2 | I14: 2850
B15: Ursuline College, Phase 1 | I15: 2850
B16: Ursuline College, Phase 2 | D16: =VLOOKUP($B16,MASTER_DATABASE,31,0) -> 
B17: Judd School, RS classroom | D17: =H17/I17 ->  | I17: 2765
B18: Judd School, remodelling | D18: =VLOOKUP($B18,MASTER_DATABASE,31,0) -> 
B19: Bennett Memorial School | C19: West | D19: =VLOOKUP($B19,MASTER_DATABASE,31,0) -> 
B20: St George's (Gravesend) | C20: North | D20: =H20/I20 ->  | I20: 2765
B21: Westlands Secondary School | C21: East | D21: =H21/I21 ->  | I21: 2765
B22: Royal Harbour School / Laleham Gap | C22: East | D22: =H22/I22 ->  | I22: 2530
B23: St Gregory's Secondary School | C23: West | D23: =H23/I23 ->  | I23: 2850
B24: Tunbridge Wells Boys School | C24: West | D24: =VLOOKUP($B24,MASTER_DATABASE,31,0) -> 
B25: Skinners School Expansion | C25: West | D25: =H25/I25 ->  | I25: 2765
B26: Ebbsfleet Green PS | C26: North | I26: 2850
B27: Finberry PS, 1FE | I27: 2765
B28: St Nicholas PS | C28: South | I28: 2530
B29: Towers (North) School | C29: South | I29: 2530
B30: Sunnybank PS | C30: East | I30: 2765
B31: Former RSD | C31: East | I31: 2750
B32: Hermitage Lane PS | C32: West | I32: 2850
B33: Swanley and Hextable PS | C33: North | I33: 2765
B34: St Gregory's PS | C34: East | I34: 2765
B35: Quinton Road Secondary School | I35: 2750
B36: Skinners Kent Academy | C36: West | I36: 2750
B37: Tonbridge and Malling Area, 3FE | I37: 2550
B38: Tonbridge and Malling Area, 2FE | I38: 2850
B40: # | C40: # | D40: # | E40: # | F40: # | G40: # | H40: # | I40: # | J40: #

Sheet BNeed Unapproved Road Map (hidden)
O2: Complete | S2: WIP | V2: Future Task | AA2: At Risk | AE2: Review
C3: Current Date | D3: =NOW() -> 2019-05-23T15:38:21.710 | G3: Band
D5: GEN² CAPITAL PROJECTS | J5: =O2 -> Complete
D6: BASIC NEEDS, UNAPPROVED SCHEMES | J6: =S2 -> WIP
D7: DELIVERY ROAD MAP | J7: =AA2 -> At Risk | N7: GATEWAY 1 | Q7: 1 | R7: GATEWAY 2 | W7: 2 | X7: GATEWAY 3 | AH7: 3 | AI7: GATEWAY 4 | AR7: 4 | AS7: GATEWAY 5
A9: Ref | B9: Budget | C9: GIFA | D9: PROJECT DESCRIPTION | E9: PROGR | F9: AREA | G9: PM | H9: APPR | I9: PROC | J9: Band | K9: Stage | L9: URGENCY | M9: BATCH | N9: Comm Brief | O9: PID | P9: H/L Progr | Q9: GATEWAY | R9: Tender Feas | S9: Instruct Feas | T9: Feas Report | U9: Programme | V9: H/L Risks | W9: GATEWAY | X9: Instr Design | Y9: Concl Design | Z9: Instr Surveys | AA9: Concl Surveys | AB9: Appr Drwgs | AC9: Planning Docs | AD9: Planning Decision | AE9: Cost Plan | AF9: S/holder Appr | AG9: Risk Register | AH9: GATEWAY | AI9: Issue EOI/Stage 1 | AJ9: EOI/Stage 1 Return | AK9: Evaluate Stage 1 | AL9: Issue Stage 2 | AM9: Stage 2 Return | AN9: Evaluate St 2 | AO9: Licence/Lease | AP9: Contract Appr | AQ9: Stat Approvals | AR9: Gateway 4 | AS9: Mobilise | AT9: Start on Site | AU9: Agreed Completion | AV9: Forecast PC | AW9: Academic Yr Reqd | AX9: RAG STATUS | AY9: Current Status | AZ9: Known Issues | BA9: Outstanding Risks
A10: 1 | B10: 600000 | C10: 130 | D10: Dartford Girls Grammar | E10: =VLOOKUP($D10,MASTER_DATABASE,2,0) -> North | F10: =VLOOKUP($D10,MASTER_DATABASE,4,0) -> 625000 | G10: =VLOOKUP($D10,MASTER_DATABASE,5,0) -> 598000 | H10: =VLOOKUP($D10,MASTER_DATABASE,6,0) ->  | I10: =VLOOKUP($D10,MASTER_DATABASE,7,0) ->  | J10: =VLOOKUP($D10,MASTER_DATABASE,54,0) ->  | K10: =VLOOKUP($D10,MASTER_DATABASE,18,0) ->  | L10: 1 | Q10: =VLOOKUP($D10,MASTER_DATABASE,21,0) ->  | W10: =VLOOKUP($D10,MASTER_DATABASE,27,0) ->  | AD10: =$AH10-(2*7) ->  | AH10: =VLOOKUP($D10,MASTER_DATABASE,30,0) ->  | AI10: complete | AJ10: complete | AK10: complete | AL10: complete | AM10: complete | AN10: complete | AO10: N/A | AP10: =$AR10+(1*7) ->  | AQ10: =$AR10-(1*7) ->  | AR10: =VLOOKUP($D10,MASTER_DATABASE,33,0) ->  | AS10: =AT10-(5*7) ->  | AT10: =VLOOKUP($D10,MASTER_DATABASE,42,0) ->  | AU10: =VLOOKUP($D10,MASTER_DATABASE,43,0) ->  | AV10: =VLOOKUP($D10,MASTER_DATABASE,45,0) ->  | AW10: =VLOOKUP($D10,MASTER_DATABASE,47,0) ->  | AX10: Low | AY10: Stage2 tender due back 17 Aug 18; no concerns; on track for delivery 17 Dec 18 | AZ10: None | BA10: None
A11: 2 | B11: 8000000 | C11: N/A | D11: Trinity Free School, Phase 1 | K11: 5 | L11: 1 | AD11: =VLOOKUP($D11,MASTER_DATABASE,25,0) ->  | AS11: =AT11-(5*7) ->  | AX11: Low | AY11: No concerns; on track for delivery Sept 18 | AZ11: None | BA11: None
A12: 3 | B12: 0 | C12: 2620 | D12: Trinity Free School, Phase 2 | K12: 4 | L12: 1 | AI12: =$AR12-(16*7) ->  | AJ12: =$AR12-(13*7) ->  | AK12: =$AR12-(12*7) ->  | AL12: =$AR12-(11*7) ->  | AM12: 2018-08-17 | AN12: =$AR12-(2*7) ->  | AO12: =$AR12-(1*7) ->  | AP12: =$AR12+(1*7) ->  | AQ12: =$AR12-(1*7) ->  | AX12: Med | AY12: Gateway 4 not achieved due to Planning / Highways objections | AZ12: Planning and Highways, but sufficient float if Planning achieved Nov 18. Working closely with key stakeholders to resolve outstanding matters. | BA12: Additional cost of mobile temporary solution if Nov 18 planning approval not achieved.
A13: 4 | B13: 0 | C13: N/A | D13: Trinity Free School, Phase 3 | K13: 4 | L13: 1 | AI13: =$AR13-(16*7) ->  | AJ13: =$AR13-(13*7) ->  | AK13: =$AR13-(12*7) ->  | AL13: =$AR13-(11*7) ->  | AM13: 2018-08-17 | AN13: =$AR13-(2*7) ->  | AO13: =$AR13-(1*7) ->  | AP13: =$AR13+(1*7) ->  | AQ13: =$AR13-(1*7) ->  | AX13: Med | AY13: Gateway 4 not achieved due to Planning / Highways objections
A14: 5 | B14: 0 | C14: N/A | D14: Trinity Free School, Phase 4 | K14: 4 | L14: 1 | AI14: =$AR14-(16*7) ->  | AJ14: =$AR14-(13*7) ->  | AK14: =$AR14-(12*7) ->  | AL14: =$AR14-(11*7) ->  | AM14: 2018-08-17 | AN14: =$AR14-(2*7) ->  | AO14: =$AR14-(1*7) ->  | AP14: =$AR14+(1*7) ->  | AQ14: =$AR14-(1*7) ->  | AX14: Med | AY14: Gateway 4 not achieved due to Planning / Highways objections
A15: 6 | B15: 0 | C15: N/A | D15: Trinity Free School, Phase 5 | K15: 4 | L15: 1 | AI15: =$AR15-(16*7) ->  | AJ15: =$AR15-(13*7) ->  | AK15: =$AR15-(12*7) ->  | AL15: =$AR15-(11*7) ->  | AM15: 2018-08-17 | AN15: =$AR15-(2*7) ->  | AO15: =$AR15-(1*7) ->  | AP15: =$AR15+(1*7) ->  | AQ15: =$AR15-(1*7) ->  | AX15: Med | AY15: Dependent on completing earlier phases | AZ15: No other issues | BA15: None
A16: 7 | B16: 7200000 | C16: 2188 | D16: Chilmington Green PS | E16: South | F16: 7200000 | G16: 8400000 | K16: 2 | L16: 1 | R16: =$W16-(20*7) ->  | S16: =$W16-(12*7) ->  | T16: =$W16-(2*7) ->  | U16: =$W16-(1*7) ->  | V16: =$W16-(1*7) ->  | X16: =$AH16-(29*7) ->  | Y16: =$AH16-(17*7) ->  | Z16: =$AH16-(27*7) ->  | AA16: =$AH16-(23*7) ->  | AB16: =$AH16-(16*7) ->  | AC16: =$AH16-(16*7) ->  | AE16: =$AH16-(14*7) ->  | AF16: =$AH16-(13*7) ->  | AG16: =$AH16-(1*7) ->  | AI16: =$AR16-(19*7) ->  | AJ16: =$AR16-(16*7) ->  | AK16: =$AR16-(15*7) ->  | AL16: =$AR16-(14*7) ->  | AM16: =$AR16-(6*7) ->  | AN16: =$AR16-(2*7) ->  | AO16: =$AR16-(1*7) ->  | AP16: =$AR16+(3*7) ->  | AQ16: =$AR16-(1*7) ->  | AX16: High | AY16: May 19 start on site date in jeopardy due to Developer not releasing the land. PCSA design underway but surveys cannot be implemented. | AZ16: Full feasibility has indicated a possible budget overspend. | BA16: If delayed can accelerate Finberry scheme to accommodate increase in pupil places.
A17: 8 | B17: 3250000 | C17: TBC | D17: Northfleet Tech College (PFI) | E17: North | F17: 4500000 | G17: 4320167 | K17: 1 | L17: 1 | N17: =$Q17-(2*7) ->  | O17: =$Q17-(2*7) ->  | P17: =$Q17-(1*7) ->  | R17: =$W17-(17*7) ->  | S17: =$W17-(9*7) ->  | T17: =$W17-(2*7) ->  | U17: =$W17-(1*7) ->  | V17: =$W17-(1*7) ->  | X17: =$AH17-(25*7) ->  | Y17: =$AH17-(15*7) ->  | Z17: =$AH17-(23*7) ->  | AA17: =$AH17-(19*7) ->  | AB17: =$AH17-(14*7) ->  | AC17: =$AH17-(14*7) ->  | AE17: =$AH17-(12*7) ->  | AF17: =$AH17-(11*7) ->  | AG17: =$AH17-(1*7) ->  | AI17: =$AR17-(16*7) ->  | AJ17: =$AR17-(13*7) ->  | AK17: =$AR17-(12*7) ->  | AL17: =$AR17-(11*7) ->  | AM17: =$AR17-(5*7) ->  | AP17: =$AR17+(2*7) ->  | AX17: Low | AY17: Project in its infancy, no known issues. | AZ17: None | BA17: None
A18: 9 | B18: 400000 | C18: TBC | D18: St John's Secondary School (PFI), Phase 1 | K18: 5 | L18: 1 | AI18: =$AR18-(16*7) ->  | AJ18: =$AR18-(13*7) ->  | AK18: =$AR18-(12*7) ->  | AL18: =$AR18-(11*7) ->  | AM18: =$AR18-(5*7) ->  | AP18: =$AR18+(1*7) ->  | AX18: Low | AY18: No concerns; on track for delivery Sept 18 | AZ18: None | BA18: None
A19: 10 | B19: 5600000 | C19: TBC | D19: St John's Secondary School (PFI), Phase 2 | K19: 1 | L19: 1 | N19: =$Q19-(2*7) ->  | O19: =$Q19-(2*7) ->  | P19: =$Q19-(1*7) ->  | R19: =$W19-(20*7) ->  | S19: =$W19-(12*7) ->  | T19: =$W19-(2*7) ->  | U19: =$W19-(1*7) ->  | V19: =$W19-(1*7) ->  | X19: =$AH19-(29*7) ->  | Y19: =$AH19-(17*7) ->  | Z19: =$AH19-(27*7) ->  | AA19: =$AH19-(23*7) ->  | AB19: =$AH19-(16*7) ->  | AC19: =$AH19-(16*7) ->  | AE19: =$AH19-(14*7) ->  | AF19: =$AH19-(13*7) ->  | AG19: =$AH19-(1*7) ->  | AI19: =$AR19-(19*7) ->  | AJ19: =$AR19-(16*7) ->  | AK19: =$AR19-(15*7) ->  | AL19: =$AR19-(14*7) ->  | AM19: =$AR19-(6*7) ->  | AP19: =$AR19+(3*7) ->  | AX19: Low | AY19: Feasibility completed July 18, overall programme on track | AZ19: None | BA19: None
A20: 11 | B20: 50000 | C20: TBC | D20: Thamesview School (PFI), Phase 1 | K20: 5 | L20: 1 | AI20: =$AR20-(16*7) ->  | AJ20: =$AR20-(13*7) ->  | AK20: =$AR20-(12*7) ->  | AL20: =$AR20-(11*7) ->  | AM20: =$AR20-(5*7) ->  | AP20: =$AR20+(1*7) ->  | AX20: Low | AY20: Completion delayed due to poor finishing. | AZ20: Still achievable to meet Sept 18 completion | BA20: None
A21: 12 | B21: 5950000 | C21: TBC | D21: Thamesview School (PFI), Phase 2 | K21: 1 | L21: 1 | N21: =$Q21-(2*7) ->  | O21: =$Q21-(2*7) ->  | P21: =$Q21-(1*7) ->  | R21: complete | S21: complete | T21: =$W21-(2*7) ->  | U21: =$W21-(1*7) ->  | V21: =$W21-(1*7) ->  | X21: =$AH21-(29*7) ->  | Y21: =$AH21-(17*7) ->  | Z21: =$AH21-(27*7) ->  | AA21: =$AH21-(23*7) ->  | AB21: =$AH21-(16*7) ->  | AC21: =$AH21-(16*7) ->  | AE21: =$AH21-(14*7) ->  | AF21: =$AH21-(13*7) ->  | AG21: =$AH21-(1*7) ->  | AI21: =$AR21-(19*7) ->  | AJ21: =$AR21-(16*7) ->  | AK21: =$AR21-(15*7) ->  | AL21: =$AR21-(14*7) ->  | AM21: =$AR21-(6*7) ->  | AP21: =$AR21+(3*7) ->  | AX21: Med | AY21: Feasibility complete, clarifications required regarding 2019 temp | AZ21: Scope of works requires clarification between school and AEO | BA21: Cost uplift if double sports hall is required
A22: 13 | B22: 300000 | C22: TBC | D22: Ursuline College, Phase 1 | K22: 3 | L22: 1 | X22: complete | Z22: complete | AA22: complete | AE22: complete | AG22: complete | AI22: =$AR22-(16*7) ->  | AJ22: =$AR22-(13*7) ->  | AK22: =$AR22-(12*7) ->  | AL22: =$AR22-(11*7) ->  | AM22: =$AR22-(5*7) ->  | AP22: =$AR22+(1*7) ->  | AX22: Low | AY22: Listed building permission required. Start on site Jan 19 - provisional solution in place. | AZ22: Listed building consent required. Cost increase due to extra design work. | BA22: None
A23: 14 | B23: 3000000 | C23: 1370 | D23: Ursuline College, Phase 2 | K23: 3 | L23: 1 | X23: complete | Y23: =$AH23-(15*7) ->  | Z23: complete | AA23: complete | AB23: =$AH23-(14*7) ->  | AC23: =$AH23-(14*7) ->  | AE23: complete | AF23: =$AH23-(11*7) ->  | AG23: complete | AI23: =$AR23-(16*7) ->  | AJ23: =$AR23-(13*7) ->  | AK23: =$AR23-(12*7) ->  | AL23: =$AR23-(11*7) ->  | AM23: =$AR23-(5*7) ->  | AP23: =$AR23+(2*7) ->  | AX23: High | AY23: AEO negotiating shared drop off area to alleviate Highways concerns | AZ23: Budget risk as funding for drop off is required. Need drop off solution confirmed before we can progress to Planning. | BA23: Transprot statement and RoD increase.
A24: 15 | B24: 1500000 | C24: 1240 | D24: Judd School, RS classroom | K24: 3 | L24: 1 | N24: complete | O24: complete | P24: complete | R24: complete | S24: complete | T24: complete | U24: complete | V24: complete | X24: complete | Y24: complete | Z24: complete | AA24: complete | AB24: complete | AC24: complete | AE24: complete | AF24: complete | AG24: complete | AI24: =$AR24-(16*7) ->  | AJ24: =$AR24-(13*7) ->  | AK24: =$AR24-(12*7) ->  | AL24: =$AR24-(11*7) ->  | AM24: =$AR24-(5*7) ->  | AP24: =$AR24+(2*7) ->  | AX24: Med | AY24: VE underway with design team and planning submiited. | AZ24: Budget risk and land ownership being resolved. | BA24: Potential delay to programme if planning held up.
A25: 16 | B25: 0 | C25: 0 | D25: Judd School, remodelling | K25: 3 | L25: 1 | X25: complete | Y25: complete | Z25: complete | AA25: complete | AB25: complete | AC25: complete | AE25: complete | AF25: complete | AG25: complete | AI25: =$AR25-(16*7) ->  | AJ25: =$AR25-(13*7) ->  | AK25: =$AR25-(12*7) ->  | AL25: =$AR25-(11*7) ->  | AM25: =$AR25-(5*7) ->  | AP25: =$AR25+(2*7) ->  | AX25: Med | AY25: VE underway with design team and planning submiited. | AZ25: Budget risk
A26: 17 | B26: 6500000 | C26: 2906 | D26: Bennett Memorial School | E26: West | F26: 6500000 | G26: 7500000 | K26: 3 | L26: 1 | M26: 1 | R26: =$W26-(20*7) ->  | S26: =$W26-(12*7) ->  | T26: =$W26-(2*7) ->  | U26: =$W26-(1*7) ->  | V26: =$W26-(1*7) ->  | X26: complete | Z26: complete | AA26: complete | AC26: =$AH26-(16*7) ->  | AF26: =$AH26-(13*7) ->  | AI26: =$AR26-(19*7) ->  | AJ26: =$AR26-(16*7) ->  | AK26: =$AR26-(15*7) ->  | AL26: =$AR26-(14*7) ->  | AM26: =$AR26-(6*7) ->  | AN26: =$AR26-(2*7) ->  | AO26: =$AR26-(1*7) ->  | AP26: =$AR26+(3*7) ->  | AQ26: =$AR26-(1*7) ->  | AX26: High | AY26: Planning application due to be submitted but cost review underway. | AZ26: Budget risk - VE and scope under review. | BA26: Delay if planning is protracted.
A27: 18 | B27: 3300000 | C27: 0 | D27: St George's (Gravesend) | E27: North | F27: 2700000 | G27: 2600000 | K27: 1 | L27: 1 | N27: complete | O27: complete | P27: complete | R27: complete | S27: complete | T27: complete | U27: complete | V27: complete | X27: complete | Y27: complete | Z27: complete | AA27: complete | AB27: complete | AC27: complete | AD27: complete | AE27: complete | AF27: complete | AG27: complete | AI27: complete | AJ27: complete | AK27: complete | AL27: complete | AM27: complete | AN27: complete | AO27: complete | AP27: complete | AQ27: complete | AX27: Low | AY27: Feasibility completed. School combining expansion and CIF bid. £2.6m allocated to school | AZ27: None | BA27: None
A28: 19 | B28: 3250000 | C28: 0 | D28: Westlands Secondary School | E28: East | F28: 3250000 | G28: 3250000 | K28: 0 | L28: 1 | M28: 2 | N28: =$Q28-(2*7) ->  | P28: =$Q28-(1*7) ->  | R28: =$W28-(17*7) ->  | S28: =$W28-(9*7) ->  | T28: =$W28-(2*7) ->  | U28: =$W28-(1*7) ->  | X28: =$AH28-(25*7) ->  | Y28: =$AH28-(15*7) ->  | Z28: =$AH28-(23*7) ->  | AA28: =$AH28-(19*7) ->  | AB28: =$AH28-(14*7) ->  | AC28: =$AH28-(14*7) ->  | AE28: =$AH28-(12*7) ->  | AF28: =$AH28-(11*7) ->  | AG28: =$AH28-(1*7) ->  | AI28: =$AR28-(16*7) ->  | AJ28: =$AR28-(13*7) ->  | AK28: =$AR28-(12*7) ->  | AL28: =$AR28-(11*7) ->  | AM28: =$AR28-(5*7) ->  | AP28: =$AR28+(2*7) ->  | AX28: Low | AY28: Curriculum Analysis complete. School bidding to manage. | AZ28: None | BA28: None
A29: 20 | B29: 800000 | C29: 0 | D29: Royal Harbour School / Laleham Gap | E29: East | F29: 800000 | G29: 825598.59 | K29: 4 | L29: 1 | AI29: =$AR29-(16*7) ->  | AJ29: =$AR29-(13*7) ->  | AK29: =$AR29-(12*7) ->  | AL29: =$AR29-(11*7) ->  | AM29: =$AR29-(5*7) ->  | AP29: =$AR29+(1*7) ->  | AX29: Med | AY29: Mobile units moved on to site. | AZ29: Delay caused by discrepancy with ESFA site drawings related to soakaway.
A30: 21 | B30: 6600000 | C30: 3565 | D30: St Gregory's Secondary School | E30: West | F30: 6600000 | G30: 7400000 | K30: 3 | L30: 1 | M30: 1 | X30: complete | Y30: complete | Z30: complete | AA30: complete | AB30: complete | AC30: complete | AE30: complete | AF30: complete | AG30: complete | AI30: =$AR30-(19*7) ->  | AJ30: =$AR30-(16*7) ->  | AK30: =$AR30-(15*7) ->  | AL30: =$AR30-(14*7) ->  | AM30: =$AR30-(6*7) ->  | AP30: =$AR30+(3*7) ->  | AX30: High | AY30: Planning submitted and VE underway. Will run tender concurrently with planinng. | AZ30: Budget concern and delay to programme if planning is elongated. | BA30: Access rights to be confirmed over TWBC land.
A31: 22 | B31: 7700000 | C31: 2905 | D31: Tunbridge Wells Boys School | E31: West | F31: 7700000 | G31: 8352403 | K31: 3 | L31: 1 | M31: 1 | X31: complete | Y31: complete | Z31: complete | AA31: complete | AB31: complete | AC31: complete | AE31: complete | AF31: complete | AG31: complete | AI31: =$AR31-(19*7) ->  | AJ31: =$AR31-(16*7) ->  | AK31: =$AR31-(15*7) ->  | AL31: =$AR31-(14*7) ->  | AM31: =$AR31-(6*7) ->  | AP31: =$AR31+(3*7) ->  | AX31: High | AY31: Planning submitted and VE underway. Will run tender concurrently with planinng. | AZ31: Budget concern and delay to programme if planning is elongated. | BA31: Access rights to be confirmed over TWBC land.
A32: 23 | B32: 3000000 | C32: 0 | D32: Skinners School Expansion | E32: West | F32: 3000000 | G32: 3000000 | K32: 2 | L32: 1 | R32: =$W32-(17*7) ->  | S32: =$W32-(9*7) ->  | T32: =$W32-(2*7) ->  | U32: =$W32-(1*7) ->  | X32: =$AH32-(25*7) ->  | Y32: =$AH32-(15*7) ->  | Z32: =$AH32-(23*7) ->  | AA32: =$AH32-(19*7) ->  | AB32: =$AH32-(14*7) ->  | AC32: =$AH32-(14*7) ->  | AE32: =$AH32-(12*7) ->  | AF32: =$AH32-(11*7) ->  | AG32: =$AH32-(1*7) ->  | AI32: =$AR32-(16*7) ->  | AJ32: =$AR32-(13*7) ->  | AK32: =$AR32-(12*7) ->  | AL32: =$AR32-(11*7) ->  | AM32: =$AR32-(5*7) ->  | AP32: =$AR32+(2*7) ->  | AX32: Low | AY32: Funding agreed and delivery scheduled for August 19 | AZ32: None | BA32: None
A33: 24 | B33: 6000000 | C33: 0 | D33: Ebbsfleet Green PS | E33: North | F33: 6000000 | G33: 6000000 | K33: 0 | L33: 2 | N33: =$Q33-(2*7) ->  | P33: =$Q33-(1*7) ->  | R33: =$W33-(20*7) ->  | S33: =$W33-(12*7) ->  | T33: =$W33-(2*7) ->  | U33: =$W33-(1*7) ->  | V33: =$W33-(1*7) ->  | X33: =$AH33-(29*7) ->  | Y33: =$AH33-(17*7) ->  | Z33: =$AH33-(27*7) ->  | AA33: =$AH33-(23*7) ->  | AB33: =$AH33-(16*7) ->  | AC33: =$AH33-(16*7) ->  | AE33: =$AH33-(14*7) ->  | AF33: =$AH33-(13*7) ->  | AI33: =$AR33-(19*7) ->  | AJ33: =$AR33-(16*7) ->  | AK33: =$AR33-(15*7) ->  | AL33: =$AR33-(14*7) ->  | AM33: =$AR33-(6*7) ->  | AP33: =$AR33+(3*7) ->  | AX33: Low | AY33: Pre feasibility. Land handover in August. Require license to undertake survey work | AZ33: None | BA33: None
A34: 25 | B34: 2200000 | C34: 0 | D34: Finberry PS, 1FE | K34: 4 | L34: 2 | X34: complete | Y34: complete | Z34: complete | AA34: complete | AB34: =$AH34-(14*7) ->  | AC34: =$AH34-(14*7) ->  | AE34: =$AH34-(12*7) ->  | AF34: =$AH34-(11*7) ->  | AI34: =$AR34-(16*7) ->  | AJ34: =$AR34-(13*7) ->  | AK34: =$AR34-(12*7) ->  | AL34: =$AR34-(11*7) ->  | AM34: =$AR34-(5*7) ->  | AP34: =$AR34+(2*7) ->  | AX34: Low | AY34: 1FE school with 2FE INF. Can appoint Stage 4 design work to allow this project to accelerate if required due to chilmington delay. | AZ34: None | BA34: None
A35: 26 | B35: 100000 | C35: 0 | D35: St Nicholas PS | E35: South | F35: 100000 | G35: 100000 | K35: 2 | L35: 2 | R35: =$W35-(14*7) ->  | S35: =$W35-(7*7) ->  | T35: =$W35-(2*7) ->  | U35: =$W35-(1*7) ->  | V35: =$W35-(1*7) ->  | X35: =$AH35-(18*7) ->  | Y35: =$AH35-(10*7) ->  | Z35: =$AH35-(16*7) ->  | AA35: =$AH35-(12*7) ->  | AB35: =$AH35-(9*7) ->  | AC35: =$AH35-(9*7) ->  | AE35: =$AH35-(7*7) ->  | AF35: =$AH35-(6*7) ->  | AI35: =$AR35-(16*7) ->  | AJ35: =$AR35-(13*7) ->  | AK35: =$AR35-(12*7) ->  | AL35: =$AR35-(11*7) ->  | AM35: =$AR35-(5*7) ->  | AP35: =$AR35+(1*7) ->  | AX35: Low | AY35: Feasibility complete over a year ago. Costs to be revisited. Agreeing option with school and AEO. | AZ35: Planning may be required if PD not an option. | BA35: None
A36: 27 | B36: 350000 | C36: 0 | D36: Towers (North) School | E36: South | F36: 350000 | G36: 350000 | K36: 1 | L36: 2 | N36: =$Q36-(2*7) ->  | P36: =$Q36-(1*7) ->  | R36: =$W36-(14*7) ->  | S36: =$W36-(7*7) ->  | T36: =$W36-(2*7) ->  | U36: =$W36-(1*7) ->  | V36: =$W36-(1*7) ->  | X36: =$AH36-(18*7) ->  | Y36: =$AH36-(10*7) ->  | Z36: =$AH36-(16*7) ->  | AA36: =$AH36-(12*7) ->  | AB36: =$AH36-(9*7) ->  | AC36: =$AH36-(9*7) ->  | AE36: =$AH36-(7*7) ->  | AF36: =$AH36-(6*7) ->  | AI36: =$AR36-(16*7) ->  | AJ36: =$AR36-(13*7) ->  | AK36: =$AR36-(12*7) ->  | AL36: =$AR36-(11*7) ->  | AM36: =$AR36-(5*7) ->  | AP36: =$AR36+(1*7) ->  | AX36: Low | AY36: Dependent on Chilmington Green Secondary - can be progressed if required. | AZ36: None | BA36: None
A37: 28 | B37: 3000000 | C37: 0 | D37: Sunnybank PS | E37: East | F37: 3000000 | G37: 3000000 | K37: 2 | L37: 2 | M37: 2 | R37: complete | S37: =$W37-(9*7) ->  | T37: =$W37-(2*7) ->  | U37: =$W37-(1*7) ->  | X37: =$AH37-(25*7) ->  | Y37: =$AH37-(15*7) ->  | Z37: =$AH37-(23*7) ->  | AA37: =$AH37-(19*7) ->  | AB37: =$AH37-(14*7) ->  | AC37: =$AH37-(14*7) ->  | AE37: =$AH37-(12*7) ->  | AF37: =$AH37-(11*7) ->  | AI37: =$AR37-(16*7) ->  | AJ37: =$AR37-(13*7) ->  | AK37: =$AR37-(12*7) ->  | AL37: =$AR37-(11*7) ->  | AM37: =$AR37-(5*7) ->  | AP37: =$AR37+(2*7) ->  | AX37: Med | AY37: Desktop feasibility complete and detailed being appointed. Commissioned up to planning. | AZ37: Budget concern due to requirement to build new infant block. | BA37: None
A38: 29 | B38: 26950000 | C38: 0 | D38: Former RSD | E38: East | F38: 20000000 | G38: 18000000 | K38: 2 | L38: 2 | R38: complete | S38: complete | T38: complete | U38: =$W38-(1*7) ->  | V38: =$W38-(1*7) ->  | X38: =$AH38-(39*7) ->  | Y38: =$AH38-(19*7) ->  | Z38: =$AH38-(37*7) ->  | AA38: =$AH38-(33*7) ->  | AB38: =$AH38-(18*7) ->  | AC38: =$AH38-(18*7) ->  | AE38: =$AH38-(16*7) ->  | AF38: =$AH38-(15*7) ->  | AI38: =$AR38-(23*7) ->  | AJ38: =$AR38-(20*7) ->  | AK38: =$AR38-(19*7) ->  | AL38: =$AR38-(18*7) ->  | AM38: =$AR38-(8*7) ->  | AP38: =$AR38+(4*7) ->  | AX38: High | AY38: Land acquisition underway but school needs to be delivered by 2021. | AZ38: Land acquisition. | BA38: Survey results could identify site issues.
A39: 30 | B39: 7000000 | C39: 0 | D39: Hermitage Lane PS | E39: West | F39: 7000000 | G39: 7000000 | K39: 2 | L39: 2 | R39: =$W39-(20*7) ->  | S39: =$W39-(12*7) ->  | T39: =$W39-(2*7) ->  | U39: =$W39-(1*7) ->  | V39: =$W39-(1*7) ->  | X39: =$AH39-(29*7) ->  | Y39: =$AH39-(17*7) ->  | Z39: =$AH39-(27*7) ->  | AA39: =$AH39-(23*7) ->  | AB39: =$AH39-(16*7) ->  | AC39: =$AH39-(16*7) ->  | AE39: =$AH39-(14*7) ->  | AF39: =$AH39-(13*7) ->  | AI39: =$AR39-(19*7) ->  | AJ39: =$AR39-(16*7) ->  | AK39: =$AR39-(15*7) ->  | AL39: =$AR39-(14*7) ->  | AM39: =$AR39-(6*7) ->  | AP39: =$AR39+(3*7) ->  | AX39: Low | AY39: Detailed feasibility to be instructed to build 1FE with 2FE INF. | AZ39: None | BA39: Dependant on housing supply.
A40: 31 | B40: 2750000 | C40: 0 | D40: Swanley and Hextable PS | E40: North | F40: 2750000 | G40: 2750000 | K40: 0 | L40: 3 | N40: =$Q40-(2*7) ->  | P40: =$Q40-(1*7) ->  | R40: =$W40-(17*7) ->  | S40: =$W40-(9*7) ->  | T40: =$W40-(2*7) ->  | U40: =$W40-(1*7) ->  | X40: =$AH40-(25*7) ->  | Y40: =$AH40-(15*7) ->  | Z40: =$AH40-(23*7) ->  | AA40: =$AH40-(19*7) ->  | AB40: =$AH40-(14*7) ->  | AC40: =$AH40-(14*7) ->  | AE40: =$AH40-(12*7) ->  | AF40: =$AH40-(11*7) ->  | AI40: =$AR40-(16*7) ->  | AJ40: =$AR40-(13*7) ->  | AK40: =$AR40-(12*7) ->  | AL40: =$AR40-(11*7) ->  | AM40: =$AR40-(5*7) ->  | AP40: =$AR40+(2*7) ->  | AX40: Low | AY40: Deferral suggested by CYPE due to housing supply. | AZ40: None | BA40: None
A41: 32 | B41: 1500000 | C41: 0 | D41: St Gregory's PS | E41: East | F41: 1500000 | G41: 1500000 | K41: 1 | L41: 3 | X41: =$AH41-(25*7) ->  | Y41: =$AH41-(15*7) ->  | Z41: =$AH41-(23*7) ->  | AA41: =$AH41-(19*7) ->  | AB41: =$AH41-(14*7) ->  | AC41: =$AH41-(14*7) ->  | AE41: =$AH41-(12*7) ->  | AF41: =$AH41-(11*7) ->  | AI41: =$AR41-(16*7) ->  | AJ41: =$AR41-(13*7) ->  | AK41: =$AR41-(12*7) ->  | AL41: =$AR41-(11*7) ->  | AM41: =$AR41-(5*7) ->  | AP41: =$AR41+(2*7) ->  | AX41: Low | AY41: Deferral suggested by CYPE due to housing supply. | AZ41: None | BA41: None
A42: 33 | B42: 20000000 | C42: 0 | D42: Quinton Road Secondary School | K42: 0 | L42: 3 | R42: =$W42-(22*7) ->  | S42: =$W42-(14*7) ->  | T42: =$W42-(2*7) ->  | X42: =$AH42-(39*7) ->  | Y42: =$AH42-(19*7) ->  | Z42: =$AH42-(37*7) ->  | AA42: =$AH42-(33*7) ->  | AB42: =$AH42-(18*7) ->  | AE42: =$AH42-(16*7) ->  | AF42: =$AH42-(15*7) ->  | AI42: =$AR42-(23*7) ->  | AJ42: =$AR42-(20*7) ->  | AK42: =$AR42-(19*7) ->  | AL42: =$AR42-(18*7) ->  | AM42: =$AR42-(8*7) ->  | AP42: =$AR42+(4*7) ->  | AX42: Low | AY42: Deferral suggested by CYPE due to housing supply. | AZ42: None | BA42: None
A43: 34 | B43: 20000000 | C43: 0 | D43: Skinners Kent Academy | E43: West | F43: 20000000 | G43: 20000000 | K43: 0 | L43: 3 | R43: =$W43-(22*7) ->  | S43: =$W43-(14*7) ->  | T43: =$W43-(2*7) ->  | X43: =$AH43-(39*7) ->  | Y43: =$AH43-(19*7) ->  | Z43: =$AH43-(37*7) ->  | AA43: =$AH43-(33*7) ->  | AE43: =$AH43-(16*7) ->  | AF43: =$AH43-(15*7) ->  | AI43: =$AR43-(23*7) ->  | AJ43: =$AR43-(20*7) ->  | AK43: =$AR43-(19*7) ->  | AL43: =$AR43-(18*7) ->  | AM43: =$AR43-(8*7) ->  | AP43: =$AR43+(4*7) ->  | AX43: Low | AY43: CYPE not currently pursuing this option. | AZ43: Planning would be highly contentious. Land acquisition.
A44: 35 | B44: 9750000 | C44: 0 | D44: Tonbridge and Malling Area, 3FE | K44: 0 | L44: 3 | R44: =$W44-(22*7) ->  | S44: =$W44-(14*7) ->  | T44: =$W44-(2*7) ->  | X44: =$AH44-(34*7) ->  | Y44: =$AH44-(19*7) ->  | Z44: =$AH44-(32*7) ->  | AA44: =$AH44-(28*7) ->  | AE44: =$AH44-(16*7) ->  | AF44: =$AH44-(15*7) ->  | AI44: =$AR44-(23*7) ->  | AJ44: =$AR44-(20*7) ->  | AK44: =$AR44-(19*7) ->  | AL44: =$AR44-(18*7) ->  | AM44: =$AR44-(8*7) ->  | AX44: Low | AY44: Deferral suggested by CYPE due to housing supply.
A45: 36 | B45: 6500000 | C45: 0 | D45: Tonbridge and Malling Area, 2FE | K45: 0 | L45: 3 | R45: =$W45-(20*7) ->  | S45: =$W45-(12*7) ->  | T45: =$W45-(2*7) ->  | X45: =$AH45-(29*7) ->  | Y45: =$AH45-(17*7) ->  | Z45: =$AH45-(27*7) ->  | AA45: =$AH45-(23*7) ->  | AB45: =$AH45-(16*7) ->  | AC45: =$AH45-(16*7) ->  | AE45: =$AH45-(14*7) ->  | AF45: =$AH45-(13*7) ->  | AI45: =$AR45-(19*7) ->  | AJ45: =$AR45-(16*7) ->  | AK45: =$AR45-(15*7) ->  | AL45: =$AR45-(14*7) ->  | AM45: =$AR45-(6*7) ->  | AX45: Low | AY45: Deferral suggested by CYPE due to housing supply.
A47: # | B47: # | C47: # | D47: # | E47: # | F47: # | G47: # | H47: # | I47: # | J47: # | K47: # | L47: # | M47: # | N47: # | O47: # | P47: # | Q47: # | R47: # | S47: # | T47: # | U47: # | V47: # | W47: # | X47: # | Y47: # | Z47: # | AA47: # | AB47: # | AC47: # | AD47: # | AE47: # | AF47: # | AG47: # | AH47: # | AI47: # | AJ47: # | AK47: # | AL47: # | AM47: # | AN47: # | AO47: # | AP47: # | AQ47: # | AR47: # | AS47: # | AT47: # | AU47: # | AV47: # | AW47: # | AX47: # | AY47: # | AZ47: # | BA47: #
AU49: Low | AV49: =COUNTIF(AX$10:AX$45,AU49) -> 21 | AW49: =AV49/SUM(AV$49:AV$51) -> 0.5833333333
AU50: Med | AV50: =COUNTIF(AX$10:AX$45,AU50) -> 9 | AW50: =AV50/SUM(AV$49:AV$51) -> 0.25
AU51: High | AV51: =COUNTIF(AX$10:AX$45,AU51) -> 6 | AW51: =AV51/SUM(AV$49:AV$51) -> 0.1666666667
D54: tba | F54: =COUNTIF(J$10:J$45,D54) -> 0
D55: c. £20 million | F55: 0
D56: over £8 million | F56: 0
D57: £4m to £8m | F57: 0
D58: £1m to £4m | F58: 0
D59: less than £1m | F59: 0
B61: 0 | D61: Stage 0 | F61: =COUNTIF(K$10:K$45,B61) -> 7
B62: 1 | D62: Stage 1 | F62: 6
B63: 2 | D63: Stage 2 | F63: 6
B64: 3 | D64: Stage 3 | F64: 7
B65: 4 | D65: Stage 4 | F65: 6
B66: 5 | D66: Stage 5 | F66: 3

Sheet Resource Programme (hidden)
H1: Gen2 fee | J1: PI col nr | K1: 17 | L1: 18 | M1: 19 | N1: 20 | O1: 21 | Q1: 22 | R1: 23 | X1: THIS GRAPHICALLY RECORDS WHEN EACH STAGE OF EACH PROJECT IS PLANNED TO OCCUR | BC1: THIS GRAPHICALLY RECORDS WHEN EACH STAGE OF EACH PROJECT IS PLANNED TO OCCUR | CM1: PM ave Hrs/week/Stage | CN1: 1 | CO1: 2 | CP1: 3 | CQ1: 4 | CR1: 5 | CS1: 6 | CU1: THIS CALCULATES THE AVE PM MAN-HOURS REQD EACH MONTH TO DELIVER THE SERVICE | DZ1: THIS CALCULATES THE AVE PM MAN-HOURS REQD EACH MONTH TO DELIVER THE SERVICE
H2: 0.03 | X2: ACADEMIC YEAR | CM2: less than £1m | CN2: 6 | CO2: 3 | CP2: 6 | CQ2: 9 | CR2: 6 | CS2: 9 | CU2: ACADEMIC YEAR
H3: 0.03 | CM3: £1 to £4 million | CN3: 6 | CO3: 3 | CP3: 6 | CQ3: 9 | CR3: 6 | CS3: 9
H4: 0.03 | W4: 2017/18 | X4: 2017/18 | Y4: 2017/18 | Z4: 2018/19 | AA4: 2018/19 | AB4: 2018/19 | AC4: 2018/19 | AD4: 2018/19 | AE4: 2018/19 | AF4: 2018/19 | AG4: 2018/19 | AH4: 2018/19 | AI4: 2018/19 | AJ4: 2018/19 | AK4: 2018/19 | AL4: 2019/20 | AM4: 2019/20 | AN4: 2019/20 | AO4: 2019/20 | AP4: 2019/20 | AQ4: 2019/20 | AR4: 2019/20 | AS4: 2019/20 | AT4: 2019/20 | AU4: 2019/20 | AV4: 2019/20 | AW4: 2019/20 | AX4: 2020/21 | AY4: 2020/21 | AZ4: 2020/21 | BA4: 2020/21 | BB4: 2020/21 | BC4: 2020/21 | BD4: 2020/21 | BE4: 2020/21 | BF4: 2020/21 | BG4: 2020/21 | BH4: 2020/21 | BI4: 2020/21 | BJ4: 2021/22 | BK4: 2021/22 | BL4: 2021/22 | BM4: 2021/22 | BN4: 2021/22 | BO4: 2021/22 | BP4: 2021/22 | BQ4: 2021/22 | BR4: 2021/22 | BS4: 2021/22 | BT4: 2021/22 | BU4: 2021/22 | BV4: 2022/23 | BW4: 2022/23 | BX4: 2022/23 | BY4: 2022/23 | BZ4: 2022/23 | CA4: 2022/23 | CB4: 2022/23 | CC4: 2022/23 | CD4: 2022/23 | CE4: 2022/23 | CF4: 2022/23 | CG4: 2022/23 | CH4: 2023/24 | CI4: 2023/24 | CJ4: 2023/24 | CM4: £4 to £8 million | CN4: 6 | CO4: 6 | CP4: 12 | CQ4: 17 | CR4: 12 | CS4: 12 | CT4: 2017/18 | CU4: 2017/18 | CV4: 2017/18 | CW4: 2018/19 | CX4: 2018/19 | CY4: 2018/19 | CZ4: 2018/19 | DA4: 2018/19 | DB4: 2018/19 | DC4: 2018/19 | DD4: 2018/19 | DE4: 2018/19 | DF4: 2018/19 | DG4: 2018/19 | DH4: 2018/19 | DI4: 2019/20 | DJ4: 2019/20 | DK4: 2019/20 | DL4: 2019/20 | DM4: 2019/20 | DN4: 2019/20 | DO4: 2019/20 | DP4: 2019/20 | DQ4: 2019/20 | DR4: 2019/20 | DS4: 2019/20 | DT4: 2019/20 | DU4: 2020/21 | DV4: 2020/21 | DW4: 2020/21 | DX4: 2020/21 | DY4: 2020/21 | DZ4: 2020/21 | EA4: 2020/21 | EB4: 2020/21 | EC4: 2020/21 | ED4: 2020/21 | EE4: 2020/21 | EF4: 2020/21 | EG4: 2021/22 | EH4: 2021/22 | EI4: 2021/22 | EJ4: 2021/22 | EK4: 2021/22 | EL4: 2021/22 | EM4: 2021/22 | EN4: 2021/22 | EO4: 2021/22 | EP4: 2021/22 | EQ4: 2021/22 | ER4: 2021/22 | ES4: 2022/23 | ET4: 2022/23 | EU4: 2022/23 | EV4: 2022/23 | EW4: 2022/23 | EX4: 2022/23 | EY4: 2022/23 | EZ4: 2022/23 | FA4: 2022/23 | FB4: 2022/23 | FC4: 2022/23 | FD4: 2022/23 | FE4: 2023/24 | FF4: 2023/24 | FG4: 2023/24
H5: 0.03 | CM5: over £8 million | CN5: 6 | CO5: 9 | CP5: 12 | CQ5: 14 | CR5: 17 | CS5: 12
CM6: circa £20 million | CN6: 6 | CO6: 12 | CP6: 14 | CQ6: 22 | CR6: 17 | CS6: 17
H7: 0.03 | CM7: see earlier phase | CN7: 0 | CO7: 0 | CP7: 0 | CQ7: 0 | CR7: 0 | CS7: 12
A8: CAPITAL PROJECTS: ANTICIPATED RESOURCE REQUIREMENTS | W8: Nr of wks in each month | CM8: Average weeks per calendar month: | CN8: 4.3 | CT8: Nr of wks in each month
A9: RESOURCE PROGRAMME | J9: =NOW() -> 2019-05-23T15:38:21.710 | K9: Planned end dates for each RIBA stage | S9: Planned dates | X9: =(X11-W11)/7 -> 4.428571429 | Y9: =(Y11-X11)/7 -> 4.428571429 | Z9: =(Z11-Y11)/7 -> 4.285714286 | AA9: 4.428571429 | AB9: 4.285714286 | AC9: 4.428571429 | AD9: 4.428571429 | AE9: 4 | AF9: 4.428571429 | AG9: 4.285714286 | AH9: 4.428571429 | AI9: 4.285714286 | AJ9: 4.428571429 | AK9: 4.428571429 | AL9: 4.285714286 | AM9: 4.428571429 | AN9: 4.285714286 | AO9: 4.428571429 | AP9: 4.428571429 | AQ9: 4.142857143 | AR9: 4.428571429 | AS9: 4.285714286 | AT9: 4.428571429 | AU9: 4.285714286 | AV9: 4.428571429 | AW9: 4.428571429 | AX9: 4.285714286 | AY9: 4.428571429 | AZ9: 4.285714286 | BA9: 4.428571429 | BB9: 4.428571429 | BC9: 4 | BD9: 4.428571429 | BE9: 4.285714286 | BF9: 4.428571429 | BG9: 4.285714286 | BH9: 4.428571429 | BI9: 4.428571429 | BJ9: 4.285714286 | BK9: 4.428571429 | BL9: 4.285714286 | BM9: 4.428571429 | BN9: 4.428571429 | BO9: 4 | BP9: 4.428571429 | BQ9: 4.285714286 | BR9: 4.428571429 | BS9: 4.285714286 | BT9: 4.428571429 | BU9: 4.428571429 | BV9: 4.285714286 | BW9: 4.428571429 | BX9: 4.285714286 | BY9: 4.428571429 | BZ9: 4.428571429 | CA9: 4 | CB9: 4.428571429 | CC9: 4.285714286 | CD9: 4.428571429 | CE9: 4.285714286 | CF9: 4.428571429 | CG9: 4.428571429 | CH9: 4.285714286 | CI9: 4.428571429 | CJ9: 4.285714286 | CM9: Average hours required per MONTH for this Project Band | CU9: =(CU11-CT11)/7 -> 4.428571429 | CV9: =(CV11-CU11)/7 -> 4.428571429 | CW9: =(CW11-CV11)/7 -> 4.285714286 | CX9: 4.428571429 | CY9: 4.285714286 | CZ9: 4.428571429 | DA9: 4.428571429 | DB9: 4 | DC9: 4.428571429 | DD9: 4.285714286 | DE9: 4.428571429 | DF9: 4.285714286 | DG9: 4.428571429 | DH9: 4.428571429 | DI9: 4.285714286 | DJ9: 4.428571429 | DK9: 4.285714286 | DL9: 4.428571429 | DM9: 4.428571429 | DN9: 4.142857143 | DO9: 4.428571429 | DP9: 4.285714286 | DQ9: 4.428571429 | DR9: 4.285714286 | DS9: 4.428571429 | DT9: 4.428571429 | DU9: 4.285714286 | DV9: 4.428571429 | DW9: 4.285714286 | DX9: 4.428571429 | DY9: 4.428571429 | DZ9: 4 | EA9: 4.428571429 | EB9: 4.285714286 | EC9: 4.428571429 | ED9: 4.285714286 | EE9: 4.428571429 | EF9: 4.428571429 | EG9: 4.285714286 | EH9: 4.428571429 | EI9: 4.285714286 | EJ9: 4.428571429 | EK9: 4.428571429 | EL9: 4 | EM9: 4.428571429 | EN9: 4.285714286 | EO9: 4.428571429 | EP9: 4.285714286 | EQ9: 4.428571429 | ER9: 4.428571429 | ES9: 4.285714286 | ET9: 4.428571429 | EU9: 4.285714286 | EV9: 4.428571429 | EW9: 4.428571429 | EX9: 4 | EY9: 4.428571429 | EZ9: 4.285714286 | FA9: 4.428571429 | FB9: 4.285714286 | FC9: 4.428571429 | FD9: 4.428571429 | FE9: 4.285714286 | FF9: 4.428571429 | FG9: 4.285714286
A11: PROJECT | B11: PROGRAMME | C11: AREA | D11: PROJECT MANAGER | E11: APPROVED/ UNAPPROVED | F11: Construction Price Band | G11: Budget | H11: Gen2 Fee as a %age | I11: Anticipated Manhours | J11: start | K11: 0 | L11: 1 | M11: 2 | N11: 3 | O11: 4 | P11: Pre Duration (wks) | Q11: 5 | R11: 6 | S11: Plan Decision | T11: SOS | U11: Ant Fin | V11: Post Duration (wks) | W11: 2018-07-01 | X11: 2018-08-01 | Y11: 2018-09-01 | Z11: 2018-10-01 | AA11: 2018-11-01 | AB11: 2018-12-01 | AC11: 2019-01-01 | AD11: 2019-02-01 | AE11: 2019-03-01 | AF11: 2019-04-01 | AG11: 2019-05-01 | AH11: 2019-06-01 | AI11: 2019-07-01 | AJ11: 2019-08-01 | AK11: 2019-09-01 | AL11: 2019-10-01 | AM11: 2019-11-01 | AN11: 2019-12-01 | AO11: 2020-01-01 | AP11: 2020-02-01 | AQ11: 2020-03-01 | AR11: 2020-04-01 | AS11: 2020-05-01 | AT11: 2020-06-01 | AU11: 2020-07-01 | AV11: 2020-08-01 | AW11: 2020-09-01 | AX11: 2020-10-01 | AY11: 2020-11-01 | AZ11: 2020-12-01 | BA11: 2021-01-01 | BB11: 2021-02-01 | BC11: 2021-03-01 | BD11: 2021-04-01 | BE11: 2021-05-01 | BF11: 2021-06-01 | BG11: 2021-07-01 | BH11: 2021-08-01 | BI11: 2021-09-01 | BJ11: 2021-10-01 | BK11: 2021-11-01 | BL11: 2021-12-01 | BM11: 2022-01-01 | BN11: 2022-02-01 | BO11: 2022-03-01 | BP11: 2022-04-01 | BQ11: 2022-05-01 | BR11: 2022-06-01 | BS11: 2022-07-01 | BT11: 2022-08-01 | BU11: 2022-09-01 | BV11: 2022-10-01 | BW11: 2022-11-01 | BX11: 2022-12-01 | BY11: 2023-01-01 | BZ11: 2023-02-01 | CA11: 2023-03-01 | CB11: 2023-04-01 | CC11: 2023-05-01 | CD11: 2023-06-01 | CE11: 2023-07-01 | CF11: 2023-08-01 | CG11: 2023-09-01 | CH11: 2023-10-01 | CI11: 2023-11-01 | CJ11: 2023-12-01 | CK11: SUB-FILTER | CL11: FILTER 1 | CM11: Band | CN11: 1 | CO11: 2 | CP11: 3 | CQ11: 4 | CR11: 5 | CS11: 6 | CT11: 2018-07-01 | CU11: 2018-08-01 | CV11: 2018-09-01 | CW11: 2018-10-01 | CX11: 2018-11-01 | CY11: 2018-12-01 | CZ11: 2019-01-01 | DA11: 2019-02-01 | DB11: 2019-03-01 | DC11: 2019-04-01 | DD11: 2019-05-01 | DE11: 2019-06-01 | DF11: 2019-07-01 | DG11: 2019-08-01 | DH11: 2019-09-01 | DI11: 2019-10-01 | DJ11: 2019-11-01 | DK11: 2019-12-01 | DL11: 2020-01-01 | DM11: 2020-02-01 | DN11: 2020-03-01 | DO11: 2020-04-01 | DP11: 2020-05-01 | DQ11: 2020-06-01 | DR11: 2020-07-01 | DS11: 2020-08-01 | DT11: 2020-09-01 | DU11: 2020-10-01 | DV11: 2020-11-01 | DW11: 2020-12-01 | DX11: 2021-01-01 | DY11: 2021-02-01 | DZ11: 2021-03-01 | EA11: 2021-04-01 | EB11: 2021-05-01 | EC11: 2021-06-01 | ED11: 2021-07-01 | EE11: 2021-08-01 | EF11: 2021-09-01 | EG11: 2021-10-01 | EH11: 2021-11-01 | EI11: 2021-12-01 | EJ11: 2022-01-01 | EK11: 2022-02-01 | EL11: 2022-03-01 | EM11: 2022-04-01 | EN11: 2022-05-01 | EO11: 2022-06-01 | EP11: 2022-07-01 | EQ11: 2022-08-01 | ER11: 2022-09-01 | ES11: 2022-10-01 | ET11: 2022-11-01 | EU11: 2022-12-01 | EV11: 2023-01-01 | EW11: 2023-02-01 | EX11: 2023-03-01 | EY11: 2023-04-01 | EZ11: 2023-05-01 | FA11: 2023-06-01 | FB11: 2023-07-01 | FC11: 2023-08-01 | FD11: 2023-09-01 | FE11: 2023-10-01 | FF11: 2023-11-01 | FG11: 2023-12-01 | FH11: END
A12: Dartford Girls Grammar | B12: =VLOOKUP($A12,MASTER_DATABASE,2,0) -> North | C12: =VLOOKUP($A12,MASTER_DATABASE,4,0) -> 3611-03-10 | D12: =VLOOKUP($A12,MASTER_DATABASE,5,0) -> 3537-04-07 | E12: =VLOOKUP($A12,MASTER_DATABASE,6,0) ->  | F12: =VLOOKUP($A12,MASTER_DATABASE,54,0) ->  | G12: 600000 | I12: =SUM(CT12:FG12) -> 212.85 | K12: 2018-03-01 | L12: 2018-01-14 | M12: 2018-03-03 | N12: 2018-05-05 | O12: 2018-09-04 | P12: =((O12-L12)/7)+2 -> 35.28571429 | Q12: 2018-12-17 | S12: PD | T12: 2018-09-04 | U12: 2018-12-17 | V12: =(U12-T12)/7 -> 14.85714286 | W12: 4 | X12: 4 | Y12: 4 | Z12: 5 | AA12: 5 | AB12: 5 | AN12: 6 | CK12: Ongoing | CL12: =B12&", "&E12&", "&CK12 ->  | CM12: less than £1m | CN12: =VLOOKUP($CM12,AVEHRS_TABLE,2,0)*AVE_WKS_PER_MONTH -> 25.8 | CO12: =VLOOKUP($CM12,AVEHRS_TABLE,3,0)*AVE_WKS_PER_MONTH -> 12.9 | CP12: =VLOOKUP($CM12,AVEHRS_TABLE,4,0)*AVE_WKS_PER_MONTH -> 25.8 | CQ12: =VLOOKUP($CM12,AVEHRS_TABLE,5,0)*AVE_WKS_PER_MONTH -> 38.7 | CR12: =VLOOKUP($CM12,AVEHRS_TABLE,6,0)*AVE_WKS_PER_MONTH -> 25.8 | CS12: =VLOOKUP($CM12,AVEHRS_TABLE,7,0)*AVE_WKS_PER_MONTH/2 -> 19.35 | CT12: =IF(W12>0,CHOOSE(W12,$CN12,$CO12,$CP12,$CQ12,$CR12,$CS12),0) -> 38.7 | CU12: 38.7 | CV12: 38.7 | CW12: 25.8 | CX12: 25.8 | CY12: 25.8 | CZ12: 0 | DA12: 0 | DB12: 0 | DC12: 0 | DD12: 0 | DE12: 0 | DF12: 0 | DG12: 0 | DH12: 0 | DI12: 0 | DJ12: =IF(AM12>0,CHOOSE(AM12,$CN12,$CO12,$CP12,$CQ12,$CR12,$CS12),0) -> 0 | DK12: 19.35 | DL12: 0 | DM12: 0 | DN12: 0 | DO12: 0 | DP12: 0 | DQ12: 0 | DR12: 0 | DS12: 0 | DT12: 0 | DU12: 0 | DV12: 0 | DW12: 0 | DX12: 0 | DY12: 0 | DZ12: =IF(BC12>0,CHOOSE(BC12,$CN12,$CO12,$CP12,$CQ12,$CR12,$CS12),0) -> 0 | EA12: 0 | EB12: 0 | EC12: 0 | ED12: 0 | EE12: 0 | EF12: 0 | EG12: 0 | EH12: 0 | EI12: 0 | EJ12: 0 | EK12: 0 | EL12: 0 | EM12: 0 | EN12: 0 | EO12: 0 | EP12: =IF(BS12>0,CHOOSE(BS12,$CN12,$CO12,$CP12,$CQ12,$CR12,$CS12),0) -> 0 | EQ12: 0 | ER12: 0 | ES12: 0 | ET12: 0 | EU12: 0 | EV12: 0 | EW12: 0 | EX12: 0 | EY12: 0 | EZ12: 0 | FA12: 0 | FB12: 0 | FC12: 0 | FD12: 0 | FE12: 0 | FF12: =IF(CI12>0,CHOOSE(CI12,$CN12,$CO12,$CP12,$CQ12,$CR12,$CS12),0) -> 0 | FG12: 0 | FH12: END
A13: St George's PS (Gravesham) | B13: North | C13: 7100000 | D13: 6571498.71 | G13: 7100000 | I13: 646.72 | K13: 2017-03-31 | L13: 2017-06-01 | M13: 2017-09-04 | N13: 2017-12-18 | O13: 2018-08-21 | P13: =((O13-L13)/7)+2 -> 65.71428571 | Q13: 2019-05-31 | S13: 2017-12-07 | T13: 2018-08-22 | U13: 2019-05-31 | V13: =(U13-T13)/7 -> 40.28571429 | W13: 4 | X13: 4 | Y13: 5 | Z13: 5 | AA13: 5 | AB13: 5 | AC13: 5 | AD13: 5 | AE13: 5 | AF13: 5 | AG13: 5 | AS13: 6 | CK13: Ongoing | CL13: =B13&", "&E13&", "&CK13 ->  | CM13: £4 to £8 million | CN13: 25.8 | CO13: 25.8 | CP13: 51.6 | CQ13: 73.1 | CR13: 51.6 | CS13: =VLOOKUP($CM13,AVEHRS_TABLE,7,0)*AVE_WKS_PER_MONTH*70% -> 36.12 | CT13: 73.1 | CU13: 73.1 | CV13: 51.6 | CW13: 51.6 | CX13: 51.6 | CY13: 51.6 | CZ13: 51.6 | DA13: 51.6 | DB13: 51.6 | DC13: 51.6 | DD13: 51.6 | DE13: 0 | DF13: 0 | DG13: 0 | DH13: 0 | DI13: 0 | DJ13: 0 | DK13: 0 | DL13: 0 | DM13: 0 | DN13: 0 | DO13: 0 | DP13: 36.12 | DQ13: 0 | DR13: 0 | DS13: 0 | DT13: 0 | DU13: 0 | DV13: 0 | DW13: 0 | DX13: 0 | DY13: 0 | DZ13: 0 | EA13: 0 | EB13: 0 | EC13: 0 | ED13: 0 | EE13: 0 | EF13: 0 | EG13: 0 | EH13: 0 | EI13: 0 | EJ13: 0 | EK13: 0 | EL13: 0 | EM13: 0 | EN13: 0 | EO13: 0 | EP13: 0 | EQ13: 0 | ER13: 0 | ES13: 0 | ET13: 0 | EU13: 0 | EV13: 0 | EW13: 0 | EX13: 0 | EY13: 0 | EZ13: 0 | FA13: 0 | FB13: 0 | FC13: 0 | FD13: 0 | FE13: 0 | FF13: 0 | FG13: 0 | FH13: END
A14: St Johns Catholic PS, Phase 1 | G14: 975050 | I14: 45.15 | K14: - | L14: 2015-10-16 | M14: - | N14: 2016-06-03 | O14: 2017-01-09 | P14: 66.42857143 | Q14: 2018-07-10 | S14: 2017-06-12 | T14: 2017-08-08 | U14: 2018-07-04 | V14: 47.14285714 | W14: 5 | AI14: 6 | CK14: Ongoing | CM14: less than £1m | CN14: 25.8 | CO14: 12.9 | CP14: 25.8 | CQ14: 38.7 | CR14: 25.8 | CS14: =VLOOKUP($CM14,AVEHRS_TABLE,7,0)*AVE_WKS_PER_MONTH/2 -> 19.35 | CT14: 25.8 | CU14: 0 | CV14: 0 | CW14: 0 | CX14: 0 | CY14: 0 | CZ14: 0 | DA14: 0 | DB14: 0 | DC14: 0 | DD14: 0 | DE14: 0 | DF14: 19.35 | DG14: 0 | DH14: 0 | DI14: 0 | DJ14: 0 | DK14: 0 | DL14: 0 | DM14: 0 | DN14: 0 | DO14: 0 | DP14: 0 | DQ14: 0 | DR14: 0 | DS14: 0 | DT14: 0 | DU14: 0 | DV14: 0 | DW14: 0 | DX14: 0 | DY14: 0 | DZ14: 0 | EA14: 0 | EB14: 0 | EC14: 0 | ED14: 0 | EE14: 0 | EF14: 0 | EG14: 0 | EH14: 0 | EI14: 0 | EJ14: 0 | EK14: 0 | EL14: 0 | EM14: 0 | EN14: 0 | EO14: 0 | EP14: 0 | EQ14: 0 | ER14: 0 | ES14: 0 | ET14: 0 | EU14: 0 | EV14: 0 | EW14: 0 | EX14: 0 | EY14: 0 | EZ14: 0 | FA14: 0 | FB14: 0 | FC14: 0 | FD14: 0 | FE14: 0 | FF14: 0 | FG14: 0 | FH14: END
A15: Portal House | G15: 10890000 | I15: 197.8 | K15: - | L15: - | M15: - | N15: - | O15: 2016-05-31 | Q15: 2018-08-31 | S15: 2016-02-12 | T15: 2016-05-31 | U15: 2018-08-31 | V15: 117.4285714 | W15: 5 | X15: 5 | AJ15: 6 | CK15: Ongoing | CM15: over £8 million | CN15: 25.8 | CO15: 38.7 | CP15: 51.6 | CQ15: 60.2 | CR15: 73.1 | CS15: =VLOOKUP($CM15,AVEHRS_TABLE,7,0)*AVE_WKS_PER_MONTH -> 51.6 | CT15: 73.1 | CU15: 73.1 | CV15: 0 | CW15: 0 | CX15: 0 | CY15: 0 | CZ15: 0 | DA15: 0 | DB15: 0 | DC15: 0 | DD15: 0 | DE15: 0 | DF15: 0 | DG15: 51.6 | DH15: 0 | DI15: 0 | DJ15: 0 | DK15: 0 | DL15: 0 | DM15: 0 | DN15: 0 | DO15: 0 | DP15: 0 | DQ15: 0 | DR15: 0 | DS15: 0 | DT15: 0 | DU15: 0 | DV15: 0 | DW15: 0 | DX15: 0 | DY15: 0 | DZ15: 0 | EA15: 0 | EB15: 0 | EC15: 0 | ED15: 0 | EE15: 0 | EF15: 0 | EG15: 0 | EH15: 0 | EI15: 0 | EJ15: 0 | EK15: 0 | EL15: 0 | EM15: 0 | EN15: 0 | EO15: 0 | EP15: 0 | EQ15: 0 | ER15: 0 | ES15: 0 | ET15: 0 | EU15: 0 | EV15: 0 | EW15: 0 | EX15: 0 | EY15: 0 | EZ15: 0 | FA15: 0 | FB15: 0 | FC15: 0 | FD15: 0 | FE15: 0 | FF15: 0 | FG15: 0 | FH15: END
A16: St Johns Catholic PS, Phase 2 | G16: 3524950 | I16: 148.35 | K16: - | L16: 2015-10-16 | M16: - | N16: 2016-06-03 | O16: 2018-03-01 | P16: 125.8571429 | Q16: 2018-11-12 | S16: 2017-06-12 | T16: 2018-07-23 | U16: 2018-11-12 | V16: 16 | W16: 5 | X16: 5 | Y16: 5 | Z16: 5 | AA16: 5 | AM16: 6 | CK16: Ongoing | CM16: £1 to £4 million | CN16: 25.8 | CO16: 12.9 | CP16: 25.8 | CQ16: 38.7 | CR16: 25.8 | CS16: =VLOOKUP($CM16,AVEHRS_TABLE,7,0)*AVE_WKS_PER_MONTH/2 -> 19.35 | CT16: 25.8 | CU16: 25.8 | CV16: 25.8 | CW16: 25.8 | CX16: 25.8 | CY16: 0 | CZ16: 0 | DA16: 0 | DB16: 0 | DC16: 0 | DD16: 0 | DE16: 0 | DF16: 0 | DG16: 0 | DH16: 0 | DI16: 0 | DJ16: 19.35 | DK16: 0 | DL16: 0 | DM16: 0 | DN16: 0 | DO16: 0 | DP16: 0 | DQ16: 0 | DR16: 0 | DS16: 0 | DT16: 0 | DU16: 0 | DV16: 0 | DW16: 0 | DX16: 0 | DY16: 0 | DZ16: 0 | EA16: 0 | EB16: 0 | EC16: 0 | ED16: 0 | EE16: 0 | EF16: 0 | EG16: 0 | EH16: 0 | EI16: 0 | EJ16: 0 | EK16: 0 | EL16: 0 | EM16: 0 | EN16: 0 | EO16: 0 | EP16: 0 | EQ16: 0 | ER16: 0 | ES16: 0 | ET16: 0 | EU16: 0 | EV16: 0 | EW16: 0 | EX16: 0 | EY16: 0 | EZ16: 0 | FA16: 0 | FB16: 0 | FC16: 0 | FD16: 0 | FE16: 0 | FF16: 0 | FG16: 0 | FH16: END
A17: St Johns Catholic PS, Phase 3 | G17: 0 | I17: 51.6 | K17: - | L17: 2015-10-16 | M17: - | N17: 2016-06-03 | O17: 2018-06-18 | P17: 141.4285714 | Q17: 2019-06-26 | S17: 2017-06-12 | T17: 2018-07-23 | U17: 2019-06-26 | V17: 48.28571429 | W17: 5 | X17: 5 | Y17: 5 | Z17: 5 | AA17: 5 | AB17: 5 | AC17: 5 | AD17: 5 | AE17: 5 | AF17: 5 | AG17: 5 | AH17: 5 | AT17: 6 | CK17: Ongoing | CM17: see earlier phase | CN17: 0 | CO17: 0 | CP17: 0 | CQ17: 0 | CR17: 0 | CS17: =VLOOKUP($CM17,AVEHRS_TABLE,7,0)*AVE_WKS_PER_MONTH -> 51.6 | CT17: 0 | CU17: 0 | CV17: 0 | CW17: 0 | CX17: 0 | CY17: 0 | CZ17: 0 | DA17: 0 | DB17: 0 | DC17: 0 | DD17: 0 | DE17: 0 | DF17: 0 | DG17: 0 | DH17: 0 | DI17: 0 | DJ17: 0 | DK17: 0 | DL17: 0 | DM17: 0 | DN17: 0 | DO17: 0 | DP17: 0 | DQ17: 51.6 | DR17: 0 | DS17: 0 | DT17: 0 | DU17: 0 | DV17: 0 | DW17: 0 | DX17: 0 | DY17: 0 | DZ17: 0 | EA17: 0 | EB17: 0 | EC17: 0 | ED17: 0 | EE17: 0 | EF17: 0 | EG17: 0 | EH17: 0 | EI17: 0 | EJ17: 0 | EK17: 0 | EL17: 0 | EM17: 0 | EN17: 0 | EO17: 0 | EP17: 0 | EQ17: 0 | ER17: 0 | ES17: 0 | ET17: 0 | EU17: 0 | EV17: 0 | EW17: 0 | EX17: 0 | EY17: 0 | EZ17: 0 | FA17: 0 | FB17: 0 | FC17: 0 | FD17: 0 | FE17: 0 | FF17: 0 | FG17: 0 | FH17: END
A18: Wilmington Academy, Phase 1 | G18: 7200000 | I18: phased project | K18: 2015-09-22 | L18: 2015-09-22 | M18: 2015-09-22 | N18: Phase 1-3 | O18: 2016-07-01 | P18: 42.42857143 | Q18: 2016-08-31 | S18: 00:00:00 | T18: 00:00:00 | U18: 00:00:00 | V18: n/a | W18: 5 | X18: 5 | CK18: Ongoing | CM18: see earlier phase | CN18: 0 | CO18: 0 | CP18: 0 | CQ18: 0 | CR18: 0 | CS18: =VLOOKUP($CM18,AVEHRS_TABLE,7,0)*AVE_WKS_PER_MONTH -> 51.6 | CT18: 0 | CU18: 0 | CV18: 0 | CW18: 0 | CX18: 0 | CY18: 0 | CZ18: 0 | DA18: 0 | DB18: 0 | DC18: 0 | DD18: 0 | DE18: 0 | DF18: 0 | DG18: 0 | DH18: 0 | DI18: 0 | DJ18: 0 | DK18: 0 | DL18: 0 | DM18: 0 | DN18: 0 | DO18: 0 | DP18: 0 | DQ18: 0 | DR18: 0 | DS18: 0 | DT18: 0 | DU18: 0 | DV18: 0 | DW18: 0 | DX18: 0 | DY18: 0 | DZ18: 0 | EA18: 0 | EB18: 0 | EC18: 0 | ED18: 0 | EE18: 0 | EF18: 0 | EG18: 0 | EH18: 0 | EI18: 0 | EJ18: 0 | EK18: 0 | EL18: 0 | EM18: 0 | EN18: 0 | EO18: 0 | EP18: 0 | EQ18: 0 | ER18: 0 | ES18: 0 | ET18: 0 | EU18: 0 | EV18: 0 | EW18: 0 | EX18: 0 | EY18: 0 | EZ18: 0 | FA18: 0 | FB18: 0 | FC18: 0 | FD18: 0 | FE18: 0 | FF18: 0 | FG18: 0 | FH18: END
A19: Wilmington Academy, Phase 2 | G19: 0 | I19: phased project | K19: 2015-09-22 | L19: 2015-09-22 | M19: 2015-09-22 | N19: Phase 1-3 | O19: 2017-07-01 | P19: 94.57142857 | Q19: 2017-07-03 | S19: 00:00:00 | T19: 2017-07-25 | U19: 2017-08-31 | V19: 5.285714286 | W19: 5 | X19: 5 | CK19: Ongoing | CM19: see earlier phase | CN19: 0 | CO19: 0 | CP19: 0 | CQ19: 0 | CR19: 0 | CS19: =VLOOKUP($CM19,AVEHRS_TABLE,7,0)*AVE_WKS_PER_MONTH -> 51.6 | CT19: 0 | CU19: 0 | CV19: 0 | CW19: 0 | CX19: 0 | CY19: 0 | CZ19: 0 | DA19: 0 | DB19: 0 | DC19: 0 | DD19: 0 | DE19: 0 | DF19: 0 | DG19: 0 | DH19: 0 | DI19: 0 | DJ19: 0 | DK19: 0 | DL19: 0 | DM19: 0 | DN19: 0 | DO19: 0 | DP19: 0 | DQ19: 0 | DR19: 0 | DS19: 0 | DT19: 0 | DU19: 0 | DV19: 0 | DW19: 0 | DX19: 0 | DY19: 0 | DZ19: 0 | EA19: 0 | EB19: 0 | EC19: 0 | ED19: 0 | EE19: 0 | EF19: 0 | EG19: 0 | EH19: 0 | EI19: 0 | EJ19: 0 | EK19: 0 | EL19: 0 | EM19: 0 | EN19: 0 | EO19: 0 | EP19: 0 | EQ19: 0 | ER19: 0 | ES19: 0 | ET19: 0 | EU19: 0 | EV19: 0 | EW19: 0 | EX19: 0 | EY19: 0 | EZ19: 0 | FA19: 0 | FB19: 0 | FC19: 0 | FD19: 0 | FE19: 0 | FF19: 0 | FG19: 0 | FH19: END
A20: Wilmington Academy, Phase 3 | G20: 0 | I20: phased project | K20: 2015-09-22 | L20: 2015-09-22 | M20: 2015-09-22 | N20: Phase 1-3 | O20: 2018-07-27 | P20: 150.4285714 | Q20: 2018-08-31 | S20: N/A | T20: 2018-07-27 | U20: 2018-08-31 | V20: 5 | W20: 5 | X20: 5 | CK20: Ongoing | CM20: see earlier phase | CN20: 0 | CO20: 0 | CP20: 0 | CQ20: 0 | CR20: 0 | CS20: =VLOOKUP($CM20,AVEHRS_TABLE,7,0)*AVE_WKS_PER_MONTH -> 51.6 | CT20: 0 | CU20: 0 | CV20: 0 | CW20: 0 | CX20: 0 | CY20: 0 | CZ20: 0 | DA20: 0 | DB20: 0 | DC20: 0 | DD20: 0 | DE20: 0 | DF20: 0 | DG20: 0 | DH20: 0 | DI20: 0 | DJ20: 0 | DK20: 0 | DL20: 0 | DM20: 0 | DN20: 0 | DO20: 0 | DP20: 0 | DQ20: 0 | DR20: 0 | DS20: 0 | DT20: 0 | DU20: 0 | DV20: 0 | DW20: 0 | DX20: 0 | DY20: 0 | DZ20: 0 | EA20: 0 | EB20: 0 | EC20: 0 | ED20: 0 | EE20: 0 | EF20: 0 | EG20: 0 | EH20: 0 | EI20: 0 | EJ20: 0 | EK20: 0 | EL20: 0 | EM20: 0 | EN20: 0 | EO20: 0 | EP20: 0 | EQ20: 0 | ER20: 0 | ES20: 0 | ET20: 0 | EU20: 0 | EV20: 0 | EW20: 0 | EX20: 0 | EY20: 0 | EZ20: 0 | FA20: 0 | FB20: 0 | FC20: 0 | FD20: 0 | FE20: 0 | FF20: 0 | FG20: 0 | FH20: END
A21: Wilmington Academy, Phase 4 | G21: 7200000 | I21: =SUM(CT21:FG21) -> 1050.92 | K21: 2015-09-22 | L21: 2015-09-22 | M21: 2015-09-22 | N21: 2018-05-20 | O21: 2018-10-20 | P21: 162.5714286 | Q21: 2020-02-14 | S21: 2018-07-11 | T21: 2018-10-20 | U21: 2019-12-31 | V21: 62.42857143 | W21: 4 | X21: 4 | Y21: 4 | Z21: 4 | AA21: 5 | AB21: 5 | AC21: 5 | AD21: 5 | AE21: 5 | AF21: 5 | AG21: 5 | AH21: 5 | AI21: 5 | AJ21: 5 | AK21: 5 | AL21: 5 | AM21: 5 | AN21: 5 | AZ21: 6 | CK21: Ongoing | CM21: £4 to £8 million | CN21: 25.8 | CO21: 25.8 | CP21: 51.6 | CQ21: 73.1 | CR21: 51.6 | CS21: =VLOOKUP($CM21,AVEHRS_TABLE,7,0)*AVE_WKS_PER_MONTH*70% -> 36.12 | CT21: 73.1 | CU21: 73.1 | CV21: 73.1 | CW21: 73.1 | CX21: 51.6 | CY21: 51.6 | CZ21: 51.6 | DA21: 51.6 | DB21: 51.6 | DC21: 51.6 | DD21: 51.6 | DE21: 51.6 | DF21: 51.6 | DG21: 51.6 | DH21: 51.6 | DI21: 51.6 | DJ21: 51.6 | DK21: 51.6 | DL21: 0 | DM21: 0 | DN21: 0 | DO21: 0 | DP21: 0 | DQ21: 0 | DR21: 0 | DS21: 0 | DT21: 0 | DU21: 0 | DV21: 0 | DW21: 36.12 | DX21: 0 | DY21: 0 | DZ21: 0 | EA21: 0 | EB21: 0 | EC21: 0 | ED21: 0 | EE21: 0 | EF21: 0 | EG21: 0 | EH21: 0 | EI21: 0 | EJ21: 0 | EK21: 0 | EL21: 0 | EM21: 0 | EN21: 0 | EO21: 0 | EP21: 0 | EQ21: 0 | ER21: 0 | ES21: 0 | ET21: 0 | EU21: 0 | EV21: 0 | EW21: 0 | EX21: 0 | EY21: 0 | EZ21: 0 | FA21: 0 | FB21: 0 | FC21: 0 | FD21: 0 | FE21: 0 | FF21: 0 | FG21: 0 | FH21: END
A22: Wilmington Academy, Phase 5 | G22: 0 | I22: phased project | K22: 2015-09-22 | L22: 2015-09-22 | M22: 2015-09-22 | N22: 00:00:00 | O22: 2018-05-30 | P22: 142.1428571 | Q22: 2018-08-31 | S22: 2018-07-11 | T22: 2018-08-20 | U22: 2018-08-31 | V22: 1.571428571 | X22: 5 | CK22: Ongoing | CM22: see earlier phase | CN22: 0 | CO22: 0 | CP22: 0 | CQ22: 0 | CR22: 0 | CS22: =VLOOKUP($CM22,AVEHRS_TABLE,7,0)*AVE_WKS_PER_MONTH -> 51.6 | CT22: 0 | CU22: 0 | CV22: 0 | CW22: 0 | CX22: 0 | CY22: 0 | CZ22: 0 | DA22: 0 | DB22: 0 | DC22: 0 | DD22: 0 | DE22: 0 | DF22: 0 | DG22: 0 | DH22: 0 | DI22: 0 | DJ22: 0 | DK22: 0 | DL22: 0 | DM22: 0 | DN22: 0 | DO22: 0 | DP22: 0 | DQ22: 0 | DR22: 0 | DS22: 0 | DT22: 0 | DU22: 0 | DV22: 0 | DW22: 0 | DX22: 0 | DY22: 0 | DZ22: 0 | EA22: 0 | EB22: 0 | EC22: 0 | ED22: 0 | EE22: 0 | EF22: 0 | EG22: 0 | EH22: 0 | EI22: 0 | EJ22: 0 | EK22: 0 | EL22: 0 | EM22: 0 | EN22: 0 | EO22: 0 | EP22: 0 | EQ22: 0 | ER22: 0 | ES22: 0 | ET22: 0 | EU22: 0 | EV22: 0 | EW22: 0 | EX22: 0 | EY22: 0 | EZ22: 0 | FA22: 0 | FB22: 0 | FC22: 0 | FD22: 0 | FE22: 0 | FF22: 0 | FG22: 0 | FH22: END
A23: Wilmington Academy, Phase 6 | G23: 0 | I23: =SUM(CT23:FG23) -> 51.6 | K23: 2015-09-22 | L23: 2015-09-22 | M23: 2019-02-25 | N23: 2019-03-17 | O23: 2019-05-29 | P23: 194.1428571 | Q23: 2019-08-31 | S23: N/A | T23: 2019-07-23 | U23: 2019-08-31 | V23: 5.571428571 | AD23: 2 | AE23: 3 | AF23: 4 | AG23: 4 | AH23: 5 | AI23: 5 | AJ23: 5 | AV23: 6 | CK23: Ongoing | CM23: see earlier phase | CN23: 0 | CO23: 0 | CP23: 0 | CQ23: 0 | CR23: 0 | CS23: =VLOOKUP($CM23,AVEHRS_TABLE,7,0)*AVE_WKS_PER_MONTH -> 51.6 | CT23: 0 | CU23: 0 | CV23: 0 | CW23: 0 | CX23: 0 | CY23: 0 | CZ23: 0 | DA23: 0 | DB23: 0 | DC23: 0 | DD23: 0 | DE23: 0 | DF23: 0 | DG23: 0 | DH23: 0 | DI23: 0 | DJ23: 0 | DK23: 0 | DL23: 0 | DM23: 0 | DN23: 0 | DO23: 0 | DP23: 0 | DQ23: 0 | DR23: 0 | DS23: 51.6 | DT23: 0 | DU23: 0 | DV23: 0 | DW23: 0 | DX23: 0 | DY23: 0 | DZ23: 0 | EA23: 0 | EB23: 0 | EC23: 0 | ED23: 0 | EE23: 0 | EF23: 0 | EG23: 0 | EH23: 0 | EI23: 0 | EJ23: 0 | EK23: 0 | EL23: 0 | EM23: 0 | EN23: 0 | EO23: 0 | EP23: 0 | EQ23: 0 | ER23: 0 | ES23: 0 | ET23: 0 | EU23: 0 | EV23: 0 | EW23: 0 | EX23: 0 | EY23: 0 | EZ23: 0 | FA23: 0 | FB23: 0 | FC23: 0 | FD23: 0 | FE23: 0 | FF23: 0 | FG23: 0 | FH23: END
A24: Wilmington Grammar, Phase 1 | G24: 3900000 | I24: phased project | K24: 00:00:00 | L24: 00:00:00 | M24: 00:00:00 | N24: 00:00:00 | O24: 00:00:00 | P24: 2 | Q24: 00:00:00 | S24: 00:00:00 | T24: 00:00:00 | U24: 00:00:00 | V24: n/a | CK24: Ongoing | CM24: see earlier phase | CN24: 0 | CO24: 0 | CP24: 0 | CQ24: 0 | CR24: 0 | CS24: =VLOOKUP($CM24,AVEHRS_TABLE,7,0)*AVE_WKS_PER_MONTH -> 51.6 | CT24: 0 | CU24: 0 | CV24: 0 | CW24: 0 | CX24: 0 | CY24: 0 | CZ24: 0 | DA24: 0 | DB24: 0 | DC24: 0 | DD24: 0 | DE24: 0 | DF24: 0 | DG24: 0 | DH24: 0 | DI24: 0 | DJ24: 0 | DK24: 0 | DL24: 0 | DM24: 0 | DN24: 0 | DO24: 0 | DP24: 0 | DQ24: 0 | DR24: 0 | DS24: 0 | DT24: 0 | DU24: 0 | DV24: 0 | DW24: 0 | DX24: 0 | DY24: 0 | DZ24: 0 | EA24: 0 | EB24: 0 | EC24: 0 | ED24: 0 | EE24: 0 | EF24: 0 | EG24: 0 | EH24: 0 | EI24: 0 | EJ24: 0 | EK24: 0 | EL24: 0 | EM24: 0 | EN24: 0 | EO24: 0 | EP24: 0 | EQ24: 0 | ER24: 0 | ES24: 0 | ET24: 0 | EU24: 0 | EV24: 0 | EW24: 0 | EX24: 0 | EY24: 0 | EZ24: 0 | FA24: 0 | FB24: 0 | FC24: 0 | FD24: 0 | FE24: 0 | FF24: 0 | FG24: 0 | FH24: END
A25: Wilmington Grammar, Phase 2 | G25: 0 | I25: phased project | K25: 2015-09-22 | L25: 2015-09-22 | M25: 2015-09-22 | N25: 2018-05-15 | O25: 00:00:00 | P25: -6036.428571 | Q25: 2017-08-31 | S25: 00:00:00 | T25: 00:00:00 | U25: 00:00:00 | V25: n/a | CK25: Ongoing | CM25: see earlier phase | CN25: 0 | CO25: 0 | CP25: 0 | CQ25: 0 | CR25: 0 | CS25: =VLOOKUP($CM25,AVEHRS_TABLE,7,0)*AVE_WKS_PER_MONTH -> 51.6 | CT25: 0 | CU25: 0 | CV25: 0 | CW25: 0 | CX25: 0 | CY25: 0 | CZ25: 0 | DA25: 0 | DB25: 0 | DC25: 0 | DD25: 0 | DE25: 0 | DF25: 0 | DG25: 0 | DH25: 0 | DI25: 0 | DJ25: 0 | DK25: 0 | DL25: 0 | DM25: 0 | DN25: 0 | DO25: 0 | DP25: 0 | DQ25: 0 | DR25: 0 | DS25: 0 | DT25: 0 | DU25: 0 | DV25: 0 | DW25: 0 | DX25: 0 | DY25: 0 | DZ25: 0 | EA25: 0 | EB25: 0 | EC25: 0 | ED25: 0 | EE25: 0 | EF25: 0 | EG25: 0 | EH25: 0 | EI25: 0 | EJ25: 0 | EK25: 0 | EL25: 0 | EM25: 0 | EN25: 0 | EO25: 0 | EP25: 0 | EQ25: 0 | ER25: 0 | ES25: 0 | ET25: 0 | EU25: 0 | EV25: 0 | EW25: 0 | EX25: 0 | EY25: 0 | EZ25: 0 | FA25: 0 | FB25: 0 | FC25: 0 | FD25: 0 | FE25: 0 | FF25: 0 | FG25: 0 | FH25: END
A26: Wilmington Grammar, Phase 3 | G26: 3900000 | I26: =SUM(CT26:FG26) -> 535.35 | K26: 2015-09-22 | L26: 2015-09-22 | M26: 2015-09-22 | N26: 2018-05-20 | O26: 2018-10-20 | P26: 162.5714286 | Q26: 2020-02-14 | S26: 2018-07-11 | T26: 2018-10-20 | U26: 2019-12-31 | V26: 62.42857143 | W26: 4 | X26: 4 | Y26: 4 | Z26: 4 | AA26: 5 | AB26: 5 | AC26: 5 | AD26: 5 | AE26: 5 | AF26: 5 | AG26: 5 | AH26: 5 | AI26: 5 | AJ26: 5 | AK26: 5 | AL26: 5 | AM26: 5 | AN26: 5 | AZ26: 6 | CK26: Ongoing | CM26: £1 to £4 million | CN26: 25.8 | CO26: 12.9 | CP26: 25.8 | CQ26: 38.7 | CR26: 25.8 | CS26: =VLOOKUP($CM26,AVEHRS_TABLE,7,0)*AVE_WKS_PER_MONTH/2 -> 19.35 | CT26: 38.7 | CU26: 38.7 | CV26: 38.7 | CW26: 38.7 | CX26: 25.8 | CY26: 25.8 | CZ26: 25.8 | DA26: 25.8 | DB26: 25.8 | DC26: 25.8 | DD26: 25.8 | DE26: 25.8 | DF26: 25.8 | DG26: 25.8 | DH26: 25.8 | DI26: 25.8 | DJ26: 25.8 | DK26: 25.8 | DL26: 0 | DM26: 0 | DN26: 0 | DO26: 0 | DP26: 0 | DQ26: 0 | DR26: 0 | DS26: 0 | DT26: 0 | DU26: 0 | DV26: 0 | DW26: 19.35 | DX26: 0 | DY26: 0 | DZ26: 0 | EA26: 0 | EB26: 0 | EC26: 0 | ED26: 0 | EE26: 0 | EF26: 0 | EG26: 0 | EH26: 0 | EI26: 0 | EJ26: 0 | EK26: 0 | EL26: 0 | EM26: 0 | EN26: 0 | EO26: 0 | EP26: 0 | EQ26: 0 | ER26: 0 | ES26: 0 | ET26: 0 | EU26: 0 | EV26: 0 | EW26: 0 | EX26: 0 | EY26: 0 | EZ26: 0 | FA26: 0 | FB26: 0 | FC26: 0 | FD26: 0 | FE26: 0 | FF26: 0 | FG26: 0 | FH26: END
A27: Wilmington Grammar, Phase 4 | G27: 0 | I27: =SUM(CT27:FG27) -> 51.6 | K27: 2015-09-22 | L27: 2015-09-22 | M27: 2015-09-22 | N27: 2018-05-20 | O27: 2018-10-20 | P27: 162.5714286 | Q27: 2020-02-14 | S27: 2018-07-11 | T27: 2018-10-20 | U27: 2019-12-31 | V27: 62.42857143 | W27: 4 | X27: 4 | Y27: 4 | Z27: 4 | AA27: 5 | AB27: 5 | AC27: 5 | AD27: 5 | AE27: 5 | AF27: 5 | AG27: 5 | AH27: 5 | AI27: 5 | AJ27: 5 | AK27: 5 | AL27: 5 | AM27: 5 | AN27: 5 | AZ27: 6 | CK27: Ongoing | CM27: see earlier phase | CN27: 0 | CO27: 0 | CP27: 0 | CQ27: 0 | CR27: 0 | CS27: =VLOOKUP($CM27,AVEHRS_TABLE,7,0)*AVE_WKS_PER_MONTH -> 51.6 | CT27: 0 | CU27: 0 | CV27: 0 | CW27: 0 | CX27: 0 | CY27: 0 | CZ27: 0 | DA27: 0 | DB27: 0 | DC27: 0 | DD27: 0 | DE27: 0 | DF27: 0 | DG27: 0 | DH27: 0 | DI27: =IF(AL27>0,CHOOSE(AL27,$CN27,$CO27,$CP27,$CQ27,$CR27,$CS27),0) -> 0 | DJ27: 0 | DK27: 0 | DL27: 0 | DM27: 0 | DN27: 0 | DO27: 0 | DP27: 0 | DQ27: 0 | DR27: 0 | DS27: 0 | DT27: 0 | DU27: 0 | DV27: 0 | DW27: 51.6 | DX27: 0 | DY27: =IF(BB27>0,CHOOSE(BB27,$CN27,$CO27,$CP27,$CQ27,$CR27,$CS27),0) -> 0 | DZ27: 0 | EA27: 0 | EB27: 0 | EC27: 0 | ED27: 0 | EE27: 0 | EF27: 0 | EG27: 0 | EH27: 0 | EI27: 0 | EJ27: 0 | EK27: 0 | EL27: 0 | EM27: 0 | EN27: 0 | EO27: =IF(BR27>0,CHOOSE(BR27,$CN27,$CO27,$CP27,$CQ27,$CR27,$CS27),0) -> 0 | EP27: 0 | EQ27: 0 | ER27: 0 | ES27: 0 | ET27: 0 | EU27: 0 | EV27: 0 | EW27: 0 | EX27: 0 | EY27: 0 | EZ27: 0 | FA27: 0 | FB27: 0 | FC27: 0 | FD27: 0 | FE27: 0 | FF27: 0 | FG27: 0 | FH27: END
A28: Mayfield Grammar, Phase 1 | G28: 8900000 | I28: phased project | K28: 00:00:00 | L28: 00:00:00 | M28: 00:00:00 | N28: 00:00:00 | O28: 00:00:00 | P28: 2 | Q28: 00:00:00 | S28: 00:00:00 | T28: 00:00:00 | U28: 00:00:00 | V28: n/a | CK28: Ongoing | CM28: see earlier phase | CN28: 0 | CO28: 0 | CP28: 0 | CQ28: 0 | CR28: 0 | CS28: 51.6 | CT28: =IF(W28>0,CHOOSE(W28,$CN28,$CO28,$CP28,$CQ28,$CR28,$CS28),0) -> 0 | CU28: 0 | CV28: 0 | CW28: 0 | CX28: 0 | CY28: 0 | CZ28: 0 | DA28: 0 | DB28: 0 | DC28: 0 | DD28: 0 | DE28: 0 | DF28: 0 | DG28: 0 | DH28: 0 | DI28: 0 | DJ28: 0 | DK28: 0 | DL28: 0 | DM28: 0 | DN28: 0 | DO28: 0 | DP28: 0 | DQ28: 0 | DR28: 0 | DS28: 0 | DT28: 0 | DU28: 0 | DV28: 0 | DW28: 0 | DX28: 0 | DY28: 0 | DZ28: 0 | EA28: 0 | EB28: 0 | EC28: 0 | ED28: 0 | EE28: 0 | EF28: 0 | EG28: 0 | EH28: 0 | EI28: 0 | EJ28: 0 | EK28: 0 | EL28: 0 | EM28: 0 | EN28: 0 | EO28: 0 | EP28: 0 | EQ28: 0 | ER28: 0 | ES28: 0 | ET28: 0 | EU28: 0 | EV28: 0 | EW28: 0 | EX28: 0 | EY28: 0 | EZ28: 0 | FA28: 0 | FB28: 0 | FC28: 0 | FD28: 0 | FE28: =IF(CH28>0,CHOOSE(CH28,$CN28,$CO28,$CP28,$CQ28,$CR28,$CS28),0) -> 0 | FF28: 0 | FG28: 0 | FH28: END
A29: Mayfield Grammar, Phase 2 | G29: see Phase 1 | I29: phased project | K29: 2015-09-22 | L29: 2015-09-22 | M29: 2015-09-22 | N29: 2018-01-08 | O29: 2018-05-30 | P29: 142.1428571 | Q29: 2018-12-31 | S29: 2018-05-16 | T29: 2018-07-03 | U29: 2018-12-31 | V29: 25.85714286 | CK29: Ongoing | CM29: see earlier phase | CN29: 0 | CO29: 0 | CP29: 0 | CQ29: 0 | CR29: 0 | CS29: 51.6 | CT29: 0 | CU29: 0 | CV29: 0 | CW29: 0 | CX29: 0 | CY29: 0 | CZ29: 0 | DA29: 0 | DB29: 0 | DC29: 0 | DD29: 0 | DE29: 0 | DF29: 0 | DG29: 0 | DH29: 0 | DI29: 0 | DJ29: 0 | DK29: 0 | DL29: 0 | DM29: 0 | DN29: 0 | DO29: 0 | DP29: 0 | DQ29: 0 | DR29: 0 | DS29: 0 | DT29: 0 | DU29: 0 | DV29: 0 | DW29: 0 | DX29: 0 | DY29: 0 | DZ29: 0 | EA29: 0 | EB29: 0 | EC29: 0 | ED29: 0 | EE29: 0 | EF29: 0 | EG29: 0 | EH29: 0 | EI29: 0 | EJ29: 0 | EK29: 0 | EL29: 0 | EM29: 0 | EN29: 0 | EO29: 0 | EP29: 0 | EQ29: 0 | ER29: 0 | ES29: 0 | ET29: 0 | EU29: 0 | EV29: 0 | EW29: 0 | EX29: 0 | EY29: 0 | EZ29: 0 | FA29: 0 | FB29: 0 | FC29: 0 | FD29: 0 | FE29: 0 | FF29: 0 | FG29: 0 | FH29: END
A30: Mayfield Grammar, Phase 3 | G30: see Phase 1 | I30: phased project | K30: 2015-09-22 | L30: 2015-09-22 | M30: 2015-09-22 | N30: 2018-05-15 | O30: TBC | Q30: TBC | S30: PD | T30: TBC | U30: TBC | V30: n/a | CK30: Ongoing | CM30: see earlier phase | CN30: 0 | CO30: 0 | CP30: 0 | CQ30: 0 | CR30: 0 | CS30: 51.6 | CT30: 0 | CU30: 0 | CV30: 0 | CW30: 0 | CX30: 0 | CY30: 0 | CZ30: 0 | DA30: 0 | DB30: 0 | DC30: 0 | DD30: 0 | DE30: 0 | DF30: 0 | DG30: 0 | DH30: 0 | DI30: 0 | DJ30: 0 | DK30: 0 | DL30: 0 | DM30: 0 | DN30: 0 | DO30: 0 | DP30: 0 | DQ30: 0 | DR30: 0 | DS30: 0 | DT30: 0 | DU30: 0 | DV30: 0 | DW30: 0 | DX30: 0 | DY30: 0 | DZ30: 0 | EA30: 0 | EB30: 0 | EC30: 0 | ED30: 0 | EE30: 0 | EF30: 0 | EG30: 0 | EH30: 0 | EI30: 0 | EJ30: 0 | EK30: 0 | EL30: 0 | EM30: 0 | EN30: 0 | EO30: 0 | EP30: 0 | EQ30: 0 | ER30: 0 | ES30: 0 | ET30: 0 | EU30: 0 | EV30: 0 | EW30: 0 | EX30: 0 | EY30: 0 | EZ30: 0 | FA30: 0 | FB30: 0 | FC30: 0 | FD30: 0 | FE30: 0 | FF30: 0 | FG30: 0 | FH30: END
A31: Mayfield Grammar, Phase 4 | G31: =G28 -> 8900000 | I31: =SUM(CT31:FG31) -> 898.7 | K31: 2015-09-22 | L31: 2015-09-22 | M31: 2015-09-22 | N31: 2018-09-17 | O31: 2018-12-20 | P31: 171.2857143 | Q31: 2019-07-31 | S31: TBC | T31: 2019-01-06 | U31: 2019-07-31 | V31: 29.42857143 | W31: 3 | X31: 3 | Y31: 3 | Z31: 4 | AA31: 4 | AB31: 4 | AC31: 5 | AD31: 5 | AE31: 5 | AF31: 5 | AG31: 5 | AH31: 5 | AI31: 5 | AU31: 6 | CK31: Ongoing | CM31: over £8 million | CN31: 25.8 | CO31: 38.7 | CP31: 51.6 | CQ31: 60.2 | CR31: 73.1 | CS31: 51.6 | CT31: 51.6 | CU31: 51.6 | CV31: 51.6 | CW31: 60.2 | CX31: 60.2 | CY31: 60.2 | CZ31: 73.1 | DA31: 73.1 | DB31: 73.1 | DC31: 73.1 | DD31: 73.1 | DE31: 73.1 | DF31: 73.1 | DG31: 0 | DH31: 0 | DI31: 0 | DJ31: 0 | DK31: 0 | DL31: 0 | DM31: 0 | DN31: 0 | DO31: 0 | DP31: 0 | DQ31: 0 | DR31: 51.6 | DS31: 0 | DT31: 0 | DU31: 0 | DV31: 0 | DW31: 0 | DX31: 0 | DY31: 0 | DZ31: 0 | EA31: 0 | EB31: 0 | EC31: 0 | ED31: 0 | EE31: 0 | EF31: 0 | EG31: 0 | EH31: 0 | EI31: 0 | EJ31: 0 | EK31: 0 | EL31: 0 | EM31: 0 | EN31: 0 | EO31: 0 | EP31: 0 | EQ31: 0 | ER31: 0 | ES31: 0 | ET31: 0 | EU31: 0 | EV31: 0 | EW31: 0 | EX31: 0 | EY31: 0 | EZ31: 0 | FA31: 0 | FB31: 0 | FC31: 0 | FD31: 0 | FE31: 0 | FF31: 0 | FG31: 0 | FH31: END
A32: Mayfield Grammar, Phase 5 | G32: see Phase 1 | I32: phased project | K32: 2015-09-22 | L32: 2015-09-22 | M32: 2015-09-22 | N32: TBC | O32: TBC | Q32: TBC | S32: TBC | T32: TBC | U32: TBC | V32: n/a | CK32: Ongoing | CM32: see earlier phase | CN32: 0 | CO32: 0 | CP32: 0 | CQ32: 0 | CR32: 0 | CS32: 51.6 | CT32: 0 | CU32: 0 | CV32: 0 | CW32: 0 | CX32: 0 | CY32: 0 | CZ32: 0 | DA32: 0 | DB32: 0 | DC32: 0 | DD32: 0 | DE32: 0 | DF32: 0 | DG32: 0 | DH32: 0 | DI32: 0 | DJ32: 0 | DK32: 0 | DL32: 0 | DM32: 0 | DN32: 0 | DO32: 0 | DP32: 0 | DQ32: 0 | DR32: 0 | DS32: 0 | DT32: 0 | DU32: 0 | DV32: 0 | DW32: 0 | DX32: 0 | DY32: 0 | DZ32: 0 | EA32: 0 | EB32: 0 | EC32: 0 | ED32: 0 | EE32: 0 | EF32: 0 | EG32: 0 | EH32: 0 | EI32: 0 | EJ32: 0 | EK32: 0 | EL32: 0 | EM32: 0 | EN32: 0 | EO32: 0 | EP32: 0 | EQ32: 0 | ER32: 0 | ES32: 0 | ET32: 0 | EU32: 0 | EV32: 0 | EW32: 0 | EX32: 0 | EY32: 0 | EZ32: 0 | FA32: 0 | FB32: 0 | FC32: 0 | FD32: 0 | FE32: 0 | FF32: 0 | FG32: 0 | FH32: END
A33: Mayfield Grammar, Phase 6 | G33: see Phase 1 | I33: phased project | K33: 2015-09-22 | L33: 2015-09-22 | M33: 2015-09-22 | N33: TBC | O33: TBC | Q33: TBC | S33: TBC | T33: TBC | U33: TBC | V33: n/a | CK33: Ongoing | CM33: see earlier phase | CN33: 0 | CO33: 0 | CP33: 0 | CQ33: 0 | CR33: 0 | CS33: 51.6 | CT33: 0 | CU33: 0 | CV33: 0 | CW33: 0 | CX33: 0 | CY33: 0 | CZ33: 0 | DA33: 0 | DB33: 0 | DC33: 0 | DD33: 0 | DE33: 0 | DF33: 0 | DG33: 0 | DH33: 0 | DI33: 0 | DJ33: 0 | DK33: 0 | DL33: 0 | DM33: 0 | DN33: 0 | DO33: 0 | DP33: 0 | DQ33: 0 | DR33: 0 | DS33: 0 | DT33: 0 | DU33: 0 | DV33: 0 | DW33: 0 | DX33: 0 | DY33: 0 | DZ33: 0 | EA33: 0 | EB33: 0 | EC33: 0 | ED33: 0 | EE33: 0 | EF33: 0 | EG33: 0 | EH33: 0 | EI33: 0 | EJ33: 0 | EK33: 0 | EL33: 0 | EM33: 0 | EN33: 0 | EO33: 0 | EP33: 0 | EQ33: 0 | ER33: 0 | ES33: 0 | ET33: 0 | EU33: 0 | EV33: 0 | EW33: 0 | EX33: 0 | EY33: 0 | EZ33: 0 | FA33: 0 | FB33: 0 | FC33: 0 | FD33: 0 | FE33: 0 | FF33: 0 | FG33: 0 | FH33: END
A34: Brent PS | B34: North | C34: 4600000 | D34: 4323325.69 | G34: =VLOOKUP($A34,BASE_DATA,34,0) ->  | I34: =SUM(CT34:FG34) -> 36.12 | K34: 2016-03-01 | L34: 2016-03-31 | M34: 2016-09-26 | N34: 2017-01-20 | O34: 2017-05-25 | P34: 62 | Q34: 2018-06-27 | S34: 16/03/2017 & 03/11/2017 | T34: 2017-03-20 | U34: 2018-06-27 | V34: 66.28571429 | AH34: 6 | CK34: Ongoing | CM34: £4 to £8 million | CN34: 25.8 | CO34: 25.8 | CP34: 51.6 | CQ34: 73.1 | CR34: 51.6 | CS34: =VLOOKUP($CM34,AVEHRS_TABLE,7,0)*AVE_WKS_PER_MONTH*70% -> 36.12 | CT34: 0 | CU34: 0 | CV34: 0 | CW34: 0 | CX34: 0 | CY34: 0 | CZ34: 0 | DA34: 0 | DB34: 0 | DC34: 0 | DD34: 0 | DE34: 36.12 | DF34: 0 | DG34: 0 | DH34: 0 | DI34: 0 | DJ34: 0 | DK34: 0 | DL34: 0 | DM34: 0 | DN34: 0 | DO34: 0 | DP34: 0 | DQ34: 0 | DR34: 0 | DS34: 0 | DT34: 0 | DU34: 0 | DV34: 0 | DW34: 0 | DX34: 0 | DY34: 0 | DZ34: 0 | EA34: 0 | EB34: 0 | EC34: 0 | ED34: 0 | EE34: 0 | EF34: 0 | EG34: 0 | EH34: 0 | EI34: 0 | EJ34: 0 | EK34: 0 | EL34: 0 | EM34: 0 | EN34: 0 | EO34: 0 | EP34: 0 | EQ34: 0 | ER34: 0 | ES34: 0 | ET34: 0 | EU34: 0 | EV34: 0 | EW34: 0 | EX34: 0 | EY34: 0 | EZ34: 0 | FA34: 0 | FB34: 0 | FC34: 0 | FD34: 0 | FE34: 0 | FF34: 0 | FG34: 0 | FH34: END
A35: Edenbridge PS | I35: 19.35 | K35: 2015-11-16 | L35: 2016-02-29 | M35: 2016-09-26 | N35: 2016-11-28 | O35: 2017-03-20 | P35: 57 | Q35: 2018-07-01 | S35: 2017-03-14 | T35: 2017-10-14 | U35: 2018-02-19 | V35: 18.28571429 | AD35: 6 | CK35: Ongoing | CM35: less than £1m | CN35: 25.8 | CO35: 12.9 | CP35: 25.8 | CQ35: 38.7 | CR35: 25.8 | CS35: =VLOOKUP($CM35,AVEHRS_TABLE,7,0)*AVE_WKS_PER_MONTH/2 -> 19.35 | CT35: 0 | CU35: 0 | CV35: 0 | CW35: 0 | CX35: 0 | CY35: 0 | CZ35: 0 | DA35: 19.35 | DB35: 0 | DC35: 0 | DD35: 0 | DE35: 0 | DF35: 0 | DG35: 0 | DH35: 0 | DI35: 0 | DJ35: 0 | DK35: 0 | DL35: 0 | DM35: 0 | DN35: 0 | DO35: 0 | DP35: 0 | DQ35: 0 | DR35: 0 | DS35: 0 | DT35: 0 | DU35: 0 | DV35: 0 | DW35: 0 | DX35: 0 | DY35: 0 | DZ35: 0 | EA35: 0 | EB35: 0 | EC35: 0 | ED35: 0 | EE35: 0 | EF35: 0 | EG35: 0 | EH35: 0 | EI35: 0 | EJ35: 0 | EK35: 0 | EL35: 0 | EM35: 0 | EN35: 0 | EO35: 0 | EP35: 0 | EQ35: 0 | ER35: 0 | ES35: 0 | ET35: 0 | EU35: 0 | EV35: 0 | EW35: 0 | EX35: 0 | EY35: 0 | EZ35: 0 | FA35: 0 | FB35: 0 | FC35: 0 | FD35: 0 | FE35: 0 | FF35: 0 | FG35: 0 | FH35: END
A36: Seal CoE PS | B36: North | C36: 2980000 | D36: 4700000 | I36: 483.75 | K36: 2015-05-22 | L36: 2015-08-03 | M36: 2016-03-07 | N36: 2017-12-01 | O36: 2017-08-20 | P36: 108.8571429 | Q36: 2019-08-01 | S36: First Planning Refusal Decision 06/12/2016 Second Planning Decision Due July 2018 | T36: 2018-11-01 | U36: 2019-12-01 | V36: 56.42857143 | X36: 3 | Y36: 4 | Z36: 4 | AA36: 5 | AB36: 5 | AC36: 5 | AD36: 5 | AE36: 5 | AF36: 5 | AG36: 5 | AH36: 5 | AI36: 5 | AJ36: 5 | AK36: 5 | AL36: 5 | AM36: 5 | AN36: 5 | AZ36: 6 | CK36: Ongoing | CM36: £1 to £4 million | CN36: 25.8 | CO36: 12.9 | CP36: 25.8 | CQ36: 38.7 | CR36: 25.8 | CS36: =VLOOKUP($CM36,AVEHRS_TABLE,7,0)*AVE_WKS_PER_MONTH/2 -> 19.35 | CT36: 0 | CU36: 25.8 | CV36: 38.7 | CW36: 38.7 | CX36: 25.8 | CY36: 25.8 | CZ36: 25.8 | DA36: 25.8 | DB36: 25.8 | DC36: 25.8 | DD36: 25.8 | DE36: 25.8 | DF36: 25.8 | DG36: 25.8 | DH36: 25.8 | DI36: 25.8 | DJ36: 25.8 | DK36: 25.8 | DL36: 0 | DM36: 0 | DN36: 0 | DO36: 0 | DP36: 0 | DQ36: 0 | DR36: 0 | DS36: 0 | DT36: 0 | DU36: 0 | DV36: 0 | DW36: 19.35 | DX36: 0 | DY36: 0 | DZ36: 0 | EA36: 0 | EB36: 0 | EC36: 0 | ED36: 0 | EE36: 0 | EF36: 0 | EG36: 0 | EH36: 0 | EI36: 0 | EJ36: 0 | EK36: 0 | EL36: 0 | EM36: 0 | EN36: 0 | EO36: 0 | EP36: 0 | EQ36: 0 | ER36: 0 | ES36: 0 | ET36: 0 | EU36: 0 | EV36: 0 | EW36: 0 | EX36: 0 | EY36: 0 | EZ36: 0 | FA36: 0 | FB36: 0 | FC36: 0 | FD36: 0 | FE36: 0 | FF36: 0 | FG36: 0 | FH36: END
A37: Temple Hill PS | I37: 51.6 | K37: 2016-04-04 | L37: 2016-05-03 | M37: 2016-09-05 | N37: 2016-12-05 | O37: 2017-07-06 | P37: 63.28571429 | Q37: 2019-08-20 | S37: 2017-01-06 | T37: =VLOOKUP($A37,BASE_DATA,24,0) ->  | U37: =VLOOKUP($A37,BASE_DATA,26,0) ->  | W37: 5 | X37: 5 | CK37: Ongoing | CM37: £1 to £4 million | CN37: 25.8 | CO37: 12.9 | CP37: 25.8 | CQ37: 38.7 | CR37: 25.8 | CS37: =VLOOKUP($CM37,AVEHRS_TABLE,7,0)*AVE_WKS_PER_MONTH/2 -> 19.35 | CT37: 25.8 | CU37: 25.8 | CV37: 0 | CW37: 0 | CX37: 0 | CY37: 0 | CZ37: 0 | DA37: 0 | DB37: 0 | DC37: 0 | DD37: 0 | DE37: 0 | DF37: 0 | DG37: 0 | DH37: 0 | DI37: 0 | DJ37: 0 | DK37: 0 | DL37: 0 | DM37: 0 | DN37: 0 | DO37: 0 | DP37: 0 | DQ37: 0 | DR37: 0 | DS37: 0 | DT37: 0 | DU37: 0 | DV37: 0 | DW37: 0 | DX37: 0 | DY37: 0 | DZ37: 0 | EA37: 0 | EB37: 0 | EC37: 0 | ED37: 0 | EE37: 0 | EF37: 0 | EG37: 0 | EH37: 0 | EI37: 0 | EJ37: 0 | EK37: 0 | EL37: 0 | EM37: 0 | EN37: 0 | EO37: 0 | EP37: 0 | EQ37: 0 | ER37: 0 | ES37: 0 | ET37: 0 | EU37: 0 | EV37: 0 | EW37: 0 | EX37: 0 | EY37: 0 | EZ37: 0 | FA37: 0 | FB37: 0 | FC37: 0 | FD37: 0 | FE37: 0 | FF37: 0 | FG37: 0 | FH37: END
A38: Northfleet School for Girls | B38: North | C38: 4000000 | D38: 3991812.38 | I38: 432.15 | K38: 2018-05-01 | L38: 2018-05-30 | M38: 2018-07-27 | N38: 2018-09-15 | O38: 2019-01-08 | P38: 33.85714286 | Q38: 2019-08-15 | S38: 2018-12-14 | W38: 3 | X38: 3 | Y38: 3 | Z38: 4 | AA38: 4 | AB38: 4 | AC38: 4 | AD38: 5 | AE38: 5 | AF38: 5 | AG38: 5 | AH38: 5 | AI38: 5 | AJ38: 5 | AV38: 6 | CK38: Ongoing | CM38: £1 to £4 million | CN38: 25.8 | CO38: 12.9 | CP38: 25.8 | CQ38: 38.7 | CR38: 25.8 | CS38: =VLOOKUP($CM38,AVEHRS_TABLE,7,0)*AVE_WKS_PER_MONTH/2 -> 19.35 | CT38: 25.8 | CU38: 25.8 | CV38: 25.8 | CW38: 38.7 | CX38: 38.7 | CY38: 38.7 | CZ38: 38.7 | DA38: 25.8 | DB38: 25.8 | DC38: 25.8 | DD38: 25.8 | DE38: 25.8 | DF38: 25.8 | DG38: 25.8 | DH38: 0 | DI38: 0 | DJ38: 0 | DK38: 0 | DL38: 0 | DM38: 0 | DN38: 0 | DO38: 0 | DP38: 0 | DQ38: 0 | DR38: 0 | DS38: 19.35 | DT38: 0 | DU38: 0 | DV38: 0 | DW38: 0 | DX38: 0 | DY38: 0 | DZ38: 0 | EA38: 0 | EB38: 0 | EC38: 0 | ED38: 0 | EE38: 0 | EF38: 0 | EG38: 0 | EH38: 0 | EI38: 0 | EJ38: 0 | EK38: 0 | EL38: 0 | EM38: 0 | EN38: 0 | EO38: 0 | EP38: 0 | EQ38: 0 | ER38: 0 | ES38: 0 | ET38: 0 | EU38: 0 | EV38: 0 | EW38: 0 | EX38: 0 | EY38: 0 | EZ38: 0 | FA38: 0 | FB38: 0 | FC38: 0 | FD38: 0 | FE38: 0 | FF38: 0 | FG38: 0 | FH38: END
A39: Craylands School, Phase 3 | I39: 51.6 | K39: 00:00:00 | L39: 00:00:00 | M39: 00:00:00 | N39: 00:00:00 | O39: 2017-08-02 | P39: 6137.571429 | Q39: 2018-05-15 | S39: 2017-02-21 | AF39: 6 | CK39: Ongoing | CM39: see earlier phase | CN39: 0 | CO39: 0 | CP39: 0 | CQ39: 0 | CR39: 0 | CS39: =VLOOKUP($CM39,AVEHRS_TABLE,7,0)*AVE_WKS_PER_MONTH -> 51.6 | CT39: 0 | CU39: 0 | CV39: 0 | CW39: 0 | CX39: 0 | CY39: 0 | CZ39: 0 | DA39: 0 | DB39: 0 | DC39: 51.6 | DD39: 0 | DE39: 0 | DF39: 0 | DG39: 0 | DH39: 0 | DI39: 0 | DJ39: 0 | DK39: 0 | DL39: 0 | DM39: 0 | DN39: 0 | DO39: 0 | DP39: 0 | DQ39: 0 | DR39: 0 | DS39: 0 | DT39: 0 | DU39: 0 | DV39: 0 | DW39: 0 | DX39: 0 | DY39: 0 | DZ39: 0 | EA39: 0 | EB39: 0 | EC39: 0 | ED39: 0 | EE39: 0 | EF39: 0 | EG39: 0 | EH39: 0 | EI39: 0 | EJ39: 0 | EK39: 0 | EL39: 0 | EM39: 0 | EN39: 0 | EO39: 0 | EP39: 0 | EQ39: 0 | ER39: 0 | ES39: 0 | ET39: 0 | EU39: 0 | EV39: 0 | EW39: 0 | EX39: 0 | EY39: 0 | EZ39: 0 | FA39: 0 | FB39: 0 | FC39: 0 | FD39: 0 | FE39: 0 | FF39: 0 | FG39: 0 | FH39: END
A40: Craylands School, Phase 5 | G40: =G39 ->  | I40: 96.75 | K40: 00:00:00 | L40: 00:00:00 | M40: 00:00:00 | N40: 00:00:00 | O40: 2017-08-02 | P40: 6137.571429 | Q40: 2018-09-28 | S40: 2017-02-21 | W40: 5 | X40: 5 | Y40: 5 | AK40: 6 | CK40: Ongoing | CM40: £1 to £4 million | CN40: 25.8 | CO40: 12.9 | CP40: 25.8 | CQ40: 38.7 | CR40: 25.8 | CS40: =VLOOKUP($CM40,AVEHRS_TABLE,7,0)*AVE_WKS_PER_MONTH/2 -> 19.35 | CT40: 25.8 | CU40: 25.8 | CV40: 25.8 | CW40: 0 | CX40: 0 | CY40: 0 | CZ40: 0 | DA40: 0 | DB40: 0 | DC40: 0 | DD40: 0 | DE40: 0 | DF40: 0 | DG40: 0 | DH40: 19.35 | DI40: 0 | DJ40: 0 | DK40: 0 | DL40: 0 | DM40: 0 | DN40: 0 | DO40: 0 | DP40: 0 | DQ40: 0 | DR40: 0 | DS40: 0 | DT40: 0 | DU40: 0 | DV40: 0 | DW40: 0 | DX40: 0 | DY40: 0 | DZ40: 0 | EA40: 0 | EB40: 0 | EC40: 0 | ED40: 0 | EE40: 0 | EF40: 0 | EG40: 0 | EH40: 0 | EI40: 0 | EJ40: 0 | EK40: 0 | EL40: 0 | EM40: 0 | EN40: 0 | EO40: 0 | EP40: 0 | EQ40: 0 | ER40: 0 | ES40: 0 | ET40: 0 | EU40: 0 | EV40: 0 | EW40: 0 | EX40: 0 | EY40: 0 | EZ40: 0 | FA40: 0 | FB40: 0 | FC40: 0 | FD40: 0 | FE40: 0 | FF40: 0 | FG40: 0 | FH40: END
A41: Craylands School, Phsae 6 | I41: phased project | K41: - | L41: - | M41: - | N41: 00:00:00 | O41: Subject to lenders approval | Q41: Subject to lenders approval | S41: 2017-02-21 | V41: n/a | CK41: Ongoing | CM41: see earlier phase | CN41: 0 | CO41: 0 | CP41: 0 | CQ41: 0 | CR41: 0 | CS41: =VLOOKUP($CM41,AVEHRS_TABLE,7,0)*AVE_WKS_PER_MONTH -> 51.6 | CT41: 0 | CU41: 0 | CV41: 0 | CW41: 0 | CX41: 0 | CY41: 0 | CZ41: 0 | DA41: 0 | DB41: 0 | DC41: 0 | DD41: 0 | DE41: 0 | DF41: 0 | DG41: 0 | DH41: 0 | DI41: 0 | DJ41: 0 | DK41: 0 | DL41: 0 | DM41: 0 | DN41: 0 | DO41: 0 | DP41: 0 | DQ41: 0 | DR41: 0 | DS41: 0 | DT41: 0 | DU41: 0 | DV41: 0 | DW41: 0 | DX41: 0 | DY41: 0 | DZ41: 0 | EA41: 0 | EB41: 0 | EC41: 0 | ED41: 0 | EE41: 0 | EF41: 0 | EG41: 0 | EH41: 0 | EI41: 0 | EJ41: 0 | EK41: 0 | EL41: 0 | EM41: 0 | EN41: 0 | EO41: 0 | EP41: 0 | EQ41: 0 | ER41: 0 | ES41: 0 | ET41: 0 | EU41: 0 | EV41: 0 | EW41: 0 | EX41: 0 | EY41: 0 | EZ41: 0 | FA41: 0 | FB41: 0 | FC41: 0 | FD41: 0 | FE41: 0 | FF41: 0 | FG41: 0 | FH41: END
A42: Trinity Free School, Phase 1 | I42: phased project | K42: 00:00:00 | L42: 00:00:00 | M42: 00:00:00 | N42: 00:00:00 | O42: 00:00:00 | P42: 2 | Q42: 00:00:00 | S42: 00:00:00 | V42: n/a | CK42: Ongoing | CM42: see earlier phase | CN42: 0 | CO42: 0 | CP42: 0 | CQ42: 0 | CR42: 0 | CS42: =VLOOKUP($CM42,AVEHRS_TABLE,7,0)*AVE_WKS_PER_MONTH -> 51.6 | CT42: 0 | CU42: 0 | CV42: 0 | CW42: 0 | CX42: 0 | CY42: 0 | CZ42: 0 | DA42: 0 | DB42: 0 | DC42: 0 | DD42: 0 | DE42: 0 | DF42: 0 | DG42: 0 | DH42: 0 | DI42: 0 | DJ42: 0 | DK42: 0 | DL42: 0 | DM42: 0 | DN42: 0 | DO42: 0 | DP42: 0 | DQ42: 0 | DR42: 0 | DS42: 0 | DT42: 0 | DU42: 0 | DV42: 0 | DW42: 0 | DX42: 0 | DY42: 0 | DZ42: 0 | EA42: 0 | EB42: 0 | EC42: 0 | ED42: 0 | EE42: 0 | EF42: 0 | EG42: 0 | EH42: 0 | EI42: 0 | EJ42: 0 | EK42: 0 | EL42: 0 | EM42: 0 | EN42: 0 | EO42: 0 | EP42: 0 | EQ42: 0 | ER42: 0 | ES42: 0 | ET42: 0 | EU42: 0 | EV42: 0 | EW42: 0 | EX42: 0 | EY42: 0 | EZ42: 0 | FA42: 0 | FB42: 0 | FC42: 0 | FD42: 0 | FE42: 0 | FF42: 0 | FG42: 0 | FH42: END
A43: Trinity Free School, Phase 2 | G43: =G42 ->  | I43: =SUM(CT43:FG43) -> 1119.72 | K43: 2017-09-30 | L43: 2017-09-30 | M43: 2018-01-31 | N43: 2018-05-25 | O43: 2018-06-22 | P43: 39.85714286 | Q43: 2019-09-02 | S43: TBC | U43: 2020-09-01 | AC43: 5 | AD43: 5 | AE43: 5 | AF43: 5 | AG43: 5 | AH43: 5 | AI43: 5 | AJ43: 5 | AK43: 5 | AL43: 5 | AM43: 5 | AN43: 5 | AO43: 5 | AP43: 5 | AQ43: 5 | AR43: 5 | AS43: 5 | AT43: 5 | AU43: 5 | AV43: 5 | AW43: 5 | BI43: 6 | CK43: Ongoing | CM43: £4 to £8 million | CN43: 25.8 | CO43: 25.8 | CP43: 51.6 | CQ43: 73.1 | CR43: 51.6 | CS43: =VLOOKUP($CM43,AVEHRS_TABLE,7,0)*AVE_WKS_PER_MONTH*70% -> 36.12 | CT43: 0 | CU43: 0 | CV43: 0 | CW43: 0 | CX43: 0 | CY43: 0 | CZ43: 51.6 | DA43: 51.6 | DB43: 51.6 | DC43: 51.6 | DD43: 51.6 | DE43: 51.6 | DF43: 51.6 | DG43: 51.6 | DH43: 51.6 | DI43: 51.6 | DJ43: 51.6 | DK43: 51.6 | DL43: 51.6 | DM43: 51.6 | DN43: 51.6 | DO43: 51.6 | DP43: 51.6 | DQ43: 51.6 | DR43: 51.6 | DS43: 51.6 | DT43: 51.6 | DU43: 0 | DV43: 0 | DW43: =IF(AZ43>0,CHOOSE(AZ43,$CN43,$CO43,$CP43,$CQ43,$CR43,$CS43),0) -> 0 | DX43: 0 | DY43: 0 | DZ43: 0 | EA43: 0 | EB43: 0 | EC43: 0 | ED43: 0 | EE43: 0 | EF43: 36.12 | EG43: 0 | EH43: 0 | EI43: 0 | EJ43: 0 | EK43: 0 | EL43: 0 | EM43: =IF(BP43>0,CHOOSE(BP43,$CN43,$CO43,$CP43,$CQ43,$CR43,$CS43),0) -> 0 | EN43: 0 | EO43: 0 | EP43: 0 | EQ43: 0 | ER43: 0 | ES43: 0 | ET43: 0 | EU43: 0 | EV43: 0 | EW43: 0 | EX43: 0 | EY43: 0 | EZ43: 0 | FA43: 0 | FB43: 0 | FC43: =IF(CF43>0,CHOOSE(CF43,$CN43,$CO43,$CP43,$CQ43,$CR43,$CS43),0) -> 0 | FD43: 0 | FE43: 0 | FF43: 0 | FG43: 0 | FH43: END
A44: Trinity Free School, Phase 3 | B44: =VLOOKUP($A44,MASTER_DATABASE,2,0) ->  | C44: =VLOOKUP($A44,MASTER_DATABASE,4,0) ->  | D44: =VLOOKUP($A44,MASTER_DATABASE,5,0) ->  | E44: =VLOOKUP($A44,MASTER_DATABASE,6,0) ->  | F44: =VLOOKUP($A44,MASTER_DATABASE,54,0) ->  | G44: 0 | I44: phased project | K44: 2017-09-30 | L44: 2017-09-30 | M44: 2018-01-31 | N44: 2018-05-25 | O44: 2018-06-22 | P44: 39.85714286 | Q44: 2020-03-04 | S44: TBC | T44: 2019-09-05 | U44: 2020-03-04 | V44: 25.85714286 | CK44: Ongoing | CM44: see earlier phase | CN44: =VLOOKUP($CM44,AVEHRS_TABLE,2,0)*AVE_WKS_PER_MONTH -> 0 | CO44: =VLOOKUP($CM44,AVEHRS_TABLE,3,0)*AVE_WKS_PER_MONTH -> 0 | CP44: =VLOOKUP($CM44,AVEHRS_TABLE,4,0)*AVE_WKS_PER_MONTH -> 0 | CQ44: =VLOOKUP($CM44,AVEHRS_TABLE,5,0)*AVE_WKS_PER_MONTH -> 0 | CR44: =VLOOKUP($CM44,AVEHRS_TABLE,6,0)*AVE_WKS_PER_MONTH -> 0 | CS44: =VLOOKUP($CM44,AVEHRS_TABLE,7,0)*AVE_WKS_PER_MONTH -> 51.6 | CT44: 0 | CU44: 0 | CV44: 0 | CW44: 0 | CX44: 0 | CY44: 0 | CZ44: 0 | DA44: 0 | DB44: 0 | DC44: 0 | DD44: 0 | DE44: 0 | DF44: 0 | DG44: 0 | DH44: 0 | DI44: =IF(AL44>0,CHOOSE(AL44,$CN44,$CO44,$CP44,$CQ44,$CR44,$CS44),0) -> 0 | DJ44: 0 | DK44: 0 | DL44: 0 | DM44: 0 | DN44: 0 | DO44: 0 | DP44: 0 | DQ44: 0 | DR44: 0 | DS44: 0 | DT44: 0 | DU44: 0 | DV44: 0 | DW44: 0 | DX44: 0 | DY44: 0 | DZ44: 0 | EA44: 0 | EB44: 0 | EC44: 0 | ED44: 0 | EE44: 0 | EF44: 0 | EG44: 0 | EH44: 0 | EI44: 0 | EJ44: 0 | EK44: 0 | EL44: 0 | EM44: 0 | EN44: 0 | EO44: 0 | EP44: 0 | EQ44: 0 | ER44: 0 | ES44: 0 | ET44: 0 | EU44: 0 | EV44: 0 | EW44: 0 | EX44: 0 | EY44: 0 | EZ44: 0 | FA44: 0 | FB44: 0 | FC44: 0 | FD44: 0 | FE44: 0 | FF44: 0 | FG44: 0 | FH44: END
A45: Trinity Free School, Phase 4 | G45: 0 | I45: phased project | K45: 2017-09-30 | L45: 2017-09-30 | M45: 2018-01-31 | N45: 2018-05-25 | O45: 2018-06-22 | P45: 39.85714286 | Q45: 2020-08-31 | S45: TBC | T45: 2020-03-05 | U45: 2020-08-31 | V45: 25.57142857 | CK45: Ongoing | CM45: see earlier phase | CN45: 0 | CO45: 0 | CP45: 0 | CQ45: 0 | CR45: 0 | CS45: =VLOOKUP($CM45,AVEHRS_TABLE,7,0)*AVE_WKS_PER_MONTH -> 51.6 | CT45: =IF(W45>0,CHOOSE(W45,$CN45,$CO45,$CP45,$CQ45,$CR45,$CS45),0) -> 0 | CU45: 0 | CV45: 0 | CW45: 0 | CX45: 0 | CY45: 0 | CZ45: 0 | DA45: 0 | DB45: 0 | DC45: 0 | DD45: 0 | DE45: 0 | DF45: 0 | DG45: 0 | DH45: 0 | DI45: 0 | DJ45: 0 | DK45: 0 | DL45: 0 | DM45: 0 | DN45: 0 | DO45: 0 | DP45: 0 | DQ45: 0 | DR45: 0 | DS45: 0 | DT45: 0 | DU45: 0 | DV45: 0 | DW45: 0 | DX45: 0 | DY45: 0 | DZ45: 0 | EA45: 0 | EB45: 0 | EC45: 0 | ED45: 0 | EE45: 0 | EF45: 0 | EG45: 0 | EH45: 0 | EI45: 0 | EJ45: 0 | EK45: 0 | EL45: 0 | EM45: 0 | EN45: 0 | EO45: 0 | EP45: 0 | EQ45: 0 | ER45: 0 | ES45: 0 | ET45: 0 | EU45: 0 | EV45: 0 | EW45: 0 | EX45: 0 | EY45: 0 | EZ45: 0 | FA45: 0 | FB45: 0 | FC45: 0 | FD45: 0 | FE45: 0 | FF45: 0 | FG45: 0 | FH45: END
A46: Trinity Free School, Phase 5 | G46: 0 | I46: phased project | K46: 2017-09-30 | L46: 2017-09-30 | M46: 2018-01-31 | N46: 2018-05-25 | O46: 2018-06-22 | P46: 39.85714286 | Q46: 2020-09-02 | S46: TBC | T46: 2020-07-25 | U46: 2020-09-02 | V46: 5.571428571 | W46: 4 | X46: 5 | Y46: 5 | CK46: Ongoing | CM46: see earlier phase | CN46: 0 | CO46: 0 | CP46: 0 | CQ46: 0 | CR46: 0 | CS46: =VLOOKUP($CM46,AVEHRS_TABLE,7,0)*AVE_WKS_PER_MONTH -> 51.6 | CT46: 0 | CU46: 0 | CV46: 0 | CW46: 0 | CX46: 0 | CY46: 0 | CZ46: 0 | DA46: 0 | DB46: 0 | DC46: 0 | DD46: 0 | DE46: 0 | DF46: 0 | DG46: 0 | DH46: 0 | DI46: 0 | DJ46: 0 | DK46: 0 | DL46: 0 | DM46: 0 | DN46: 0 | DO46: 0 | DP46: 0 | DQ46: 0 | DR46: 0 | DS46: 0 | DT46: 0 | DU46: 0 | DV46: 0 | DW46: 0 | DX46: 0 | DY46: 0 | DZ46: 0 | EA46: 0 | EB46: 0 | EC46: 0 | ED46: 0 | EE46: 0 | EF46: 0 | EG46: 0 | EH46: 0 | EI46: 0 | EJ46: 0 | EK46: 0 | EL46: 0 | EM46: 0 | EN46: 0 | EO46: 0 | EP46: 0 | EQ46: 0 | ER46: 0 | ES46: 0 | ET46: 0 | EU46: 0 | EV46: 0 | EW46: 0 | EX46: 0 | EY46: 0 | EZ46: 0 | FA46: 0 | FB46: 0 | FC46: 0 | FD46: 0 | FE46: 0 | FF46: 0 | FG46: 0 | FH46: END
A47: Chilmington Green PS | B47: South | C47: 7200000 | D47: 8400000 | G47: 7200000 | I47: =SUM(CT47:FG47) -> 1412.12 | K47: 2018-01-02 | L47: 2018-03-23 | M47: 2018-08-31 | N47: 2018-11-23 | O47: 2019-03-29 | P47: 55 | Q47: 2020-06-01 | S47: TBC | T47: 2019-04-01 | U47: 2020-08-31 | V47: 74 | W47: 2 | X47: 2 | Y47: 3 | Z47: 3 | AA47: 3 | AB47: 4 | AC47: 4 | AD47: 4 | AE47: 4 | AF47: 5 | AG47: 5 | AH47: 5 | AI47: 5 | AJ47: 5 | AK47: 5 | AL47: 5 | AM47: 5 | AN47: 5 | AO47: 5 | AP47: 5 | AQ47: 5 | AR47: 5 | AS47: 5 | AT47: 5 | AU47: 5 | AV47: 5 | BH47: 6 | CK47: Ongoing | CM47: £4 to £8 million | CN47: 25.8 | CO47: 25.8 | CP47: 51.6 | CQ47: 73.1 | CR47: 51.6 | CS47: =VLOOKUP($CM47,AVEHRS_TABLE,7,0)*AVE_WKS_PER_MONTH*70% -> 36.12 | CT47: 25.8 | CU47: 25.8 | CV47: 51.6 | CW47: 51.6 | CX47: 51.6 | CY47: 73.1 | CZ47: 73.1 | DA47: 73.1 | DB47: 73.1 | DC47: 51.6 | DD47: 51.6 | DE47: 51.6 | DF47: 51.6 | DG47: 51.6 | DH47: 51.6 | DI47: 51.6 | DJ47: 51.6 | DK47: 51.6 | DL47: 51.6 | DM47: 51.6 | DN47: 51.6 | DO47: 51.6 | DP47: 51.6 | DQ47: 51.6 | DR47: 51.6 | DS47: 51.6 | DT47: 0 | DU47: 0 | DV47: 0 | DW47: 0 | DX47: 0 | DY47: 0 | DZ47: 0 | EA47: 0 | EB47: 0 | EC47: 0 | ED47: 0 | EE47: 36.12 | EF47: 0 | EG47: 0 | EH47: 0 | EI47: 0 | EJ47: 0 | EK47: 0 | EL47: 0 | EM47: 0 | EN47: 0 | EO47: 0 | EP47: 0 | EQ47: 0 | ER47: 0 | ES47: 0 | ET47: 0 | EU47: 0 | EV47: 0 | EW47: 0 | EX47: 0 | EY47: 0 | EZ47: 0 | FA47: 0 | FB47: 0 | FC47: 0 | FD47: 0 | FE47: 0 | FF47: 0 | FG47: 0 | FH47: END
A48: Preston PS | B48: South | C48: 2748-09-30 | D48: 2615-08-01T21:36:00 | G48: 300000 | I48: 83.85 | K48: 2017-02-10 | L48: 2017-05-10 | M48: 2017-06-14 | N48: 2017-08-02 | O48: 2018-07-16 | P48: 63.71428571 | Q48: 2018-08-31 | S48: 2017-08-02 | T48: 2018-07-23 | U48: 2018-08-31 | V48: 5.571428571 | W48: 4 | X48: 5 | AJ48: 6 | CK48: Ongoing | CM48: less than £1m | CN48: 25.8 | CO48: 12.9 | CP48: 25.8 | CQ48: 38.7 | CR48: 25.8 | CS48: =VLOOKUP($CM48,AVEHRS_TABLE,7,0)*AVE_WKS_PER_MONTH/2 -> 19.35 | CT48: 38.7 | CU48: 25.8 | CV48: 0 | CW48: 0 | CX48: 0 | CY48: 0 | CZ48: 0 | DA48: 0 | DB48: 0 | DC48: 0 | DD48: 0 | DE48: 0 | DF48: 0 | DG48: 19.35 | DH48: 0 | DI48: 0 | DJ48: 0 | DK48: 0 | DL48: 0 | DM48: 0 | DN48: 0 | DO48: 0 | DP48: 0 | DQ48: 0 | DR48: 0 | DS48: 0 | DT48: 0 | DU48: 0 | DV48: 0 | DW48: 0 | DX48: 0 | DY48: 0 | DZ48: 0 | EA48: 0 | EB48: 0 | EC48: 0 | ED48: 0 | EE48: 0 | EF48: 0 | EG48: 0 | EH48: 0 | EI48: 0 | EJ48: 0 | EK48: 0 | EL48: 0 | EM48: 0 | EN48: 0 | EO48: 0 | EP48: 0 | EQ48: 0 | ER48: 0 | ES48: 0 | ET48: 0 | EU48: 0 | EV48: 0 | EW48: 0 | EX48: 0 | EY48: 0 | EZ48: 0 | FA48: 0 | FB48: 0 | FC48: 0 | FD48: 0 | FE48: 0 | FF48: 0 | FG48: 0 | FH48: END
A49: Whitfield Aspen School | B49: South | C49: 7990000 | D49: 7447500 | G49: 7990000 | I49: 616.62 | K49: - | L49: - | M49: - | N49: 2018-04-07 | O49: 2018-09-16 | Q49: 2019-04-28 | S49: 2018-03-27 | T49: 2018-10-01 | U49: 2019-04-28 | V49: 29.85714286 | W49: 4 | X49: 4 | Y49: 4 | Z49: 5 | AA49: 5 | AB49: 5 | AC49: 5 | AD49: 5 | AE49: 5 | AF49: 5 | AR49: 6 | CK49: Ongoing | CM49: £4 to £8 million | CN49: 25.8 | CO49: 25.8 | CP49: 51.6 | CQ49: 73.1 | CR49: 51.6 | CS49: =VLOOKUP($CM49,AVEHRS_TABLE,7,0)*AVE_WKS_PER_MONTH*70% -> 36.12 | CT49: 73.1 | CU49: 73.1 | CV49: 73.1 | CW49: 51.6 | CX49: 51.6 | CY49: 51.6 | CZ49: 51.6 | DA49: 51.6 | DB49: 51.6 | DC49: 51.6 | DD49: 0 | DE49: 0 | DF49: 0 | DG49: 0 | DH49: 0 | DI49: 0 | DJ49: 0 | DK49: 0 | DL49: 0 | DM49: 0 | DN49: 0 | DO49: 36.12 | DP49: 0 | DQ49: 0 | DR49: 0 | DS49: 0 | DT49: 0 | DU49: 0 | DV49: 0 | DW49: 0 | DX49: 0 | DY49: 0 | DZ49: 0 | EA49: 0 | EB49: 0 | EC49: 0 | ED49: 0 | EE49: 0 | EF49: 0 | EG49: 0 | EH49: 0 | EI49: 0 | EJ49: 0 | EK49: 0 | EL49: 0 | EM49: 0 | EN49: 0 | EO49: 0 | EP49: 0 | EQ49: 0 | ER49: 0 | ES49: 0 | ET49: 0 | EU49: 0 | EV49: 0 | EW49: 0 | EX49: 0 | EY49: 0 | EZ49: 0 | FA49: 0 | FB49: 0 | FC49: 0 | FD49: 0 | FE49: 0 | FF49: 0 | FG49: 0 | FH49: END
A50: Herne Bay Library | G50: 535000 | I50: 328.95 | K50: 2017-11-01 | L50: 2018-07-27 | M50: 2018-08-30 | N50: 2018-09-29 | O50: 2018-11-27 | P50: 19.57142857 | Q50: 2019-07-30 | S50: N/A | T50: 2019-01-07 | U50: 2019-07-30 | V50: 29.14285714 | W50: 2 | X50: 2 | Y50: 3 | Z50: 4 | AA50: 4 | AC50: 5 | AD50: 5 | AE50: 5 | AF50: 5 | AG50: 5 | AH50: 5 | AI50: 5 | AU50: 6 | CK50: Ongoing | CM50: less than £1m | CN50: 25.8 | CO50: 12.9 | CP50: 25.8 | CQ50: 38.7 | CR50: 25.8 | CS50: =VLOOKUP($CM50,AVEHRS_TABLE,7,0)*AVE_WKS_PER_MONTH/2 -> 19.35 | CT50: 12.9 | CU50: 12.9 | CV50: 25.8 | CW50: 38.7 | CX50: 38.7 | CY50: 0 | CZ50: 25.8 | DA50: 25.8 | DB50: 25.8 | DC50: 25.8 | DD50: 25.8 | DE50: 25.8 | DF50: 25.8 | DG50: 0 | DH50: 0 | DI50: 0 | DJ50: 0 | DK50: 0 | DL50: 0 | DM50: 0 | DN50: 0 | DO50: 0 | DP50: 0 | DQ50: 0 | DR50: 19.35 | DS50: 0 | DT50: 0 | DU50: 0 | DV50: 0 | DW50: 0 | DX50: 0 | DY50: 0 | DZ50: 0 | EA50: 0 | EB50: 0 | EC50: 0 | ED50: 0 | EE50: 0 | EF50: 0 | EG50: 0 | EH50: 0 | EI50: 0 | EJ50: 0 | EK50: 0 | EL50: 0 | EM50: 0 | EN50: 0 | EO50: 0 | EP50: 0 | EQ50: 0 | ER50: 0 | ES50: 0 | ET50: 0 | EU50: 0 | EV50: 0 | EW50: 0 | EX50: 0 | EY50: 0 | EZ50: 0 | FA50: 0 | FB50: 0 | FC50: 0 | FD50: 0 | FE50: 0 | FF50: 0 | FG50: 0 | FH50: END
A51: Palmarsh PS | B51: South | C51: 7923-05-24 | D51: 5368-12-11 | G51: 2200000 | I51: 496.65 | K51: - | L51: - | M51: - | N51: - | O51: 2018-09-30 | Q51: TBC | S51: TBC | T51: 2019-01-01 | U51: 2020-03-01 | V51: 60.71428571 | W51: 4 | X51: 4 | Y51: 4 | AD51: 5 | AE51: 5 | AF51: 5 | AG51: 5 | AH51: 5 | AI51: 5 | AJ51: 5 | AK51: 5 | AL51: 5 | AM51: 5 | AN51: 5 | AO51: 5 | AP51: 5 | AQ51: 5 | BC51: 6 | CK51: Ongoing | CM51: £1 to £4 million | CN51: 25.8 | CO51: 12.9 | CP51: 25.8 | CQ51: 38.7 | CR51: 25.8 | CS51: 19.35 | CT51: 38.7 | CU51: 38.7 | CV51: 38.7 | CW51: 0 | CX51: 0 | CY51: 0 | CZ51: 0 | DA51: 25.8 | DB51: 25.8 | DC51: 25.8 | DD51: 25.8 | DE51: 25.8 | DF51: 25.8 | DG51: 25.8 | DH51: 25.8 | DI51: 25.8 | DJ51: 25.8 | DK51: 25.8 | DL51: 25.8 | DM51: 25.8 | DN51: 25.8 | DO51: 0 | DP51: 0 | DQ51: 0 | DR51: 0 | DS51: 0 | DT51: 0 | DU51: 0 | DV51: 0 | DW51: 0 | DX51: 0 | DY51: 0 | DZ51: 19.35 | EA51: 0 | EB51: 0 | EC51: 0 | ED51: 0 | EE51: 0 | EF51: 0 | EG51: 0 | EH51: 0 | EI51: 0 | EJ51: 0 | EK51: 0 | EL51: 0 | EM51: 0 | EN51: 0 | EO51: 0 | EP51: 0 | EQ51: 0 | ER51: 0 | ES51: 0 | ET51: 0 | EU51: 0 | EV51: 0 | EW51: 0 | EX51: 0 | EY51: 0 | EZ51: 0 | FA51: 0 | FB51: 0 | FC51: 0 | FD51: 0 | FE51: 0 | FF51: 0 | FG51: 0 | FH51: END
A52: Meadowfield School | B52: East | C52: 4792000 | D52: 4610000 | G52: 3950000 | I52: 612.75 | K52: - | L52: - | M52: - | N52: 2018-09-30 | O52: 2019-01-01 | Q52: 2020-03-03 | S52: 2018-02-28 | T52: =VLOOKUP($A52,BASE_DATA,24,0) ->  | U52: =VLOOKUP($A52,BASE_DATA,26,0) ->  | W52: 3 | X52: 3 | Y52: 3 | Z52: 4 | AA52: 4 | AB52: 4 | AC52: 4 | AD52: 5 | AE52: 5 | AF52: 5 | AG52: 5 | AH52: 5 | AI52: 5 | AJ52: 5 | AK52: 5 | AL52: 5 | AM52: 5 | AN52: 5 | AO52: 5 | AP52: 5 | AQ52: 5 | BC52: 6 | CK52: Ongoing | CM52: £1 to £4 million | CN52: 25.8 | CO52: 12.9 | CP52: 25.8 | CQ52: 38.7 | CR52: 25.8 | CS52: 19.35 | CT52: 25.8 | CU52: 25.8 | CV52: 25.8 | CW52: 38.7 | CX52: 38.7 | CY52: 38.7 | CZ52: 38.7 | DA52: 25.8 | DB52: 25.8 | DC52: 25.8 | DD52: 25.8 | DE52: 25.8 | DF52: 25.8 | DG52: 25.8 | DH52: 25.8 | DI52: 25.8 | DJ52: 25.8 | DK52: 25.8 | DL52: 25.8 | DM52: 25.8 | DN52: 25.8 | DO52: 0 | DP52: 0 | DQ52: 0 | DR52: 0 | DS52: 0 | DT52: 0 | DU52: 0 | DV52: 0 | DW52: 0 | DX52: 0 | DY52: 0 | DZ52: 19.35 | EA52: 0 | EB52: 0 | EC52: 0 | ED52: 0 | EE52: 0 | EF52: 0 | EG52: 0 | EH52: 0 | EI52: 0 | EJ52: 0 | EK52: 0 | EL52: 0 | EM52: 0 | EN52: 0 | EO52: 0 | EP52: 0 | EQ52: 0 | ER52: 0 | ES52: 0 | ET52: 0 | EU52: 0 | EV52: 0 | EW52: 0 | EX52: 0 | EY52: 0 | EZ52: 0 | FA52: 0 | FB52: 0 | FC52: 0 | FD52: 0 | FE52: 0 | FF52: 0 | FG52: 0 | FH52: END
A53: Hampton PS | B53: East | C53: 2721-05-15 | D53: 2566-08-05T01:40:48 | G53: 300000 | I53: 96.75 | K53: 2017-11-24 | L53: 2018-02-15 | M53: 2018-02-15 | N53: 2018-02-15 | O53: 2018-06-10 | P53: 18.42857143 | Q53: 2018-09-03 | S53: 15/11/17 PD | W53: 5 | X53: 5 | Y53: 5 | AK53: 6 | CK53: Ongoing | CM53: less than £1m | CN53: 25.8 | CO53: 12.9 | CP53: 25.8 | CQ53: 38.7 | CR53: 25.8 | CS53: 19.35 | CT53: 25.8 | CU53: 25.8 | CV53: 25.8 | CW53: 0 | CX53: 0 | CY53: 0 | CZ53: 0 | DA53: 0 | DB53: 0 | DC53: 0 | DD53: 0 | DE53: 0 | DF53: 0 | DG53: 0 | DH53: 19.35 | DI53: 0 | DJ53: 0 | DK53: 0 | DL53: 0 | DM53: 0 | DN53: 0 | DO53: 0 | DP53: 0 | DQ53: 0 | DR53: 0 | DS53: 0 | DT53: 0 | DU53: 0 | DV53: 0 | DW53: 0 | DX53: 0 | DY53: 0 | DZ53: 0 | EA53: 0 | EB53: 0 | EC53: 0 | ED53: 0 | EE53: 0 | EF53: 0 | EG53: 0 | EH53: 0 | EI53: 0 | EJ53: 0 | EK53: 0 | EL53: 0 | EM53: 0 | EN53: 0 | EO53: 0 | EP53: 0 | EQ53: 0 | ER53: 0 | ES53: 0 | ET53: 0 | EU53: 0 | EV53: 0 | EW53: 0 | EX53: 0 | EY53: 0 | EZ53: 0 | FA53: 0 | FB53: 0 | FC53: 0 | FD53: 0 | FE53: 0 | FF53: 0 | FG53: 0 | FH53: END
A54: Bysing Wood PS | G54: 3500000 | I54: 19.35 | K54: 2015-03-31 | L54: 2015-06-29 | M54: 2015-10-12 | N54: 2016-01-11 | O54: 2016-03-24 | P54: 40.42857143 | Q54: 2018-06-23 | S54: 2016-12-01 | AH54: 6 | CK54: Ongoing | CM54: £1 to £4 million | CN54: 25.8 | CO54: 12.9 | CP54: 25.8 | CQ54: 38.7 | CR54: 25.8 | CS54: 19.35 | CT54: 0 | CU54: 0 | CV54: 0 | CW54: 0 | CX54: 0 | CY54: 0 | CZ54: 0 | DA54: 0 | DB54: 0 | DC54: 0 | DD54: 0 | DE54: 19.35 | DF54: 0 | DG54: 0 | DH54: 0 | DI54: 0 | DJ54: 0 | DK54: 0 | DL54: 0 | DM54: 0 | DN54: 0 | DO54: 0 | DP54: 0 | DQ54: 0 | DR54: 0 | DS54: 0 | DT54: 0 | DU54: 0 | DV54: 0 | DW54: 0 | DX54: 0 | DY54: 0 | DZ54: 0 | EA54: 0 | EB54: 0 | EC54: 0 | ED54: 0 | EE54: 0 | EF54: 0 | EG54: 0 | EH54: 0 | EI54: 0 | EJ54: 0 | EK54: 0 | EL54: 0 | EM54: 0 | EN54: 0 | EO54: 0 | EP54: 0 | EQ54: 0 | ER54: 0 | ES54: 0 | ET54: 0 | EU54: 0 | EV54: 0 | EW54: 0 | EX54: 0 | EY54: 0 | EZ54: 0 | FA54: 0 | FB54: 0 | FC54: 0 | FD54: 0 | FE54: 0 | FF54: 0 | FG54: 0 | FH54: END
A55: St George's CoE Foundation PS | B55: East | C55: 9018-07-22 | D55: 8744-04-18T04:04:48 | G55: 2600000 | I55: 19.35 | K55: 2017-05-02 | L55: 2017-06-01 | M55: 2017-08-28 | N55: 2017-11-03 | O55: 2018-07-25 | P55: 61.85714286 | Q55: 2019-02-22 | S55: TBC | AD55: 6 | CK55: Ongoing | CM55: £1 to £4 million | CN55: 25.8 | CO55: 12.9 | CP55: 25.8 | CQ55: 38.7 | CR55: 25.8 | CS55: 19.35 | CT55: 0 | CU55: 0 | CV55: 0 | CW55: 0 | CX55: 0 | CY55: 0 | CZ55: 0 | DA55: 19.35 | DB55: 0 | DC55: 0 | DD55: 0 | DE55: 0 | DF55: 0 | DG55: 0 | DH55: 0 | DI55: 0 | DJ55: 0 | DK55: 0 | DL55: 0 | DM55: 0 | DN55: 0 | DO55: 0 | DP55: 0 | DQ55: 0 | DR55: 0 | DS55: 0 | DT55: 0 | DU55: 0 | DV55: 0 | DW55: 0 | DX55: 0 | DY55: 0 | DZ55: 0 | EA55: 0 | EB55: 0 | EC55: 0 | ED55: 0 | EE55: 0 | EF55: 0 | EG55: 0 | EH55: 0 | EI55: 0 | EJ55: 0 | EK55: 0 | EL55: 0 | EM55: 0 | EN55: 0 | EO55: 0 | EP55: 0 | EQ55: 0 | ER55: 0 | ES55: 0 | ET55: 0 | EU55: 0 | EV55: 0 | EW55: 0 | EX55: 0 | EY55: 0 | EZ55: 0 | FA55: 0 | FB55: 0 | FC55: 0 | FD55: 0 | FE55: 0 | FF55: 0 | FG55: 0 | FH55: END
A56: Regis Manor PS | B56: East | C56: 3300000 | D56: 9790-05-25 | G56: 2580000 | I56: 122.55 | K56: 2016-11-01 | L56: 2016-12-01 | M56: 2017-03-23 | N56: 2017-07-25 | O56: 2018-01-15 | P56: 60.57142857 | Q56: 2018-10-31 | S56: 2017-07-25 | W56: 5 | X56: 5 | Y56: 5 | Z56: 5 | AL56: 6 | CK56: Ongoing | CM56: £1 to £4 million | CN56: 25.8 | CO56: 12.9 | CP56: 25.8 | CQ56: 38.7 | CR56: 25.8 | CS56: 19.35 | CT56: 25.8 | CU56: 25.8 | CV56: 25.8 | CW56: 25.8 | CX56: 0 | CY56: 0 | CZ56: 0 | DA56: 0 | DB56: 0 | DC56: 0 | DD56: 0 | DE56: 0 | DF56: 0 | DG56: 0 | DH56: 0 | DI56: 19.35 | DJ56: 0 | DK56: 0 | DL56: 0 | DM56: 0 | DN56: 0 | DO56: 0 | DP56: 0 | DQ56: 0 | DR56: 0 | DS56: 0 | DT56: 0 | DU56: 0 | DV56: 0 | DW56: 0 | DX56: 0 | DY56: 0 | DZ56: 0 | EA56: 0 | EB56: 0 | EC56: 0 | ED56: 0 | EE56: 0 | EF56: 0 | EG56: 0 | EH56: 0 | EI56: 0 | EJ56: 0 | EK56: 0 | EL56: 0 | EM56: 0 | EN56: 0 | EO56: 0 | EP56: 0 | EQ56: 0 | ER56: 0 | ES56: 0 | ET56: 0 | EU56: 0 | EV56: 0 | EW56: 0 | EX56: 0 | EY56: 0 | EZ56: 0 | FA56: 0 | FB56: 0 | FC56: 0 | FD56: 0 | FE56: 0 | FF56: 0 | FG56: 0 | FH56: END
A57: Sittingbourne CC | B57: East | C57: 6000000 | D57: 6542597.68 | G57: 6600000 | I57: 294.12 | K57: 2015-09-17 | L57: 2015-09-17 | M57: 2015-12-01 | N57: 2016-05-20 | O57: 2017-07-10 | P57: 96.57142857 | Q57: 2018-11-06 | S57: 2016-11-14 | W57: 5 | X57: 5 | Y57: 5 | Z57: 5 | AA57: 5 | AM57: 6 | CK57: Ongoing | CM57: £4 to £8 million | CN57: 25.8 | CO57: 25.8 | CP57: 51.6 | CQ57: 73.1 | CR57: 51.6 | CS57: =VLOOKUP($CM57,AVEHRS_TABLE,7,0)*AVE_WKS_PER_MONTH*70% -> 36.12 | CT57: 51.6 | CU57: 51.6 | CV57: 51.6 | CW57: 51.6 | CX57: 51.6 | CY57: 0 | CZ57: 0 | DA57: 0 | DB57: 0 | DC57: 0 | DD57: 0 | DE57: 0 | DF57: 0 | DG57: 0 | DH57: 0 | DI57: 0 | DJ57: 36.12 | DK57: 0 | DL57: 0 | DM57: 0 | DN57: 0 | DO57: 0 | DP57: 0 | DQ57: 0 | DR57: 0 | DS57: 0 | DT57: 0 | DU57: 0 | DV57: 0 | DW57: 0 | DX57: 0 | DY57: 0 | DZ57: 0 | EA57: 0 | EB57: 0 | EC57: 0 | ED57: 0 | EE57: 0 | EF57: 0 | EG57: 0 | EH57: 0 | EI57: 0 | EJ57: 0 | EK57: 0 | EL57: 0 | EM57: 0 | EN57: 0 | EO57: 0 | EP57: 0 | EQ57: 0 | ER57: 0 | ES57: 0 | ET57: 0 | EU57: 0 | EV57: 0 | EW57: 0 | EX57: 0 | EY57: 0 | EZ57: 0 | FA57: 0 | FB57: 0 | FC57: 0 | FD57: 0 | FE57: 0 | FF57: 0 | FG57: 0 | FH57: END
A58: Maplesden Noakes Secondary Expansion, bulge | G58: 650000 | I58: 109.65 | K58: 2018-04-01 | L58: 2018-04-30 | M58: 2018-05-15 | N58: 2018-05-31 | O58: 2018-07-18 | P58: 13.28571429 | Q58: 2018-09-25 | S58: N/A | W58: 4 | X58: 5 | Y58: 5 | AK58: 6 | CK58: Ongoing | CM58: less than £1m | CN58: 25.8 | CO58: 12.9 | CP58: 25.8 | CQ58: 38.7 | CR58: 25.8 | CS58: =VLOOKUP($CM58,AVEHRS_TABLE,7,0)*AVE_WKS_PER_MONTH/2 -> 19.35 | CT58: 38.7 | CU58: 25.8 | CV58: 25.8 | CW58: 0 | CX58: 0 | CY58: 0 | CZ58: 0 | DA58: 0 | DB58: 0 | DC58: 0 | DD58: 0 | DE58: 0 | DF58: 0 | DG58: 0 | DH58: 19.35 | DI58: 0 | DJ58: 0 | DK58: 0 | DL58: 0 | DM58: 0 | DN58: 0 | DO58: 0 | DP58: 0 | DQ58: 0 | DR58: 0 | DS58: 0 | DT58: 0 | DU58: 0 | DV58: 0 | DW58: 0 | DX58: 0 | DY58: 0 | DZ58: 0 | EA58: 0 | EB58: 0 | EC58: 0 | ED58: 0 | EE58: 0 | EF58: 0 | EG58: 0 | EH58: 0 | EI58: 0 | EJ58: 0 | EK58: 0 | EL58: 0 | EM58: 0 | EN58: 0 | EO58: 0 | EP58: 0 | EQ58: 0 | ER58: 0 | ES58: 0 | ET58: 0 | EU58: 0 | EV58: 0 | EW58: 0 | EX58: 0 | EY58: 0 | EZ58: 0 | FA58: 0 | FB58: 0 | FC58: 0 | FD58: 0 | FE58: 0 | FF58: 0 | FG58: 0 | FH58: END
A59: Langley Park PS | B59: West | C59: 9018-07-22 | D59: 8957-04-13T17:45:36 | G59: 2600000 | I59: 19.35 | K59: 2017-01-03 | L59: 2017-02-26 | M59: 2017-05-30 | N59: 2017-07-21 | O59: 2017-11-27 | P59: 41.14285714 | Q59: 2018-06-22 | S59: 2015-09-14 | AH59: 6 | CK59: Ongoing | CM59: £1 to £4 million | CN59: 25.8 | CO59: 12.9 | CP59: 25.8 | CQ59: 38.7 | CR59: 25.8 | CS59: =VLOOKUP($CM59,AVEHRS_TABLE,7,0)*AVE_WKS_PER_MONTH/2 -> 19.35 | CT59: 0 | CU59: 0 | CV59: 0 | CW59: 0 | CX59: 0 | CY59: 0 | CZ59: 0 | DA59: 0 | DB59: 0 | DC59: 0 | DD59: 0 | DE59: 19.35 | DF59: 0 | DG59: 0 | DH59: 0 | DI59: 0 | DJ59: 0 | DK59: 0 | DL59: 0 | DM59: 0 | DN59: 0 | DO59: 0 | DP59: 0 | DQ59: 0 | DR59: 0 | DS59: 0 | DT59: 0 | DU59: 0 | DV59: 0 | DW59: 0 | DX59: 0 | DY59: 0 | DZ59: 0 | EA59: 0 | EB59: 0 | EC59: 0 | ED59: 0 | EE59: 0 | EF59: 0 | EG59: 0 | EH59: 0 | EI59: 0 | EJ59: =IF(BM59>0,CHOOSE(BM59,$CN59,$CO59,$CP59,$CQ59,$CR59,$CS59),0) -> 0 | EK59: 0 | EL59: 0 | EM59: 0 | EN59: 0 | EO59: 0 | EP59: 0 | EQ59: 0 | ER59: 0 | ES59: 0 | ET59: 0 | EU59: 0 | EV59: 0 | EW59: 0 | EX59: 0 | EY59: 0 | EZ59: =IF(CC59>0,CHOOSE(CC59,$CN59,$CO59,$CP59,$CQ59,$CR59,$CS59),0) -> 0 | FA59: 0 | FB59: 0 | FC59: 0 | FD59: 0 | FE59: 0 | FF59: 0 | FG59: 0 | FH59: END
A60: Park Way PS | B60: West | C60: 2995-02-27 | D60: 2685-01-20 | G60: 400000 | I60: 199.95 | K60: 2017-09-18 | L60: 2018-03-07 | M60: 2018-06-15 | N60: 2018-07-01 | O60: 2018-08-15 | P60: 25 | Q60: 2018-12-19 | S60: 13/12/2017 PD | T60: 2018-09-01 | W60: 4 | X60: 4 | Y60: 5 | Z60: 5 | AA60: 5 | AB60: 5 | AN60: 6 | CK60: Ongoing | CM60: less than £1m | CN60: 25.8 | CO60: 12.9 | CP60: 25.8 | CQ60: 38.7 | CR60: 25.8 | CS60: =VLOOKUP($CM60,AVEHRS_TABLE,7,0)*AVE_WKS_PER_MONTH/2 -> 19.35 | CT60: 38.7 | CU60: 38.7 | CV60: 25.8 | CW60: 25.8 | CX60: 25.8 | CY60: 25.8 | CZ60: 0 | DA60: 0 | DB60: 0 | DC60: 0 | DD60: 0 | DE60: 0 | DF60: 0 | DG60: 0 | DH60: 0 | DI60: 0 | DJ60: 0 | DK60: 19.35 | DL60: 0 | DM60: 0 | DN60: 0 | DO60: 0 | DP60: 0 | DQ60: 0 | DR60: 0 | DS60: 0 | DT60: 0 | DU60: 0 | DV60: 0 | DW60: 0 | DX60: 0 | DY60: =IF(BB60>0,CHOOSE(BB60,$CN60,$CO60,$CP60,$CQ60,$CR60,$CS60),0) -> 0 | DZ60: 0 | EA60: 0 | EB60: 0 | EC60: 0 | ED60: 0 | EE60: 0 | EF60: 0 | EG60: 0 | EH60: 0 | EI60: 0 | EJ60: 0 | EK60: 0 | EL60: 0 | EM60: 0 | EN60: 0 | EO60: 0 | EP60: 0 | EQ60: 0 | ER60: 0 | ES60: 0 | ET60: 0 | EU60: 0 | EV60: 0 | EW60: 0 | EX60: 0 | EY60: 0 | EZ60: 0 | FA60: 0 | FB60: 0 | FC60: 0 | FD60: 0 | FE60: 0 | FF60: 0 | FG60: 0 | FH60: END
A61: Harrietsham PS | B61: West | C61: 3000000 | D61: 3600000 | G61: 3300000 | I61: 715.95 | K61: 2016-09-28 | L61: 2017-10-06 | M61: 2018-01-15 | N61: 2018-03-18 | O61: 2018-06-15 | P61: 38 | Q61: TBC | S61: Bulge - 05/01/2018 PD Main Phase - Due Sept 2018 | T61: 2018-07-01 | W61: 5 | X61: 5 | Y61: 5 | Z61: 5 | AA61: 5 | AB61: 5 | AC61: 5 | AD61: 5 | AE61: 5 | AF61: 5 | AG61: 5 | AH61: 5 | AI61: 5 | AJ61: 5 | AK61: 5 | AL61: 5 | AM61: 5 | AN61: 5 | AO61: 5 | AP61: 5 | AQ61: 5 | AR61: 5 | AS61: 5 | AT61: 5 | AU61: 5 | AV61: 5 | AW61: 5 | BI61: 6 | CK61: Ongoing | CM61: £1 to £4 million | CN61: 25.8 | CO61: 12.9 | CP61: 25.8 | CQ61: 38.7 | CR61: 25.8 | CS61: =VLOOKUP($CM61,AVEHRS_TABLE,7,0)*AVE_WKS_PER_MONTH/2 -> 19.35 | CT61: 25.8 | CU61: 25.8 | CV61: 25.8 | CW61: 25.8 | CX61: 25.8 | CY61: 25.8 | CZ61: 25.8 | DA61: 25.8 | DB61: 25.8 | DC61: 25.8 | DD61: 25.8 | DE61: 25.8 | DF61: 25.8 | DG61: 25.8 | DH61: 25.8 | DI61: 25.8 | DJ61: 25.8 | DK61: 25.8 | DL61: 25.8 | DM61: 25.8 | DN61: 25.8 | DO61: 25.8 | DP61: 25.8 | DQ61: 25.8 | DR61: 25.8 | DS61: 25.8 | DT61: 25.8 | DU61: 0 | DV61: 0 | DW61: 0 | DX61: =IF(BA61>0,CHOOSE(BA61,$CN61,$CO61,$CP61,$CQ61,$CR61,$CS61),0) -> 0 | DY61: 0 | DZ61: 0 | EA61: 0 | EB61: 0 | EC61: 0 | ED61: 0 | EE61: 0 | EF61: 19.35 | EG61: 0 | EH61: 0 | EI61: 0 | EJ61: 0 | EK61: 0 | EL61: 0 | EM61: 0 | EN61: 0 | EO61: 0 | EP61: 0 | EQ61: 0 | ER61: 0 | ES61: 0 | ET61: 0 | EU61: 0 | EV61: 0 | EW61: 0 | EX61: 0 | EY61: 0 | EZ61: 0 | FA61: 0 | FB61: 0 | FC61: 0 | FD61: 0 | FE61: 0 | FF61: 0 | FG61: 0 | FH61: END
A62: St Peters Tunbridge Wells PS (Hawkenbury) | B62: West | C62: 6900000 | D62: 7900000 | G62: 6900000 | I62: 1158.42 | K62: 2017-05-15 | L62: 2018-07-01 | M62: 2019-08-10 | N62: 2018-11-02 | O62: 2019-03-08 | P62: 37.71428571 | Q62: 2020-03-03 | T62: 2019-01-05 | U62: 2020-03-30 | V62: 64.28571429 | W62: 2 | X62: 3 | Y62: 3 | Z62: 4 | AA62: 4 | AB62: 4 | AC62: 5 | AD62: 5 | AE62: 5 | AF62: 5 | AG62: 5 | AH62: 5 | AI62: 5 | AJ62: 5 | AK62: 5 | AL62: 5 | AM62: 5 | AN62: 5 | AO62: 5 | AP62: 5 | AQ62: 5 | BC62: 6 | CK62: Ongoing | CM62: £4 to £8 million | CN62: 25.8 | CO62: 25.8 | CP62: 51.6 | CQ62: 73.1 | CR62: 51.6 | CS62: =VLOOKUP($CM62,AVEHRS_TABLE,7,0)*AVE_WKS_PER_MONTH*70% -> 36.12 | CT62: =IF(W62>0,CHOOSE(W62,$CN62,$CO62,$CP62,$CQ62,$CR62,$CS62),0) -> 25.8 | CU62: 51.6 | CV62: 51.6 | CW62: 73.1 | CX62: 73.1 | CY62: 73.1 | CZ62: 51.6 | DA62: 51.6 | DB62: 51.6 | DC62: 51.6 | DD62: 51.6 | DE62: 51.6 | DF62: 51.6 | DG62: 51.6 | DH62: 51.6 | DI62: 51.6 | DJ62: =IF(AM62>0,CHOOSE(AM62,$CN62,$CO62,$CP62,$CQ62,$CR62,$CS62),0) -> 51.6 | DK62: 51.6 | DL62: 51.6 | DM62: 51.6 | DN62: 51.6 | DO62: 0 | DP62: 0 | DQ62: 0 | DR62: 0 | DS62: 0 | DT62: 0 | DU62: 0 | DV62: 0 | DW62: 0 | DX62: 0 | DY62: 0 | DZ62: 36.12 | EA62: 0 | EB62: 0 | EC62: 0 | ED62: 0 | EE62: 0 | EF62: 0 | EG62: 0 | EH62: 0 | EI62: 0 | EJ62: 0 | EK62: 0 | EL62: 0 | EM62: 0 | EN62: 0 | EO62: 0 | EP62: 0 | EQ62: 0 | ER62: 0 | ES62: 0 | ET62: 0 | EU62: 0 | EV62: 0 | EW62: 0 | EX62: 0 | EY62: 0 | EZ62: 0 | FA62: 0 | FB62: 0 | FC62: 0 | FD62: 0 | FE62: 0 | FF62: 0 | FG62: 0 | FH62: END
A63: Benenden PS | G63: 5100000 | I63: 749.92 | K63: - | L63: - | M63: 2013-01-21 | N63: 2017-12-22 | O63: 2018-08-13 | Q63: 2019-07-15 | S63: =VLOOKUP($A63,BASE_DATA,23,0) ->  | W63: 4 | X63: 4 | Y63: 5 | Z63: 5 | AA63: 5 | AB63: 5 | AC63: 5 | AD63: 5 | AE63: 5 | AF63: 5 | AG63: 5 | AH63: 5 | AI63: 5 | AU63: 6 | CK63: Ongoing | CM63: £4 to £8 million | CN63: 25.8 | CO63: 25.8 | CP63: 51.6 | CQ63: 73.1 | CR63: 51.6 | CS63: =VLOOKUP($CM63,AVEHRS_TABLE,7,0)*AVE_WKS_PER_MONTH*70% -> 36.12 | CT63: 73.1 | CU63: 73.1 | CV63: 51.6 | CW63: 51.6 | CX63: 51.6 | CY63: 51.6 | CZ63: 51.6 | DA63: 51.6 | DB63: 51.6 | DC63: 51.6 | DD63: 51.6 | DE63: 51.6 | DF63: 51.6 | DG63: 0 | DH63: 0 | DI63: 0 | DJ63: 0 | DK63: 0 | DL63: 0 | DM63: 0 | DN63: 0 | DO63: 0 | DP63: 0 | DQ63: 0 | DR63: 36.12 | DS63: 0 | DT63: 0 | DU63: 0 | DV63: 0 | DW63: 0 | DX63: 0 | DY63: 0 | DZ63: 0 | EA63: 0 | EB63: 0 | EC63: 0 | ED63: 0 | EE63: 0 | EF63: 0 | EG63: 0 | EH63: 0 | EI63: 0 | EJ63: 0 | EK63: 0 | EL63: 0 | EM63: 0 | EN63: 0 | EO63: 0 | EP63: 0 | EQ63: 0 | ER63: 0 | ES63: 0 | ET63: 0 | EU63: 0 | EV63: 0 | EW63: 0 | EX63: 0 | EY63: 0 | EZ63: 0 | FA63: 0 | FB63: 0 | FC63: 0 | FD63: 0 | FE63: 0 | FF63: 0 | FG63: 0 | FH63: END
A64: Platt PS | G64: 4800000 | I64: 1098.22 | K64: - | L64: 2017-12-22 | M64: 2018-07-27 | N64: 2018-10-08 | O64: 2019-03-29 | P64: 68 | Q64: 2020-01-31 | W64: 2 | X64: 3 | Y64: 3 | Z64: 3 | AA64: 4 | AB64: 4 | AC64: 4 | AD64: 4 | AE64: 4 | AF64: 5 | AG64: 5 | AH64: 5 | AI64: 5 | AJ64: 5 | AK64: 5 | AL64: 5 | AM64: 5 | AN64: 5 | AO64: 5 | BA64: 6 | CK64: Ongoing | CM64: £4 to £8 million | CN64: 25.8 | CO64: 25.8 | CP64: 51.6 | CQ64: 73.1 | CR64: 51.6 | CS64: =VLOOKUP($CM64,AVEHRS_TABLE,7,0)*AVE_WKS_PER_MONTH*70% -> 36.12 | CT64: 25.8 | CU64: 51.6 | CV64: 51.6 | CW64: 51.6 | CX64: 73.1 | CY64: 73.1 | CZ64: 73.1 | DA64: 73.1 | DB64: 73.1 | DC64: 51.6 | DD64: 51.6 | DE64: 51.6 | DF64: 51.6 | DG64: 51.6 | DH64: 51.6 | DI64: 51.6 | DJ64: 51.6 | DK64: 51.6 | DL64: 51.6 | DM64: 0 | DN64: 0 | DO64: 0 | DP64: 0 | DQ64: 0 | DR64: 0 | DS64: 0 | DT64: 0 | DU64: 0 | DV64: 0 | DW64: 0 | DX64: 36.12 | DY64: 0 | DZ64: 0 | EA64: 0 | EB64: 0 | EC64: 0 | ED64: 0 | EE64: 0 | EF64: 0 | EG64: 0 | EH64: 0 | EI64: 0 | EJ64: 0 | EK64: 0 | EL64: 0 | EM64: 0 | EN64: 0 | EO64: 0 | EP64: 0 | EQ64: 0 | ER64: 0 | ES64: 0 | ET64: 0 | EU64: 0 | EV64: 0 | EW64: 0 | EX64: 0 | EY64: 0 | EZ64: 0 | FA64: 0 | FB64: 0 | FC64: 0 | FD64: 0 | FE64: 0 | FF64: 0 | FG64: 0 | FH64: END
A65: Northfleet Tech College (PFI) | B65: North | C65: 4500000 | D65: 4320167 | G65: 3250000 | I65: 832.05 | K65: 1905-07-08 | L65: 2018-12-05 | M65: 2019-08-15 | N65: 2019-11-30 | O65: 2020-02-01 | P65: 62.42857143 | Q65: 2021-09-01 | AB65: 1 | AC65: 2 | AD65: 2 | AE65: 2 | AF65: 2 | AG65: 2 | AH65: 2 | AI65: 2 | AJ65: 2 | AK65: 3 | AL65: 3 | AM65: 3 | AN65: 4 | AO65: 4 | AP65: 4 | AQ65: 5 | AR65: 5 | AS65: 5 | AT65: 5 | AU65: 5 | AV65: 5 | AW65: 5 | AX65: 5 | AY65: 5 | AZ65: 5 | BA65: 5 | BB65: 5 | BC65: 5 | BD65: 5 | BE65: 5 | BF65: 5 | BG65: 5 | BH65: 5 | BI65: 5 | BU65: 6 | CK65: Ongoing | CM65: £1 to £4 million | CN65: 25.8 | CO65: 12.9 | CP65: 25.8 | CQ65: 38.7 | CR65: 25.8 | CS65: =VLOOKUP($CM65,AVEHRS_TABLE,7,0)*AVE_WKS_PER_MONTH/2 -> 19.35 | CT65: 0 | CU65: 0 | CV65: 0 | CW65: 0 | CX65: 0 | CY65: 25.8 | CZ65: 12.9 | DA65: 12.9 | DB65: 12.9 | DC65: 12.9 | DD65: 12.9 | DE65: 12.9 | DF65: 12.9 | DG65: 12.9 | DH65: 25.8 | DI65: 25.8 | DJ65: 25.8 | DK65: 38.7 | DL65: 38.7 | DM65: 38.7 | DN65: 25.8 | DO65: 25.8 | DP65: 25.8 | DQ65: 25.8 | DR65: 25.8 | DS65: 25.8 | DT65: 25.8 | DU65: 25.8 | DV65: 25.8 | DW65: 25.8 | DX65: 25.8 | DY65: 25.8 | DZ65: 25.8 | EA65: 25.8 | EB65: 25.8 | EC65: 25.8 | ED65: 25.8 | EE65: 25.8 | EF65: 25.8 | EG65: 0 | EH65: 0 | EI65: 0 | EJ65: 0 | EK65: 0 | EL65: 0 | EM65: 0 | EN65: 0 | EO65: 0 | EP65: 0 | EQ65: 0 | ER65: 19.35 | ES65: 0 | ET65: 0 | EU65: 0 | EV65: 0 | EW65: 0 | EX65: 0 | EY65: 0 | EZ65: 0 | FA65: 0 | FB65: 0 | FC65: 0 | FD65: 0 | FE65: 0 | FF65: 0 | FG65: 0 | FH65: END
A66: St John's Secondary School (PFI), Phase 1 | G66: 400000 | I66: 109.65 | K66: 2018-03-30 | L66: 2018-04-25 | M66: 2018-05-25 | N66: 2018-06-01 | O66: 2018-07-02 | P66: 11.71428571 | Q66: 2018-09-01 | W66: 4 | X66: 5 | Y66: 5 | AK66: 6 | CK66: Ongoing | CM66: less than £1m | CN66: 25.8 | CO66: 12.9 | CP66: 25.8 | CQ66: 38.7 | CR66: 25.8 | CS66: =VLOOKUP($CM66,AVEHRS_TABLE,7,0)*AVE_WKS_PER_MONTH/2 -> 19.35 | CT66: 38.7 | CU66: 25.8 | CV66: 25.8 | CW66: 0 | CX66: 0 | CY66: 0 | CZ66: 0 | DA66: 0 | DB66: 0 | DC66: 0 | DD66: 0 | DE66: 0 | DF66: 0 | DG66: 0 | DH66: 19.35 | DI66: 0 | DJ66: 0 | DK66: 0 | DL66: 0 | DM66: 0 | DN66: 0 | DO66: 0 | DP66: 0 | DQ66: 0 | DR66: 0 | DS66: 0 | DT66: 0 | DU66: 0 | DV66: 0 | DW66: 0 | DX66: 0 | DY66: 0 | DZ66: 0 | EA66: 0 | EB66: 0 | EC66: 0 | ED66: 0 | EE66: 0 | EF66: 0 | EG66: 0 | EH66: 0 | EI66: 0 | EJ66: 0 | EK66: 0 | EL66: 0 | EM66: 0 | EN66: 0 | EO66: 0 | EP66: 0 | EQ66: 0 | ER66: 0 | ES66: 0 | ET66: 0 | EU66: 0 | EV66: 0 | EW66: 0 | EX66: 0 | EY66: 0 | EZ66: 0 | FA66: 0 | FB66: 0 | FC66: 0 | FD66: 0 | FE66: 0 | FF66: 0 | FG66: 0 | FH66: END
A67: St John's Secondary School (PFI), Phase 2 | G67: 5600000 | I67: 1339.02 | K67: 2017-12-12 | L67: 2018-08-29 | M67: 2018-11-12 | N67: 2019-02-01 | O67: 2019-05-01 | P67: 37 | Q67: 2020-09-01 | X67: 1 | Y67: 2 | Z67: 2 | AA67: 2 | AB67: 3 | AC67: 3 | AD67: 3 | AE67: 4 | AF67: 4 | AG67: 4 | AH67: 5 | AI67: 5 | AJ67: 5 | AK67: 5 | AL67: 5 | AM67: 5 | AN67: 5 | AO67: 5 | AP67: 5 | AQ67: 5 | AR67: 5 | AS67: 5 | AT67: 5 | AU67: 5 | AV67: 5 | AW67: 5 | BI67: 6 | CK67: Ongoing | CM67: £4 to £8 million | CN67: 25.8 | CO67: 25.8 | CP67: 51.6 | CQ67: 73.1 | CR67: 51.6 | CS67: =VLOOKUP($CM67,AVEHRS_TABLE,7,0)*AVE_WKS_PER_MONTH*70% -> 36.12 | CT67: 0 | CU67: 25.8 | CV67: 25.8 | CW67: 25.8 | CX67: 25.8 | CY67: 51.6 | CZ67: 51.6 | DA67: 51.6 | DB67: 73.1 | DC67: 73.1 | DD67: 73.1 | DE67: 51.6 | DF67: 51.6 | DG67: 51.6 | DH67: 51.6 | DI67: 51.6 | DJ67: 51.6 | DK67: 51.6 | DL67: 51.6 | DM67: 51.6 | DN67: 51.6 | DO67: 51.6 | DP67: 51.6 | DQ67: 51.6 | DR67: 51.6 | DS67: 51.6 | DT67: 51.6 | DU67: 0 | DV67: 0 | DW67: 0 | DX67: 0 | DY67: 0 | DZ67: 0 | EA67: 0 | EB67: 0 | EC67: 0 | ED67: 0 | EE67: 0 | EF67: 36.12 | EG67: 0 | EH67: 0 | EI67: 0 | EJ67: 0 | EK67: 0 | EL67: 0 | EM67: 0 | EN67: 0 | EO67: 0 | EP67: 0 | EQ67: 0 | ER67: 0 | ES67: 0 | ET67: 0 | EU67: 0 | EV67: 0 | EW67: 0 | EX67: 0 | EY67: 0 | EZ67: 0 | FA67: 0 | FB67: 0 | FC67: 0 | FD67: 0 | FE67: 0 | FF67: 0 | FG67: 0 | FH67: END
A68: Thamesview School (PFI), Phase 1 | G68: 50000 | I68: 19.35 | K68: 2017-12-12 | L68: 2018-04-25 | M68: 2018-05-25 | N68: 2018-06-01 | O68: 2018-06-28 | P68: 11.14285714 | Q68: 2018-09-01 | AI68: 6 | CK68: Ongoing | CM68: less than £1m | CN68: 25.8 | CO68: 12.9 | CP68: 25.8 | CQ68: 38.7 | CR68: 25.8 | CS68: =VLOOKUP($CM68,AVEHRS_TABLE,7,0)*AVE_WKS_PER_MONTH/2 -> 19.35 | CT68: 0 | CU68: 0 | CV68: 0 | CW68: 0 | CX68: 0 | CY68: 0 | CZ68: 0 | DA68: 0 | DB68: 0 | DC68: 0 | DD68: 0 | DE68: 0 | DF68: 19.35 | DG68: 0 | DH68: 0 | DI68: 0 | DJ68: 0 | DK68: 0 | DL68: 0 | DM68: 0 | DN68: 0 | DO68: 0 | DP68: 0 | DQ68: 0 | DR68: 0 | DS68: 0 | DT68: 0 | DU68: 0 | DV68: 0 | DW68: 0 | DX68: 0 | DY68: 0 | DZ68: 0 | EA68: 0 | EB68: 0 | EC68: 0 | ED68: 0 | EE68: 0 | EF68: 0 | EG68: 0 | EH68: 0 | EI68: 0 | EJ68: 0 | EK68: 0 | EL68: 0 | EM68: 0 | EN68: 0 | EO68: 0 | EP68: 0 | EQ68: 0 | ER68: 0 | ES68: 0 | ET68: 0 | EU68: 0 | EV68: 0 | EW68: 0 | EX68: 0 | EY68: 0 | EZ68: 0 | FA68: 0 | FB68: 0 | FC68: 0 | FD68: 0 | FE68: 0 | FF68: 0 | FG68: 0 | FH68: END
A69: Thamesview School (PFI), Phase 2 | G69: 5950000 | I69: 1313.22 | K69: 2017-12-12 | L69: 2018-09-15 | M69: 2018-11-30 | N69: 2019-02-01 | O69: 2019-05-01 | P69: 34.57142857 | Q69: 2020-09-01 | Y69: 2 | Z69: 2 | AA69: 2 | AB69: 3 | AC69: 3 | AD69: 3 | AE69: 4 | AF69: 4 | AG69: 4 | AH69: 5 | AI69: 5 | AJ69: 5 | AK69: 5 | AL69: 5 | AM69: 5 | AN69: 5 | AO69: 5 | AP69: 5 | AQ69: 5 | AR69: 5 | AS69: 5 | AT69: 5 | AU69: 5 | AV69: 5 | AW69: 5 | BI69: 6 | CK69: Ongoing | CM69: £4 to £8 million | CN69: 25.8 | CO69: 25.8 | CP69: 51.6 | CQ69: 73.1 | CR69: 51.6 | CS69: =VLOOKUP($CM69,AVEHRS_TABLE,7,0)*AVE_WKS_PER_MONTH*70% -> 36.12 | CT69: 0 | CU69: 0 | CV69: 25.8 | CW69: 25.8 | CX69: 25.8 | CY69: 51.6 | CZ69: 51.6 | DA69: 51.6 | DB69: 73.1 | DC69: 73.1 | DD69: 73.1 | DE69: 51.6 | DF69: 51.6 | DG69: 51.6 | DH69: 51.6 | DI69: 51.6 | DJ69: 51.6 | DK69: 51.6 | DL69: 51.6 | DM69: 51.6 | DN69: 51.6 | DO69: 51.6 | DP69: 51.6 | DQ69: 51.6 | DR69: 51.6 | DS69: 51.6 | DT69: 51.6 | DU69: 0 | DV69: 0 | DW69: 0 | DX69: 0 | DY69: 0 | DZ69: 0 | EA69: 0 | EB69: 0 | EC69: 0 | ED69: 0 | EE69: 0 | EF69: 36.12 | EG69: 0 | EH69: 0 | EI69: 0 | EJ69: 0 | EK69: 0 | EL69: 0 | EM69: 0 | EN69: 0 | EO69: 0 | EP69: 0 | EQ69: 0 | ER69: 0 | ES69: 0 | ET69: 0 | EU69: 0 | EV69: 0 | EW69: 0 | EX69: 0 | EY69: 0 | EZ69: 0 | FA69: 0 | FB69: 0 | FC69: 0 | FD69: 0 | FE69: 0 | FF69: 0 | FG69: 0 | FH69: END
A70: Ursuline College, Phase 1 | G70: 300000 | I70: 251.55 | K70: - | L70: - | M70: - | N70: 2018-04-28 | O70: 2018-08-31 | Q70: 2019-01-01 | W70: 4 | X70: 4 | AC70: 5 | AD70: 5 | AE70: 5 | AF70: 5 | AG70: 5 | AH70: 5 | AT70: 6 | CK70: Ongoing | CM70: less than £1m | CN70: 25.8 | CO70: 12.9 | CP70: 25.8 | CQ70: 38.7 | CR70: 25.8 | CS70: =VLOOKUP($CM70,AVEHRS_TABLE,7,0)*AVE_WKS_PER_MONTH/2 -> 19.35 | CT70: 38.7 | CU70: 38.7 | CV70: 0 | CW70: 0 | CX70: 0 | CY70: 0 | CZ70: 25.8 | DA70: 25.8 | DB70: 25.8 | DC70: 25.8 | DD70: 25.8 | DE70: 25.8 | DF70: 0 | DG70: 0 | DH70: 0 | DI70: 0 | DJ70: 0 | DK70: 0 | DL70: 0 | DM70: 0 | DN70: 0 | DO70: 0 | DP70: 0 | DQ70: 19.35 | DR70: 0 | DS70: 0 | DT70: 0 | DU70: 0 | DV70: 0 | DW70: 0 | DX70: 0 | DY70: 0 | DZ70: 0 | EA70: 0 | EB70: 0 | EC70: 0 | ED70: 0 | EE70: 0 | EF70: 0 | EG70: 0 | EH70: 0 | EI70: 0 | EJ70: 0 | EK70: 0 | EL70: 0 | EM70: 0 | EN70: 0 | EO70: 0 | EP70: 0 | EQ70: 0 | ER70: 0 | ES70: 0 | ET70: 0 | EU70: 0 | EV70: 0 | EW70: 0 | EX70: 0 | EY70: 0 | EZ70: 0 | FA70: 0 | FB70: 0 | FC70: 0 | FD70: 0 | FE70: 0 | FF70: 0 | FG70: 0 | FH70: END
